Workbook

Sheet Cover

Sheet Contents
A1: Contents
A4: Tab | B4: Description
A5: Cover
A7: One-pager
A9: Guide & Drivers
A11: RAG and Ranking
A13: Chapter 2 - Outputs and Incentives
A14: Incentive Payments | B14: Summary table of 2023-24 incentive payments including: IIS, TTC, CSS, CM, DSO, MCI and CVI
A16: Connections | B16: Connection incentives including: Time to Connect Incentive, Connections on Guaranteed Standards of Performance and Major Connections Incentive
A18: Customer Satisfaction | B18: Customer Satisfaction and Vulnerability incentives including: Customer Satisfaction Survey, Complaints Metric and Consumer Vulnerability Incentive
A20: Reliability | B20: Reliability and Availability incentive measures including: IIS, GSoP, WSC and Network resilience
A22: Distribution System Operator | B22: Performance on the two components of the DSO incentive as well as the overall reward and penalty
A24: Environment | B24: Environment incentives including: Distribution losses, Business Carbon Footprint, limiting emissions of Sulphur Hexafluoride (SF6), Fluid filled cable leakage, Visual impact allowance for undergrounding overhead lines in Areas of Outstanding Natural Beauty (AONB) & National Parks, Electric vehicles connected to the secondary network and Noise pollution
A26: Chapter 3 - Innovation
A27: Innovation | B27: Innovation data including: Network Innovation Allowance and Strategic Innovation Fund
A29: Chapter 4 - Expenditure Drivers
A30: Expenditure Drivers | B30: Expenditure driver's data including: Expenditure drivers of allowances and expenditures of each cost category, distribution of overall allowances and expenditures and Baselines allowances & actual expenditure by cost category
A32: Expenditure Drivers 2 | B32: Overall outline of baseline allowances of each cost category, areas of underspend and areas of overspend

Sheet One-pager
A1: One-Pager
A2: ENWL
A3: One-Pager - key data points of each DNO (Dropdown Menu above)
A4: Cover, Guide and Drivers
B5: 2024 | C5: 10 year trend
A6: Customer numbers | B6: =TEXT(Calculations!L7,"#,##0") -> 2,430,849
A7: Network length | B7: =TEXT(Calculations!L8,"#,##0.00")&"km" -> 60,848.17km
A8: Total units distributed | B8: =TEXT(Calculations!L9,"#,##0.00")&" GWh" -> 19,532.40 GWh
A9: Network-wide peak load | B9: =TEXT(Calculations!L10,"#,##0")&" MVA" -> 3,960 MVA
A11: Incentive Payments
B12: 2024
A13: Total Incentive Payments | B13: ="£"&TEXT(Calculations!C14,"#,##0.00")&"m" -> £3.07m
A15: Reliability
B16: 2024 | C16: RAG rating
A17: CI Performance | B17: =Calculations!D19 -> 26.21178856 | C17: =Calculations!D20 -> Green
A18: CML Performance | B18: =Calculations!D21 -> 26.79553851 | C18: =Calculations!D22 -> Green
A19: IIS Total Reward/Penalty | B19: ="£"&TEXT(Calculations!D23,"#,##0.00")&"m" -> £0.87m
A20: GSOP mandatory payments vs valid payments owed | B20: =Calculations!D30 -> 0.859949233
A21: WSC Expenditure | B21: ="£"&TEXT(Calculations!D32,"#,##0.00")&"m" -> £0.19m
A22: Total Resilience Expenditure | B22: ="£"&TEXT(Calculations!D35,"#,##0.00")&"m" -> £7.56m
A24: Connections
B25: 2024 | C25: RAG rating | D25: Ranking
A26: TTC Reward | B26: ="£"&TEXT(Calculations!C39,"#,##0.00")&"m" -> £0.87m | C26: =Calculations!C40 -> Green | D26: =Calculations!C41 -> 2
A27: Penalties paid against Connection GSOPs | B27: ="£"&TEXT(Calculations!C49,"#,##0") -> £24,605 | C27: =Calculations!C50 -> Green | D27: =Calculations!C51 -> 8
A28: MCI Penalty | B28: ="£"&TEXT(Calculations!C44,"#,##0.00")&"m" -> £0.00m
A30: Environment
B31: 2024 | C31: Ranking
A32: Distribution Losses | B32: =Calculations!C56 -> 0.07534004695
A33: BCF (as % of network length and customer numbers) | B33: =Calculations!C59 -> 0.07496723728 | C33: =Calculations!C60 -> 5
A34: SF6 emissions (as % of SF6 bank) | B34: =Calculations!C63 -> 0.00173590488 | C34: =Calculations!C64 -> 6
A35: Top up of fluid-filled cables (as % of oil in service) | B35: =Calculations!C67 -> 0.01803381221 | C35: =Calculations!C68 -> 9
A36: Undergrounding expenditure | B36: ="£"&TEXT(Calculations!C71,"#,##0.00")&"m" -> £0.96m
A37: Slow charge EVs connected to the distribution network | B37: =TEXT(Calculations!C74,"#,##0.00")&" MW" -> 0.01 MW
A38: Fast charge EVs connected to the distribution network | B38: =TEXT(Calculations!C75,"#,##0.00")&" MW" -> 53.55 MW
A39: Noise complaints | B39: =Calculations!C78 -> 25
A42: Customer Satisfaction
B43: 2024 | C43: RAG rating | D43: Ranking
A44: Overall CSS Score | B44: =TEXT(Calculations!C83,"#,##0.00") -> 9.20 | C44: =Calculations!C84 -> Green | D44: =Calculations!C85 -> 5
A45: Complaint Metric Score | B45: =TEXT(Calculations!C92,"#,##0.00") -> 2.64 | C45: =Calculations!C93 -> Green | D45: =Calculations!C94 -> 12
A46: CSS Reward/Penalty | B46: ="£"&TEXT(Calculations!C102,"#,##0.00")&"m" -> £1.15m
A47: Complaints Metric Penalty | B47: ="£"&TEXT(Calculations!C103,"#,##0.00")&"m" -> £0.00m
A48: Consumer Vulnerability Reward/Penalty | B48: ="£"&TEXT(Calculations!C104,"#,##0.00")&"m" -> £m
A51: Expenditure Drivers (Over-spend/under-spend %)
B52: 2023/24 Difference | C52: 2023/24 Difference %
A53: Totex | B53: =TEXT(Calculations!H115,"+£0.00;-£0.00")&"m" -> -£77.50m | C53: =IFERROR(TEXT(Calculations!H116,"+0.00%;-0.00%"),"") -> -21.64%
A54: Load Related Capex | B54: =TEXT(Calculations!C123,"+£0.00;-£0.00")&"m" -> -£19.89m | C54: =IFERROR(TEXT(Calculations!C124,"+0.00%;-0.00%"),"") -> -43.94%
A55: Non-Load Related Capex | B55: =TEXT(Calculations!C127,"+£0.00;-£0.00")&"m" -> -£33.29m | C55: =IFERROR(TEXT(Calculations!C128,"+0.00%;-0.00%"),"") -> -29.09%
A56: Non-Op Capex | B56: =TEXT(Calculations!C131,"+£0.00;-£0.00")&"m" -> -£8.48m | C56: =IFERROR(TEXT(Calculations!C132,"+0.00%;-0.00%"),"") -> -37.52%
A57: High Value Projects | B57: =TEXT(Calculations!C135,"+£0.00;-£0.00")&"m" -> +£0.60m | C57: =IFERROR(TEXT(Calculations!C136,"+0.00%;-0.00%"),"") -> 
A58: Network Operating Costs | B58: =TEXT(Calculations!C139,"+£0.00;-£0.00")&"m" -> +£1.56m | C58: =IFERROR(TEXT(Calculations!C140,"+0.00%;-0.00%"),"") -> +2.74%
A59: Closely Associated Indirects | B59: =TEXT(Calculations!C143,"+£0.00;-£0.00")&"m" -> -£15.24m | C59: =IFERROR(TEXT(Calculations!C144,"+0.00%;-0.00%"),"") -> -22.21%
A60: Business Support Costs | B60: =TEXT(Calculations!C147,"+£0.00;-£0.00")&"m" -> -£3.11m | C60: =IFERROR(TEXT(Calculations!C148,"+0.00%;-0.00%"),"") -> -6.20%
A61: All Other Costs | B61: =TEXT(Calculations!C151,"+£0.00;-£0.00")&"m" -> +£0.36m | C61: =IFERROR(TEXT(Calculations!C152,"+0.00%;-0.00%"),"") -> 

Sheet Guide & drivers
A1: Guide and Drivers
A2: This workbook provides data that is reported in the Annual Report and more detailed data for those who want to undertake further analysis.
A4: Key
B5: Future year input (graphs will be manually pointed to the relevant years' data)
B6: Actual expenditure or performance
B7: Forecast / target expenditure or performance
B8: Baseline allowances
B9: Forecast/Adjusted allowances
B10: Adjustment factor / Difference
B11: Ranking
A13: Price base: | B13: 2020/21
A15: Input Terms
B17: RPI Index
C18: Financial Year Average RPI | D18: Conversion from 20/21 to nominal prices | I18: Index adjustment 2020/21 base year
B19: 2009/10 | C19: 215.767 | D19: =C19/$C$30 -> 0.7334847213 | I19: 2009/10 | J19: =$C$30/C19 -> 1.363354915
B20: 2010/11 | C20: 226.475 | D20: =C20/$C$30 -> 0.7698858132 | I20: 2010/11 | J20: =$C$30/C20 -> 1.298893918
B21: 2011/12 | C21: 237.342 | D21: =C21/$C$30 -> 0.8068274144 | I21: 2011/12 | J21: =$C$30/C21 -> 1.239422437
B22: 2012/13 | C22: 244.675 | D22: 0.8317554314 | I22: 2012/13 | J22: 1.202276489
B23: 2013/14 | C23: 251.733 | D23: 0.8557486054 | I23: 2013/14 | J23: 1.16856749
B24: 2014/15 | C24: 256.667 | D24: 0.8725213909 | I24: 2014/15 | J24: 1.146103706
B25: 2015/16 | C25: 259.433 | D25: 0.8819242131 | I25: 2015/16 | J25: 1.133884278
B26: 2016/17 | C26: 264.992 | D26: 0.9008216421 | I26: 2016/17 | J26: 1.110097663
B27: 2017/18 | C27: 274.908 | D27: 0.9345303858 | I27: 2017/18 | J27: =$C$30/C27 -> 1.070056164
B28: 2018/19 | C28: 283.308 | D28: 0.9630855942 | I28: 2018/19 | J28: 1.038329309
B29: 2019/20 | C29: 290.642 | D29: 0.9880170107 | I29: 2019/20 | J29: 1.012128323
B30: 2020/21 | C30: 294.167 | D30: 1 | I30: 2020/21 | J30: 1
B31: 2021/22 | C31: 311.158 | D31: 1.057759708 | I31: 2021/22 | J31: 0.9453943013
B32: 2022/23 | C32: 351.217 | D32: 1.193937457 | I32: 2022/23 | J32: 0.8375648104
B33: 2023/24 | C33: 376.717 | D33: 1.280622911 | I33: 2023/24 | J33: 0.7808699899
B37: Convert 2020/21 prices to 2023/24 | C37: =C33/C30 -> 1.280622911
B38: Convert 2023/24 prices to 2020/21 | C38: =C30/C33 -> 0.7808699899
A40: Drivers
B41: Customer numbers
C42: DPCR5 | H42: RIIO ED1 | P42: RIIO ED2
B43: Column1 | C43: 2011 | D43: 2012 | E43: 2013 | F43: 2014 | G43: 2015 | H43: 2016 | I43: 2017 | J43: 2018 | K43: 2019 | L43: 2020 | M43: 2021 | N43: 2022 | O43: 2023 | P43: 2024 | Q43: 2025 | R43: 2026 | S43: 2027 | T43: 2028
B44: ENWL | C44: ='[2]M14 - Drivers'!AD9 -> 2359391 | D44: ='[2]M14 - Drivers'!AE9 -> 2364446 | E44: ='[2]M14 - Drivers'!AF9 -> 2368572 | F44: ='[2]M14 - Drivers'!AG9 -> 2371790 | G44: ='[2]M14 - Drivers'!AH9 -> 2375305 | H44: ='[3]M14 - Drivers'!$E$9 -> 2381080 | I44: ='[3]M14 - Drivers'!$F$9 -> 2383214 | J44: ='[3]M14 - Drivers'!$G$9 -> 2383887 | K44: ='[3]M14 - Drivers'!$H$9 -> 2393226 | L44: ='[3]M14 - Drivers'!$I$9 -> 2399715 | M44: ='[3]M14 - Drivers'!$J$9 -> 2405770 | N44: ='[3]M14 - Drivers'!$K$9 -> 2412196 | O44: ='[3]M14 - Drivers'!$L$9 -> 2424364 | P44: ='[3]M14 - Drivers'!$M$9 -> 2430849
B45: NPgN | C45: ='[4]M14 - Drivers'!AD9 -> 1575686 | D45: ='[4]M14 - Drivers'!AE9 -> 1581420 | E45: ='[4]M14 - Drivers'!AF9 -> 1583627 | F45: ='[4]M14 - Drivers'!AG9 -> 1586437 | G45: ='[4]M14 - Drivers'!AH9 -> 1590615 | H45: ='[5]M14 - Drivers'!$E$9 -> 1596374 | I45: ='[5]M14 - Drivers'!$F$9 -> 1600885 | J45: ='[5]M14 - Drivers'!$G$9 -> 1602128 | K45: ='[5]M14 - Drivers'!$H$9 -> 1606300 | L45: ='[5]M14 - Drivers'!$I$9 -> 1610820 | M45: ='[5]M14 - Drivers'!$J$9 -> 1614053 | N45: ='[5]M14 - Drivers'!$K$9 -> 1616140 | O45: ='[5]M14 - Drivers'!$L$9 -> 1616824 | P45: ='[5]M14 - Drivers'!$M$9 -> 1617206.897
B46: NPgY | C46: ='[6]M14 - Drivers'!AD9 -> 2258404 | D46: ='[6]M14 - Drivers'!AE9 -> 2266464 | E46: ='[6]M14 - Drivers'!AF9 -> 2272386 | F46: ='[6]M14 - Drivers'!AG9 -> 2277373 | G46: ='[6]M14 - Drivers'!AH9 -> 2284044 | H46: ='[7]M14 - Drivers'!$E$9 -> 2291522 | I46: ='[7]M14 - Drivers'!$F$9 -> 2298672 | J46: ='[7]M14 - Drivers'!$G$9 -> 2298786 | K46: ='[7]M14 - Drivers'!$H$9 -> 2306293 | L46: ='[7]M14 - Drivers'!$I$9 -> 2312147 | M46: ='[7]M14 - Drivers'!$J$9 -> 2318718 | N46: ='[7]M14 - Drivers'!$K$9 -> 2322737 | O46: ='[7]M14 - Drivers'!$L$9 -> 2326611 | P46: ='[7]M14 - Drivers'!$M$9 -> 2312505.931
B47: WMID | C47: ='[8]M14 - Drivers'!AD9 -> 2446951 | D47: ='[8]M14 - Drivers'!AE9 -> 2462123 | E47: ='[8]M14 - Drivers'!AF9 -> 2469953 | F47: ='[8]M14 - Drivers'!AG9 -> 2448930 | G47: ='[8]M14 - Drivers'!AH9 -> 2455914 | H47: ='[9]M14 - Drivers'!$E$9 -> 2463217 | I47: ='[9]M14 - Drivers'!$F$9 -> 2470151 | J47: ='[9]M14 - Drivers'!$G$9 -> 2481944 | K47: ='[9]M14 - Drivers'!$H$9 -> 2491212 | L47: ='[9]M14 - Drivers'!$I$9 -> 2498337 | M47: ='[9]M14 - Drivers'!$J$9 -> 2505140 | N47: ='[9]M14 - Drivers'!$K$9 -> 2515482 | O47: ='[9]M14 - Drivers'!$L$9 -> 2522965 | P47: ='[9]M14 - Drivers'!$M$9 -> 2523467
B48: EMID | C48: ='[10]M14 - Drivers'!AD9 -> 2614165 | D48: ='[10]M14 - Drivers'!AE9 -> 2623103 | E48: ='[10]M14 - Drivers'!AF9 -> 2619183 | F48: ='[10]M14 - Drivers'!AG9 -> 2604846 | G48: ='[10]M14 - Drivers'!AH9 -> 2613507 | H48: ='[11]M14 - Drivers'!$E$9 -> 2622449 | I48: ='[11]M14 - Drivers'!$F$9 -> 2631017 | J48: ='[11]M14 - Drivers'!$G$9 -> 2647059 | K48: ='[11]M14 - Drivers'!$H$9 -> 2658397 | L48: ='[11]M14 - Drivers'!$I$9 -> 2665558 | M48: ='[11]M14 - Drivers'!$J$9 -> 2674911 | N48: ='[11]M14 - Drivers'!$K$9 -> 2686722 | O48: ='[11]M14 - Drivers'!$L$9 -> 2696717 | P48: ='[11]M14 - Drivers'!$M$9 -> 2699235
B49: SWALES | C49: ='[12]M14 - Drivers'!AD9 -> 1099333 | D49: ='[12]M14 - Drivers'!AE9 -> 1103465 | E49: ='[12]M14 - Drivers'!AF9 -> 1108168 | F49: ='[12]M14 - Drivers'!AG9 -> 1113015 | G49: ='[12]M14 - Drivers'!AH9 -> 1117685 | H49: ='[13]M14 - Drivers'!$E$9 -> 1122920 | I49: ='[13]M14 - Drivers'!$F$9 -> 1128284 | J49: ='[13]M14 - Drivers'!$G$9 -> 1133101 | K49: ='[13]M14 - Drivers'!$H$9 -> 1137812 | L49: ='[13]M14 - Drivers'!$I$9 -> 1142731 | M49: ='[13]M14 - Drivers'!$J$9 -> 1147345 | N49: ='[13]M14 - Drivers'!$K$9 -> 1151120 | O49: ='[13]M14 - Drivers'!$L$9 -> 1155365 | P49: ='[13]M14 - Drivers'!$M$9 -> 1159228
B50: SWEST | C50: ='[14]M14 - Drivers'!AD9 -> 1541188 | D50: ='[14]M14 - Drivers'!AE9 -> 1551046 | E50: ='[14]M14 - Drivers'!AF9 -> 1561137 | F50: ='[14]M14 - Drivers'!AG9 -> 1570645 | G50: ='[14]M14 - Drivers'!AH9 -> 1579687 | H50: ='[15]M14 - Drivers'!$E$9 -> 1590050 | I50: ='[15]M14 - Drivers'!$F$9 -> 1600520 | J50: ='[15]M14 - Drivers'!$G$9 -> 1613218 | K50: ='[15]M14 - Drivers'!$H$9 -> 1624131 | L50: ='[15]M14 - Drivers'!$I$9 -> 1628987 | M50: ='[15]M14 - Drivers'!$J$9 -> 1636981 | N50: ='[15]M14 - Drivers'!$K$9 -> 1646359 | O50: ='[15]M14 - Drivers'!$L$9 -> 1653816 | P50: ='[15]M14 - Drivers'!$M$9 -> 1657791
B51: LPN | C51: ='[16]M14 - Drivers'!AD9 -> 2251892 | D51: ='[16]M14 - Drivers'!AE9 -> 2267440 | E51: ='[16]M14 - Drivers'!AF9 -> 2279053 | F51: ='[16]M14 - Drivers'!AG9 -> 2286322 | G51: ='[16]M14 - Drivers'!AH9 -> 2298560 | H51: ='[17]M14 - Drivers'!$E$9 -> 2311906 | I51: ='[17]M14 - Drivers'!$F$9 -> 2330356 | J51: ='[17]M14 - Drivers'!$G$9 -> 2345807 | K51: ='[17]M14 - Drivers'!$H$9 -> 2357951 | L51: ='[17]M14 - Drivers'!$I$9 -> 2369157 | M51: ='[17]M14 - Drivers'!$J$9 -> 2375701 | N51: ='[17]M14 - Drivers'!$K$9 -> 2384532 | O51: ='[17]M14 - Drivers'!$L$9 -> 2409279 | P51: ='[17]M14 - Drivers'!$M$9 -> 2415875
B52: SPN | C52: ='[18]M14 - Drivers'!AD9 -> 2233288 | D52: ='[18]M14 - Drivers'!AE9 -> 2247823 | E52: ='[18]M14 - Drivers'!AF9 -> 2257968 | F52: ='[18]M14 - Drivers'!AG9 -> 2262882 | G52: ='[18]M14 - Drivers'!AH9 -> 2271189 | H52: ='[19]M14 - Drivers'!$E$9 -> 2281009 | I52: ='[19]M14 - Drivers'!$F$9 -> 2288599 | J52: ='[19]M14 - Drivers'!$G$9 -> 2296864 | K52: ='[19]M14 - Drivers'!$H$9 -> 2304887 | L52: ='[19]M14 - Drivers'!$I$9 -> 2311511 | M52: ='[19]M14 - Drivers'!$J$9 -> 2319494 | N52: ='[19]M14 - Drivers'!$K$9 -> 2327062 | O52: ='[19]M14 - Drivers'!$L$9 -> 2343845 | P52: ='[19]M14 - Drivers'!$M$9 -> 2351552
B53: EPN | C53: ='[20]M14 - Drivers'!AD9 -> 3516859 | D53: ='[20]M14 - Drivers'!AE9 -> 3537357 | E53: ='[20]M14 - Drivers'!AF9 -> 3556281 | F53: ='[20]M14 - Drivers'!AG9 -> 3565115 | G53: ='[20]M14 - Drivers'!AH9 -> 3581606 | H53: ='[21]M14 - Drivers'!$E$9 -> 3599594 | I53: ='[21]M14 - Drivers'!$F$9 -> 3614431 | J53: ='[21]M14 - Drivers'!$G$9 -> 3627858 | K53: ='[21]M14 - Drivers'!$H$9 -> 3638189 | L53: ='[21]M14 - Drivers'!$I$9 -> 3653242 | M53: ='[21]M14 - Drivers'!$J$9 -> 3664189 | N53: ='[21]M14 - Drivers'!$K$9 -> 3678637 | O53: ='[21]M14 - Drivers'!$L$9 -> 3698654 | P53: ='[21]M14 - Drivers'!$M$9 -> 3707444
B54: SPD | C54: ='[22]M14 - Drivers'!AD9 -> 1992998 | D54: ='[22]M14 - Drivers'!AE9 -> 1994241 | E54: ='[22]M14 - Drivers'!AF9 -> 1996169 | F54: ='[22]M14 - Drivers'!AG9 -> 1996758 | G54: ='[22]M14 - Drivers'!AH9 -> 1998881 | H54: ='[23]M14 - Drivers'!$E$9 -> 2002257 | I54: ='[23]M14 - Drivers'!$F$9 -> 2004462 | J54: ='[23]M14 - Drivers'!$G$9 -> 2007341 | K54: ='[23]M14 - Drivers'!$H$9 -> 2002889 | L54: ='[23]M14 - Drivers'!$I$9 -> 2008433 | M54: ='[23]M14 - Drivers'!$J$9 -> 2010896 | N54: ='[23]M14 - Drivers'!$K$9 -> 2016358 | O54: ='[23]M14 - Drivers'!$L$9 -> 2018597 | P54: ='[23]M14 - Drivers'!$M$9 -> 2020040
B55: SPMW | C55: ='[24]M14 - Drivers'!AD9 -> 1485153 | D55: ='[24]M14 - Drivers'!AE9 -> 1487412 | E55: ='[24]M14 - Drivers'!AF9 -> 1490883 | F55: ='[24]M14 - Drivers'!AG9 -> 1494271 | G55: ='[24]M14 - Drivers'!AH9 -> 1499500 | H55: ='[25]M14 - Drivers'!$E$9 -> 1503914 | I55: ='[25]M14 - Drivers'!$F$9 -> 1508672 | J55: ='[25]M14 - Drivers'!$G$9 -> 1512961 | K55: ='[25]M14 - Drivers'!$H$9 -> 1512275 | L55: ='[25]M14 - Drivers'!$I$9 -> 1519557 | M55: ='[25]M14 - Drivers'!$J$9 -> 1523255 | N55: ='[25]M14 - Drivers'!$K$9 -> 1527950 | O55: ='[25]M14 - Drivers'!$L$9 -> 1531042 | P55: ='[25]M14 - Drivers'!$M$9 -> 1533364
B56: SSEH | C56: ='[26]M14 - Drivers'!AD9 -> 740768 | D56: ='[26]M14 - Drivers'!AE9 -> 745907 | E56: ='[26]M14 - Drivers'!AF9 -> 750446 | F56: ='[26]M14 - Drivers'!AG9 -> 754258 | G56: ='[26]M14 - Drivers'!AH9 -> 757906 | H56: ='[27]M14 - Drivers'!$E$9 -> 758000 | I56: ='[27]M14 - Drivers'!$F$9 -> 767082 | J56: ='[27]M14 - Drivers'!$G$9 -> 772984 | K56: ='[27]M14 - Drivers'!$H$9 -> 778304 | L56: ='[27]M14 - Drivers'!$I$9 -> 782536 | M56: ='[27]M14 - Drivers'!$J$9 -> 785183 | N56: ='[27]M14 - Drivers'!$K$9 -> 788261 | O56: ='[27]M14 - Drivers'!$L$9 -> 792497 | P56: ='[27]M14 - Drivers'!$M$9 -> 795437
B57: SSES | C57: ='[28]M14 - Drivers'!AD9 -> 3026488 | D57: ='[28]M14 - Drivers'!AE9 -> 3040102 | E57: ='[28]M14 - Drivers'!AF9 -> 3054120 | F57: ='[28]M14 - Drivers'!AG9 -> 3067274 | G57: ='[28]M14 - Drivers'!AH9 -> 3082913 | H57: ='[29]M14 - Drivers'!$E$9 -> 3098577 | I57: ='[29]M14 - Drivers'!$F$9 -> 3032766 | J57: ='[29]M14 - Drivers'!$G$9 -> 3049924 | K57: ='[29]M14 - Drivers'!$H$9 -> 3067988 | L57: ='[29]M14 - Drivers'!$I$9 -> 3092275 | M57: ='[29]M14 - Drivers'!$J$9 -> 3110203 | N57: ='[29]M14 - Drivers'!$K$9 -> 3127424 | O57: ='[29]M14 - Drivers'!$L$9 -> 3138114 | P57: ='[29]M14 - Drivers'!$M$9 -> 3148028
B58: Total | C58: =SUM(C44:C57) -> 29142564 | D58: =SUM(D44:D57) -> 29272349 | E58: 29367946 | F58: 29399916 | G58: 29507312 | H58: 29622869 | I58: 29659111 | J58: 29773862 | K58: 29879854 | L58: 29995006 | M58: 30091839 | N58: =SUM(N44:N57) -> 30200980 | O58: 30328690 | P58: 30372022.83
B60: Network length (km)
C61: DPCR5 | H61: RIIO ED1 | P61: RIIO ED2
C62: 2011 | D62: 2012 | E62: 2013 | F62: 2014 | G62: 2015 | H62: 2016 | I62: 2017 | J62: 2018 | K62: 2019 | L62: 2020 | M62: 2021 | N62: 2022 | O62: 2023 | P62: 2024 | Q62: 2025 | R62: 2026 | S62: 2027 | T62: 2028
B63: ENWL | C63: ='[2]M14 - Drivers'!AD26 -> 56952.2565 | D63: ='[2]M14 - Drivers'!AE26 -> 57115.77162 | E63: ='[2]M14 - Drivers'!AF26 -> 57296.44743 | F63: ='[2]M14 - Drivers'!AG26 -> 57547.74498 | G63: ='[2]M14 - Drivers'!AH26 -> 57722.14882 | H63: ='[3]M14 - Drivers'!$E$30 -> 57946.36778 | I63: ='[3]M14 - Drivers'!$F$30 -> 57090.45584 | J63: ='[3]M14 - Drivers'!$G$30 -> 57324.15031 | K63: ='[3]M14 - Drivers'!$H$30 -> 57348.87727 | L63: ='[3]M14 - Drivers'!$I$30 -> 57432.08682 | M63: ='[3]M14 - Drivers'!$J$30 -> 57415.28103 | N63: ='[3]M14 - Drivers'!$K$30 -> 57694.51428 | O63: ='[3]M14 - Drivers'!$L$30 -> 60022.72532 | P63: ='[3]M14 - Drivers'!$M$30 -> 60848.16603
B64: NPgN | C64: ='[4]M14 - Drivers'!AD26 -> 40159.667 | D64: ='[4]M14 - Drivers'!AE26 -> 40351.759 | E64: ='[4]M14 - Drivers'!AF26 -> 40668.071 | F64: ='[4]M14 - Drivers'!AG26 -> 40787.16 | G64: ='[4]M14 - Drivers'!AH26 -> 41012.91718 | H64: ='[5]M14 - Drivers'!$E$30 -> 41243.50856 | I64: ='[5]M14 - Drivers'!$F$30 -> 41503.33523 | J64: ='[5]M14 - Drivers'!$G$30 -> 41704.94 | K64: ='[5]M14 - Drivers'!$H$30 -> 41839.146 | L64: ='[5]M14 - Drivers'!$I$30 -> 41922.93155 | M64: ='[5]M14 - Drivers'!$J$30 -> 42001.7035 | N64: ='[5]M14 - Drivers'!$K$30 -> 42100.80948 | O64: ='[5]M14 - Drivers'!$L$30 -> 42435.88776 | P64: ='[5]M14 - Drivers'!$M$30 -> 42907.75593
B65: NPgY | C65: ='[6]M14 - Drivers'!AD26 -> 52782.96193 | D65: ='[6]M14 - Drivers'!AE26 -> 52946.18823 | E65: ='[6]M14 - Drivers'!AF26 -> 53163.7354 | F65: ='[6]M14 - Drivers'!AG26 -> 53299.51433 | G65: ='[6]M14 - Drivers'!AH26 -> 53567.08269 | H65: ='[7]M14 - Drivers'!$E$30 -> 53873.2104 | I65: ='[7]M14 - Drivers'!$F$30 -> 54094.26509 | J65: ='[7]M14 - Drivers'!$G$30 -> 54318.59584 | K65: ='[7]M14 - Drivers'!$H$30 -> 54653.81543 | L65: ='[7]M14 - Drivers'!$I$30 -> 54890.93543 | M65: ='[7]M14 - Drivers'!$J$30 -> 55119.95643 | N65: ='[7]M14 - Drivers'!$K$30 -> 55092.42136 | O65: ='[7]M14 - Drivers'!$L$30 -> 55262.51996 | P65: ='[7]M14 - Drivers'!$M$30 -> 55686.12571
B66: WMID | C66: ='[8]M14 - Drivers'!AD26 -> 63459.141 | D66: ='[8]M14 - Drivers'!AE26 -> 64111.49284 | E66: ='[8]M14 - Drivers'!AF26 -> 64147.94284 | F66: ='[8]M14 - Drivers'!AG26 -> 64280.34684 | G66: ='[8]M14 - Drivers'!AH26 -> 64590.59284 | H66: ='[9]M14 - Drivers'!$E$30 -> 64268.96386 | I66: ='[9]M14 - Drivers'!$F$30 -> 64575.20252 | J66: ='[9]M14 - Drivers'!$G$30 -> 64878.78841 | K66: ='[9]M14 - Drivers'!$H$30 -> 65153.4721 | L66: ='[9]M14 - Drivers'!$I$30 -> 65363.5972 | M66: ='[9]M14 - Drivers'!$J$30 -> 65570.05074 | N66: ='[9]M14 - Drivers'!$K$30 -> 65765.19243 | O66: ='[9]M14 - Drivers'!$L$30 -> 66058.60854 | P66: ='[9]M14 - Drivers'!$M$30 -> 66254.72493
B67: EMID | C67: ='[10]M14 - Drivers'!AD26 -> 71700.13171 | D67: ='[10]M14 - Drivers'!AE26 -> 71919.771 | E67: ='[10]M14 - Drivers'!AF26 -> 72058.561 | F67: ='[10]M14 - Drivers'!AG26 -> 72381.282 | G67: ='[10]M14 - Drivers'!AH26 -> 72761.459 | H67: ='[11]M14 - Drivers'!$E$30 -> 72976.36896 | I67: ='[11]M14 - Drivers'!$F$30 -> 73379.48656 | J67: ='[11]M14 - Drivers'!$G$30 -> 73745.45616 | K67: ='[11]M14 - Drivers'!$H$30 -> 74111.28595 | L67: ='[11]M14 - Drivers'!$I$30 -> 74399.80883 | M67: ='[11]M14 - Drivers'!$J$30 -> 74750.61973 | N67: ='[11]M14 - Drivers'!$K$30 -> 75070.71224 | O67: ='[11]M14 - Drivers'!$L$30 -> 75454.66648 | P67: ='[11]M14 - Drivers'!$M$30 -> 75752.74241
B68: SWALES | C68: ='[12]M14 - Drivers'!AD26 -> 35162.26796 | D68: ='[12]M14 - Drivers'!AE26 -> 35298.91919 | E68: ='[12]M14 - Drivers'!AF26 -> 35362.00919 | F68: ='[12]M14 - Drivers'!AG26 -> 35458.70019 | G68: ='[12]M14 - Drivers'!AH26 -> 35632.41818 | H68: ='[13]M14 - Drivers'!$E$30 -> 35612.30017 | I68: ='[13]M14 - Drivers'!$F$30 -> 35789.68791 | J68: ='[13]M14 - Drivers'!$G$30 -> 35678.69651 | K68: ='[13]M14 - Drivers'!$H$30 -> 35758.72217 | L68: ='[13]M14 - Drivers'!$I$30 -> 35832.16687 | M68: ='[13]M14 - Drivers'!$J$30 -> 35927.35557 | N68: ='[13]M14 - Drivers'!$K$30 -> 36052.24805 | O68: ='[13]M14 - Drivers'!$L$30 -> 36193.12924 | P68: ='[13]M14 - Drivers'!$M$30 -> 36298.94131
B69: SWEST | C69: ='[14]M14 - Drivers'!AD26 -> 50183.208 | D69: ='[14]M14 - Drivers'!AE26 -> 50440.85943 | E69: ='[14]M14 - Drivers'!AF26 -> 50584.05944 | F69: ='[14]M14 - Drivers'!AG26 -> 50761.22542 | G69: ='[14]M14 - Drivers'!AH26 -> 51050.23841 | H69: ='[15]M14 - Drivers'!$E$30 -> 50247.79193 | I69: ='[15]M14 - Drivers'!$F$30 -> 50450.12055 | J69: ='[15]M14 - Drivers'!$G$30 -> 50609.99914 | K69: ='[15]M14 - Drivers'!$H$30 -> 50798.96036 | L69: ='[15]M14 - Drivers'!$I$30 -> 50935.80437 | M69: ='[15]M14 - Drivers'!$J$30 -> 51090.62407 | N69: ='[15]M14 - Drivers'!$K$30 -> 51234.26161 | O69: ='[15]M14 - Drivers'!$L$30 -> 51443.53881 | P69: ='[15]M14 - Drivers'!$M$30 -> 51568.60296
B70: LPN | C70: ='[16]M14 - Drivers'!AD26 -> 36627.93 | D70: ='[16]M14 - Drivers'!AE26 -> 36703.93 | E70: ='[16]M14 - Drivers'!AF26 -> 36732.21 | F70: ='[16]M14 - Drivers'!AG26 -> 36822.66089 | G70: ='[16]M14 - Drivers'!AH26 -> 36845.69054 | H70: ='[17]M14 - Drivers'!$E$30 -> 36932.86279 | I70: ='[17]M14 - Drivers'!$F$30 -> 37041.84541 | J70: ='[17]M14 - Drivers'!$G$30 -> 37159.64167 | K70: ='[17]M14 - Drivers'!$H$30 -> 37270.9533 | L70: ='[17]M14 - Drivers'!$I$30 -> 37456.53582 | M70: ='[17]M14 - Drivers'!$J$30 -> 37511.14746 | N70: ='[17]M14 - Drivers'!$K$30 -> 37580.33428 | O70: ='[17]M14 - Drivers'!$L$30 -> 37685.25862 | P70: ='[17]M14 - Drivers'!$M$30 -> 37522.50601
B71: SPN | C71: ='[18]M14 - Drivers'!AD26 -> 52200 | D71: ='[18]M14 - Drivers'!AE26 -> 52315.75334 | E71: ='[18]M14 - Drivers'!AF26 -> 52449.36234 | F71: ='[18]M14 - Drivers'!AG26 -> 52686.69774 | G71: ='[18]M14 - Drivers'!AH26 -> 52805.84673 | H71: ='[19]M14 - Drivers'!$E$30 -> 52841.05469 | I71: ='[19]M14 - Drivers'!$F$30 -> 52924.03279 | J71: ='[19]M14 - Drivers'!$G$30 -> 53014.55406 | K71: ='[19]M14 - Drivers'!$H$30 -> 53134.23316 | L71: ='[19]M14 - Drivers'!$I$30 -> 53252.59718 | M71: ='[19]M14 - Drivers'!$J$30 -> 53396.96876 | N71: ='[19]M14 - Drivers'!$K$30 -> 53449.03517 | O71: ='[19]M14 - Drivers'!$L$30 -> 53573.06378 | P71: ='[19]M14 - Drivers'!$M$30 -> 53745.76408
B72: EPN | C72: ='[20]M14 - Drivers'!AD26 -> 96266 | D72: ='[20]M14 - Drivers'!AE26 -> 96408.8 | E72: ='[20]M14 - Drivers'!AF26 -> 96541.527 | F72: ='[20]M14 - Drivers'!AG26 -> 96767.73147 | G72: ='[20]M14 - Drivers'!AH26 -> 96913.08314 | H72: ='[21]M14 - Drivers'!$E$30 -> 97261.38548 | I72: ='[21]M14 - Drivers'!$F$30 -> 97631.96554 | J72: ='[21]M14 - Drivers'!$G$30 -> 97817.45905 | K72: ='[21]M14 - Drivers'!$H$30 -> 98070.96429 | L72: ='[21]M14 - Drivers'!$I$30 -> 98393.93852 | M72: ='[21]M14 - Drivers'!$J$30 -> 98594.66181 | N72: ='[21]M14 - Drivers'!$K$30 -> 98792.58876 | O72: ='[21]M14 - Drivers'!$L$30 -> 99079.71756 | P72: ='[21]M14 - Drivers'!$M$30 -> 100255.0641
B73: SPD | C73: ='[22]M14 - Drivers'!AD26 -> 63848.4556 | D73: ='[22]M14 - Drivers'!AE26 -> 63943.0006 | E73: ='[22]M14 - Drivers'!AF26 -> 57811.99774 | F73: ='[22]M14 - Drivers'!AG26 -> 57324 | G73: ='[22]M14 - Drivers'!AH26 -> 57628.9 | H73: ='[23]M14 - Drivers'!$E$30 -> 57984.4 | I73: ='[23]M14 - Drivers'!$F$30 -> 58303.9 | J73: ='[23]M14 - Drivers'!$G$30 -> 58515.3 | K73: ='[23]M14 - Drivers'!$H$30 -> 58578.6 | L73: ='[23]M14 - Drivers'!$I$30 -> 58696.8 | M73: ='[23]M14 - Drivers'!$J$30 -> 58816.8 | N73: ='[23]M14 - Drivers'!$K$30 -> 58997.3 | O73: ='[23]M14 - Drivers'!$L$30 -> 59239.5 | P73: ='[23]M14 - Drivers'!$M$30 -> 59536.4
B74: SPMW | C74: ='[24]M14 - Drivers'!AD26 -> 49669.0976 | D74: ='[24]M14 - Drivers'!AE26 -> 49619.0976 | E74: ='[24]M14 - Drivers'!AF26 -> 48454.39517 | F74: ='[24]M14 - Drivers'!AG26 -> 46437.905 | G74: ='[24]M14 - Drivers'!AH26 -> 46589.90371 | H74: ='[25]M14 - Drivers'!$E$30 -> 46844.00973 | I74: ='[25]M14 - Drivers'!$F$30 -> 46947 | J74: ='[25]M14 - Drivers'!$G$30 -> 47051.39112 | K74: ='[25]M14 - Drivers'!$H$30 -> 47151 | L74: ='[25]M14 - Drivers'!$I$30 -> 47253.2 | M74: ='[25]M14 - Drivers'!$J$30 -> 47374.3 | N74: ='[25]M14 - Drivers'!$K$30 -> 47500.9 | O74: ='[25]M14 - Drivers'!$L$30 -> 47687.3 | P74: ='[25]M14 - Drivers'!$M$30 -> 47884.1
B75: SSEH | C75: ='[26]M14 - Drivers'!AD26 -> 47024.21947 | D75: ='[26]M14 - Drivers'!AE26 -> 47477.55799 | E75: ='[26]M14 - Drivers'!AF26 -> 47676.3229 | F75: ='[26]M14 - Drivers'!AG26 -> 48053.1727 | G75: ='[26]M14 - Drivers'!AH26 -> 48407.80773 | H75: ='[27]M14 - Drivers'!$E$30 -> 48346.868 | I75: ='[27]M14 - Drivers'!$F$30 -> 49041.43246 | J75: ='[27]M14 - Drivers'!$G$30 -> 49168.90214 | K75: ='[27]M14 - Drivers'!$H$30 -> 49371.64014 | L75: ='[27]M14 - Drivers'!$I$30 -> 49405.11014 | M75: ='[27]M14 - Drivers'!$J$30 -> 49348.79714 | N75: ='[27]M14 - Drivers'!$K$30 -> 49471.43214 | O75: ='[27]M14 - Drivers'!$L$30 -> 49762.72314 | P75: ='[27]M14 - Drivers'!$M$30 -> 49727.00514
B76: SSES | C76: ='[28]M14 - Drivers'!AD26 -> 76219.64 | D76: ='[28]M14 - Drivers'!AE26 -> 76727.2343 | E76: ='[28]M14 - Drivers'!AF26 -> 76965.98655 | F76: ='[28]M14 - Drivers'!AG26 -> 76667.08495 | G76: ='[28]M14 - Drivers'!AH26 -> 77077.0711 | H76: ='[29]M14 - Drivers'!$E$30 -> 77958.94515 | I76: ='[29]M14 - Drivers'!$F$30 -> 77378.52982 | J76: ='[29]M14 - Drivers'!$G$30 -> 77486.93267 | K76: ='[29]M14 - Drivers'!$H$30 -> 77710.01067 | L76: ='[29]M14 - Drivers'!$I$30 -> 77998.02367 | M76: ='[29]M14 - Drivers'!$J$30 -> 78149.13667 | N76: ='[29]M14 - Drivers'!$K$30 -> 78702.57567 | O76: ='[29]M14 - Drivers'!$L$30 -> 79063.70667 | P76: ='[29]M14 - Drivers'!$M$30 -> 79131.26664
B77: Total | C77: =SUM(C63:C76) -> 792254.9768 | D77: 795380.1351 | E77: 789912.628 | F77: 789275.2265 | G77: 792605.1601 | H77: 794338.0375 | I77: 796151.2597 | J77: 798474.8071 | K77: 800951.6808 | L77: =SUM(L63:L76) -> 803233.5364 | M77: =SUM(M63:M76) -> 805067.4029 | N77: =SUM(N63:N76) -> 807504.3255 | O77: 812962.3459 | P77: 817119.1653
B79: Total units distributed (GWh)
C80: DPCR5 | H80: RIIO ED1 | P80: RIIO ED2
C81: 2011 | D81: 2012 | E81: 2013 | F81: 2014 | G81: 2015 | H81: 2016 | I81: 2017 | J81: 2018 | K81: 2019 | L81: 2020 | M81: 2021 | N81: 2022 | O81: 2023 | P81: 2024 | Q81: 2025 | R81: 2026 | S81: 2027 | T81: 2028
B82: ENWL | C82: ='[30]M14 - Drivers'!AD10 -> 23835.24 | D82: ='[30]M14 - Drivers'!AE10 -> 23367.42 | E82: ='[30]M14 - Drivers'!AF10 -> 23484.00688 | F82: ='[30]M14 - Drivers'!AG10 -> 22820 | G82: ='[30]M14 - Drivers'!AH10 -> 22393 | H82: ='[3]M14 - Drivers'!$E$10 -> 22223.98232 | I82: ='[3]M14 - Drivers'!$F$10 -> 22059.6 | J82: ='[3]M14 - Drivers'!$G$10 -> 21855.5 | K82: ='[3]M14 - Drivers'!$H$10 -> 21712.4 | L82: ='[3]M14 - Drivers'!$I$10 -> 21372.05355 | M82: ='[3]M14 - Drivers'!$J$10 -> 20115 | N82: ='[3]M14 - Drivers'!$K$10 -> 20962.45289 | O82: ='[3]M14 - Drivers'!$L$10 -> 19661.1 | P82: ='[3]M14 - Drivers'!$M$10 -> 19532.4
B83: NPgN | C83: ='[31]M14 - Drivers'!AD10 -> 15795.56804 | D83: ='[31]M14 - Drivers'!AE10 -> 15271.77665 | E83: ='[31]M14 - Drivers'!AF10 -> 15489.97147 | F83: ='[31]M14 - Drivers'!AG10 -> 15131.45655 | G83: ='[31]M14 - Drivers'!AH10 -> 14984.01833 | H83: ='[5]M14 - Drivers'!$E$10 -> 14861.88999 | I83: ='[5]M14 - Drivers'!$F$10 -> 14494.54801 | J83: ='[5]M14 - Drivers'!$G$10 -> 14414.14121 | K83: ='[5]M14 - Drivers'!$H$10 -> 14092.21149 | L83: ='[5]M14 - Drivers'!$I$10 -> 13849.77093 | M83: ='[5]M14 - Drivers'!$J$10 -> 13156.82279 | N83: ='[5]M14 - Drivers'!$K$10 -> 13524.24992 | O83: ='[5]M14 - Drivers'!$L$10 -> 12809.47536 | P83: ='[5]M14 - Drivers'!$M$10 -> 12662.69097
B84: NPgY | C84: ='[32]M14 - Drivers'!AD10 -> 23063.32753 | D84: ='[32]M14 - Drivers'!AE10 -> 22570.84487 | E84: ='[32]M14 - Drivers'!AF10 -> 22692.94041 | F84: ='[32]M14 - Drivers'!AG10 -> 22438.35129 | G84: ='[32]M14 - Drivers'!AH10 -> 22263.32887 | H84: ='[7]M14 - Drivers'!$E$10 -> 22012.43424 | I84: ='[7]M14 - Drivers'!$F$10 -> 21674.854 | J84: ='[7]M14 - Drivers'!$G$10 -> 21614.84335 | K84: ='[7]M14 - Drivers'!$H$10 -> 21387.84575 | L84: ='[7]M14 - Drivers'!$I$10 -> 21059.51281 | M84: ='[7]M14 - Drivers'!$J$10 -> 19987.06933 | N84: ='[7]M14 - Drivers'!$K$10 -> 20458.41375 | O84: ='[7]M14 - Drivers'!$L$10 -> 19450.49236 | P84: ='[7]M14 - Drivers'!$M$10 -> 18963.88521
B85: WMID | C85: ='[33]M14 - Drivers'!AD10 -> 24932.16037 | D85: ='[33]M14 - Drivers'!AE10 -> 24247.72246 | E85: ='[33]M14 - Drivers'!AF10 -> 24682.02266 | F85: ='[33]M14 - Drivers'!AG10 -> 24427.3279 | G85: ='[33]M14 - Drivers'!AH10 -> 24212.92271 | H85: ='[9]M14 - Drivers'!$E$10 -> 23941.2949 | I85: ='[9]M14 - Drivers'!$F$10 -> 23896.4401 | J85: ='[9]M14 - Drivers'!$G$10 -> 23772.6706 | K85: ='[9]M14 - Drivers'!$H$10 -> 23198.0328 | L85: ='[9]M14 - Drivers'!$I$10 -> 22877.7067 | M85: ='[9]M14 - Drivers'!$J$10 -> 21450.1942 | N85: ='[9]M14 - Drivers'!$K$10 -> 21917.105 | O85: ='[9]M14 - Drivers'!$L$10 -> 20939.6413 | P85: ='[9]M14 - Drivers'!$M$10 -> 20581.7706
B86: EMID | C86: ='[34]M14 - Drivers'!AD10 -> 27882.57017 | D86: ='[34]M14 - Drivers'!AE10 -> 27073.80591 | E86: ='[34]M14 - Drivers'!AF10 -> 27598.0905 | F86: ='[34]M14 - Drivers'!AG10 -> 26795.42345 | G86: ='[34]M14 - Drivers'!AH10 -> 26627.16446 | H86: ='[11]M14 - Drivers'!$E$10 -> 26424.3081 | I86: ='[11]M14 - Drivers'!$F$10 -> 26354.8107 | J86: ='[11]M14 - Drivers'!$G$10 -> 26187.577 | K86: ='[11]M14 - Drivers'!$H$10 -> 25592.1326 | L86: ='[11]M14 - Drivers'!$I$10 -> 25292.0631 | M86: ='[11]M14 - Drivers'!$J$10 -> 24075.082 | N86: ='[11]M14 - Drivers'!$K$10 -> 24799.7524 | O86: ='[11]M14 - Drivers'!$L$10 -> 23696.8561 | P86: ='[11]M14 - Drivers'!$M$10 -> 23250.0373
B87: SWALES | C87: ='[35]M14 - Drivers'!AD10 -> 12110.70383 | D87: ='[35]M14 - Drivers'!AE10 -> 11776.00643 | E87: ='[35]M14 - Drivers'!AF10 -> 11769.62784 | F87: ='[35]M14 - Drivers'!AG10 -> 11640.55919 | G87: ='[35]M14 - Drivers'!AH10 -> 11490.95206 | H87: ='[13]M14 - Drivers'!$E$10 -> 11333.0048 | I87: ='[13]M14 - Drivers'!$F$10 -> 11177.1713 | J87: ='[13]M14 - Drivers'!$G$10 -> 11072.4823 | K87: ='[13]M14 - Drivers'!$H$10 -> 10939.2024 | L87: ='[13]M14 - Drivers'!$I$10 -> 10740.9614 | M87: ='[13]M14 - Drivers'!$J$10 -> 9986.2083 | N87: ='[13]M14 - Drivers'!$K$10 -> 10378.1978 | O87: ='[13]M14 - Drivers'!$L$10 -> 9766.4058 | P87: ='[13]M14 - Drivers'!$M$10 -> 9538.2421
B88: SWEST | C88: ='[36]M14 - Drivers'!AD10 -> 14625.00699 | D88: ='[36]M14 - Drivers'!AE10 -> 14078.27414 | E88: ='[36]M14 - Drivers'!AF10 -> 14412.45131 | F88: ='[36]M14 - Drivers'!AG10 -> 13932.80799 | G88: ='[36]M14 - Drivers'!AH10 -> 13767.54807 | H88: ='[15]M14 - Drivers'!$E$10 -> 13561.1781 | I88: ='[15]M14 - Drivers'!$F$10 -> 13531.1762 | J88: ='[15]M14 - Drivers'!$G$10 -> 13505.5623 | K88: ='[15]M14 - Drivers'!$H$10 -> 13189.6522 | L88: ='[15]M14 - Drivers'!$I$10 -> 13023.917 | M88: ='[15]M14 - Drivers'!$J$10 -> 12409.7708 | N88: ='[15]M14 - Drivers'!$K$10 -> 12709.7551 | O88: ='[15]M14 - Drivers'!$L$10 -> 12090.7357 | P88: ='[15]M14 - Drivers'!$M$10 -> 11914.2214
B89: LPN | C89: ='[37]M14 - Drivers'!AD10 -> 29355 | D89: ='[37]M14 - Drivers'!AE10 -> 28492.36302 | E89: ='[37]M14 - Drivers'!AF10 -> 28722.3 | F89: ='[37]M14 - Drivers'!AG10 -> 28006 | G89: ='[37]M14 - Drivers'!AH10 -> 27632 | H89: ='[17]M14 - Drivers'!$E$10 -> 27442.4 | I89: ='[17]M14 - Drivers'!$F$10 -> 27266 | J89: ='[17]M14 - Drivers'!$G$10 -> 27012 | K89: ='[17]M14 - Drivers'!$H$10 -> 26864 | L89: ='[17]M14 - Drivers'!$I$10 -> 25779 | M89: ='[17]M14 - Drivers'!$J$10 -> 22309.19072 | N89: ='[17]M14 - Drivers'!$K$10 -> 23801.83947 | O89: ='[17]M14 - Drivers'!$L$10 -> 23828.43024 | P89: ='[17]M14 - Drivers'!$M$10 -> 23655.53589
B90: SPN | C90: ='[38]M14 - Drivers'!AD10 -> 21694 | D90: ='[38]M14 - Drivers'!AE10 -> 20813 | E90: ='[38]M14 - Drivers'!AF10 -> 20994 | F90: ='[38]M14 - Drivers'!AG10 -> 20508.408 | G90: ='[38]M14 - Drivers'!AH10 -> 19713 | H90: ='[19]M14 - Drivers'!$E$10 -> 19413.4 | I90: ='[19]M14 - Drivers'!$F$10 -> 19468 | J90: ='[19]M14 - Drivers'!$G$10 -> 19373 | K90: ='[19]M14 - Drivers'!$H$10 -> 19379 | L90: ='[19]M14 - Drivers'!$I$10 -> 18763 | M90: ='[19]M14 - Drivers'!$J$10 -> 17921.516 | N90: ='[19]M14 - Drivers'!$K$10 -> 18377.68234 | O90: ='[19]M14 - Drivers'!$L$10 -> 17499.96501 | P90: ='[19]M14 - Drivers'!$M$10 -> 17238.04785
B91: EPN | C91: ='[39]M14 - Drivers'!AD10 -> 34525 | D91: ='[39]M14 - Drivers'!AE10 -> 34093 | E91: ='[39]M14 - Drivers'!AF10 -> 35108 | F91: ='[39]M14 - Drivers'!AG10 -> 33794 | G91: ='[39]M14 - Drivers'!AH10 -> 32882 | H91: ='[21]M14 - Drivers'!$E$10 -> 32721 | I91: ='[21]M14 - Drivers'!$F$10 -> 33295 | J91: ='[21]M14 - Drivers'!$G$10 -> 33106 | K91: ='[21]M14 - Drivers'!$H$10 -> 32994 | L91: ='[21]M14 - Drivers'!$I$10 -> 31973 | M91: ='[21]M14 - Drivers'!$J$10 -> 30657.3915 | N91: ='[21]M14 - Drivers'!$K$10 -> 31566.64774 | O91: ='[21]M14 - Drivers'!$L$10 -> 30130.35201 | P91: ='[21]M14 - Drivers'!$M$10 -> 29842.89467
B92: SPD | C92: ='[40]M14 - Drivers'!AD10 -> 16195 | D92: ='[40]M14 - Drivers'!AE10 -> 19341 | E92: ='[40]M14 - Drivers'!AF10 -> 19537 | F92: ='[40]M14 - Drivers'!AG10 -> 18943 | G92: ='[40]M14 - Drivers'!AH10 -> 18589 | H92: ='[23]M14 - Drivers'!$E$10 -> 18348 | I92: ='[23]M14 - Drivers'!$F$10 -> 17961 | J92: ='[23]M14 - Drivers'!$G$10 -> 17833 | K92: ='[23]M14 - Drivers'!$H$10 -> 17266 | L92: ='[23]M14 - Drivers'!$I$10 -> 16920.72771 | M92: ='[23]M14 - Drivers'!$J$10 -> 15782.06644 | N92: ='[23]M14 - Drivers'!$K$10 -> 16169.72888 | O92: ='[23]M14 - Drivers'!$L$10 -> 15470.16933 | P92: ='[23]M14 - Drivers'!$M$10 -> 15345.08304
B93: SPMW | C93: 20023 | D93: ='[41]M14 - Drivers'!AE10 -> 15787 | E93: ='[41]M14 - Drivers'!AF10 -> 16065 | F93: ='[41]M14 - Drivers'!AG10 -> 15997 | G93: ='[41]M14 - Drivers'!AH10 -> 15742 | H93: ='[25]M14 - Drivers'!$E$10 -> 15449 | I93: ='[25]M14 - Drivers'!$F$10 -> 15211 | J93: ='[25]M14 - Drivers'!$G$10 -> 15118 | K93: ='[25]M14 - Drivers'!$H$10 -> 14655 | L93: ='[25]M14 - Drivers'!$I$10 -> 14377.93888 | M93: ='[25]M14 - Drivers'!$J$10 -> 13476.78862 | N93: ='[25]M14 - Drivers'!$K$10 -> 13607.93521 | O93: ='[25]M14 - Drivers'!$L$10 -> 13020.98836 | P93: ='[25]M14 - Drivers'!$M$10 -> 12898.90527
B94: SSEH | C94: ='[42]M14 - Drivers'!AD10 -> 8521 | D94: ='[42]M14 - Drivers'!AE10 -> 8117.4 | E94: ='[42]M14 - Drivers'!AF10 -> 8333.8 | F94: ='[42]M14 - Drivers'!AG10 -> 8075.6 | G94: ='[42]M14 - Drivers'!AH10 -> 7818.5 | H94: ='[27]M14 - Drivers'!$E$10 -> 7859.7 | I94: ='[27]M14 - Drivers'!$F$10 -> 7427.8 | J94: ='[27]M14 - Drivers'!$G$10 -> 7662.7 | K94: ='[27]M14 - Drivers'!$H$10 -> 7461.9 | L94: ='[27]M14 - Drivers'!$I$10 -> 6996.683915 | M94: ='[27]M14 - Drivers'!$J$10 -> 6868.6 | N94: ='[27]M14 - Drivers'!$K$10 -> 7178.2 | O94: ='[27]M14 - Drivers'!$L$10 -> 6747.2 | P94: ='[27]M14 - Drivers'!$M$10 -> 6756.6
B95: SSES | C95: ='[43]M14 - Drivers'!AD10 -> 33646.1 | D95: ='[43]M14 - Drivers'!AE10 -> 32536.8 | E95: ='[43]M14 - Drivers'!AF10 -> 33207.3 | F95: ='[43]M14 - Drivers'!AG10 -> 32359.1 | G95: ='[43]M14 - Drivers'!AH10 -> 31840.1 | H95: ='[29]M14 - Drivers'!$E$10 -> 31425.5 | I95: ='[29]M14 - Drivers'!$F$10 -> 30984.1 | J95: ='[29]M14 - Drivers'!$G$10 -> 31527.7 | K95: ='[29]M14 - Drivers'!$H$10 -> 30870.8 | L95: ='[29]M14 - Drivers'!$I$10 -> 30641.73411 | M95: ='[29]M14 - Drivers'!$J$10 -> 29279.9 | N95: ='[29]M14 - Drivers'!$K$10 -> 30452.3 | O95: ='[29]M14 - Drivers'!$L$10 -> 29341.2 | P95: ='[29]M14 - Drivers'!$M$10 -> 30204.3
B96: Total | C96: =SUM(C82:C95) -> 306203.6769 | D96: =SUM(D82:D95) -> 297566.4135 | E96: 302096.5111 | F96: 294869.0344 | G96: 289955.5345 | H96: 287017.0924 | I96: 284801.5003 | J96: 284055.1768 | K96: 279602.1772 | L96: 273668.0701 | M96: 257475.6007 | N96: =SUM(N82:N95) -> 265904.2605 | O96: 254453.0116 | P96: 252384.6143
B98: Network-wide Peak load (MVA)
C99: DPCR5 | H99: RIIO ED1 | P99: RIIO ED2
C100: 2011 | D100: 2012 | E100: 2013 | F100: 2014 | G100: 2015 | H100: 2016 | I100: 2017 | J100: 2018 | K100: 2019 | L100: 2020 | M100: 2021 | N100: 2022 | O100: 2023 | P100: 2024 | Q100: 2025 | R100: 2026 | S100: 2027 | T100: 2028
B101: ENWL | C101: ='[2]M14 - Drivers'!AD11 -> 4388.66 | D101: ='[2]M14 - Drivers'!AE11 -> 4280.41 | E101: ='[2]M14 - Drivers'!AF11 -> 4250.4 | F101: ='[2]M14 - Drivers'!AG11 -> 4062.350515 | G101: ='[2]M14 - Drivers'!AH11 -> 4267 | H101: ='[3]M14 - Drivers'!$E$11 -> 4233 | I101: ='[3]M14 - Drivers'!$F$11 -> 4262 | J101: ='[3]M14 - Drivers'!$G$11 -> 4305 | K101: ='[3]M14 - Drivers'!$H$11 -> 4160 | L101: ='[3]M14 - Drivers'!$I$11 -> 4140 | M101: ='[3]M14 - Drivers'!$J$11 -> 4049 | N101: ='[3]M14 - Drivers'!$K$11 -> 4223 | O101: ='[3]M14 - Drivers'!$L$11 -> 4107 | P101: ='[3]M14 - Drivers'!$M$11 -> 3960
B102: NPgN | C102: ='[4]M14 - Drivers'!AD11 -> 2997 | D102: ='[4]M14 - Drivers'!AE11 -> 2852 | E102: ='[4]M14 - Drivers'!AF11 -> 2777 | F102: ='[4]M14 - Drivers'!AG11 -> 2604 | G102: ='[4]M14 - Drivers'!AH11 -> 2593 | H102: ='[5]M14 - Drivers'!$E$11 -> 2719 | I102: ='[5]M14 - Drivers'!$F$11 -> 2781.3392 | J102: ='[5]M14 - Drivers'!$G$11 -> 2723.672 | K102: ='[5]M14 - Drivers'!$H$11 -> 2459.074 | L102: ='[5]M14 - Drivers'!$I$11 -> 2410.7036 | M102: ='[5]M14 - Drivers'!$J$11 -> 2531.7 | N102: ='[5]M14 - Drivers'!$K$11 -> 2305.6896 | O102: ='[5]M14 - Drivers'!$L$11 -> 2421.243 | P102: ='[5]M14 - Drivers'!$M$11 -> 2432.792198
B103: NPgY | C103: ='[6]M14 - Drivers'!AD11 -> 4285 | D103: ='[6]M14 - Drivers'!AE11 -> 4195 | E103: ='[6]M14 - Drivers'!AF11 -> 4041 | F103: ='[6]M14 - Drivers'!AG11 -> 4086 | G103: ='[6]M14 - Drivers'!AH11 -> 3763 | H103: ='[7]M14 - Drivers'!$E$11 -> 4050 | I103: ='[7]M14 - Drivers'!$F$11 -> 3961.26 | J103: ='[7]M14 - Drivers'!$G$11 -> 3786.452 | K103: ='[7]M14 - Drivers'!$H$11 -> 3994.02 | L103: ='[7]M14 - Drivers'!$I$11 -> 3696.7076 | M103: ='[7]M14 - Drivers'!$J$11 -> 3474.7 | N103: ='[7]M14 - Drivers'!$K$11 -> 3704.448 | O103: ='[7]M14 - Drivers'!$L$11 -> 3708.0456 | P103: ='[7]M14 - Drivers'!$M$11 -> 3740.269393
B104: WMID | C104: ='[8]M14 - Drivers'!AD11 -> 4662.231544 | D104: ='[8]M14 - Drivers'!AE11 -> 4792.138457 | E104: ='[8]M14 - Drivers'!AF11 -> 4782.4592 | F104: ='[8]M14 - Drivers'!AG11 -> 4492 | G104: ='[8]M14 - Drivers'!AH11 -> 4597.6 | H104: ='[9]M14 - Drivers'!$E$11 -> 4487.2 | I104: ='[9]M14 - Drivers'!$F$11 -> 4469.6 | J104: ='[9]M14 - Drivers'!$G$11 -> 4440 | K104: ='[9]M14 - Drivers'!$H$11 -> 4323.8 | L104: ='[9]M14 - Drivers'!$I$11 -> 4251 | M104: ='[9]M14 - Drivers'!$J$11 -> 4162 | N104: ='[9]M14 - Drivers'!$K$11 -> 4220.2 | O104: ='[9]M14 - Drivers'!$L$11 -> 3934.2 | P104: ='[9]M14 - Drivers'!$M$11 -> 4030.2
B105: EMID | C105: ='[10]M14 - Drivers'!AD11 -> 5042.450848 | D105: ='[10]M14 - Drivers'!AE11 -> 5292.3975 | E105: ='[10]M14 - Drivers'!AF11 -> 5293.0718 | F105: ='[10]M14 - Drivers'!AG11 -> 5056 | G105: ='[10]M14 - Drivers'!AH11 -> 5012.2 | H105: ='[11]M14 - Drivers'!$E$11 -> 4968.4 | I105: ='[11]M14 - Drivers'!$F$11 -> 4961.6 | J105: ='[11]M14 - Drivers'!$G$11 -> 4801.8 | K105: ='[11]M14 - Drivers'!$H$11 -> 4769 | L105: ='[11]M14 - Drivers'!$I$11 -> 4699 | M105: ='[11]M14 - Drivers'!$J$11 -> 4692.4 | N105: ='[11]M14 - Drivers'!$K$11 -> 4769.2 | O105: ='[11]M14 - Drivers'!$L$11 -> 4481.8 | P105: ='[11]M14 - Drivers'!$M$11 -> 4621.8
B106: SWALES | C106: ='[12]M14 - Drivers'!AD11 -> 2152.652603 | D106: ='[12]M14 - Drivers'!AE11 -> 2117.6 | E106: ='[12]M14 - Drivers'!AF11 -> 1999.5122 | F106: ='[12]M14 - Drivers'!AG11 -> 1992 | G106: ='[12]M14 - Drivers'!AH11 -> 2012 | H106: ='[13]M14 - Drivers'!$E$11 -> 1970.4 | I106: ='[13]M14 - Drivers'!$F$11 -> 1946.4 | J106: ='[13]M14 - Drivers'!$G$11 -> 1914 | K106: ='[13]M14 - Drivers'!$H$11 -> 1897.6 | L106: ='[13]M14 - Drivers'!$I$11 -> 1824.2 | M106: ='[13]M14 - Drivers'!$J$11 -> 1761.4 | N106: ='[13]M14 - Drivers'!$K$11 -> 1801.4 | O106: ='[13]M14 - Drivers'!$L$11 -> 1747.2 | P106: ='[13]M14 - Drivers'!$M$11 -> 1763.6
B107: SWEST | C107: ='[14]M14 - Drivers'!AD11 -> 2903.634729 | D107: ='[14]M14 - Drivers'!AE11 -> 2854.9 | E107: ='[14]M14 - Drivers'!AF11 -> 2754.5462 | F107: ='[14]M14 - Drivers'!AG11 -> 2594 | G107: ='[14]M14 - Drivers'!AH11 -> 2583.8 | H107: ='[15]M14 - Drivers'!$E$11 -> 2536.8 | I107: ='[15]M14 - Drivers'!$F$11 -> 2590.8 | J107: ='[15]M14 - Drivers'!$G$11 -> 2565.8 | K107: ='[15]M14 - Drivers'!$H$11 -> 2486.8 | L107: ='[15]M14 - Drivers'!$I$11 -> 2462.6 | M107: ='[15]M14 - Drivers'!$J$11 -> 2446.4 | N107: ='[15]M14 - Drivers'!$K$11 -> 2459.8 | O107: ='[15]M14 - Drivers'!$L$11 -> 2374.8 | P107: ='[15]M14 - Drivers'!$M$11 -> 2399
B108: LPN | C108: ='[16]M14 - Drivers'!AD11 -> 5203 | D108: ='[16]M14 - Drivers'!AE11 -> 5125 | E108: ='[16]M14 - Drivers'!AF11 -> 5167 | F108: ='[16]M14 - Drivers'!AG11 -> 4820 | G108: ='[16]M14 - Drivers'!AH11 -> 4952 | H108: ='[17]M14 - Drivers'!$E$11 -> 4833 | I108: ='[17]M14 - Drivers'!$F$11 -> 4915 | J108: ='[17]M14 - Drivers'!$G$11 -> 5189 | K108: ='[17]M14 - Drivers'!$H$11 -> 4780 | L108: ='[17]M14 - Drivers'!$I$11 -> 4389 | M108: ='[17]M14 - Drivers'!$J$11 -> 4448 | N108: ='[17]M14 - Drivers'!$K$11 -> 4313 | O108: ='[17]M14 - Drivers'!$L$11 -> 4455.6 | P108: ='[17]M14 - Drivers'!$M$11 -> 4342.7
B109: SPN | C109: ='[18]M14 - Drivers'!AD11 -> 3976 | D109: ='[18]M14 - Drivers'!AE11 -> 4108 | E109: ='[18]M14 - Drivers'!AF11 -> 4107 | F109: ='[18]M14 - Drivers'!AG11 -> 3672 | G109: ='[18]M14 - Drivers'!AH11 -> 3795 | H109: ='[19]M14 - Drivers'!$E$11 -> 3809 | I109: ='[19]M14 - Drivers'!$F$11 -> 3923 | J109: ='[19]M14 - Drivers'!$G$11 -> 4022 | K109: ='[19]M14 - Drivers'!$H$11 -> 3672 | L109: ='[19]M14 - Drivers'!$I$11 -> 3526 | M109: ='[19]M14 - Drivers'!$J$11 -> 3592 | N109: ='[19]M14 - Drivers'!$K$11 -> 3567 | O109: ='[19]M14 - Drivers'!$L$11 -> 3371.9 | P109: ='[19]M14 - Drivers'!$M$11 -> 3175.6
B110: EPN | C110: ='[20]M14 - Drivers'!AD11 -> 6966 | D110: ='[20]M14 - Drivers'!AE11 -> 6407 | E110: ='[20]M14 - Drivers'!AF11 -> 6408 | F110: ='[20]M14 - Drivers'!AG11 -> 6096 | G110: ='[20]M14 - Drivers'!AH11 -> 6267 | H110: ='[21]M14 - Drivers'!$E$11 -> 6236 | I110: ='[21]M14 - Drivers'!$F$11 -> 6441 | J110: ='[21]M14 - Drivers'!$G$11 -> 6573 | K110: ='[21]M14 - Drivers'!$H$11 -> 5926 | L110: ='[21]M14 - Drivers'!$I$11 -> 5401 | M110: ='[21]M14 - Drivers'!$J$11 -> 6129 | N110: ='[21]M14 - Drivers'!$K$11 -> 5270 | O110: ='[21]M14 - Drivers'!$L$11 -> 5638.2 | P110: ='[21]M14 - Drivers'!$M$11 -> 5452.2
B111: SPD | C111: ='[22]M14 - Drivers'!AD11 -> 4024 | D111: ='[22]M14 - Drivers'!AE11 -> 3611 | E111: ='[22]M14 - Drivers'!AF11 -> 3673 | F111: ='[22]M14 - Drivers'!AG11 -> 3426 | G111: ='[22]M14 - Drivers'!AH11 -> 3414 | H111: ='[23]M14 - Drivers'!$E$11 -> 3626 | I111: ='[23]M14 - Drivers'!$F$11 -> 3563 | J111: ='[23]M14 - Drivers'!$G$11 -> 3575 | K111: ='[23]M14 - Drivers'!$H$11 -> 3437 | L111: ='[23]M14 - Drivers'!$I$11 -> 3384 | M111: ='[23]M14 - Drivers'!$J$11 -> 3132 | N111: ='[23]M14 - Drivers'!$K$11 -> 3203 | O111: ='[23]M14 - Drivers'!$L$11 -> 3250 | P111: ='[23]M14 - Drivers'!$M$11 -> 3122.6
B112: SPMW | C112: ='[24]M14 - Drivers'!AD11 -> 3320 | D112: ='[24]M14 - Drivers'!AE11 -> 3197 | E112: ='[24]M14 - Drivers'!AF11 -> 3245 | F112: ='[24]M14 - Drivers'!AG11 -> 3023 | G112: ='[24]M14 - Drivers'!AH11 -> 3127 | H112: ='[25]M14 - Drivers'!$E$11 -> 3014 | I112: ='[25]M14 - Drivers'!$F$11 -> 3022 | J112: ='[25]M14 - Drivers'!$G$11 -> 3039 | K112: ='[25]M14 - Drivers'!$H$11 -> 2967 | L112: ='[25]M14 - Drivers'!$I$11 -> 2929 | M112: ='[25]M14 - Drivers'!$J$11 -> 2674 | N112: ='[25]M14 - Drivers'!$K$11 -> 2690 | O112: ='[25]M14 - Drivers'!$L$11 -> 2739 | P112: ='[25]M14 - Drivers'!$M$11 -> 2639
B113: SSEH | C113: ='[26]M14 - Drivers'!AD11 -> 1633 | D113: ='[26]M14 - Drivers'!AE11 -> 1559 | E113: ='[26]M14 - Drivers'!AF11 -> 1518 | F113: ='[26]M14 - Drivers'!AG11 -> 1518 | G113: ='[26]M14 - Drivers'!AH11 -> 1514 | H113: ='[27]M14 - Drivers'!$E$11 -> 1417 | I113: ='[27]M14 - Drivers'!$F$11 -> 1497.2 | J113: ='[27]M14 - Drivers'!$G$11 -> 1564.5 | K113: ='[27]M14 - Drivers'!$H$11 -> 1429.5 | L113: ='[27]M14 - Drivers'!$I$11 -> 1416.0002 | M113: ='[27]M14 - Drivers'!$J$11 -> 1400 | N113: ='[27]M14 - Drivers'!$K$11 -> 1377.1 | O113: ='[27]M14 - Drivers'!$L$11 -> 1346.6 | P113: ='[27]M14 - Drivers'!$M$11 -> 1366.8
B114: SSES | C114: ='[28]M14 - Drivers'!AD11 -> 6692.8 | D114: ='[28]M14 - Drivers'!AE11 -> 6395.7 | E114: ='[28]M14 - Drivers'!AF11 -> 6387.1 | F114: ='[28]M14 - Drivers'!AG11 -> 5916.3 | G114: ='[28]M14 - Drivers'!AH11 -> 6005.4 | H114: ='[29]M14 - Drivers'!$E$11 -> 5971.2 | I114: ='[29]M14 - Drivers'!$F$11 -> 6079.3 | J114: ='[29]M14 - Drivers'!$G$11 -> 6293 | K114: ='[29]M14 - Drivers'!$H$11 -> 5883.7 | L114: ='[29]M14 - Drivers'!$I$11 -> 5584.9832 | M114: ='[29]M14 - Drivers'!$J$11 -> 5699 | N114: ='[29]M14 - Drivers'!$K$11 -> 5709.5 | O114: ='[29]M14 - Drivers'!$L$11 -> 5624 | P114: ='[29]M14 - Drivers'!$M$11 -> 5691
B115: Total | C115: =SUM(C101:C114) -> 58246.42972 | D115: =SUM(D101:D114) -> 56787.14596 | E115: 56403.0894 | F115: 53357.65052 | G115: 53903 | H115: 53871 | I115: 54413.4992 | J115: 54792.224 | K115: 52185.494 | L115: 50114.1946 | M115: 50191.6 | N115: =SUM(N101:N114) -> 49613.3376 | O115: 49199.5886 | P115: =SUM(P101:P114) -> 48737.56159

Sheet RAG and Ranking
A1: Outputs overview
C3: Reliability & Availability | F3: Environment | J3: Connections | Q3: Customer satisfaction | V3: Distribution System Operator
C4: Number of interruption (CIs) RAG | D4: Number of minutes lost (CMLs) RAG | F4: BCF (excl. losses) ranking | G4: SF6 ranking | H4: Fluid filled cable leakage ranking | J4: Time to Quote and Time to Connect RAG | K4: Time to Quote and Time to Connect ranking | L4: Connection GSoPs RAG | M4: Connection GSoPs ranking | N4: Major Connections RAG | O4: Major Connections ranking | Q4: Complaints RAG | R4: Complaints ranking | S4: Customer Satisfaction RAG | T4: Customer Satisfaction ranking | V4: DNO Group | W4: DNO Ranking
A5: ENWL | C5: 1 | D5: 1 | F5: ='Ch2 outputs - environment'!N56 -> 5 | G5: ='Ch2 outputs - environment'!N96 -> 6 | H5: ='Ch2 outputs - environment'!N135 -> 9 | J5: 1 | K5: ='Ch2 outputs - connections'!P39 -> 2 | L5: 1 | M5: ='Ch2 outputs - connections'!J81 -> 8 | N5: 1 | O5: ='Ch2 outputs - connections'!H104 -> 9 | Q5: 1 | R5: ='Ch2 outputs - cust sat'!K62 -> 12 | S5: 1 | T5: ='Ch2 outputs - cust sat'!J23 -> 5 | V5: ENWL | W5: ='Ch2 outputs - DSO '!H14 -> 5
A6: NPgN | C6: 0.5 | D6: 0 | F6: ='Ch2 outputs - environment'!N57 -> 1 | G6: ='Ch2 outputs - environment'!N97 -> 4 | H6: ='Ch2 outputs - environment'!N136 -> 7 | J6: 0.5 | K6: ='Ch2 outputs - connections'!P40 -> 13 | L6: 0.5 | M6: ='Ch2 outputs - connections'!J82 -> 12 | N6: 1 | O6: ='Ch2 outputs - connections'!H105 -> 13 | Q6: 0 | R6: ='Ch2 outputs - cust sat'!K63 -> 13 | S6: 0.5 | T6: ='Ch2 outputs - cust sat'!J24 -> 11 | V6: NPG | W6: ='Ch2 outputs - DSO '!H15 -> 4
A7: NPgY | C7: 0 | D7: 0 | F7: ='Ch2 outputs - environment'!N58 -> 3 | G7: ='Ch2 outputs - environment'!N98 -> 11 | H7: ='Ch2 outputs - environment'!N137 -> 10 | J7: 0.5 | K7: ='Ch2 outputs - connections'!P41 -> 12 | L7: 0.5 | M7: ='Ch2 outputs - connections'!J83 -> 13 | N7: 1 | O7: ='Ch2 outputs - connections'!H106 -> 12 | Q7: 0 | R7: ='Ch2 outputs - cust sat'!K64 -> 14 | S7: 1 | T7: ='Ch2 outputs - cust sat'!J25 -> 9
A8: WMID | C8: 1 | D8: 0 | F8: ='Ch2 outputs - environment'!N59 -> 7 | G8: ='Ch2 outputs - environment'!N99 -> 8 | H8: ='Ch2 outputs - environment'!N138 -> 5 | J8: 1 | K8: ='Ch2 outputs - connections'!P42 -> 3 | L8: 1 | M8: ='Ch2 outputs - connections'!J84 -> 5 | N8: 1 | O8: ='Ch2 outputs - connections'!H107 -> 6 | Q8: 1 | R8: ='Ch2 outputs - cust sat'!K65 -> 8 | S8: 0.5 | T8: ='Ch2 outputs - cust sat'!J26 -> 12 | V8: NGED | W8: ='Ch2 outputs - DSO '!H16 -> 2
A9: EMID | C9: 0 | D9: 0 | F9: ='Ch2 outputs - environment'!N60 -> 6 | G9: ='Ch2 outputs - environment'!N100 -> 7 | H9: ='Ch2 outputs - environment'!N139 -> 6 | J9: 1 | K9: ='Ch2 outputs - connections'!P43 -> 4 | L9: 1 | M9: ='Ch2 outputs - connections'!J85 -> 9 | N9: 1 | O9: ='Ch2 outputs - connections'!H108 -> 5 | Q9: 1 | R9: ='Ch2 outputs - cust sat'!K66 -> 6 | S9: 1 | T9: ='Ch2 outputs - cust sat'!J27 -> 10
A10: SWALES | C10: 0 | D10: 0 | F10: ='Ch2 outputs - environment'!N61 -> 12 | G10: ='Ch2 outputs - environment'!N101 -> 12 | H10: ='Ch2 outputs - environment'!N140 -> 2 | J10: 1 | K10: ='Ch2 outputs - connections'!P44 -> 5 | L10: 1 | M10: ='Ch2 outputs - connections'!J86 -> 3 | N10: 1 | O10: ='Ch2 outputs - connections'!H109 -> 3 | Q10: 1 | R10: ='Ch2 outputs - cust sat'!K67 -> 4 | S10: 1 | T10: ='Ch2 outputs - cust sat'!J28 -> 8
A11: SWEST | C11: 0 | D11: 0 | F11: ='Ch2 outputs - environment'!N62 -> 10 | G11: ='Ch2 outputs - environment'!N102 -> 9 | H11: ='Ch2 outputs - environment'!N141 -> 4 | J11: 0.5 | K11: ='Ch2 outputs - connections'!P45 -> 10 | L11: 1 | M11: ='Ch2 outputs - connections'!J87 -> 7 | N11: 1 | O11: ='Ch2 outputs - connections'!H110 -> 8 | Q11: 1 | R11: ='Ch2 outputs - cust sat'!K68 -> 11 | S11: 0.5 | T11: ='Ch2 outputs - cust sat'!J29 -> 13
A12: LPN | C12: 1 | D12: 1 | F12: ='Ch2 outputs - environment'!N63 -> 11 | G12: ='Ch2 outputs - environment'!N103 -> 1 | H12: ='Ch2 outputs - environment'!N142 -> 13 | J12: 0.5 | K12: ='Ch2 outputs - connections'!P46 -> 6 | L12: 1 | M12: ='Ch2 outputs - connections'!J88 -> 1 | N12: 1 | O12: ='Ch2 outputs - connections'!H111 -> 2 | Q12: 1 | R12: ='Ch2 outputs - cust sat'!K69 -> 1 | S12: 1 | T12: ='Ch2 outputs - cust sat'!J30 -> 1 | V12: UKPN | W12: ='Ch2 outputs - DSO '!H17 -> 1
A13: SPN | C13: 0 | D13: 0 | F13: ='Ch2 outputs - environment'!N64 -> 9 | G13: ='Ch2 outputs - environment'!N104 -> 3 | H13: ='Ch2 outputs - environment'!N143 -> 11 | J13: 0.5 | K13: ='Ch2 outputs - connections'!P47 -> 10 | L13: 1 | M13: ='Ch2 outputs - connections'!J89 -> 4 | N13: 1 | O13: ='Ch2 outputs - connections'!H112 -> 4 | Q13: 1 | R13: ='Ch2 outputs - cust sat'!K70 -> 7 | S13: 1 | T13: ='Ch2 outputs - cust sat'!J31 -> 3
A14: EPN | C14: 0 | D14: 0 | F14: ='Ch2 outputs - environment'!N65 -> 8 | G14: ='Ch2 outputs - environment'!N105 -> 5 | H14: ='Ch2 outputs - environment'!N144 -> 14 | J14: 0.5 | K14: ='Ch2 outputs - connections'!P48 -> 8 | L14: 1 | M14: ='Ch2 outputs - connections'!J90 -> 2 | N14: 1 | O14: ='Ch2 outputs - connections'!H113 -> 7 | Q14: 1 | R14: ='Ch2 outputs - cust sat'!K71 -> 3 | S14: 1 | T14: ='Ch2 outputs - cust sat'!J32 -> 2
A15: SPD | C15: 1 | D15: 1 | F15: ='Ch2 outputs - environment'!N66 -> 2 | G15: ='Ch2 outputs - environment'!N106 -> 13 | H15: ='Ch2 outputs - environment'!N145 -> 3 | J15: 0.5 | K15: ='Ch2 outputs - connections'!P49 -> 7 | L15: 0.5 | M15: ='Ch2 outputs - connections'!J91 -> 11 | N15: 1 | O15: ='Ch2 outputs - connections'!H114 -> 1 | Q15: 1 | R15: ='Ch2 outputs - cust sat'!K72 -> 10 | S15: 1 | T15: ='Ch2 outputs - cust sat'!J33 -> 7 | V15: SPEN | W15: ='Ch2 outputs - DSO '!H18 -> 6
A16: SPMW | C16: 1 | D16: 0.5 | F16: ='Ch2 outputs - environment'!N67 -> 4 | G16: ='Ch2 outputs - environment'!N107 -> 10 | H16: ='Ch2 outputs - environment'!N146 -> 12 | J16: 0.5 | K16: ='Ch2 outputs - connections'!P50 -> 9 | L16: 1 | M16: ='Ch2 outputs - connections'!J92 -> 6 | N16: 1 | O16: ='Ch2 outputs - connections'!H115 -> 11 | Q16: 1 | R16: ='Ch2 outputs - cust sat'!K73 -> 9 | S16: 1 | T16: ='Ch2 outputs - cust sat'!J34 -> 6
A17: SSEH | C17: 1 | D17: 0 | F17: ='Ch2 outputs - environment'!N68 -> 14 | G17: ='Ch2 outputs - environment'!N108 -> 2 | H17: ='Ch2 outputs - environment'!N147 -> 1 | J17: 1 | K17: ='Ch2 outputs - connections'!P51 -> 1 | L17: 1 | M17: ='Ch2 outputs - connections'!J93 -> 10 | N17: 1 | O17: ='Ch2 outputs - connections'!H116 -> 10 | Q17: 1 | R17: ='Ch2 outputs - cust sat'!K74 -> 2 | S17: 1 | T17: ='Ch2 outputs - cust sat'!J35 -> 4 | V17: SSEN | W17: ='Ch2 outputs - DSO '!H19 -> 3
A18: SSES | C18: 0 | D18: 0 | F18: ='Ch2 outputs - environment'!N69 -> 13 | G18: ='Ch2 outputs - environment'!N109 -> 14 | H18: ='Ch2 outputs - environment'!N148 -> 8 | J18: 0.5 | K18: ='Ch2 outputs - connections'!P52 -> 14 | L18: 0.5 | M18: ='Ch2 outputs - connections'!J94 -> 14 | N18: 0.5 | O18: ='Ch2 outputs - connections'!H117 -> 14 | Q18: 1 | R18: ='Ch2 outputs - cust sat'!K75 -> 5 | S18: 0 | T18: ='Ch2 outputs - cust sat'!J36 -> 14
A20: Industry | C20: 0.5 | D20: 0.5 | J20: 0.5 | L20: 1 | N20: 1 | Q20: 1 | S20: 1

Sheet Ch2 - Incentive payments
A1: Chapter 2 - Incentive Payments
B3: Incentive payments
C4: 2020/21 prices, £m
D5: Interruptions Incentive Scheme (IIS) | E5: Time to Connect Incentive (TTC) | F5: Customer Satisfaction Survey (CSS) | G5: Complaints Metric (CM) | H5: Distribution System Operation (DSO) | I5: Major Connections Incentive (MCI) | J5: Customer Vulnerability Incentive (CVI) | K5: Total incentive payments
C6: ENWL | D6: ='Ch2 outputs - reliability'!E53 -> 0.8665659245 | E6: ='Ch2 outputs - connections'!M39 -> 0.8698922754 | F6: ='Ch2 outputs - cust sat'!H41 -> 1.151072084 | G6: ='Ch2 outputs - cust sat'!E81 -> 0 | H6: =[44]Scores!$C15 -> 0.185918 | I6: ='Ch2 outputs - connections'!F104 -> 0 | J6: =SUM('Ch2 outputs - cust sat'!E102:H102) -> 0 | K6: =SUM(D6:J6) -> 3.073448284
C7: NPgN | D7: ='Ch2 outputs - reliability'!E54 -> -2.527242478 | E7: ='Ch2 outputs - connections'!M40 -> -0.2019536416 | F7: ='Ch2 outputs - cust sat'!H42 -> -0.01948790493 | G7: ='Ch2 outputs - cust sat'!E82 -> -0.9891030354 | H7: =[44]Scores!$C16 -> 0.30102 | I7: ='Ch2 outputs - connections'!F105 -> 0 | J7: =SUM('Ch2 outputs - cust sat'!E103:H103) -> 0 | K7: =SUM(D7:J7) -> -3.43676706 | T7: ENWL
C8: NPgY | D8: ='Ch2 outputs - reliability'!E55 -> -7.257934309 | E8: ='Ch2 outputs - connections'!M41 -> 0 | F8: ='Ch2 outputs - cust sat'!H43 -> -0.0668290303 | G8: ='Ch2 outputs - cust sat'!E83 -> -1.715920186 | H8: =[44]Scores!$C17 -> 0.41528 | I8: ='Ch2 outputs - connections'!F106 -> 0 | J8: =SUM('Ch2 outputs - cust sat'!E104:H104) -> 0 | K8: -8.625403525 | T8: NPg
C9: WMID | D9: ='Ch2 outputs - reliability'!E56 -> -0.7671388633 | E9: ='Ch2 outputs - connections'!M42 -> 0.8768654 | F9: ='Ch2 outputs - cust sat'!H44 -> -0.4098521442 | G9: ='Ch2 outputs - cust sat'!E84 -> 0 | H9: =[44]Scores!$C18 -> 1.802 | I9: ='Ch2 outputs - connections'!F107 -> 0 | J9: =SUM('Ch2 outputs - cust sat'!E105:H105) -> 0 | K9: 1.501874393 | T9: NPg
C10: EMID | D10: ='Ch2 outputs - reliability'!E57 -> -2.418504234 | E10: ='Ch2 outputs - connections'!M43 -> 0.8187954 | F10: ='Ch2 outputs - cust sat'!H45 -> 0.5059194067 | G10: ='Ch2 outputs - cust sat'!E85 -> 0 | H10: =[44]Scores!$C19 -> 1.844 | I10: ='Ch2 outputs - connections'!F108 -> 0 | J10: =SUM('Ch2 outputs - cust sat'!E106:H106) -> 0 | K10: 0.7502105727 | T10: WPD
C11: SWALES | D11: ='Ch2 outputs - reliability'!E58 -> -0.6040030046 | E11: ='Ch2 outputs - connections'!M44 -> 0.3415528 | F11: ='Ch2 outputs - cust sat'!H46 -> 0.4475708421 | G11: ='Ch2 outputs - cust sat'!E86 -> 0 | H11: =[44]Scores!$C20 -> 0.921 | I11: ='Ch2 outputs - connections'!F109 -> 0 | J11: =SUM('Ch2 outputs - cust sat'!E107:H107) -> 0 | K11: 1.106120638 | T11: WPD
C12: SWEST | D12: ='Ch2 outputs - reliability'!E59 -> -2.947340724 | E12: ='Ch2 outputs - connections'!M45 -> 0.249809 | F12: ='Ch2 outputs - cust sat'!H47 -> -0.6195886957 | G12: ='Ch2 outputs - cust sat'!E87 -> 0 | H12: =[44]Scores!$C21 -> 1.399 | I12: ='Ch2 outputs - connections'!F110 -> 0 | J12: =SUM('Ch2 outputs - cust sat'!E108:H108) -> 0 | K12: -1.91812042 | T12: WPD
C13: LPN | D13: ='Ch2 outputs - reliability'!E60 -> 1.174638913 | E13: ='Ch2 outputs - connections'!M46 -> 0.5217815859 | F13: ='Ch2 outputs - cust sat'!H48 -> 2.415549204 | G13: ='Ch2 outputs - cust sat'!E88 -> 0 | H13: =[44]Scores!$C22 -> 2.422 | I13: ='Ch2 outputs - connections'!F111 -> 0 | J13: =SUM('Ch2 outputs - cust sat'!E109:H109) -> 0 | K13: 6.533969703 | T13: WPD
C14: SPN | D14: ='Ch2 outputs - reliability'!E61 -> -3.046475792 | E14: ='Ch2 outputs - connections'!M47 -> 0.2616178604 | F14: ='Ch2 outputs - cust sat'!H49 -> 1.94339207 | G14: ='Ch2 outputs - cust sat'!E89 -> 0 | H14: =[44]Scores!$C23 -> 2.506 | I14: ='Ch2 outputs - connections'!F112 -> 0 | J14: =SUM('Ch2 outputs - cust sat'!E110:H110) -> 0 | K14: 1.664534139 | T14: UKPN
C15: EPN | D15: ='Ch2 outputs - reliability'!E62 -> -4.028417291 | E15: ='Ch2 outputs - connections'!M48 -> 0.8149063291 | F15: ='Ch2 outputs - cust sat'!H50 -> 3.731920827 | G15: ='Ch2 outputs - cust sat'!E90 -> 0 | H15: =[44]Scores!$C24 -> 3.912 | I15: ='Ch2 outputs - connections'!F113 -> 0 | J15: =SUM('Ch2 outputs - cust sat'!E111:H111) -> 0 | K15: 4.430409866 | T15: UKPN
C16: SPD | D16: ='Ch2 outputs - reliability'!E63 -> 2.979327438 | E16: ='Ch2 outputs - connections'!M49 -> 0.3197767858 | F16: ='Ch2 outputs - cust sat'!H51 -> 0.5521777346 | G16: ='Ch2 outputs - cust sat'!E91 -> 0 | H16: =[44]Scores!$C25 -> 0.282672 | I16: ='Ch2 outputs - connections'!F114 -> 0 | J16: =SUM('Ch2 outputs - cust sat'!E112:H112) -> 0 | K16: 4.133953958 | T16: UKPN
C17: SPMW | D17: ='Ch2 outputs - reliability'!E64 -> -0.2236081283 | E17: ='Ch2 outputs - connections'!M50 -> 0.2218554 | F17: ='Ch2 outputs - cust sat'!H52 -> 1.072848594 | G17: ='Ch2 outputs - cust sat'!E92 -> 0 | H17: =[44]Scores!$C26 -> 0.314496 | I17: ='Ch2 outputs - connections'!F115 -> 0 | J17: =SUM('Ch2 outputs - cust sat'!E113:H113) -> 0 | K17: 1.385591866 | T17: SPEN
C18: SSEH | D18: ='Ch2 outputs - reliability'!E65 -> -1.573926471 | E18: ='Ch2 outputs - connections'!M51 -> 0.9319956 | F18: ='Ch2 outputs - cust sat'!H53 -> 0.869789 | G18: ='Ch2 outputs - cust sat'!E93 -> 0 | H18: =[44]Scores!$C27 -> 0.75256 | I18: ='Ch2 outputs - connections'!F116 -> 0 | J18: =SUM('Ch2 outputs - cust sat'!E114:H114) -> 0 | K18: 0.9804181295 | T18: SPEN
C19: SSES | D19: ='Ch2 outputs - reliability'!E66 -> -9.331323421 | E19: ='Ch2 outputs - connections'!M52 -> 3.569888565e-05 | F19: ='Ch2 outputs - cust sat'!H54 -> -3.741 | G19: ='Ch2 outputs - cust sat'!E94 -> 0 | H19: =[44]Scores!$C28 -> 1.41865 | I19: ='Ch2 outputs - connections'!F117 -> -0.73656 | J19: =SUM('Ch2 outputs - cust sat'!E115:H115) -> 0 | K19: -12.39019772 | T19: SSEN
C20: Total | D20: =SUM(D6:D19) -> -29.70538244 | E20: 6.026930494 | F20: 7.833481988 | G20: -2.705023221 | H20: 18.476596 | I20: -0.73656 | J20: 0 | K20: =SUM(D20:J20) -> -0.809957179 | T20: SSEN
C22: 2020/21 prices, £m
D23: Interruptions Incentive Scheme (IIS) | E23: Time to Connect Incentive (TTC) | F23: Customer Satisfaction Survey (CSS) | G23: Complaints Metric (CM) | H23: Distribution System Operation (DSO) | I23: Major Connections Incentive (MCI) | J23: Customer Vulnerability Incentive (CVI) | K23: Total incentive payments
C24: ENWL | D24: =D6 -> 0.8665659245 | E24: 0.8698922754 | F24: 1.151072084 | G24: 0 | H24: 0.185918 | I24: 0 | J24: 0 | K24: =SUM(D24:J24) -> 3.073448284
C25: NPg | D25: =SUM(D7:D8) -> -9.785176787 | E25: -0.2019536416 | F25: -0.08631693523 | G25: -2.705023221 | H25: 0.7163 | I25: 0 | J25: 0 | K25: =SUM(D25:J25) -> -12.06217058
C26: NGED | D26: =SUM(D9:D12) -> -6.736986826 | E26: 2.2870226 | F26: -0.0759505911 | G26: 0 | H26: 5.966 | I26: 0 | J26: 0 | K26: 1.440085183
C27: UKPN | D27: =SUM(D13:D15) -> -5.90025417 | E27: 1.598305775 | F27: 8.090862102 | G27: 0 | H27: 8.84 | I27: 0 | J27: 0 | K27: 12.62891371
C28: SPEN | D28: =SUM(D16:D17) -> 2.75571931 | E28: 0.5416321858 | F28: 1.625026329 | G28: 0 | H28: 0.597168 | I28: 0 | J28: 0 | K28: 5.519545824
C29: SSEN | D29: =SUM(D18:D19) -> -10.90524989 | E29: 0.9320312989 | F29: -2.871211 | G29: 0 | H29: 2.17121 | I29: -0.73656 | J29: 0 | K29: -11.40977959
C30: Total | D30: =SUM(D24:D29) -> -29.70538244 | E30: 6.026930494 | F30: 7.833481988 | G30: -2.705023221 | H30: 18.476596 | I30: -0.73656 | J30: 0 | K30: =SUM(D30:J30) -> -0.809957179

Sheet Ch2 outputs - connections
A1: Chapter 2 - Connections
B2: Performance against the outputs that DNOs are incentivised to deliver under RIIO-ED2.
B4: Connections: connecting customers in a timely and efficient way, including responding to different customers' specific needs, while enabling competition.
B5: Incentive measure | F5: Incentive type
B6: Time to Connect Incentive: reward for reducing average time taken to connect smaller and less complex customer connections. | F6: Financial: reward or penalty of 0.15% RoRE.
B7: Connections Guaranteed Standards of Performance (GSOP): direct payment to customers of fixed amounts if DNO fails to deliver specified minimum levels of performance regarding connections. | F7: Financial: payment to customers for failure to meet standards. Reputational.
B8: Major Connections Incentive: penalty to incentivise DNOs provide a quality service to major connections customers seeking to connect to the network. | F8: Financial: penalty of up to 0.35% RoRE.
B12: Distributed Generation (DG) | D12: Capacity of generation connected to the distribution network by type (MW)
E13: 2024 | F13: 2025 | G13: 2026 | H13: 2027 | I13: 2028
D14: Photovoltaic (G93) | E14: ='[45]DG connected'!$X$9+'[45]DG connected'!$X$15 -> 570.1363373
D15: Other DG (G93) | E15: ='[45]DG connected'!$X$10+'[45]DG connected'!$X$16 -> 22.707176
D16: DG (non G93) | E16: ='[45]DG connected'!$X$11+'[45]DG connected'!$X$17 -> 2354.67243
B21: Time to connect incentive
D22: Industry average Time to Connect improvements from targets (working days) - comparing 2019-23 and 2023-28 performance
F23: LVSSA | I23: LVSSB
F24: Average Time to Quote | G24: Time to Connect | H24: Overall | I24: Average Time to Quote | J24: Time to Connect | K24: Overall
E25: Average performance over the last four years (2019-2023) | F25: =E54 -> 4.07 | G25: =G54 -> 35.67 | H25: =F25+G25 -> 39.74 | I25: =I54 -> 6.84 | J25: =K54 -> 44.3 | K25: =I25+J25 -> 51.14
D26: Annual DNO Average | E26: 2024 | F26: =E53 -> 2.571776841 | G26: =G53 -> 31.00429176 | H26: =SUM(F26:G26) -> 33.57606861 | I26: =I53 -> 5.002679307 | J26: =K53 -> 38.99104513 | K26: =SUM(I26:J26) -> 43.99372444
E27: 2025
E28: 2026
E29: 2027
E30: 2028
E31: Improvement | F31: =F25-F26 -> 1.498223159 | G31: 4.665708236 | H31: 6.163931395 | I31: 1.837320693 | J31: 5.308954871 | K31: 7.146275563
E32: Improvement - % | F32: =F31/F25 -> 0.3681137982 | G32: 0.1308020251 | H32: 0.155106477 | I32: 0.2686141364 | J32: 0.1198409677 | K32: 0.1397394518
E35: 2023/24 | T35: 2024/25 | AI35: 2025/26 | AX35: 2026/27 | BM35: 2027/28
E36: LVSSA | I36: LVSSB | M36: Reward | N36: RAG and ranking | T36: LVSSA | X36: LVSSB | AB36: Reward | AC36: RAG and ranking | AI36: LVSSA | AM36: LVSSB | AQ36: Reward | AR36: RAG and ranking | AX36: LVSSA | BB36: LVSSB | BF36: Reward | BG36: RAG and ranking | BM36: LVSSA | BQ36: LVSSB | BU36: Reward | BV36: RAG and ranking
E37: Average Time to Quote | F37: Ranking | G37: Time to Connect | H37: Ranking | I37: Time to Quote | J37: Ranking | K37: Time to Connect | L37: Ranking | M37: £m | N37: RAG | O37: Average ranking | P37: Overall ranking | Q37: Overall (LVSSA + LVSSB) | T37: Average Time to Quote | U37: Ranking | V37: Time to Connect | W37: Ranking | X37: Time to Quote | Y37: Ranking | Z37: Time to Connect | AA37: Ranking | AB37: £m | AC37: RAG | AD37: Average ranking | AE37: Overall ranking | AF37: Overall (LVSSA + LVSSB) | AI37: Average Time to Quote | AJ37: Ranking | AK37: Time to Connect | AL37: Ranking | AM37: Time to Quote | AN37: Ranking | AO37: Time to Connect | AP37: Ranking | AQ37: £m | AR37: RAG | AS37: Average ranking | AT37: Overall ranking | AU37: Overall (LVSSA + LVSSB) | AX37: Average Time to Quote | AY37: Ranking | AZ37: Time to Connect | BA37: Ranking | BB37: Time to Quote | BC37: Ranking | BD37: Time to Connect | BE37: Ranking | BF37: £m | BG37: RAG | BH37: Average ranking | BI37: Overall ranking | BJ37: Overall (LVSSA + LVSSB) | BM37: Average Time to Quote | BN37: Ranking | BO37: Time to Connect | BP37: Ranking | BQ37: Time to Quote | BR37: Ranking | BS37: Time to Connect | BT37: Ranking | BU37: £m | BV37: RAG | BW37: Average ranking | BX37: Overall ranking | BY37: Overall (LVSSA + LVSSB)
E38: Working days | T38: Working days | AI38: Working days | AX38: Working days | BM38: Working days
D39: ENWL | E39: =VLOOKUP($D39,[46]CR13!$B$87:$G$101,2,FALSE) -> 2.221177635 | F39: =RANK(E39,$E$39:$E$52,1) -> 5 | G39: =VLOOKUP($D39,[46]CR13!$B$87:$G$101,3,FALSE) -> 25.04455959 | H39: =RANK(G39,$G$39:$G$52,1) -> 2 | I39: =VLOOKUP($D39,[46]CR13!$B$87:$G$101,4,FALSE) -> 4.054556007 | J39: =RANK(I39,$I$39:$I$52,1) -> 5 | K39: =VLOOKUP($D39,[46]CR13!$B$87:$G$101,5,FALSE) -> 24.91729323 | L39: =RANK(K39,$K$39:$K$52,1) -> 2 | M39: ='[3]R5 - ODI'!$E$27 -> 0.8698922754 | N39: =IF(SUM(IF(E39<=$E$54,1,0),IF(G39<=$G$54,1,0),IF(I39<=$I$54,1,0),IF(K39<=$K$54,1,0))=4,"Green",IF(SUM(IF(E39>$E$55,1,0),IF(G39>$G$55,1,0),IF(I39>$I$55,1,0),IF(K39>$K$55,1,0))>=3,"Red","Amber")) -> Green | O39: =AVERAGE(F39,H39,J39,L39) -> 3.5 | P39: =RANK(O39,$O$39:$O$52,1) -> 2 | Q39: =SUM(E39,G39,I39,K39) -> 56.23758646 | S39: ENWL | AH39: ENWL | AW39: ENWL | BL39: ENWL
D40: NPgN | E40: =VLOOKUP($D40,[46]CR13!$B$87:$G$101,2,FALSE) -> 4.143180106 | F40: =RANK(E40,$E$39:$E$52,1) -> 14 | G40: =VLOOKUP($D40,[46]CR13!$B$87:$G$101,3,FALSE) -> 31.13533285 | H40: =RANK(G40,$G$39:$G$52,1) -> 8 | I40: =VLOOKUP($D40,[46]CR13!$B$87:$G$101,4,FALSE) -> 6.004319654 | J40: =RANK(I40,$I$39:$I$52,1) -> 11 | K40: =VLOOKUP($D40,[46]CR13!$B$87:$G$101,5,FALSE) -> 64.20779221 | L40: =RANK(K40,$K$39:$K$52,1) -> 14 | M40: ='[5]R5 - ODI'!$E$27 -> -0.2019536416 | N40: Amber | O40: 11.75 | P40: 13 | Q40: 105.4906248 | S40: NPgN | AH40: NPgN | AW40: NPgN | BL40: NPgN
D41: NPgY | E41: =VLOOKUP($D41,[46]CR13!$B$87:$G$101,2,FALSE) -> 3.393021915 | F41: 13 | G41: =VLOOKUP($D41,[46]CR13!$B$87:$G$101,3,FALSE) -> 29.3240686 | H41: 7 | I41: =VLOOKUP($D41,[46]CR13!$B$87:$G$101,4,FALSE) -> 5.860732233 | J41: 10 | K41: =VLOOKUP($D41,[46]CR13!$B$87:$G$101,5,FALSE) -> 51.47838617 | L41: 13 | M41: ='[7]R5 - ODI'!$E$27 -> 0 | N41: Amber | O41: 10.75 | P41: 12 | Q41: 90.05620891 | S41: NPgY | AH41: NPgY | AW41: NPgY | BL41: NPgY
D42: WMID | E42: =VLOOKUP($D42,[46]CR13!$B$87:$G$101,2,FALSE) -> 2.13 | F42: 4 | G42: =VLOOKUP($D42,[46]CR13!$B$87:$G$101,3,FALSE) -> 27.13 | H42: 4 | I42: =VLOOKUP($D42,[46]CR13!$B$87:$G$101,4,FALSE) -> 3.99 | J42: 4 | K42: =VLOOKUP($D42,[46]CR13!$B$87:$G$101,5,FALSE) -> 31.48 | L42: 3 | M42: ='[9]R5 - ODI'!$E$27 -> 0.8768654 | N42: Green | O42: 3.75 | P42: 3 | Q42: 64.73 | S42: WMID | AH42: WMID | AW42: WMID | BL42: WMID
D43: EMID | E43: =VLOOKUP($D43,[46]CR13!$B$87:$G$101,2,FALSE) -> 1.93 | F43: 2 | G43: =VLOOKUP($D43,[46]CR13!$B$87:$G$101,3,FALSE) -> 26.83 | H43: 3 | I43: =VLOOKUP($D43,[46]CR13!$B$87:$G$101,4,FALSE) -> 4.32 | J43: 7 | K43: =VLOOKUP($D43,[46]CR13!$B$87:$G$101,5,FALSE) -> 33.12 | L43: 5 | M43: ='[11]R5 - ODI'!$E$27 -> 0.8187954 | N43: Green | O43: 4.25 | P43: 4 | Q43: 66.2 | S43: EMID | AH43: EMID | AW43: EMID | BL43: EMID
D44: SWALES | E44: =VLOOKUP($D44,[46]CR13!$B$87:$G$101,2,FALSE) -> 1.89 | F44: 1 | G44: =VLOOKUP($D44,[46]CR13!$B$87:$G$101,3,FALSE) -> 28.58 | H44: 6 | I44: =VLOOKUP($D44,[46]CR13!$B$87:$G$101,4,FALSE) -> 4.28 | J44: 6 | K44: =VLOOKUP($D44,[46]CR13!$B$87:$G$101,5,FALSE) -> 35.43 | L44: 6 | M44: ='[13]R5 - ODI'!$E$27 -> 0.3415528 | N44: Green | O44: 4.75 | P44: 5 | Q44: 70.18 | S44: SWALES | AH44: SWALES | AW44: SWALES | BL44: SWALES
D45: SWEST | E45: =VLOOKUP($D45,[46]CR13!$B$87:$G$101,2,FALSE) -> 2.92 | F45: 11 | G45: =VLOOKUP($D45,[46]CR13!$B$87:$G$101,3,FALSE) -> 39.01 | H45: 12 | I45: =VLOOKUP($D45,[46]CR13!$B$87:$G$101,4,FALSE) -> 4.48 | J45: 8 | K45: =VLOOKUP($D45,[46]CR13!$B$87:$G$101,5,FALSE) -> 47.4 | L45: 11 | M45: ='[15]R5 - ODI'!$E$27 -> 0.249809 | N45: Amber | O45: 10.5 | P45: 10 | Q45: 93.81 | S45: SWEST | AH45: SWEST | AW45: SWEST | BL45: SWEST
D46: LPN | E46: =VLOOKUP($D46,[46]CR13!$B$87:$G$101,2,FALSE) -> 2.238557559 | F46: 6 | G46: =VLOOKUP($D46,[46]CR13!$B$87:$G$101,3,FALSE) -> 36.53950954 | H46: 11 | I46: =VLOOKUP($D46,[46]CR13!$B$87:$G$101,4,FALSE) -> 2.83557394 | J46: 1 | K46: =VLOOKUP($D46,[46]CR13!$B$87:$G$101,5,FALSE) -> 39.95611702 | L46: 8 | M46: ='[17]R5 - ODI'!$E$27 -> 0.5217815859 | N46: Amber | O46: 6.5 | P46: 6 | Q46: 81.56975806 | S46: LPN | AH46: LPN | AW46: LPN | BL46: LPN
D47: SPN | E47: =VLOOKUP($D47,[46]CR13!$B$87:$G$101,2,FALSE) -> 2.625550661 | F47: 10 | G47: =VLOOKUP($D47,[46]CR13!$B$87:$G$101,3,FALSE) -> 39.31242604 | H47: 13 | I47: =VLOOKUP($D47,[46]CR13!$B$87:$G$101,4,FALSE) -> 4.711836283 | J47: 9 | K47: =VLOOKUP($D47,[46]CR13!$B$87:$G$101,5,FALSE) -> 44.72521957 | L47: 10 | M47: ='[19]R5 - ODI'!$E$27 -> 0.2616178604 | N47: Amber | O47: 10.5 | P47: 10 | Q47: 91.37503255 | S47: SPN | AH47: SPN | AW47: SPN | BL47: SPN
D48: EPN | E48: =VLOOKUP($D48,[46]CR13!$B$87:$G$101,2,FALSE) -> 2.309289233 | F48: 7 | G48: =VLOOKUP($D48,[46]CR13!$B$87:$G$101,3,FALSE) -> 39.89918809 | H48: 14 | I48: =VLOOKUP($D48,[46]CR13!$B$87:$G$101,4,FALSE) -> 3.360492185 | J48: 3 | K48: =VLOOKUP($D48,[46]CR13!$B$87:$G$101,5,FALSE) -> 36.76304024 | L48: 7 | M48: ='[21]R5 - ODI'!$E$27 -> 0.8149063291 | N48: Amber | O48: 7.75 | P48: 8 | Q48: 82.33200975 | S48: EPN | AH48: EPN | AW48: EPN | BL48: EPN
D49: SPD | E49: =VLOOKUP($D49,[46]CR13!$B$87:$G$101,2,FALSE) -> 2.424098672 | F49: 8 | G49: =VLOOKUP($D49,[46]CR13!$B$87:$G$101,3,FALSE) -> 27.875 | H49: 5 | I49: =VLOOKUP($D49,[46]CR13!$B$87:$G$101,4,FALSE) -> 7.73 | J49: 13 | K49: =VLOOKUP($D49,[46]CR13!$B$87:$G$101,5,FALSE) -> 31.70678337 | L49: 4 | M49: ='[23]R5 - ODI'!$E$27 -> 0.3197767858 | N49: Amber | O49: 7.5 | P49: 7 | Q49: 69.73588204 | S49: SPD | AH49: SPD | AW49: SPD | BL49: SPD
D50: SPMW | E50: =VLOOKUP($D50,[46]CR13!$B$87:$G$101,2,FALSE) -> 2.48 | F50: 9 | G50: =VLOOKUP($D50,[46]CR13!$B$87:$G$101,3,FALSE) -> 34.92 | H50: 9 | I50: =VLOOKUP($D50,[46]CR13!$B$87:$G$101,4,FALSE) -> 7.21 | J50: 12 | K50: =VLOOKUP($D50,[46]CR13!$B$87:$G$101,5,FALSE) -> 40.47 | L50: 9 | M50: ='[25]R5 - ODI'!$E$27 -> 0.2218554 | N50: Amber | O50: 9.75 | P50: 9 | Q50: 85.08 | S50: SPMW | AH50: SPMW | AW50: SPMW | BL50: SPMW
D51: SSEH | E51: =VLOOKUP($D51,[46]CR13!$B$87:$G$101,2,FALSE) -> 2.04 | F51: 3 | G51: =VLOOKUP($D51,[46]CR13!$B$87:$G$101,3,FALSE) -> 13.43 | H51: 1 | I51: =VLOOKUP($D51,[46]CR13!$B$87:$G$101,4,FALSE) -> 3.04 | J51: 2 | K51: =VLOOKUP($D51,[46]CR13!$B$87:$G$101,5,FALSE) -> 15.5 | L51: 1 | M51: ='[27]R5 - ODI'!$E$27 -> 0.9319956 | N51: Green | O51: 1.75 | P51: 1 | Q51: 34.01 | S51: SSEH | AH51: SSEH | AW51: SSEH | BL51: SSEH
D52: SSES | E52: =VLOOKUP($D52,[46]CR13!$B$87:$G$101,2,FALSE) -> 3.26 | F52: 12 | G52: =VLOOKUP($D52,[46]CR13!$B$87:$G$101,3,FALSE) -> 35.03 | H52: 10 | I52: =VLOOKUP($D52,[46]CR13!$B$87:$G$101,4,FALSE) -> 8.16 | J52: 14 | K52: =VLOOKUP($D52,[46]CR13!$B$87:$G$101,5,FALSE) -> 48.72 | L52: 12 | M52: ='[29]R5 - ODI'!$E$27 -> 3.569888565e-05 | N52: Amber | O52: 12 | P52: 14 | Q52: 95.17 | S52: SSES | AH52: SSES | AW52: SSES | BL52: SSES
D53: Industry Average Score/Total Reward | E53: =AVERAGE(E39:E52) -> 2.571776841 | G53: 31.00429176 | I53: 5.002679307 | K53: 38.99104513 | M53: =SUM(M39:M52) -> 6.026930494 | S53: Industry Average Score/Total Reward | AH53: Industry Average Score/Total Reward | AW53: Industry Average Score/Total Reward | BL53: Industry Average Score/Total Reward
D54: Target | E54: =[46]CR13!$L$87 -> 4.07 | G54: =[46]CR13!$M$87 -> 35.67 | I54: =[46]CR13!$N$87 -> 6.84 | K54: =[46]CR13!$O$87 -> 44.3 | S54: Target | AH54: Target | AW54: Target | BL54: Target
D55: 105% of target | E55: =E54*1.05 -> 4.2735 | G55: =G54*1.05 -> 37.4535 | I55: =I54*1.05 -> 7.182 | K55: =K54*1.05 -> 46.515 | S55: 105% of target | AH55: 105% of target | AW55: 105% of target | BL55: 105% of target
D57: Time to Connect improvements from 2023 - comparing performance to 2023
E58: 2023/24 | L58: 2024/25 | S58: 2025/26 | Z58: 2026/27 | AG58: 2027/28
E59: LVSSA | H59: LVSSB | L59: LVSSA | O59: LVSSB | S59: LVSSA | V59: LVSSB | Z59: LVSSA | AC59: LVSSB | AG59: LVSSA | AJ59: LVSSB
E60: Average Time to Quote | F60: Time to Connect | G60: Overall | H60: Average Time to Quote | I60: Time to Connect | J60: Overall | L60: Average Time to Quote | M60: Time to Connect | N60: Overall | O60: Average Time to Quote | P60: Time to Connect | Q60: Overall | S60: Average Time to Quote | T60: Time to Connect | U60: Overall | V60: Average Time to Quote | W60: Time to Connect | X60: Overall | Z60: Average Time to Quote | AA60: Time to Connect | AB60: Overall | AC60: Average Time to Quote | AD60: Time to Connect | AE60: Overall | AG60: Average Time to Quote | AH60: Time to Connect | AI60: Overall | AJ60: Average Time to Quote | AK60: Time to Connect | AL60: Overall
D61: ENWL | E61: ='[46]Time to connect improvement'!$N$74 -> 0.3088223652 | F61: ='[46]Time to connect improvement'!$N$76 -> -1.374559585 | G61: ='[46]Time to connect improvement'!$N$78 -> -1.06573722 | H61: ='[46]Time to connect improvement'!$N$75 -> 1.435443993 | I61: ='[46]Time to connect improvement'!$N$77 -> -2.987293233 | J61: ='[46]Time to connect improvement'!$N$79 -> -1.55184924
D62: NPgN | E62: ='[46]Time to connect improvement'!$M$74 -> 4.216819894 | F62: ='[46]Time to connect improvement'!$M$76 -> 13.78466715 | G62: ='[46]Time to connect improvement'!$M$78 -> 18.00148705 | H62: ='[46]Time to connect improvement'!$M$75 -> 7.065680346 | I62: ='[46]Time to connect improvement'!$M$77 -> 6.852207792 | J62: ='[46]Time to connect improvement'!$M$79 -> 13.91788814
D63: NPgY | E63: ='[46]Time to connect improvement'!$L$74 -> 3.486978085 | F63: ='[46]Time to connect improvement'!$L$76 -> 6.405931402 | G63: ='[46]Time to connect improvement'!$L$78 -> 9.892909487 | H63: ='[46]Time to connect improvement'!$L$75 -> 6.769267767 | I63: ='[46]Time to connect improvement'!$L$77 -> -2.328386167 | J63: ='[46]Time to connect improvement'!$L$79 -> 4.4408816
D64: WMID | E64: ='[46]Time to connect improvement'!$D$74 -> -0.32 | F64: ='[46]Time to connect improvement'!$D$76 -> 3.21 | G64: ='[46]Time to connect improvement'!$D$78 -> 2.89 | H64: ='[46]Time to connect improvement'!$D$75 -> -0.44 | I64: ='[46]Time to connect improvement'!$D$77 -> 4.47 | J64: ='[46]Time to connect improvement'!$D$79 -> 4.03
D65: EMID | E65: ='[46]Time to connect improvement'!$C$74 -> -0.11 | F65: ='[46]Time to connect improvement'!$C$76 -> 3.32 | G65: ='[46]Time to connect improvement'!$C$78 -> 3.21 | H65: ='[46]Time to connect improvement'!$C$75 -> -0.11 | I65: ='[46]Time to connect improvement'!$C$77 -> 3.29 | J65: ='[46]Time to connect improvement'!$C$79 -> 3.18
D66: SWALES | E66: ='[46]Time to connect improvement'!$E$74 -> 0.14 | F66: ='[46]Time to connect improvement'!$E$76 -> 5.3 | G66: ='[46]Time to connect improvement'!$E$78 -> 5.44 | H66: ='[46]Time to connect improvement'!$E$75 -> 0.2 | I66: ='[46]Time to connect improvement'!$E$77 -> 12.81 | J66: ='[46]Time to connect improvement'!$E$79 -> 13.01
D67: SWEST | E67: ='[46]Time to connect improvement'!$F$74 -> 0.5 | F67: ='[46]Time to connect improvement'!$F$76 -> 6.68 | G67: ='[46]Time to connect improvement'!$F$78 -> 7.18 | H67: ='[46]Time to connect improvement'!$F$75 -> 0.16 | I67: ='[46]Time to connect improvement'!$F$77 -> 5.65 | J67: ='[46]Time to connect improvement'!$F$79 -> 5.81
D68: LPN | E68: ='[46]Time to connect improvement'!$H$74 -> -0.1641473956 | F68: ='[46]Time to connect improvement'!$H$76 -> -0.8699443194 | G68: ='[46]Time to connect improvement'!$H$78 -> -1.034091715 | H68: ='[46]Time to connect improvement'!$H$75 -> -0.4209995371 | I68: ='[46]Time to connect improvement'!$H$77 -> 5.314308755 | J68: ='[46]Time to connect improvement'!$H$79 -> 4.893309218
D69: SPN | E69: ='[46]Time to connect improvement'!$I$74 -> -0.02604327163 | F69: ='[46]Time to connect improvement'!$I$76 -> 5.099911627 | G69: ='[46]Time to connect improvement'!$I$78 -> 5.073868355 | H69: ='[46]Time to connect improvement'!$I$75 -> 0.2934671935 | I69: ='[46]Time to connect improvement'!$I$77 -> 2.743530427 | J69: ='[46]Time to connect improvement'!$I$79 -> 3.03699762
D70: EPN | E70: ='[46]Time to connect improvement'!$G$74 -> 0.7701513265 | F70: ='[46]Time to connect improvement'!$G$76 -> -3.764248333 | G70: ='[46]Time to connect improvement'!$G$78 -> -2.994097006 | H70: ='[46]Time to connect improvement'!$G$75 -> 1.326396929 | I70: ='[46]Time to connect improvement'!$G$77 -> 4.01686723 | J70: ='[46]Time to connect improvement'!$G$79 -> 5.343264159
D71: SPD | E71: ='[46]Time to connect improvement'!$P$74 -> 2.901689526 | F71: ='[46]Time to connect improvement'!$P$76 -> 4.197834646 | G71: ='[46]Time to connect improvement'!$P$78 -> 7.099524171 | H71: ='[46]Time to connect improvement'!$P$75 -> 6.765624503 | I71: ='[46]Time to connect improvement'!$P$77 -> 2.366051276 | J71: ='[46]Time to connect improvement'!$P$79 -> 9.131675779
D72: SPMW | E72: ='[46]Time to connect improvement'!$O$74 -> 3.334615385 | F72: ='[46]Time to connect improvement'!$O$76 -> -1.646956522 | G72: ='[46]Time to connect improvement'!$O$78 -> 1.687658863 | H72: ='[46]Time to connect improvement'!$O$75 -> 7.593904924 | I72: ='[46]Time to connect improvement'!$O$77 -> -2.461935484 | J72: ='[46]Time to connect improvement'!$O$79 -> 5.13196944
D73: SSEH | E73: ='[46]Time to connect improvement'!$J$74 -> 2.718985201 | F73: ='[46]Time to connect improvement'!$J$76 -> 7.753835182 | G73: ='[46]Time to connect improvement'!$J$78 -> 10.47282038 | H73: ='[46]Time to connect improvement'!$J$75 -> 2.652047377 | I73: ='[46]Time to connect improvement'!$J$77 -> 6.887234043 | J73: ='[46]Time to connect improvement'!$J$79 -> 9.53928142
D74: SSES | E74: ='[46]Time to connect improvement'!$K$74 -> 1.19001865 | F74: ='[46]Time to connect improvement'!$K$76 -> 12.3103452 | G74: ='[46]Time to connect improvement'!$K$78 -> 13.50036385 | H74: ='[46]Time to connect improvement'!$K$75 -> 0.8644368891 | I74: ='[46]Time to connect improvement'!$K$77 -> 3.735494168 | J74: ='[46]Time to connect improvement'!$K$79 -> 4.599931057
D75: Industry Average | E75: =AVERAGE(E61:E74) -> 1.353420698 | F75: 4.314772604 | G75: 5.668193301 | H75: 2.43966217 | I75: 3.597005629 | J75: 6.036667799
D76: *2023/24 targets in cells E57:K57 | L76: *2024/25 targets in cells U57:AA57 | S76: *2025/26 targets in cells AJ57:AP57 | Z76: *2026/27 targets in cells AY57:BE57 | AG76: *2027/28 targets in cells BN57:BT57
B78: Connections Guaranteed Standards of Performance (GSOPs) | D78: Connections Guaranteed Standard of Performance
E79: 2023/24 | L79: 2024/25 | S79: 2025/26 | Z79: 2026/27 | AG79: 2027/28
E80: Total number of cases where the Connection GSOPs apply | F80: Total number of cases where the Connection GSOPs apply and the standard was not met | G80: Total penalties paid against the Connection GSOPs (£m) | H80: % of total cases when standard not met | I80: RAG | J80: Ranking | L80: Total number of cases where the Connection GSOPs apply | M80: Total number of cases where the Connection GSOPs apply and the standard was not met | N80: Total penalties paid against the Connection GSOPs (£m) | O80: % of total cases when standard not met | P80: RAG | Q80: Ranking | S80: Total number of cases where the Connection GSOPs apply | T80: Total number of cases where the Connection GSOPs apply and the standard was not met | U80: Total penalties paid against the Connection GSOPs (£m) | V80: % of total cases when standard not met | W80: RAG | X80: Ranking | Z80: Total number of cases where the Connection GSOPs apply | AA80: Total number of cases where the Connection GSOPs apply and the standard was not met | AB80: Total penalties paid against the Connection GSOPs (£m) | AC80: % of total cases when standard not met | AD80: RAG | AE80: Ranking | AG80: Total number of cases where the Connection GSOPs apply | AH80: Total number of cases where the Connection GSOPs apply and the standard was not met | AI80: Total penalties paid against the Connection GSOPs (£m) | AJ80: % of total cases when standard not met | AK80: RAG | AL80: Ranking
D81: ENWL | E81: ='[47]Guaranteed standards'!$E$80 -> 21399 | F81: ='[47]Guaranteed standards'!$E$81 -> 66 | G81: ='[47]Guaranteed standards'!$E$83 -> 24605 | H81: =F81/E81 -> 0.003084256274 | I81: =IF(H81<=2%,"Green",IF(H81:H81>5%,"Red","Amber")) -> Green | J81: =RANK(H81,$H$81:$H$94,1) -> 8
D82: NPgN | E82: ='[47]Guaranteed standards'!$F$80 -> 17237 | F82: ='[47]Guaranteed standards'!$F$81 -> 499 | G82: ='[47]Guaranteed standards'!$F$83 -> 250865 | H82: =F82/E82 -> 0.02894935314 | I82: =IF(H82<=2%,"Green",IF(H82:H82>5%,"Red","Amber")) -> Amber | J82: =RANK(H82,$H$81:$H$94,1) -> 12
D83: NPgY | E83: ='[47]Guaranteed standards'!$G$80 -> 23566 | F83: ='[47]Guaranteed standards'!$G$81 -> 744 | G83: ='[47]Guaranteed standards'!$G$83 -> 252025 | H83: 0.03157090724 | I83: =IF(H83<=2%,"Green",IF(H83:H83>5%,"Red","Amber")) -> Amber | J83: 13
D84: WMID | E84: ='[47]Guaranteed standards'!$O$80 -> 30627 | F84: ='[47]Guaranteed standards'!$O$81 -> 32 | G84: ='[47]Guaranteed standards'!$O$83 -> 12280 | H84: 0.001044829725 | I84: Green | J84: 5
D85: EMID | E85: ='[47]Guaranteed standards'!$P$80 -> 32874 | F85: ='[47]Guaranteed standards'!$P$81 -> 132 | G85: ='[47]Guaranteed standards'!$P$83 -> 21680 | H85: 0.004015331265 | I85: Green | J85: 9
D86: SWALES | E86: ='[47]Guaranteed standards'!$Q$80 -> 14939 | F86: ='[47]Guaranteed standards'!$Q$81 -> 3 | G86: ='[47]Guaranteed standards'!$Q$83 -> 530 | H86: 0.0002008166544 | I86: Green | J86: 3
D87: SWEST | E87: ='[47]Guaranteed standards'!$R$80 -> 32429 | F87: ='[47]Guaranteed standards'!$R$81 -> 79 | G87: ='[47]Guaranteed standards'!$R$83 -> 41430 | H87: 0.002436091153 | I87: Green | J87: 7
D88: LPN | E88: ='[47]Guaranteed standards'!$L$80 -> 16400 | F88: ='[47]Guaranteed standards'!$L$81 -> 0 | G88: ='[47]Guaranteed standards'!$L$83 -> 0 | H88: 0 | I88: Green | J88: 1
D89: SPN | E89: ='[47]Guaranteed standards'!$M$80 -> 22645 | F89: ='[47]Guaranteed standards'!$M$81 -> 10 | G89: ='[47]Guaranteed standards'!$M$83 -> 3495 | H89: 0.0004415985869 | I89: =IF(H89<=2%,"Green",IF(H89:H89>5%,"Red","Amber")) -> Green | J89: 4
D90: EPN | E90: ='[47]Guaranteed standards'!$N$80 -> 39706 | F90: ='[47]Guaranteed standards'!$N$81 -> 5 | G90: ='[47]Guaranteed standards'!$N$83 -> 5010 | H90: 0.0001259255528 | I90: Green | J90: 2
D91: SPD | E91: ='[47]Guaranteed standards'!$J$80 -> 12221 | F91: ='[47]Guaranteed standards'!$J$81 -> 284 | G91: ='[47]Guaranteed standards'!$J$83 -> 316370 | H91: 0.02323868751 | I91: Amber | J91: 11
D92: SPMW | E92: ='[47]Guaranteed standards'!$K$80 -> 11201 | F92: ='[47]Guaranteed standards'!$K$81 -> 22 | G92: ='[47]Guaranteed standards'!$K$83 -> 17845 | H92: 0.001964110347 | I92: Green | J92: 6
D93: SSEH | E93: ='[47]Guaranteed standards'!$H$80 -> 15046 | F93: ='[47]Guaranteed standards'!$H$81 -> 66 | G93: ='[47]Guaranteed standards'!$H$83 -> 42070 | H93: 0.00438654792 | I93: Green | J93: 10
D94: SSES | E94: ='[47]Guaranteed standards'!$I$80 -> 51110 | F94: ='[47]Guaranteed standards'!$I$81 -> 2058 | G94: ='[47]Guaranteed standards'!$I$83 -> 1013165 | H94: 0.04026609274 | I94: Amber | J94: 14
D95: Total | E95: =SUM(E81:E94) -> 341400 | F95: =SUM(F81:F94) -> 4000 | G95: =SUM(G81:G94) -> 2001370 | L95: =SUM(L81:L94) -> 0 | M95: =SUM(M81:M94) -> 0 | N95: =SUM(N81:N94) -> 0 | S95: =SUM(S81:S94) -> 0 | T95: =SUM(T81:T94) -> 0 | U95: =SUM(U81:U94) -> 0 | Z95: =SUM(Z81:Z94) -> 0 | AA95: =SUM(AA81:AA94) -> 0 | AB95: =SUM(AB81:AB94) -> 0 | AG95: =SUM(AG81:AG94) -> 0 | AH95: =SUM(AH81:AH94) -> 0 | AI95: =SUM(AI81:AI94) -> 0
B101: Major Connections Incentive | D101: Major Connections Incentive
E102: 2023/24 | K102: 2024/25 | Q102: 2025/26 | W102: 2026/27 | AC102: 2027/28
E103: Performance | F103: Total penalties paid against the Major Connections Incentive (£m) | G103: RAG | H103: Ranking | K103: Performance | L103: Total penalties paid against the Major Connections Incentive (£m) | M103: RAG | N103: Ranking | Q103: Performance | R103: Total penalties paid against the Major Connections Incentive (£m) | S103: RAG | T103: Ranking | W103: Performance | X103: Total penalties paid against the Major Connections Incentive (£m) | Y103: RAG | Z103: Ranking | AC103: Performance | AD103: Total penalties paid against the Major Connections Incentive (£m) | AE103: RAG | AF103: Ranking
D104: ENWL | E104: ='[3]R5 - ODI'!$E$383 -> 8.6 | F104: ='[3]R5 - ODI'!$E$387 -> 0 | G104: =IF(E104 >= $E$119, "Green", IF(E104 >= 0.95 * $E$119, "Amber", "Red")) -> Green | H104: =RANK(E104,$E$104:$E$117,0) -> 9 | J104: ENWL | P104: ENWL | V104: ENWL | AB104: ENWL
D105: NPgN | E105: ='[5]R5 - ODI'!$E$383 -> 7.91 | F105: ='[5]R5 - ODI'!$E$387 -> 0 | G105: Green | H105: 13 | J105: NPgN | P105: NPgN | V105: NPgN | AB105: NPgN
D106: NPgY | E106: ='[7]R5 - ODI'!$E$383 -> 7.92 | F106: ='[7]R5 - ODI'!$E$387 -> 0 | G106: Green | H106: 12 | J106: NPgY | P106: NPgY | V106: NPgY | AB106: NPgY
D107: WMID | E107: ='[9]R5 - ODI'!$E$383 -> 8.669724771 | F107: ='[9]R5 - ODI'!$E$387 -> 0 | G107: Green | H107: 6 | J107: WMID | P107: WMID | V107: WMID | AB107: WMID
D108: EMID | E108: ='[11]R5 - ODI'!$E$383 -> 8.818181818 | F108: ='[11]R5 - ODI'!$E$387 -> 0 | G108: Green | H108: 5 | J108: EMID | P108: EMID | V108: EMID | AB108: EMID
D109: SWALES | E109: ='[13]R5 - ODI'!$E$383 -> 8.957943925 | F109: ='[13]R5 - ODI'!$E$387 -> 0 | G109: Green | H109: 3 | J109: SWALES | P109: SWALES | V109: SWALES | AB109: SWALES
D110: SWEST | E110: ='[15]R5 - ODI'!$E$383 -> 8.614035088 | F110: ='[15]R5 - ODI'!$E$387 -> 0 | G110: Green | H110: 8 | J110: SWEST | P110: SWEST | V110: SWEST | AB110: SWEST
D111: LPN | E111: ='[17]R5 - ODI'!$E$383 -> 9.072033898 | F111: ='[17]R5 - ODI'!$E$387 -> 0 | G111: Green | H111: 2 | J111: LPN | P111: LPN | V111: LPN | AB111: LPN
D112: SPN | E112: ='[19]R5 - ODI'!$E$383 -> 8.851973684 | F112: ='[19]R5 - ODI'!$E$387 -> 0 | G112: Green | H112: 4 | J112: SPN | P112: SPN | V112: SPN | AB112: SPN
D113: EPN | E113: ='[21]R5 - ODI'!$E$383 -> 8.668888889 | F113: ='[21]R5 - ODI'!$E$387 -> 0 | G113: Green | H113: 7 | J113: EPN | P113: EPN | V113: EPN | AB113: EPN
D114: SPD | E114: ='[23]R5 - ODI'!$E$383 -> 9.19 | F114: ='[23]R5 - ODI'!$E$387 -> 0 | G114: Green | H114: 1 | J114: SPD | P114: SPD | V114: SPD | AB114: SPD
D115: SPMW | E115: ='[25]R5 - ODI'!$E$383 -> 8.43 | F115: ='[25]R5 - ODI'!$E$387 -> 0 | G115: Green | H115: 11 | J115: SPMW | P115: SPMW | V115: SPMW | AB115: SPMW
D116: SSEH | E116: ='[27]R5 - ODI'!$E$383 -> 8.5 | F116: ='[27]R5 - ODI'!$E$387 -> 0 | G116: Green | H116: 10 | J116: SSEH | P116: SSEH | V116: SSEH | AB116: SSEH
D117: SSES | E117: ='[29]R5 - ODI'!$E$383 -> 7.14 | F117: ='[29]R5 - ODI'!$E$387 -> -0.73656 | G117: Amber | H117: 14 | J117: SSES | P117: SSES | V117: SSES | AB117: SSES
D118: Industry Average Score/Total Penalty | E118: =AVERAGE(E104:E117) -> 8.524484434 | F118: =SUM(F104:F117) -> -0.73656 | J118: Industry Average Score/Total Penalty | P118: Industry Average Score/Total Penalty | V118: Industry Average Score/Total Penalty | AB118: Industry Average Score/Total Penalty
D119: Target | E119: 7.41 | J119: Target | P119: Target | V119: Target | AB119: Target

Sheet Ch2 outputs - cust sat
A1: Chapter 2 - Customer Satisfaction and Vulnerability
C2: Performance against the outputs that DNOs are incentivised to deliver under RIIO-ED2.
B4: Customer Service: maintaining high levels of customer satisfaction and improving service where required. Undertaking effective stakeholder engagement and reflecting stakeholders' views in the day-to-day operation of their business.
B5: Incentive measure | F5: Incentive type
B6: Customer satisfaction survey: a survey under the Broad Measure of Customer Satisfaction (BMCS) of three customer types (connections, interruptions, general enquiries) to drive DNOs to deliver good customer service. | F6: Financial: reward or penalty of +/- 0.4% RoRE
B7: Complaints metric: part of the Broad Measure of Customer Satisfaction measuring DNOs' complaint handling procedures to drive DNOs to deliver good customer service. | F7: Financial: penalty only of up to -0.2% of RoRE.
B8: Consumer Vulnerability: paid out in years 2 and 5 of ED-2, to incentivse the provision of appropiate support services to consumers in vulnerable situations. | F8: Financial: reward or penalty of +/- 0.2% RoRE.
B11: Customer satisfaction survey
D12: Customer satisfaction scores (out of 10)
E13: 2023/24 | F13: 2024/25 | G13: 2025/26 | H13: 2026/27 | I13: 2027/28
D14: Interruptions | E14: =AVERAGE(E23:E36) -> 9.008035714
D15: Connections | E15: =AVERAGE(F23:F36) -> 9.0584
D16: General Enquiries | E16: =AVERAGE(G23:G36) -> 9.343535714
D19: Annual customer satisfaction score by DNO per category (out of 10)
E20: 2023/24 | K20: 2024/25 | Q20: 2025/26 | W20: 2026/27 | AC20: 2027/28
E21: Interruptions | F21: Connections | G21: General Enquiries | H21: Overall | I21: RAG | J21: Ranking | K21: Interruptions | L21: Connections | M21: General Enquiries | N21: Overall | O21: RAG | P21: Ranking | Q21: Interruptions | R21: Connections | S21: General Enquiries | T21: Overall | U21: RAG | V21: Ranking | W21: Interruptions | X21: Connections | Y21: General Enquiries | Z21: Overall | AA21: RAG | AB21: Ranking | AC21: Interruptions | AD21: Connections | AE21: General Enquiries | AF21: Overall | AG21: RAG | AH21: Ranking
E22: 0.3 | F22: 0.5 | G22: 0.2 | K22: 0.3 | L22: 0.5 | M22: 0.2 | Q22: 0.3 | R22: 0.5 | S22: 0.2 | W22: 0.3 | X22: 0.5 | Y22: 0.2 | AC22: 0.3 | AD22: 0.5 | AE22: 0.2
D23: ENWL | E23: ='[48]Customer Satisfaction Survey'!$H$5 -> 8.96 | F23: ='[48]Customer Satisfaction Survey'!$H$6 -> 9.29 | G23: ='[48]Customer Satisfaction Survey'!$H$7 -> 9.33 | H23: =(E23*E$22)+(F23*F$22)+(G23*G$22) -> 9.199 | I23: =IF(H23<8.56,"Red",IF(H23>=9.01,"Green","Amber")) -> Green | J23: =RANK(H23,H$23:H$36,0) -> 5
D24: NPgN | E24: ='[49]Customer Satisfaction Survey'!$H$5 -> 8.84 | F24: ='[49]Customer Satisfaction Survey'!$H$6 -> 8.86 | G24: ='[49]Customer Satisfaction Survey'!$H$7 -> 9.4 | H24: =(E24*E$22)+(F24*F$22)+(G24*G$22) -> 8.962 | I24: =IF(H24<8.56,"Red",IF(H24>=9.01,"Green","Amber")) -> Amber | J24: =RANK(H24,H$23:H$36,0) -> 11
D25: NPgY | E25: ='[50]Customer Satisfaction Survey'!$H$5 -> 8.79 | F25: ='[50]Customer Satisfaction Survey'!$H$6 -> 9.08 | G25: ='[50]Customer Satisfaction Survey'!$H$7 -> 9.34 | H25: 9.045 | I25: Green | J25: =RANK(H25,H$23:H$36,0) -> 9
D26: WMID | E26: ='[51]Customer Satisfaction Survey'!$H$5 -> 8.94 | F26: ='[51]Customer Satisfaction Survey'!$H$6 -> 8.83 | G26: ='[51]Customer Satisfaction Survey'!$H$7 -> 9.16 | H26: 8.929 | I26: Amber | J26: 12
D27: EMID | E27: ='[52]Customer Satisfaction Survey'!$H$5 -> 8.96 | F27: ='[52]Customer Satisfaction Survey'!$H$6 -> 8.92 | G27: ='[52]Customer Satisfaction Survey'!$H$7 -> 9.32 | H27: 9.012 | I27: Green | J27: 10
D28: SWALES | E28: ='[53]Customer Satisfaction Survey'!$H$5 -> 9.18 | F28: ='[53]Customer Satisfaction Survey'!$H$6 -> 8.94 | G28: ='[53]Customer Satisfaction Survey'!$H$7 -> 9.38 | H28: 9.1 | I28: Green | J28: 8
D29: SWEST | E29: ='[54]Customer Satisfaction Survey'!$H$5 -> 8.95 | F29: ='[54]Customer Satisfaction Survey'!$H$6 -> 8.79 | G29: ='[54]Customer Satisfaction Survey'!$H$7 -> 9.02 | H29: 8.884 | I29: Amber | J29: 13
D30: LPN | E30: ='[55]Customer Satisfaction Survey'!$H$5 -> 9.303 | F30: ='[55]Customer Satisfaction Survey'!$H$6 -> 9.4105 | G30: ='[55]Customer Satisfaction Survey'!$H$7 -> 9.796 | H30: 9.45535 | I30: Green | J30: 1
D31: SPN | E31: ='[56]Customer Satisfaction Survey'!$H$5 -> 9.2212 | F31: ='[56]Customer Satisfaction Survey'!$H$6 -> 9.3411 | G31: ='[56]Customer Satisfaction Survey'!$H$7 -> 9.6652 | H31: 9.36995 | I31: Green | J31: 3
D32: EPN | E32: ='[57]Customer Satisfaction Survey'!$H$5 -> 9.2606 | F32: ='[57]Customer Satisfaction Survey'!$H$6 -> 9.4122 | G32: ='[57]Customer Satisfaction Survey'!$H$7 -> 9.6182 | H32: 9.40792 | I32: Green | J32: 2
D33: SPD | E33: ='[58]Customer Satisfaction Survey'!$H$5 -> 9.0264 | F33: ='[58]Customer Satisfaction Survey'!$H$6 -> 9.234 | G33: ='[58]Customer Satisfaction Survey'!$H$7 -> 9.1961 | H33: 9.16414 | I33: Green | J33: 7
D34: SPMW | E34: ='[59]Customer Satisfaction Survey'!$H$5 -> 8.9513 | F34: ='[59]Customer Satisfaction Survey'!$H$6 -> 9.2198 | G34: ='[59]Customer Satisfaction Survey'!$H$7 -> 9.424 | H34: 9.18009 | I34: Green | J34: 6
D35: SSEH | E35: ='[60]Customer Satisfaction Survey'!$H$5 -> 9.15 | F35: ='[60]Customer Satisfaction Survey'!$H$6 -> 9.29 | G35: ='[60]Customer Satisfaction Survey'!$H$7 -> 9.25 | H35: 9.24 | I35: Green | J35: 4
D36: SSES | E36: ='[61]Customer Satisfaction Survey'!$H$5 -> 8.58 | F36: ='[61]Customer Satisfaction Survey'!$H$6 -> 8.2 | G36: ='[61]Customer Satisfaction Survey'!$H$7 -> 8.91 | H36: 8.456 | I36: Red | J36: 14
D37: Target | E37: 9.01 | F37: 9.01 | G37: 9.01 | H37: 9.01 | K37: 9.01 | L37: 9.01 | M37: 9.01 | Q37: 9.01 | R37: 9.01 | S37: 9.01 | W37: 9.01 | X37: 9.01 | Y37: 9.01 | AC37: 9.01 | AD37: 9.01 | AE37: 9.01
E39: 2023/24 | J39: 2024/25 | O39: 2025/26 | T39: 2026/27 | Y39: 2027/28
E40: Supply Interruptions Reward/Penalty (£m) | F40: Connections Reward/Penalty (£m) | G40: General Enquiries Reward/Penalty (£m) | H40: Total | J40: Supply Interruptions Customer Satisfaction Reward/Penalty (£m) | K40: Connections Customer Satisfaction Reward/Penalty (£m) | L40: General Enquiries Customer Satisfaction Reward/Penalty (£m) | M40: Total | O40: Supply Interruptions Customer Satisfaction Reward/Penalty (£m) | P40: Connections Customer Satisfaction Reward/Penalty (£m) | Q40: General Enquiries Customer Satisfaction Reward/Penalty (£m) | R40: Total | T40: Supply Interruptions Customer Satisfaction Reward/Penalty (£m) | U40: Connections Customer Satisfaction Reward/Penalty (£m) | V40: General Enquiries Customer Satisfaction Reward/Penalty (£m) | W40: Total | Y40: Supply Interruptions Customer Satisfaction Reward/Penalty (£m) | Z40: Connections Customer Satisfaction Reward/Penalty (£m) | AA40: General Enquiries Customer Satisfaction Reward/Penalty (£m) | AB40: Total
D41: ENWL | E41: ='[3]R5 - ODI'!$E$115 -> -0.1813279158 | F41: ='[3]R5 - ODI'!$E$116 -> 0.89182 | G41: ='[3]R5 - ODI'!$E$117 -> 0.44058 | H41: =SUM(E41:G41) -> 1.151072084
D42: NPgN | E42: ='[62]R5 - ODI'!$E$115 -> -0.3000879049 | F42: ='[62]R5 - ODI'!$E$116 -> -0.15592 | G42: ='[62]R5 - ODI'!$E$117 -> 0.43652 | H42: =SUM(E42:G42) -> -0.01948790493
D43: NPgY | E43: ='[63]R5 - ODI'!$E$115 -> -0.5400490303 | F43: ='[63]R5 - ODI'!$E$116 -> 0 | G43: ='[63]R5 - ODI'!$E$117 -> 0.47322 | H43: -0.0668290303
D44: WMID | E44: ='[64]R5 - ODI'!$E$115 -> -0.04420214421 | F44: ='[64]R5 - ODI'!$E$116 -> -0.47397 | G44: ='[64]R5 - ODI'!$E$117 -> 0.10832 | H44: -0.4098521442
D45: EMID | E45: ='[65]R5 - ODI'!$E$115 -> -0.0484805933 | F45: ='[65]R5 - ODI'!$E$116 -> 0 | G45: ='[65]R5 - ODI'!$E$117 -> 0.5544 | H45: 0.5059194067
D46: SWALES | E46: ='[66]R5 - ODI'!$E$115 -> 0.08747084214 | F46: ='[66]R5 - ODI'!$E$116 -> 0 | G46: ='[66]R5 - ODI'!$E$117 -> 0.3601 | H46: 0.4475708421
D47: SWEST | E47: ='[67]R5 - ODI'!$E$115 -> -0.04120869573 | F47: ='[67]R5 - ODI'!$E$116 -> -0.57838 | G47: ='[67]R5 - ODI'!$E$117 -> 0 | H47: -0.6195886957
D48: LPN | E48: ='[68]R5 - ODI'!$E$115 -> 0.488774204 | F48: ='[68]R5 - ODI'!$E$116 -> 1.321775 | G48: ='[68]R5 - ODI'!$E$117 -> 0.605 | H48: 2.415549204
D49: SPN | E49: ='[69]R5 - ODI'!$E$115 -> 0.2764532704 | F49: ='[69]R5 - ODI'!$E$116 -> 1.0409388 | G49: ='[69]R5 - ODI'!$E$117 -> 0.626 | H49: 1.94339207
D50: EPN | E50: ='[70]R5 - ODI'!$E$115 -> 0.6062508273 | F50: ='[70]R5 - ODI'!$E$116 -> 2.14767 | G50: ='[70]R5 - ODI'!$E$117 -> 0.978 | H50: 3.731920827
D51: SPD | E51: ='[71]R5 - ODI'!$E$115 -> -0.1693000654 | F51: ='[71]R5 - ODI'!$E$116 -> 0.56943 | G51: ='[71]R5 - ODI'!$E$117 -> 0.1520478 | H51: 0.5521777346
D52: SPMW | E52: ='[72]R5 - ODI'!$E$115 -> -0.1576318058 | F52: ='[72]R5 - ODI'!$E$116 -> 0.5546884 | G52: ='[72]R5 - ODI'!$E$117 -> 0.675792 | H52: 1.072848594
D53: SSEH | E53: ='[73]R5 - ODI'!$E$115 -> 0.041899 | F53: ='[73]R5 - ODI'!$E$116 -> 0.63393 | G53: ='[73]R5 - ODI'!$E$117 -> 0.19396 | H53: 0.869789
D54: SSES | E54: ='[74]R5 - ODI'!$E$115 -> -1.403 | F54: ='[74]R5 - ODI'!$E$116 -> -2.338 | G54: ='[74]R5 - ODI'!$E$117 -> 0 | H54: -3.741
D55: Total | E55: =SUM(E41:E54) -> -1.384440012 | F55: =SUM(F41:F54) -> 3.6139822 | G55: =SUM(G41:G54) -> 5.6039398 | H55: =SUM(H41:H54) -> 7.833481988
B59: Complaints metric | D59: DNO complaint metric scores
E60: 2023/24 | L60: 2024/25 | S60: 2025/26 | Z60: 2026/27 | AG60: 2027/28
E61: The percentage of total complaints outstanding after one day | F61: The percentage of total complaints outstanding after 31 days | G61: The percentage of total complaints that are repeat complaints | H61: The number of Energy Ombudsman (EO) Findings Against the Licensee as a percentage of the total complaints | I61: Complaints Metric Score | J61: RAG | K61: Ranking | L61: The percentage of total complaints outstanding after one day | M61: The percentage of total complaints outstanding after 31 days | N61: The percentage of total complaints that are repeat complaints | O61: The number of Energy Ombudsman (EO) Findings Against the Licensee as a percentage of the total complaints | P61: Complaints Metric Score | Q61: RAG | R61: Ranking | S61: The percentage of total complaints outstanding after one day | T61: The percentage of total complaints outstanding after 31 days | U61: The percentage of total complaints that are repeat complaints | V61: The number of Energy Ombudsman (EO) Findings Against the Licensee as a percentage of the total complaints | W61: Complaints Metric Score | X61: RAG | Y61: Ranking | Z61: The percentage of total complaints outstanding after one day | AA61: The percentage of total complaints outstanding after 31 days | AB61: The percentage of total complaints that are repeat complaints | AC61: The number of Energy Ombudsman (EO) Findings Against the Licensee as a percentage of the total complaints | AD61: Complaints Metric Score | AE61: RAG | AF61: Ranking | AG61: The percentage of total complaints outstanding after one day | AH61: The percentage of total complaints outstanding after 31 days | AI61: The percentage of total complaints that are repeat complaints | AJ61: The number of Energy Ombudsman (EO) Findings Against the Licensee as a percentage of the total complaints | AK61: Complaints Metric Score | AL61: RAG | AM61: Ranking
D62: ENWL | E62: ='[48]Complaints handling'!$AA$9 -> 0.2016400336 | F62: ='[48]Complaints handling'!$AA$11 -> 0.02092094197 | G62: ='[48]Complaints handling'!$AA$13 -> 0 | H62: ='[48]Complaints handling'!$AA$19 -> 0 | I62: ='[48]Complaints handling'!$AA$27 -> 2.644028595 | J62: =IF(I62<=$I$76,"Green",IF(I62<=$I$76*1.05,"Amber","Red")) -> Green | K62: =RANK(I62,I$62:I$75,1) -> 12
D63: NPgN | E63: ='[49]Complaints handling'!$AA$9 -> 0.2069983137 | F63: ='[49]Complaints handling'!$AA$11 -> 0.1045531197 | G63: ='[49]Complaints handling'!$AA$13 -> 0 | H63: ='[49]Complaints handling'!$AA$19 -> 0 | I63: ='[49]Complaints handling'!$AA$27 -> 5.206576728 | J63: Red | K63: 13
D64: NPgY | E64: ='[50]Complaints handling'!$AA$9 -> 0.2349695033 | F64: ='[50]Complaints handling'!$AA$11 -> 0.1158873076 | G64: ='[50]Complaints handling'!$AA$13 -> 0 | H64: ='[50]Complaints handling'!$AA$19 -> 0 | I64: ='[50]Complaints handling'!$AA$27 -> 5.826314261 | J64: Red | K64: 14
D65: WMID | E65: ='[51]Complaints handling'!$AA$9 -> 0.1401496259 | F65: ='[51]Complaints handling'!$AA$11 -> 0.01047381546 | G65: ='[51]Complaints handling'!$AA$13 -> 0 | H65: ='[51]Complaints handling'!$AA$19 -> 0 | I65: ='[51]Complaints handling'!$AA$27 -> 1.715710723 | J65: Green | K65: 8
D66: EMID | E66: ='[52]Complaints handling'!$AA$9 -> 0.1120987654 | F66: ='[52]Complaints handling'!$AA$11 -> 0.01432098765 | G66: ='[52]Complaints handling'!$AA$13 -> 0 | H66: ='[52]Complaints handling'!$AA$19 -> 0 | I66: ='[52]Complaints handling'!$AA$27 -> 1.550617284 | J66: =IF(I66<=$I$76,"Green",IF(I66<=$I$76*1.05,"Amber","Red")) -> Green | K66: 6
D67: SWALES | E67: ='[53]Complaints handling'!$AA$9 -> 0.1039068994 | F67: ='[53]Complaints handling'!$AA$11 -> 0.005818786367 | G67: ='[53]Complaints handling'!$AA$13 -> 0 | H67: ='[53]Complaints handling'!$AA$19 -> 0 | I67: ='[53]Complaints handling'!$AA$27 -> 1.213632585 | J67: Green | K67: 4
D68: SWEST | E68: ='[54]Complaints handling'!$AA$9 -> 0.1659785301 | F68: ='[54]Complaints handling'!$AA$11 -> 0.02146985962 | G68: ='[54]Complaints handling'!$AA$13 -> 0 | H68: ='[54]Complaints handling'!$AA$19 -> 0 | I68: ='[54]Complaints handling'!$AA$27 -> 2.30388109 | J68: Green | K68: 11
D69: LPN | E69: ='[55]Complaints handling'!$AA$9 -> 0.07633587786 | F69: ='[55]Complaints handling'!$AA$11 -> 0.00572519084 | G69: ='[55]Complaints handling'!$AA$13 -> 0 | H69: ='[55]Complaints handling'!$AA$19 -> 0 | I69: ='[55]Complaints handling'!$AA$27 -> 0.9351145038 | J69: Green | K69: 1
D70: SPN | E70: ='[56]Complaints handling'!$AA$9 -> 0.1102794411 | F70: ='[56]Complaints handling'!$AA$11 -> 0.01946107784 | G70: ='[56]Complaints handling'!$AA$13 -> 0 | H70: ='[56]Complaints handling'!$AA$19 -> 0 | I70: ='[56]Complaints handling'!$AA$27 -> 1.686626747 | J70: Green | K70: 7
D71: EPN | E71: ='[57]Complaints handling'!$AA$9 -> 0.09011627907 | F71: ='[57]Complaints handling'!$AA$11 -> 0.009811046512 | G71: ='[57]Complaints handling'!$AA$13 -> 0 | I71: ='[57]Complaints handling'!$AA$27 -> 1.195494186 | J71: Green | K71: 3
D72: SPD | E72: ='[58]Complaints handling'!$AA$9 -> 0.1404 | F72: ='[58]Complaints handling'!$AA$11 -> 0.024 | G72: ='[58]Complaints handling'!$AA$13 -> 0 | H72: ='[58]Complaints handling'!$AA$19 -> - | I72: ='[58]Complaints handling'!$AA$27 -> 2.124 | J72: Green | K72: 10
D73: SPMW | E73: ='[59]Complaints handling'!$AA$9 -> 0.1441 | F73: ='[59]Complaints handling'!$AA$11 -> 0.0117 | G73: ='[59]Complaints handling'!$AA$13 -> 0 | H73: ='[59]Complaints handling'!$AA$19 -> - | I73: ='[59]Complaints handling'!$AA$27 -> 1.792 | J73: Green | K73: 9
D74: SSEH | E74: ='[60]Complaints handling'!$AA$9 -> 0.08775510204 | F74: ='[60]Complaints handling'!$AA$11 -> 0.01054421769 | G74: ='[60]Complaints handling'!$AA$13 -> 0 | H74: ='[60]Complaints handling'!$AA$19 -> 0 | I74: ='[60]Complaints handling'!$AA$27 -> 1.193877551 | J74: Green | K74: 2
D75: SSES | E75: ='[61]Complaints handling'!$AA$9 -> 0.1009659513 | F75: ='[61]Complaints handling'!$AA$11 -> 0.01127671664 | G75: ='[61]Complaints handling'!$AA$13 -> 0 | H75: ='[61]Complaints handling'!$AA$19 -> 0 | I75: ='[61]Complaints handling'!$AA$27 -> 1.347961012 | J75: Green | K75: 5
D76: Target | I76: 2.8 | P76: 2.8 | W76: 2.8 | AD76: 2.8 | AK76: 2.8
E79: 2023/24 | F79: 2024/25 | G79: 2024/26 | H79: 2026/27 | I79: 2027/28
E80: Complaint Metric Penalty (£m) | F80: Complaint Metric Penalty (£m) | G80: Complaint Metric Penalty (£m) | H80: Complaint Metric Penalty (£m) | I80: Complaint Metric Penalty (£m)
D81: ENWL | E81: ='[3]R5 - ODI'!$E$118 -> 0
D82: NPgN | E82: ='[62]R5 - ODI'!$E$118 -> -0.9891030354
D83: NPgY | E83: ='[63]R5 - ODI'!$E$118 -> -1.715920186
D84: WMID | E84: ='[64]R5 - ODI'!$E$118 -> 0
D85: EMID | E85: ='[65]R5 - ODI'!$E$118 -> 0
D86: SWALES | E86: ='[66]R5 - ODI'!$E$118 -> 0
D87: SWEST | E87: ='[67]R5 - ODI'!$E$118 -> 0
D88: LPN | E88: ='[68]R5 - ODI'!$E$118 -> 0
D89: SPN | E89: ='[69]R5 - ODI'!$E$118 -> 0
D90: EPN | E90: ='[70]R5 - ODI'!$E$118 -> 0
D91: SPD | E91: ='[71]R5 - ODI'!$E$118 -> 0
D92: SPMW | E92: ='[72]R5 - ODI'!$E$118 -> 0
D93: SSEH | E93: ='[73]R5 - ODI'!$E$118 -> 0
D94: SSES | E94: ='[74]R5 - ODI'!$E$118 -> 0
D95: Total | E95: =SUM(E81:E94) -> -2.705023221
B100: Consumer Vulnerability Incentive (CVI) | E100: 2023/24 | K100: 2024/25 | Q100: 2025/26 | W100: 2026/27 | AC100: 2027/28
E101: PSR Reach Reward/Penalty (£m) | F101: Fuel Poverty Services Delivered Reward/Penalty (£m) | G101: Low Carbon Transitions Delivered Reward/Penalty (£m) | H101: Low Carbon Customer Satisfaction Reward/Penalty (£m) | I101: Total (£m) | K101: PSR Reach Reward/Penalty (£m) | L101: Fuel Poverty Services Delivered Reward/Penalty (£m) | M101: Low Carbon Transitions Delivered Reward/Penalty (£m) | N101: Low Carbon Customer Satisfaction Reward/Penalty (£m) | O101: Total (£m) | Q101: PSR Reach Reward/Penalty (£m) | R101: Fuel Poverty Services Delivered Reward/Penalty (£m) | S101: Low Carbon Transitions Delivered Reward/Penalty (£m) | T101: Low Carbon Customer Satisfaction Reward/Penalty (£m) | U101: Total (£m) | W101: PSR Reach Reward/Penalty (£m) | X101: Fuel Poverty Services Delivered Reward/Penalty (£m) | Y101: Low Carbon Transitions Delivered Reward/Penalty (£m) | Z101: Low Carbon Customer Satisfaction Reward/Penalty (£m) | AA101: Total (£m) | AC101: PSR Reach Reward/Penalty (£m) | AD101: Fuel Poverty Services Delivered Reward/Penalty (£m) | AE101: Low Carbon Transitions Delivered Reward/Penalty (£m) | AF101: Low Carbon Customer Satisfaction Reward/Penalty (£m) | AG101: Total (£m)
D102: ENWL
D103: NPgN
D104: NPgY
D105: WMID
D106: EMID
D107: SWALES
D108: SWEST
D109: LPN
D110: SPN
D111: EPN
D112: SPD
D113: SPMW
D114: SSEH
D115: SSES
D116: Total

Sheet Ch2 outputs - reliability
A1: Chapter 2 - Reliability and Availability
B2: Performance against the outputs that DNOs are incentivised to deliver under RIIO-ED2.
B4: Reliability and availability: providing long-term reliability, minimising the number and duration of interruptions and ensuring adaptation to climate change.
B5: Incentive measure | F5: Incentive type
B6: Interruption incentive scheme (IIS): DNOs can receive a financial reward or incur a financial penalty depending on their performance against a target for both the number and length of their network supply interruptions. | F6: Financial: cap of 150 RORE basis points, collar of 250 RORE basis points per annum. Supported by monitoring of Secondary Deliverables. Reputational.
B7: Guaranteed Standards of Performance (GSoP): direct payment to customers of fixed amounts if DNO fails to deliver specified minimum levels of performance. | F7: Financial: payment to customers for failure to meet standards. Reputational.
B8: Worst-served customers (WSC): DNOs have access to funding to improve the reliability for a subset of customers whose supply has been repeatedly interrupted. | F8: Financial: £94.5 million over ED2 (use-it-or-lose-it). Reputational.
B9: Network resilience: proactive network investment for reducing the impact of disruptive events, such as floods or severe storms. | F9: Reputational.
B12: Interruption Incentive Scheme (IIS) | E12: CI performance | J12: 2023/24 RAG status | M12: CI target (Planned and unplanned)
E13: 2023/24 | F13: 2024/25 | G13: 2025/26 | H13: 2026/27 | I13: 2027/28 | M13: 2023/24 | N13: 2024/25 | O13: 2025/26 | P13: 2026/27 | Q13: 2027/28
D14: ENWL | E14: ='[75]Performance and Targets'!C5+'[75]Performance and Targets'!C41 -> 26.21178856 | J14: =IF(E14<=M14,"Green",IF(E14<=M14*1.05,"Amber","Red")) -> Green | L14: ENWL | M14: ='[76]Performance and Targets'!J4+'[76]Performance and Targets'!Q4 -> 29.89889101
D15: NPgN | E15: ='[76]Performance and Targets'!C5 -> 48.605854 | J15: Amber | L15: NPgN | M15: ='[76]Performance and Targets'!J5+'[76]Performance and Targets'!Q5 -> 47.67438057
D16: NPgY | E16: ='[76]Performance and Targets'!C6 -> 55.21068875 | J16: Red | L16: NPgY | M16: ='[76]Performance and Targets'!J6+'[76]Performance and Targets'!Q6 -> 47.64127568
D17: WMID | E17: ='[76]Performance and Targets'!C7 -> 44.75004032 | J17: Green | L17: WMID | M17: ='[76]Performance and Targets'!J7+'[76]Performance and Targets'!Q7 -> 48.87067078
D18: EMID | E18: ='[76]Performance and Targets'!C8 -> 44.20450609 | J18: Red | L18: EMID | M18: ='[76]Performance and Targets'!J8+'[76]Performance and Targets'!Q8 -> 39.25320965
D19: SWALES | E19: ='[76]Performance and Targets'!C9 -> 46.34092689 | J19: Red | L19: SWALES | M19: ='[76]Performance and Targets'!J9+'[76]Performance and Targets'!Q9 -> 42.42604159
D20: SWEST | E20: ='[76]Performance and Targets'!C10 -> 57.51617665 | J20: Red | L20: SWEST | M20: ='[76]Performance and Targets'!J10+'[76]Performance and Targets'!Q10 -> 51.6340418
D21: LPN | E21: ='[76]Performance and Targets'!C11 -> 12.2049154 | J21: Green | L21: LPN | M21: ='[76]Performance and Targets'!J11+'[76]Performance and Targets'!Q11 -> 13.47372348
D22: SPN | E22: ='[76]Performance and Targets'!C12 -> 49.51884968 | J22: Red | L22: SPN | M22: ='[76]Performance and Targets'!J12+'[76]Performance and Targets'!Q12 -> 42.80348148
D23: EPN | E23: ='[76]Performance and Targets'!C13 -> 46.20067087 | J23: Red | L23: EPN | M23: ='[76]Performance and Targets'!J13+'[76]Performance and Targets'!Q13 -> 42.20760302
D24: SPD | E24: ='[76]Performance and Targets'!C14 -> 32.8777648 | J24: Green | L24: SPD | M24: ='[76]Performance and Targets'!J14+'[76]Performance and Targets'!Q14 -> 42.80276233
D25: SPMW | E25: ='[76]Performance and Targets'!C15 -> 31.56879254 | J25: Green | L25: SPMW | M25: ='[76]Performance and Targets'!J15+'[76]Performance and Targets'!Q15 -> 33.09786235
D26: SSEH | E26: ='[76]Performance and Targets'!C16 -> 56.63591208 | J26: Green | L26: SSEH | M26: ='[76]Performance and Targets'!J16+'[76]Performance and Targets'!Q16 -> 61.64333333
D27: SSES | E27: ='[76]Performance and Targets'!C17 -> 51.26890549 | J27: Red | L27: SSES | M27: ='[76]Performance and Targets'!J17+'[76]Performance and Targets'!Q17 -> 46.93806868
D28: Total | E28: =SUM(E14:E27) -> 603.1157921
E30: CML performance | J30: 2023/24 RAG status | M30: CML target (Planned and unplanned)
E31: 2023/24 | F31: 2024/25 | G31: 2025/26 | H31: 2026/27 | I31: 2027/28 | M31: 2023/24 | N31: 2024/25 | O31: 2025/26 | P31: 2026/27 | Q31: 2027/28
D32: ENWL | E32: ='[76]Performance and Targets'!C23 -> 26.79553851 | J32: =IF(E32<=M32,"Green",IF(E32<=M32*1.05,"Amber","Red")) -> Green | L32: ENWL | M32: ='[76]Performance and Targets'!J23+'[76]Performance and Targets'!Q23 -> 27.54300109
D33: NPgN | E33: ='[76]Performance and Targets'!C24 -> 49.47771807 | J33: Red | L33: NPgN | M33: ='[76]Performance and Targets'!J24+'[76]Performance and Targets'!Q24 -> 41.9647326
D34: NPgY | E34: ='[76]Performance and Targets'!C25 -> 53.49353621 | J34: Red | L34: NPgY | M34: ='[76]Performance and Targets'!J25+'[76]Performance and Targets'!Q25 -> 39.69150915
D35: WMID | E35: ='[76]Performance and Targets'!C26 -> 32.91409742 | J35: Red | L35: WMID | M35: ='[76]Performance and Targets'!J26+'[76]Performance and Targets'!Q26 -> 29.81028289
D36: EMID | E36: ='[76]Performance and Targets'!C27 -> 26.14136564 | J36: Red | L36: EMID | M36: ='[76]Performance and Targets'!J27+'[76]Performance and Targets'!Q27 -> 22.76351196
D37: SWALES | E37: ='[76]Performance and Targets'!C28 -> 26.09863355 | J37: Red | L37: SWALES | M37: ='[76]Performance and Targets'!J28+'[76]Performance and Targets'!Q28 -> 24.52391076
D38: SWEST | E38: ='[76]Performance and Targets'!C29 -> 46.85594589 | J38: Red | L38: SWEST | M38: ='[76]Performance and Targets'!J29+'[76]Performance and Targets'!Q29 -> 39.03115449
D39: LPN | E39: ='[76]Performance and Targets'!C30 -> 11.37453616 | J39: Green | L39: LPN | M39: ='[76]Performance and Targets'!J30+'[76]Performance and Targets'!Q30 -> 13.66340558
D40: SPN | E40: ='[76]Performance and Targets'!C31 -> 36.49309386 | J40: Red | L40: SPN | M40: ='[76]Performance and Targets'!J31+'[76]Performance and Targets'!Q31 -> 31.94515998
D41: EPN | E41: ='[76]Performance and Targets'!C32 -> 35.60058826 | J41: Red | L41: EPN | M41: ='[76]Performance and Targets'!J32+'[76]Performance and Targets'!Q32 -> 31.1930503
D42: SPD | E42: ='[76]Performance and Targets'!C33 -> 26.22563791 | J42: Green | L42: SPD | M42: ='[76]Performance and Targets'!J33+'[76]Performance and Targets'!Q33 -> 30.81083648
D43: SPMW | E43: ='[76]Performance and Targets'!C34 -> 33.4273483 | J43: Amber | L43: SPMW | M43: ='[76]Performance and Targets'!J34+'[76]Performance and Targets'!Q34 -> 32.14306347
D44: SSEH | E44: ='[76]Performance and Targets'!C35 -> 65.56217073 | J44: Red | L44: SSEH | M44: ='[76]Performance and Targets'!J35+'[76]Performance and Targets'!Q35 -> 53.34666667
D45: SSES | E45: ='[76]Performance and Targets'!C36 -> 57.57564148 | J45: Red | L45: SSES | M45: ='[76]Performance and Targets'!J36+'[76]Performance and Targets'!Q36 -> 43.25052077
D46: Total | E46: =SUM(E32:E45) -> 528.035852
B48: Rewards and penalties under the IIS
J49: Breakdown of performance for CI and CML/planned and unplanned
J50: PLANNED | P50: UNPLANNED
D51: 2023/24 | E51: IIS performance total reward | I51: 2023/24 | J51: CI | M51: CML | P51: CI | S51: CML
E52: Total reward (£m)** | F52: Regulation 7 Severe Weather Conditions Adjustment | G52: Normal weather conditions adjustment | J52: Performance | K52: Target | L52: Reward/Penalty (£m) | M52: Performance | N52: Target | O52: Reward/Penalty (£m) | P52: Performance | Q52: Target | R52: Reward/Penalty (£m) | S52: Performance | T52: Target | U52: Reward/Penalty (£m)
D53: ENWL | E53: ='[75]Total Reward (incl Reg 5-8 adj)'!C4 -> 0.8665659245 | F53: ='[75]Total Reward (incl Reg 5-8 adj)'!D4 -> 0 | G53: ='[75]Total Reward (incl Reg 5-8 adj)'!E4 -> 0 | I53: ENWL | J53: ='[76]Performance and Targets'!X4 -> 1.672419801 | K53: ='[76]Performance and Targets'!Y4 -> 1.188891014 | L53: ='[77]Total Reward'!Q24 -> -0.06950817631 | M53: ='[76]Performance and Targets'!X23 -> 3.264321642 | N53: ='[76]Performance and Targets'!Y23 -> 2.643001088 | O53: ='[77]Total Reward'!Q43 -> -0.2809386491 | P53: ='[76]Performance and Targets'!AC4 -> 24.53936876 | Q53: ='[76]Performance and Targets'!AD4 -> 28.71 | R53: ='[77]Total Reward'!J24 -> 0.5980985999 | S53: ='[76]Performance and Targets'!AC23 -> 23.53121687 | T53: ='[76]Performance and Targets'!AD23 -> 24.9 | U53: ='[77]Total Reward'!J43 -> 0.6189141501
D54: NPgN | E54: ='[75]Total Reward (incl Reg 5-8 adj)'!C5 -> -2.527242478 | F54: ='[75]Total Reward (incl Reg 5-8 adj)'!D5 -> 0 | G54: ='[75]Total Reward (incl Reg 5-8 adj)'!E5 -> -0.1417373003 | I54: NPgN | J54: ='[76]Performance and Targets'!X5 -> 1.557216834 | K54: ='[76]Performance and Targets'!Y5 -> 1.354380566 | L54: ='[77]Total Reward'!Q25 -> -0.01974133929 | M54: ='[76]Performance and Targets'!X24 -> 3.246009703 | N54: ='[76]Performance and Targets'!Y24 -> 2.584732602 | O54: ='[77]Total Reward'!Q44 -> -0.2023596714 | P54: ='[76]Performance and Targets'!AC5 -> 47.04863717 | Q54: ='[76]Performance and Targets'!AD5 -> 46.32 | R54: ='[77]Total Reward'!J25 -> -0.07283245111 | S54: ='[76]Performance and Targets'!AC24 -> 46.23170837 | T54: ='[76]Performance and Targets'!AD24 -> 39.38 | U54: ='[77]Total Reward'!J44 -> -2.090571716
D55: NPgY | E55: ='[75]Total Reward (incl Reg 5-8 adj)'!C6 -> -7.257934309 | F55: ='[75]Total Reward (incl Reg 5-8 adj)'!D6 -> -0.0002248905994 | G55: ='[75]Total Reward (incl Reg 5-8 adj)'!E6 -> -0.105811027 | I55: NPgY | J55: ='[76]Performance and Targets'!X6 -> 1.489227671 | K55: ='[76]Performance and Targets'!Y6 -> 0.9312756837 | L55: ='[77]Total Reward'!Q26 -> -0.07801172668 | M55: ='[76]Performance and Targets'!X25 -> 3.261302657 | N55: ='[76]Performance and Targets'!Y25 -> 1.741509149 | O55: ='[77]Total Reward'!Q45 -> -0.6683978762 | P55: ='[76]Performance and Targets'!AC6 -> 53.72146108 | Q55: ='[76]Performance and Targets'!AD6 -> 46.71 | R55: ='[77]Total Reward'!J26 -> -0.9817526773 | S55: ='[76]Performance and Targets'!AC25 -> 50.23223355 | T55: ='[76]Performance and Targets'!AD25 -> 37.95 | U55: ='[77]Total Reward'!J45 -> -5.423736111
D56: WMID | E56: ='[75]Total Reward (incl Reg 5-8 adj)'!C7 -> -0.7671388633 | F56: ='[75]Total Reward (incl Reg 5-8 adj)'!D7 -> 0 | G56: ='[75]Total Reward (incl Reg 5-8 adj)'!E7 -> 0.0806990243 | I56: WMID | J56: ='[76]Performance and Targets'!X7 -> 2.241895773 | K56: ='[76]Performance and Targets'!Y7 -> 2.130670776 | L56: ='[77]Total Reward'!Q27 -> -0.01687592695 | M56: ='[76]Performance and Targets'!X26 -> 4.66180534 | N56: ='[76]Performance and Targets'!Y26 -> 4.440282893 | O56: ='[77]Total Reward'!Q46 -> -0.1057219531 | P56: ='[76]Performance and Targets'!AC7 -> 42.50814455 | Q56: ='[76]Performance and Targets'!AD7 -> 46.74 | R56: ='[77]Total Reward'!J27 -> 0.6360211158 | S56: ='[76]Performance and Targets'!AC26 -> 28.25229208 | T56: ='[76]Performance and Targets'!AD26 -> 25.37 | U56: ='[77]Total Reward'!J46 -> -1.361261123
D57: EMID | E57: ='[75]Total Reward (incl Reg 5-8 adj)'!C8 -> -2.418504234 | F57: ='[75]Total Reward (incl Reg 5-8 adj)'!D8 -> 0 | G57: ='[75]Total Reward (incl Reg 5-8 adj)'!E8 -> 0.1057141991 | I57: EMID | J57: ='[76]Performance and Targets'!X8 -> 0.7076634676 | K57: ='[76]Performance and Targets'!Y8 -> 0.6532096479 | L57: ='[77]Total Reward'!Q28 -> -0.008824601507 | M57: ='[76]Performance and Targets'!X27 -> 1.380584133 | N57: ='[76]Performance and Targets'!Y27 -> 1.263511956 | O57: ='[77]Total Reward'!Q47 -> -0.05967639818 | P57: ='[76]Performance and Targets'!AC8 -> 43.49684262 | Q57: ='[76]Performance and Targets'!AD8 -> 38.6 | R57: ='[77]Total Reward'!J28 -> -0.7935657222 | S57: ='[76]Performance and Targets'!AC27 -> 24.7607815 | T57: ='[76]Performance and Targets'!AD27 -> 21.5 | U57: ='[77]Total Reward'!J47 -> -1.662151711
D58: SWALES | E58: ='[75]Total Reward (incl Reg 5-8 adj)'!C9 -> -0.6040030046 | F58: ='[75]Total Reward (incl Reg 5-8 adj)'!D9 -> 0 | G58: ='[75]Total Reward (incl Reg 5-8 adj)'!E9 -> 0.002202053786 | I58: SWALES | J58: ='[76]Performance and Targets'!X9 -> 3.258202873 | K58: ='[76]Performance and Targets'!Y9 -> 3.206041588 | L58: ='[77]Total Reward'!Q29 -> -0.003621703555 | M58: ='[76]Performance and Targets'!X28 -> 4.756689716 | N58: ='[76]Performance and Targets'!Y28 -> 4.873910756 | O58: ='[77]Total Reward'!Q48 -> 0.02560075052 | P58: ='[76]Performance and Targets'!AC9 -> 43.08272402 | Q58: ='[76]Performance and Targets'!AD9 -> 39.22 | R58: ='[77]Total Reward'!J29 -> -0.2695883645 | S58: ='[76]Performance and Targets'!AC28 -> 21.34194383 | T58: ='[76]Performance and Targets'!AD28 -> 19.65 | U58: ='[77]Total Reward'!J48 -> -0.3585957408
D59: SWEST | E59: ='[75]Total Reward (incl Reg 5-8 adj)'!C10 -> -2.947340724 | F59: ='[75]Total Reward (incl Reg 5-8 adj)'!D10 -> 0 | G59: ='[75]Total Reward (incl Reg 5-8 adj)'!E10 -> 0.0889957695 | I59: SWEST | J59: ='[76]Performance and Targets'!X10 -> 3.884265266 | K59: ='[76]Performance and Targets'!Y10 -> 3.284041796 | L59: ='[77]Total Reward'!Q30 -> -0.05960484157 | M59: ='[76]Performance and Targets'!X29 -> 8.73362877 | N59: ='[76]Performance and Targets'!Y29 -> 7.521154493 | O59: ='[77]Total Reward'!Q49 -> -0.3787244334 | P59: ='[76]Performance and Targets'!AC10 -> 53.63191138 | Q59: ='[76]Performance and Targets'!AD10 -> 48.35 | R59: ='[77]Total Reward'!J30 -> -0.5294823489 | S59: ='[76]Performance and Targets'!AC29 -> 38.12231712 | T59: ='[76]Performance and Targets'!AD29 -> 31.51 | U59: ='[77]Total Reward'!J49 -> -2.06852487
D60: LPN | E60: ='[75]Total Reward (incl Reg 5-8 adj)'!C11 -> 1.174638913 | F60: ='[75]Total Reward (incl Reg 5-8 adj)'!D11 -> 0 | G60: ='[75]Total Reward (incl Reg 5-8 adj)'!E11 -> -0.03147424311 | I60: LPN | J60: ='[76]Performance and Targets'!X11 -> 0.001138303927 | K60: ='[76]Performance and Targets'!Y11 -> 0.02372347754 | L60: ='[77]Total Reward'!Q31 -> 0.003084686907 | M60: ='[76]Performance and Targets'!X30 -> 0.002569048481 | N60: ='[76]Performance and Targets'!Y30 -> 0.05340557921 | O60: ='[77]Total Reward'!Q50 -> 0.02299880605 | P60: ='[76]Performance and Targets'!AC11 -> 12.2037771 | Q60: ='[76]Performance and Targets'!AD11 -> 13.45 | R60: ='[77]Total Reward'!J31 -> 0.1720518273 | S60: ='[76]Performance and Targets'!AC30 -> 11.37196711 | T60: ='[76]Performance and Targets'!AD30 -> 13.61 | U60: ='[77]Total Reward'!J50 -> 1.007977836
D61: SPN | E61: ='[75]Total Reward (incl Reg 5-8 adj)'!C12 -> -3.046475792 | F61: ='[75]Total Reward (incl Reg 5-8 adj)'!D12 -> 0 | G61: ='[75]Total Reward (incl Reg 5-8 adj)'!E12 -> -0.0987663773 | I61: SPN | J61: ='[76]Performance and Targets'!X12 -> 0.8090188948 | K61: ='[76]Performance and Targets'!Y12 -> 0.7234814752 | L61: ='[77]Total Reward'!Q32 -> -0.01200627042 | M61: ='[76]Performance and Targets'!X31 -> 1.94660857 | N61: ='[76]Performance and Targets'!Y31 -> 1.545159977 | O61: ='[77]Total Reward'!Q51 -> -0.1772409728 | P61: ='[76]Performance and Targets'!AC12 -> 48.70983078 | Q61: ='[76]Performance and Targets'!AD12 -> 42.08 | R61: ='[77]Total Reward'!J32 -> -0.9277742568 | S61: ='[76]Performance and Targets'!AC31 -> 34.54648529 | T61: ='[76]Performance and Targets'!AD31 -> 30.4 | U61: ='[77]Total Reward'!J51 -> -1.830687915
D62: EPN | E62: ='[75]Total Reward (incl Reg 5-8 adj)'!C13 -> -4.028417291 | F62: ='[75]Total Reward (incl Reg 5-8 adj)'!D13 -> 0 | G62: ='[75]Total Reward (incl Reg 5-8 adj)'!E13 -> -0.06148666 | I62: EPN | J62: ='[76]Performance and Targets'!X13 -> 1.137198566 | K62: ='[76]Performance and Targets'!Y13 -> 1.217603023 | L62: ='[77]Total Reward'!Q33 -> 0.01784066672 | M62: ='[76]Performance and Targets'!X32 -> 2.890495893 | N62: ='[76]Performance and Targets'!Y32 -> 2.883050299 | O62: ='[77]Total Reward'!Q52 -> -0.005196519248 | P62: ='[76]Performance and Targets'!AC13 -> 45.0634723 | Q62: ='[76]Performance and Targets'!AD13 -> 40.99 | R62: ='[77]Total Reward'!J33 -> -0.9016298066 | S62: ='[76]Performance and Targets'!AC32 -> 32.71009237 | T62: ='[76]Performance and Targets'!AD32 -> 28.31 | U62: ='[77]Total Reward'!J52 -> -3.077944972
D63: SPD | E63: ='[75]Total Reward (incl Reg 5-8 adj)'!C14 -> 2.979327438 | F63: ='[75]Total Reward (incl Reg 5-8 adj)'!D14 -> 0 | G63: ='[75]Total Reward (incl Reg 5-8 adj)'!E14 -> 0 | I63: SPD | J63: ='[76]Performance and Targets'!X14 -> 0.4942971426 | K63: ='[76]Performance and Targets'!Y14 -> 0.992762327 | L63: ='[77]Total Reward'!Q34 -> 0.06060342942 | M63: ='[76]Performance and Targets'!X33 -> 1.197622819 | N63: ='[76]Performance and Targets'!Y33 -> 2.660836481 | O63: ='[77]Total Reward'!Q53 -> 0.5600091049 | P63: ='[76]Performance and Targets'!AC14 -> 32.38346765 | Q63: ='[76]Performance and Targets'!AD14 -> 41.81 | R63: ='[77]Total Reward'!J34 -> 1.145256241 | S63: ='[76]Performance and Targets'!AC33 -> 25.02801509 | T63: ='[76]Performance and Targets'!AD33 -> 28.15 | U63: ='[77]Total Reward'!J53 -> 1.213458662
D64: SPMW | E64: ='[75]Total Reward (incl Reg 5-8 adj)'!C15 -> -0.2236081283 | F64: ='[75]Total Reward (incl Reg 5-8 adj)'!D15 -> 0 | G64: ='[75]Total Reward (incl Reg 5-8 adj)'!E15 -> 0 | I64: SPMW | J64: ='[76]Performance and Targets'!X15 -> 1.56365351 | K64: ='[76]Performance and Targets'!Y15 -> 1.687862354 | L64: ='[77]Total Reward'!Q35 -> 0.01144123235 | M64: ='[76]Performance and Targets'!X34 -> 4.457602044 | N64: ='[76]Performance and Targets'!Y34 -> 4.673063467 | O64: ='[77]Total Reward'!Q54 -> 0.06246392667 | P64: ='[76]Performance and Targets'!AC15 -> 30.00513903 | Q64: ='[76]Performance and Targets'!AD15 -> 31.41 | R64: ='[77]Total Reward'!J35 -> 0.1285535541 | S64: ='[76]Performance and Targets'!AC34 -> 28.96974626 | T64: ='[76]Performance and Targets'!AD34 -> 27.47 | U64: ='[77]Total Reward'!J54 -> -0.4260668414
D65: SSEH | E65: ='[75]Total Reward (incl Reg 5-8 adj)'!C16 -> -1.573926471 | F65: ='[75]Total Reward (incl Reg 5-8 adj)'!D16 -> 0 | G65: ='[75]Total Reward (incl Reg 5-8 adj)'!E16 -> 0 | I65: SSEH | J65: ='[76]Performance and Targets'!X16 -> 4.894290811 | K65: ='[76]Performance and Targets'!Y16 -> 3.613333333 | L65: ='[77]Total Reward'!Q36 -> -0.06012354237 | M65: ='[76]Performance and Targets'!X35 -> 12.47681149 | N65: ='[76]Performance and Targets'!Y35 -> 7.906666667 | O65: ='[77]Total Reward'!Q55 -> -0.6739176522 | P65: ='[76]Performance and Targets'!AC16 -> 51.74162127 | Q65: ='[76]Performance and Targets'!AD16 -> 58.03 | R65: ='[77]Total Reward'!J36 -> 0.2933950741 | S65: ='[76]Performance and Targets'!AC35 -> 53.08535924 | T65: ='[76]Performance and Targets'!AD35 -> 45.44 | U65: ='[77]Total Reward'!J55 -> -1.13328035
D66: SSES | E66: ='[75]Total Reward (incl Reg 5-8 adj)'!C17 -> -9.331323421 | F66: ='[75]Total Reward (incl Reg 5-8 adj)'!D17 -> 0 | G66: ='[75]Total Reward (incl Reg 5-8 adj)'!E17 -> -0.183462 | I66: SSES | J66: ='[76]Performance and Targets'!X17 -> 1.969947535 | K66: ='[76]Performance and Targets'!Y17 -> 1.388068681 | L66: ='[77]Total Reward'!Q37 -> -0.1082375921 | M66: ='[76]Performance and Targets'!X36 -> 5.278863307 | N66: ='[76]Performance and Targets'!Y36 -> 3.10052077 | O66: ='[77]Total Reward'!Q56 -> -1.274455967 | P66: ='[76]Performance and Targets'!AC17 -> 49.29895795 | Q66: ='[76]Performance and Targets'!AD17 -> 45.55 | R66: ='[77]Total Reward'!J37 -> -0.6879978737 | S66: ='[76]Performance and Targets'!AC36 -> 52.29677817 | T66: ='[76]Performance and Targets'!AD36 -> 40.15 | U66: ='[77]Total Reward'!J56 -> -7.077169989
D67: Total | E67: =SUM(E53:E66) -> -29.70538244 | F67: =SUM(F53:F66) -> -0.0002248905994 | G67: =SUM(G53:G66) -> -0.345126561
D68: NB: The total reward includes an adjustment for Regulation 7 Severe weather and Normal weather (Regulation 5,6 and 8)
J71: PLANNED | P71: UNPLANNED
D72: 2024/25 | I72: 2024/25 | J72: CI | M72: CML | P72: CI | S72: CML
E73: Total reward (£m)** | F73: Regulation 7 Severe Weather Conditions Adjustment | G73: Normal weather conditions adjustment | J73: Performance | K73: Target | L73: Reward/Penalty (£m) | M73: Performance | N73: Target | O73: Reward/Penalty (£m) | P73: Performance | Q73: Target | R73: Reward/Penalty (£m) | S73: Performance | T73: Target | U73: Reward/Penalty (£m)
D74: ENWL | I74: ENWL
D75: NPgN | I75: NPgN
D76: NPgY | I76: NPgY
D77: WMID | I77: WMID
D78: EMID | I78: EMID
D79: SWALES | I79: SWALES
D80: SWEST | I80: SWEST
D81: LPN | I81: LPN
D82: SPN | I82: SPN
D83: EPN | I83: EPN
D84: SPD | I84: SPD
D85: SPMW | I85: SPMW
D86: SSEH | I86: SSEH
D87: SSES | I87: SSES
D88: Total | E88: =SUM(E74:E87) -> 0 | F88: =SUM(F74:F87) -> 0 | G88: =SUM(G74:G87) -> 0
J90: PLANNED | P90: UNPLANNED
D91: 2025/26 | I91: 2025/26 | J91: CI | M91: CML | P91: CI | S91: CML
E92: Total reward (£m)** | F92: Regulation 7 Severe Weather Conditions Adjustment | G92: Normal weather conditions adjustment | J92: Performance | K92: Target | L92: Reward/Penalty (£m) | M92: Performance | N92: Target | O92: Reward/Penalty (£m) | P92: Performance | Q92: Target | R92: Reward/Penalty (£m) | S92: Performance | T92: Target | U92: Reward/Penalty (£m)
D93: ENWL | I93: ENWL
D94: NPgN | I94: NPgN
D95: NPgY | I95: NPgY
D96: WMID | I96: WMID
D97: EMID | I97: EMID
D98: SWALES | I98: SWALES
D99: SWEST | I99: SWEST
D100: LPN | I100: LPN
D101: SPN | I101: SPN
D102: EPN | I102: EPN
D103: SPD | I103: SPD
D104: SPMW | I104: SPMW
D105: SSEH | I105: SSEH
D106: SSES | I106: SSES
D107: Total | E107: =SUM(E93:E106) -> 0 | F107: =SUM(F93:F106) -> 0 | G107: =SUM(G93:G106) -> 0
J109: PLANNED | P109: UNPLANNED
D110: 2026/27 | I110: 2026/27 | J110: CI | M110: CML | P110: CI | S110: CML
E111: Total reward (£m)** | F111: Regulation 7 Severe Weather Conditions Adjustment | G111: Normal weather conditions adjustment | J111: Performance | K111: Target | L111: Reward/Penalty (£m) | M111: Performance | N111: Target | O111: Reward/Penalty (£m) | P111: Performance | Q111: Target | R111: Reward/Penalty (£m) | S111: Performance | T111: Target | U111: Reward/Penalty (£m)
D112: ENWL | I112: ENWL
D113: NPgN | I113: NPgN
D114: NPgY | I114: NPgY
D115: WMID | I115: WMID
D116: EMID | I116: EMID
D117: SWALES | I117: SWALES
D118: SWEST | I118: SWEST
D119: LPN | I119: LPN
D120: SPN | I120: SPN
D121: EPN | I121: EPN
D122: SPD | I122: SPD
D123: SPMW | I123: SPMW
D124: SSEH | I124: SSEH
D125: SSES | I125: SSES
D126: Total | E126: =SUM(E112:E125) -> 0 | F126: =SUM(F112:F125) -> 0 | G126: =SUM(G112:G125) -> 0
J128: PLANNED | P128: UNPLANNED
D129: 2027/28 | I129: 2027/28 | J129: CI | M129: CML | P129: CI | S129: CML
E130: Total reward (£m)** | F130: Regulation 7 Severe Weather Conditions Adjustment | G130: Normal weather conditions adjustment | J130: Performance | K130: Target | L130: Reward/Penalty (£m) | M130: Performance | N130: Target | O130: Reward/Penalty (£m) | P130: Performance | Q130: Target | R130: Reward/Penalty (£m) | S130: Performance | T130: Target | U130: Reward/Penalty (£m)
D131: ENWL | I131: ENWL
D132: NPgN | I132: NPgN
D133: NPgY | I133: NPgY
D134: WMID | I134: WMID
D135: EMID | I135: EMID
D136: SWALES | I136: SWALES
D137: SWEST | I137: SWEST
D138: LPN | I138: LPN
D139: SPN | I139: SPN
D140: EPN | I140: EPN
D141: SPD | I141: SPD
D142: SPMW | I142: SPMW
D143: SSEH | I143: SSEH
D144: SSES | I144: SSES
D145: Total | E145: =SUM(E131:E144) -> 0 | F145: =SUM(F131:F144) -> 0 | G145: =SUM(G131:G144) -> 0
B150: Guaranteed Standards of Performance (GSoP)
E151: Guaranteed Standards of Performance - payments owed and percentage of mandatory payments made, 2023/24
E152: Regulation 5 (Supply Restoration: Normal Conditions)* | G152: Regulation 6 (Supply Restoration: Normal Conditions - 5,000 or more customers' premises interrupted) | I152: Regulation 7(1) - Supply Restoration: Category 1 Severe Weather Conditions* | K152: Regulation 7(2) - Supply Restoration: Category 2 Severe Weather Conditions* | M152: Regulation 7(3) - Supply Restoration: Category 3 Severe Weather Conditions* | O152: Regulation 8 (Supply Restoration: Rota Disconnection) | Q152: Regulation 10 (Supply Restoration: Multiple interruptions) | S152: Regulation 11 (Responding to Operation of Distributor's Fuse) | U152: Regulation 12 (Notice of Supply Interruption ) | W152: Regulation 13 (Investigation of Voltage complaints) | X152: Regulation 17 (Making and Keeping Appointments) | Z152: Regulation 19 (Payments owed under the Guaranteed Standards)
E153: Number of valid payments owed | F153: Mandatory payments vs valid payments owed | G153: Number of valid payments owed | H153: Mandatory payments vs valid payments owed | I153: Number of valid payments owed | J153: Mandatory payments vs valid payments owed | K153: Number of valid payments owed | L153: Mandatory payments vs valid payments owed | M153: Number of valid payments owed | N153: Mandatory payments vs valid payments owed | O153: Number of valid payments owed | P153: Mandatory payments vs valid payments owed | Q153: Number of valid payments owed | R153: Mandatory payments vs valid payments owed | S153: Number of failures to attend on time | T153: Mandatory payments vs valid payments owed | U153: Number of valid payments owed | V153: Mandatory payments vs valid payments owed | W153: Total number of mandatory payments made | X153: Failures to offer timed appt. | Y153: Mandatory payments vs valid payments owed | Z153: Total payments due | AA153: Mandatory payments vs valid payments owed
D154: ENWL | E154: ='[78]Analysis for annual report'!$I5 -> 4585 | F154: ='[78]Analysis for annual report'!$L5 -> 0.7232279171 | G154: ='[78]Analysis for annual report'!$U5 -> 0 | H154: ='[78]Analysis for annual report'!$X5 -> N/A | I154: ='[78]Analysis for annual report'!$BA5 -> 153 | J154: ='[78]Analysis for annual report'!$BD5 -> 1 | K154: ='[78]Analysis for annual report'!$BG5 -> 1134 | L154: ='[78]Analysis for annual report'!$BJ5 -> 1 | M154: ='[78]Analysis for annual report'!$BM5 -> 0 | N154: ='[78]Analysis for annual report'!$BP5 -> N/A | O154: ='[78]Analysis for annual report'!$AA5 -> 0 | P154: ='[78]Analysis for annual report'!$AD5 -> N/A | Q154: ='[78]Analysis for annual report'!$O5 -> 15 | R154: ='[78]Analysis for annual report'!$R5 -> 1 | S154: ='[78]Analysis for annual report'!$B5 -> 38 | T154: ='[78]Analysis for annual report'!$F5 -> 1 | U154: ='[78]Analysis for annual report'!$AG5 -> 273 | V154: ='[78]Analysis for annual report'!$AJ5 -> 1 | W154: ='[78]Analysis for annual report'!$AL5 -> 46 | X154: ='[78]Analysis for annual report'!$AN5 -> 1000 | Y154: ='[78]Analysis for annual report'!$AR5 -> 1 | Z154: ='[78]Analysis for annual report'!$AU5 -> 1863 | AA154: ='[78]Analysis for annual report'!$AX5 -> 1
D155: NPGN | E155: ='[78]Analysis for annual report'!$I6 -> 4565 | F155: ='[78]Analysis for annual report'!$L6 -> 1 | G155: ='[78]Analysis for annual report'!$U6 -> 0 | H155: ='[78]Analysis for annual report'!$X6 -> N/A | I155: ='[78]Analysis for annual report'!$BA6 -> 32 | J155: ='[78]Analysis for annual report'!$BD6 -> 1 | K155: ='[78]Analysis for annual report'!$BG6 -> 0 | L155: ='[78]Analysis for annual report'!$BJ6 -> N/A | M155: ='[78]Analysis for annual report'!$BM6 -> 0 | N155: ='[78]Analysis for annual report'!$BP6 -> N/A | O155: ='[78]Analysis for annual report'!$AA6 -> 0 | P155: ='[78]Analysis for annual report'!$AD6 -> N/A | Q155: ='[78]Analysis for annual report'!$O6 -> 52 | R155: ='[78]Analysis for annual report'!$R6 -> 1 | S155: ='[78]Analysis for annual report'!$B6 -> 10 | T155: ='[78]Analysis for annual report'!$F6 -> 1 | U155: ='[78]Analysis for annual report'!$AG6 -> 10 | V155: ='[78]Analysis for annual report'!$AJ6 -> 1 | W155: ='[78]Analysis for annual report'!$AL6 -> 0 | X155: ='[78]Analysis for annual report'!$AN6 -> 32 | Y155: ='[78]Analysis for annual report'!$AR6 -> 1 | Z155: ='[78]Analysis for annual report'!$AU6 -> 292 | AA155: ='[78]Analysis for annual report'!$AX6 -> 1
D156: NPGY | E156: ='[78]Analysis for annual report'!$I7 -> 5019 | F156: ='[78]Analysis for annual report'!$L7 -> 1 | G156: ='[78]Analysis for annual report'!$U7 -> 0 | H156: ='[78]Analysis for annual report'!$X7 -> N/A | I156: ='[78]Analysis for annual report'!$BA7 -> 99 | J156: ='[78]Analysis for annual report'!$BD7 -> 1 | K156: ='[78]Analysis for annual report'!$BG7 -> 1 | L156: ='[78]Analysis for annual report'!$BJ7 -> 1 | M156: ='[78]Analysis for annual report'!$BM7 -> 0 | N156: ='[78]Analysis for annual report'!$BP7 -> N/A | O156: ='[78]Analysis for annual report'!$AA7 -> 0 | P156: ='[78]Analysis for annual report'!$AD7 -> N/A | Q156: ='[78]Analysis for annual report'!$O7 -> 42 | R156: ='[78]Analysis for annual report'!$R7 -> 1 | S156: ='[78]Analysis for annual report'!$B7 -> 8 | T156: ='[78]Analysis for annual report'!$F7 -> 1 | U156: ='[78]Analysis for annual report'!$AG7 -> 19 | V156: ='[78]Analysis for annual report'!$AJ7 -> 1 | W156: ='[78]Analysis for annual report'!$AL7 -> 1 | X156: ='[78]Analysis for annual report'!$AN7 -> 96 | Y156: ='[78]Analysis for annual report'!$AR7 -> 1 | Z156: ='[78]Analysis for annual report'!$AU7 -> 202 | AA156: ='[78]Analysis for annual report'!$AX7 -> 1
D157: WMID | E157: ='[78]Analysis for annual report'!$I8 -> 1189 | F157: ='[78]Analysis for annual report'!$L8 -> 0.8452481077 | G157: ='[78]Analysis for annual report'!$U8 -> 0 | H157: ='[78]Analysis for annual report'!$X8 -> N/A | I157: ='[78]Analysis for annual report'!$BA8 -> 3 | J157: ='[78]Analysis for annual report'!$BD8 -> 0 | K157: ='[78]Analysis for annual report'!$BG8 -> 0 | L157: ='[78]Analysis for annual report'!$BJ8 -> N/A | M157: ='[78]Analysis for annual report'!$BM8 -> 0 | N157: ='[78]Analysis for annual report'!$BP8 -> N/A | O157: ='[78]Analysis for annual report'!$AA8 -> 0 | P157: ='[78]Analysis for annual report'!$AD8 -> N/A | Q157: ='[78]Analysis for annual report'!$O8 -> 1 | R157: ='[78]Analysis for annual report'!$R8 -> 1 | S157: ='[78]Analysis for annual report'!$B8 -> 2 | T157: ='[78]Analysis for annual report'!$F8 -> 1 | U157: ='[78]Analysis for annual report'!$AG8 -> 9 | V157: ='[78]Analysis for annual report'!$AJ8 -> 1 | W157: ='[78]Analysis for annual report'!$AL8 -> 0 | X157: ='[78]Analysis for annual report'!$AN8 -> 0 | Y157: ='[78]Analysis for annual report'!$AR8 -> N/A | Z157: ='[78]Analysis for annual report'!$AU8 -> 17 | AA157: ='[78]Analysis for annual report'!$AX8 -> 1
D158: EMID | E158: ='[78]Analysis for annual report'!$I9 -> 3760 | F158: ='[78]Analysis for annual report'!$L9 -> 0.4473404255 | G158: ='[78]Analysis for annual report'!$U9 -> 0 | H158: ='[78]Analysis for annual report'!$X9 -> N/A | I158: ='[78]Analysis for annual report'!$BA9 -> 26 | J158: ='[78]Analysis for annual report'!$BD9 -> 0.07692307692 | K158: ='[78]Analysis for annual report'!$BG9 -> 0 | L158: ='[78]Analysis for annual report'!$BJ9 -> N/A | M158: ='[78]Analysis for annual report'!$BM9 -> 0 | N158: ='[78]Analysis for annual report'!$BP9 -> N/A | O158: ='[78]Analysis for annual report'!$AA9 -> 0 | P158: ='[78]Analysis for annual report'!$AD9 -> N/A | Q158: ='[78]Analysis for annual report'!$O9 -> 0 | R158: ='[78]Analysis for annual report'!$R9 -> N/A | S158: ='[78]Analysis for annual report'!$B9 -> 4 | T158: ='[78]Analysis for annual report'!$F9 -> 1 | U158: ='[78]Analysis for annual report'!$AG9 -> 8 | V158: ='[78]Analysis for annual report'!$AJ9 -> 1 | W158: ='[78]Analysis for annual report'!$AL9 -> 0 | X158: ='[78]Analysis for annual report'!$AN9 -> 7 | Y158: ='[78]Analysis for annual report'!$AR9 -> 1 | Z158: ='[78]Analysis for annual report'!$AU9 -> 51 | AA158: ='[78]Analysis for annual report'!$AX9 -> 1
D159: SWALES | E159: ='[78]Analysis for annual report'!$I10 -> 32 | F159: ='[78]Analysis for annual report'!$L10 -> 0.6875 | G159: ='[78]Analysis for annual report'!$U10 -> 0 | H159: ='[78]Analysis for annual report'!$X10 -> N/A | I159: ='[78]Analysis for annual report'!$BA10 -> 0 | J159: ='[78]Analysis for annual report'!$BD10 -> N/A | K159: ='[78]Analysis for annual report'!$BG10 -> 0 | L159: ='[78]Analysis for annual report'!$BJ10 -> N/A | M159: ='[78]Analysis for annual report'!$BM10 -> 0 | N159: ='[78]Analysis for annual report'!$BP10 -> N/A | O159: ='[78]Analysis for annual report'!$AA10 -> 0 | P159: ='[78]Analysis for annual report'!$AD10 -> N/A | Q159: ='[78]Analysis for annual report'!$O10 -> 0 | R159: ='[78]Analysis for annual report'!$R10 -> N/A | S159: ='[78]Analysis for annual report'!$B10 -> 1 | T159: ='[78]Analysis for annual report'!$F10 -> N/A | U159: ='[78]Analysis for annual report'!$AG10 -> 1 | V159: ='[78]Analysis for annual report'!$AJ10 -> 1 | W159: ='[78]Analysis for annual report'!$AL10 -> 0 | X159: ='[78]Analysis for annual report'!$AN10 -> 0 | Y159: ='[78]Analysis for annual report'!$AR10 -> N/A | Z159: ='[78]Analysis for annual report'!$AU10 -> 4 | AA159: ='[78]Analysis for annual report'!$AX10 -> 1
D160: SWEST | E160: ='[78]Analysis for annual report'!$I11 -> 1293 | F160: ='[78]Analysis for annual report'!$L11 -> 0.969837587 | G160: ='[78]Analysis for annual report'!$U11 -> 0 | H160: ='[78]Analysis for annual report'!$X11 -> N/A | I160: ='[78]Analysis for annual report'!$BA11 -> 106 | J160: ='[78]Analysis for annual report'!$BD11 -> 0.8679245283 | K160: ='[78]Analysis for annual report'!$BG11 -> 0 | L160: ='[78]Analysis for annual report'!$BJ11 -> N/A | M160: ='[78]Analysis for annual report'!$BM11 -> 0 | N160: ='[78]Analysis for annual report'!$BP11 -> N/A | O160: ='[78]Analysis for annual report'!$AA11 -> 0 | P160: ='[78]Analysis for annual report'!$AD11 -> N/A | Q160: ='[78]Analysis for annual report'!$O11 -> 3 | R160: ='[78]Analysis for annual report'!$R11 -> 1 | S160: ='[78]Analysis for annual report'!$B11 -> 10 | T160: ='[78]Analysis for annual report'!$F11 -> 1 | U160: ='[78]Analysis for annual report'!$AG11 -> 15 | V160: ='[78]Analysis for annual report'!$AJ11 -> 1 | W160: ='[78]Analysis for annual report'!$AL11 -> 0 | X160: ='[78]Analysis for annual report'!$AN11 -> 6 | Y160: ='[78]Analysis for annual report'!$AR11 -> 1 | Z160: ='[78]Analysis for annual report'!$AU11 -> 146 | AA160: ='[78]Analysis for annual report'!$AX11 -> 1
D161: LPN | E161: ='[78]Analysis for annual report'!$I12 -> 2714 | F161: ='[78]Analysis for annual report'!$L12 -> 0.388725129 | G161: ='[78]Analysis for annual report'!$U12 -> 0 | H161: ='[78]Analysis for annual report'!$X12 -> N/A | I161: ='[78]Analysis for annual report'!$BA12 -> 0 | J161: ='[78]Analysis for annual report'!$BD12 -> N/A | K161: ='[78]Analysis for annual report'!$BG12 -> 0 | L161: ='[78]Analysis for annual report'!$BJ12 -> N/A | M161: ='[78]Analysis for annual report'!$BM12 -> 0 | N161: ='[78]Analysis for annual report'!$BP12 -> N/A | O161: ='[78]Analysis for annual report'!$AA12 -> 0 | P161: ='[78]Analysis for annual report'!$AD12 -> N/A | Q161: ='[78]Analysis for annual report'!$O12 -> 5 | R161: ='[78]Analysis for annual report'!$R12 -> 1 | S161: ='[78]Analysis for annual report'!$B12 -> 44 | T161: ='[78]Analysis for annual report'!$F12 -> 1 | U161: ='[78]Analysis for annual report'!$AG12 -> 1 | V161: ='[78]Analysis for annual report'!$AJ12 -> 1 | W161: ='[78]Analysis for annual report'!$AL12 -> 0 | X161: ='[78]Analysis for annual report'!$AN12 -> 82 | Y161: ='[78]Analysis for annual report'!$AR12 -> 1 | Z161: ='[78]Analysis for annual report'!$AU12 -> 3 | AA161: ='[78]Analysis for annual report'!$AX12 -> 1
D162: SPN | E162: ='[78]Analysis for annual report'!$I13 -> 8242 | F162: ='[78]Analysis for annual report'!$L13 -> 0.8525843242 | G162: ='[78]Analysis for annual report'!$U13 -> 0 | H162: ='[78]Analysis for annual report'!$X13 -> N/A | I162: ='[78]Analysis for annual report'!$BA13 -> 42 | J162: ='[78]Analysis for annual report'!$BD13 -> 1 | K162: ='[78]Analysis for annual report'!$BG13 -> 0 | L162: ='[78]Analysis for annual report'!$BJ13 -> N/A | M162: ='[78]Analysis for annual report'!$BM13 -> 0 | N162: ='[78]Analysis for annual report'!$BP13 -> N/A | O162: ='[78]Analysis for annual report'!$AA13 -> 0 | P162: ='[78]Analysis for annual report'!$AD13 -> N/A | Q162: ='[78]Analysis for annual report'!$O13 -> 64 | R162: ='[78]Analysis for annual report'!$R13 -> 1 | S162: ='[78]Analysis for annual report'!$B13 -> 43 | T162: ='[78]Analysis for annual report'!$F13 -> 1 | U162: ='[78]Analysis for annual report'!$AG13 -> 247 | V162: ='[78]Analysis for annual report'!$AJ13 -> 1 | W162: ='[78]Analysis for annual report'!$AL13 -> 0 | X162: ='[78]Analysis for annual report'!$AN13 -> 445 | Y162: ='[78]Analysis for annual report'!$AR13 -> 1 | Z162: ='[78]Analysis for annual report'!$AU13 -> 15 | AA162: ='[78]Analysis for annual report'!$AX13 -> 1
D163: EPN | E163: ='[78]Analysis for annual report'!$I14 -> 18198 | F163: ='[78]Analysis for annual report'!$L14 -> 0.4621936477 | G163: ='[78]Analysis for annual report'!$U14 -> 0 | H163: ='[78]Analysis for annual report'!$X14 -> N/A | I163: ='[78]Analysis for annual report'!$BA14 -> 15 | J163: ='[78]Analysis for annual report'!$BD14 -> 1 | K163: ='[78]Analysis for annual report'!$BG14 -> 0 | L163: ='[78]Analysis for annual report'!$BJ14 -> N/A | M163: ='[78]Analysis for annual report'!$BM14 -> 0 | N163: ='[78]Analysis for annual report'!$BP14 -> N/A | O163: ='[78]Analysis for annual report'!$AA14 -> 0 | P163: ='[78]Analysis for annual report'!$AD14 -> N/A | Q163: ='[78]Analysis for annual report'!$O14 -> 141 | R163: ='[78]Analysis for annual report'!$R14 -> 1 | S163: ='[78]Analysis for annual report'!$B14 -> 68 | T163: ='[78]Analysis for annual report'!$F14 -> 1 | U163: ='[78]Analysis for annual report'!$AG14 -> 268 | V163: ='[78]Analysis for annual report'!$AJ14 -> 1 | W163: ='[78]Analysis for annual report'!$AL14 -> 0 | X163: ='[78]Analysis for annual report'!$AN14 -> 637 | Y163: ='[78]Analysis for annual report'!$AR14 -> 1 | Z163: ='[78]Analysis for annual report'!$AU14 -> 37 | AA163: ='[78]Analysis for annual report'!$AX14 -> 1
D164: SPD | E164: ='[78]Analysis for annual report'!$I15 -> 448 | F164: ='[78]Analysis for annual report'!$L15 -> 1 | G164: ='[78]Analysis for annual report'!$U15 -> 0 | H164: ='[78]Analysis for annual report'!$X15 -> N/A | I164: ='[78]Analysis for annual report'!$BA15 -> 0 | J164: ='[78]Analysis for annual report'!$BD15 -> N/A | K164: ='[78]Analysis for annual report'!$BG15 -> 89 | L164: ='[78]Analysis for annual report'!$BJ15 -> 1 | M164: ='[78]Analysis for annual report'!$BM15 -> 0 | N164: ='[78]Analysis for annual report'!$BP15 -> N/A | O164: ='[78]Analysis for annual report'!$AA15 -> 0 | P164: ='[78]Analysis for annual report'!$AD15 -> N/A | Q164: ='[78]Analysis for annual report'!$O15 -> 2 | R164: ='[78]Analysis for annual report'!$R15 -> 1 | S164: ='[78]Analysis for annual report'!$B15 -> 11 | T164: ='[78]Analysis for annual report'!$F15 -> 1 | U164: ='[78]Analysis for annual report'!$AG15 -> 18 | V164: ='[78]Analysis for annual report'!$AJ15 -> 1 | W164: ='[78]Analysis for annual report'!$AL15 -> 0 | X164: ='[78]Analysis for annual report'!$AN15 -> 0 | Y164: ='[78]Analysis for annual report'!$AR15 -> N/A | Z164: ='[78]Analysis for annual report'!$AU15 -> 0 | AA164: ='[78]Analysis for annual report'!$AX15 -> N/A
D165: SPMW | E165: ='[78]Analysis for annual report'!$I16 -> 648 | F165: ='[78]Analysis for annual report'!$L16 -> 1 | G165: ='[78]Analysis for annual report'!$U16 -> 0 | H165: ='[78]Analysis for annual report'!$X16 -> N/A | I165: ='[78]Analysis for annual report'!$BA16 -> 9 | J165: ='[78]Analysis for annual report'!$BD16 -> 1 | K165: ='[78]Analysis for annual report'!$BG16 -> 0 | L165: ='[78]Analysis for annual report'!$BJ16 -> N/A | M165: ='[78]Analysis for annual report'!$BM16 -> 0 | N165: ='[78]Analysis for annual report'!$BP16 -> N/A | O165: ='[78]Analysis for annual report'!$AA16 -> 0 | P165: ='[78]Analysis for annual report'!$AD16 -> N/A | Q165: ='[78]Analysis for annual report'!$O16 -> 2 | R165: ='[78]Analysis for annual report'!$R16 -> 1 | S165: ='[78]Analysis for annual report'!$B16 -> 7 | T165: ='[78]Analysis for annual report'!$F16 -> 1 | U165: ='[78]Analysis for annual report'!$AG16 -> 69 | V165: ='[78]Analysis for annual report'!$AJ16 -> 1 | W165: ='[78]Analysis for annual report'!$AL16 -> 1 | X165: ='[78]Analysis for annual report'!$AN16 -> 0 | Y165: ='[78]Analysis for annual report'!$AR16 -> N/A | Z165: ='[78]Analysis for annual report'!$AU16 -> 0 | AA165: ='[78]Analysis for annual report'!$AX16 -> N/A
D166: SSEH | E166: ='[78]Analysis for annual report'!$I17 -> 2268 | F166: ='[78]Analysis for annual report'!$L17 -> 1 | G166: ='[78]Analysis for annual report'!$U17 -> 0 | H166: ='[78]Analysis for annual report'!$X17 -> N/A | I166: ='[78]Analysis for annual report'!$BA17 -> 0 | J166: ='[78]Analysis for annual report'!$BD17 -> N/A | K166: ='[78]Analysis for annual report'!$BG17 -> 2267 | L166: ='[78]Analysis for annual report'!$BJ17 -> 1 | M166: ='[78]Analysis for annual report'!$BM17 -> 0 | N166: ='[78]Analysis for annual report'!$BP17 -> N/A | O166: ='[78]Analysis for annual report'!$AA17 -> 0 | P166: ='[78]Analysis for annual report'!$AD17 -> N/A | Q166: ='[78]Analysis for annual report'!$O17 -> 7 | R166: ='[78]Analysis for annual report'!$R17 -> 1 | S166: ='[78]Analysis for annual report'!$B17 -> 9 | T166: ='[78]Analysis for annual report'!$F17 -> 1 | U166: ='[78]Analysis for annual report'!$AG17 -> 105 | V166: ='[78]Analysis for annual report'!$AJ17 -> 1 | W166: ='[78]Analysis for annual report'!$AL17 -> 0 | X166: ='[78]Analysis for annual report'!$AN17 -> 4 | Y166: ='[78]Analysis for annual report'!$AR17 -> 1 | Z166: ='[78]Analysis for annual report'!$AU17 -> 94 | AA166: ='[78]Analysis for annual report'!$AX17 -> 1
D167: SSES | E167: ='[78]Analysis for annual report'!$I18 -> 15462 | F167: ='[78]Analysis for annual report'!$L18 -> 1.028456862 | G167: ='[78]Analysis for annual report'!$U18 -> 0 | H167: ='[78]Analysis for annual report'!$X18 -> N/A | I167: ='[78]Analysis for annual report'!$BA18 -> 1109 | J167: ='[78]Analysis for annual report'!$BD18 -> 1 | K167: ='[78]Analysis for annual report'!$BG18 -> 0 | L167: ='[78]Analysis for annual report'!$BJ18 -> N/A | M167: ='[78]Analysis for annual report'!$BM18 -> 0 | N167: ='[78]Analysis for annual report'!$BP18 -> N/A | O167: ='[78]Analysis for annual report'!$AA18 -> 0 | P167: ='[78]Analysis for annual report'!$AD18 -> N/A | Q167: ='[78]Analysis for annual report'!$O18 -> 51 | R167: ='[78]Analysis for annual report'!$R18 -> 1 | S167: ='[78]Analysis for annual report'!$B18 -> 63 | T167: ='[78]Analysis for annual report'!$F18 -> 1 | U167: ='[78]Analysis for annual report'!$AG18 -> 380 | V167: ='[78]Analysis for annual report'!$AJ18 -> 1 | W167: ='[78]Analysis for annual report'!$AL18 -> 0 | X167: ='[78]Analysis for annual report'!$AN18 -> 75 | Y167: ='[78]Analysis for annual report'!$AR18 -> 1 | Z167: ='[78]Analysis for annual report'!$AU18 -> 229 | AA167: ='[78]Analysis for annual report'!$AX18 -> 1
E169: Guaranteed Standards of Performance - payments owed and percentage of mandatory payments made, 2024/25
E170: Regulation 5 (Supply Restoration: Normal Conditions)* | G170: Regulation 6 (Supply Restoration: Normal Conditions - 5,000 or more customers' premises interrupted) | I170: Regulation 7(1) - Supply Restoration: Category 1 Severe Weather Conditions* | K170: Regulation 7(2) - Supply Restoration: Category 2 Severe Weather Conditions* | M170: Regulation 7(3) - Supply Restoration: Category 3 Severe Weather Conditions* | O170: Regulation 8 (Supply Restoration: Rota Disconnection) | Q170: Regulation 10 (Supply Restoration: Multiple interruptions) | S170: Regulation 11 (Responding to Operation of Distributor's Fuse) | U170: Regulation 12 (Notice of Supply Interruption ) | W170: Regulation 13 (Investigation of Voltage complaints) | X170: Regulation 17 (Making and Keeping Appointments) | Z170: Regulation 19 (Payments owed under the Guaranteed Standards)
E171: Number of valid payments owed | F171: Mandatory payments vs valid payments owed | G171: Number of valid payments owed | H171: Mandatory payments vs valid payments owed | I171: Number of valid payments owed | J171: Mandatory payments vs valid payments owed | K171: Number of valid payments owed | L171: Mandatory payments vs valid payments owed | M171: Number of valid payments owed | N171: Mandatory payments vs valid payments owed | O171: Number of valid payments owed | P171: Mandatory payments vs valid payments owed | Q171: Number of valid payments owed | R171: Mandatory payments vs valid payments owed | S171: Number of failures to attend on time | T171: Mandatory payments vs valid payments owed | U171: Number of valid payments owed | V171: Mandatory payments vs valid payments owed | W171: Total number of mandatory payments made | X171: Failures to offer timed appt. | Y171: Mandatory payments vs valid payments owed | Z171: Total payments due | AA171: Mandatory payments vs valid payments owed
D172: ENWL
D173: NPGN
D174: NPGY
D175: WMID
D176: EMID
D177: SWALES
D178: SWEST
D179: LPN
D180: SPN
D181: EPN
D182: SPD
D183: SPMW
D184: SSEH
D185: SSES
E187: Guaranteed Standards of Performance - payments owed and percentage of mandatory payments made, 2025/26
E189: Regulation 5 (Supply Restoration: Normal Conditions)* | G189: Regulation 6 (Supply Restoration: Normal Conditions - 5,000 or more customers' premises interrupted) | I189: Regulation 7(1) - Supply Restoration: Category 1 Severe Weather Conditions* | K189: Regulation 7(2) - Supply Restoration: Category 2 Severe Weather Conditions* | M189: Regulation 7(3) - Supply Restoration: Category 3 Severe Weather Conditions* | O189: Regulation 8 (Supply Restoration: Rota Disconnection) | Q189: Regulation 10 (Supply Restoration: Multiple interruptions) | S189: Regulation 11 (Responding to Operation of Distributor's Fuse) | U189: Regulation 12 (Notice of Supply Interruption ) | W189: Regulation 13 (Investigation of Voltage complaints) | X189: Regulation 17 (Making and Keeping Appointments) | Z189: Regulation 19 (Payments owed under the Guaranteed Standards)
E190: Number of valid payments owed | F190: Mandatory payments vs valid payments owed | G190: Number of valid payments owed | H190: Mandatory payments vs valid payments owed | I190: Number of valid payments owed | J190: Mandatory payments vs valid payments owed | K190: Number of valid payments owed | L190: Mandatory payments vs valid payments owed | M190: Number of valid payments owed | N190: Mandatory payments vs valid payments owed | O190: Number of valid payments owed | P190: Mandatory payments vs valid payments owed | Q190: Number of valid payments owed | R190: Mandatory payments vs valid payments owed | S190: Number of failures to attend on time | T190: Mandatory payments vs valid payments owed | U190: Number of valid payments owed | V190: Mandatory payments vs valid payments owed | W190: Total number of mandatory payments made | X190: Failures to offer timed appt. | Y190: Mandatory payments vs valid payments owed | Z190: Total payments due | AA190: Mandatory payments vs valid payments owed
D191: ENWL
D192: NPGN
D193: NPGY
D194: WMID
D195: EMID
D196: SWALES
D197: SWEST
D198: LPN
D199: SPN
D200: EPN
D201: SPD
D202: SPMW
D203: SSEH
D204: SSES
E206: Guaranteed Standards of Performance - payments owed and percentage of mandatory payments made, 2026/27
E208: Regulation 5 (Supply Restoration: Normal Conditions)* | G208: Regulation 6 (Supply Restoration: Normal Conditions - 5,000 or more customers' premises interrupted) | I208: Regulation 7(1) - Supply Restoration: Category 1 Severe Weather Conditions* | K208: Regulation 7(2) - Supply Restoration: Category 2 Severe Weather Conditions* | M208: Regulation 7(3) - Supply Restoration: Category 3 Severe Weather Conditions* | O208: Regulation 8 (Supply Restoration: Rota Disconnection) | Q208: Regulation 10 (Supply Restoration: Multiple interruptions) | S208: Regulation 11 (Responding to Operation of Distributor's Fuse) | U208: Regulation 12 (Notice of Supply Interruption ) | W208: Regulation 13 (Investigation of Voltage complaints) | X208: Regulation 17 (Making and Keeping Appointments) | Z208: Regulation 19 (Payments owed under the Guaranteed Standards)
E209: Number of valid payments owed | F209: Mandatory payments vs valid payments owed | G209: Number of valid payments owed | H209: Mandatory payments vs valid payments owed | I209: Number of valid payments owed | J209: Mandatory payments vs valid payments owed | K209: Number of valid payments owed | L209: Mandatory payments vs valid payments owed | M209: Number of valid payments owed | N209: Mandatory payments vs valid payments owed | O209: Number of valid payments owed | P209: Mandatory payments vs valid payments owed | Q209: Number of valid payments owed | R209: Mandatory payments vs valid payments owed | S209: Number of failures to attend on time | T209: Mandatory payments vs valid payments owed | U209: Number of valid payments owed | V209: Mandatory payments vs valid payments owed | W209: Total number of mandatory payments made | X209: Total number of valid requests | Y209: Mandatory payments vs valid payments owed | Z209: Total payments due | AA209: Mandatory payments vs valid payments owed
D210: ENWL
D211: NPGN
D212: NPGY
D213: WMID
D214: EMID
D215: SWALES
D216: SWEST
D217: LPN
D218: SPN
D219: EPN
... 171 more rows

Sheet Ch2 outputs - DSO
A1: Chapter 2 - Distribution System Operator
B2: Performance against the outputs that DNOs are incentivised to deliver under RIIO-ED2.
B4: Distribution System Operator:
B5: Incentive measure | F5: Incentive type
B6: Distribution System Operator: reward and penatly to incentivise DNOs to more effectively develop and use their network, considering flexible and smart alternatives to network reinforcement. | F6: Financial: Year 1: reward up to 0.32% RoRE, penalty up to -0.16% RoRE. Years 2-5: +0.4% RoRE, penalty up to -0.2% RoRE.
B10: Distribution System Operator (DSO) | D10: Distribution System Operator
E11: 2023/24 | M11: 2024/25 | U11: 2025/26 | AC11: 2026/27 | AK11: 2027/28
E12: Stakeholder Satisfaction Survey Score | F12: Performance Panel Assessment Score | G12: Overall | H12: Ranking | I12: Stakeholder Satisfaction Survey Reward / Penalty (£m) | J12: Performance Panel Assessment Reward / Penalty (£m) | K12: Total Reward / Penalty (£m) | M12: Stakeholder Satisfaction Survey Score | N12: Performance Panel Assessment Score | O12: Overall | P12: Ranking | Q12: Stakeholder Satisfaction Survey Reward / Penalty (£m) | R12: Performance Panel Assessment Reward / Penalty (£m) | S12: Total Reward / Penalty (£m) | U12: Stakeholder Satisfaction Survey Score | V12: Performance Panel Assessment Score | W12: Overall | X12: Ranking | Y12: Stakeholder Satisfaction Survey Reward / Penalty (£m) | Z12: Performance Panel Assessment Reward / Penalty (£m) | AA12: Total Reward / Penalty (£m) | AC12: Stakeholder Satisfaction Survey Score | AD12: Performance Panel Assessment Score | AE12: Overall | AF12: Ranking | AG12: Stakeholder Satisfaction Survey Reward / Penalty (£m) | AH12: Performance Panel Assessment Reward / Penalty (£m) | AI12: Total Reward / Penalty (£m) | AK12: Stakeholder Satisfaction Survey Score | AL12: Performance Panel Assessment Score | AM12: Overall | AN12: Ranking | AO12: Stakeholder Satisfaction Survey Reward / Penalty (£m) | AP12: Performance Panel Assessment Reward / Penalty (£m) | AQ12: Total Reward / Penalty (£m)
E13: 0.5 | F13: 0.5 | M13: 0.5 | N13: 0.5 | U13: 0.5 | V13: 0.5 | AC13: 0.5 | AD13: 0.5 | AK13: 0.5 | AL13: 0.5
D14: ENWL | E14: =[44]Scores!$C4 -> 7.94 | F14: =[44]Scores!$E4 -> 6.19 | G14: =E14*$E$13+F14*$F$13 -> 7.065 | H14: =RANK(G14,$G$14:$G$19,0) -> 5 | I14: =[44]Scores!$D4 -> 0.053298 | J14: =[44]Scores!$F4 -> 0.13262 | K14: =[44]Scores!$G4 -> 0.185918
D15: NPg | E15: =[44]Scores!$C5 -> 7.77 | F15: =[44]Scores!$E5 -> 6.58 | G15: =E15*$E$13+F15*$F$13 -> 7.175 | H15: =RANK(G15,$G$14:$G$19,0) -> 4 | I15: =[44]Scores!$D5 -> 0 | J15: =[44]Scores!$F5 -> 0.72 | K15: =[44]Scores!$G5 -> 0.72
D16: NGED | E16: =[44]Scores!$C6 -> 7.77 | F16: =[44]Scores!$E6 -> 8.24 | G16: 8.005 | H16: 2 | I16: =[44]Scores!$D6 -> 0 | J16: =[44]Scores!$F6 -> 5.97 | K16: =[44]Scores!$G6 -> 5.97
D17: UKPN | E17: =[44]Scores!$C7 -> 9.06 | F17: =[44]Scores!$E7 -> 8.91 | G17: 8.985 | H17: 1 | I17: =[44]Scores!$D7 -> 4.42 | J17: =[44]Scores!$F7 -> 4.42 | K17: =[44]Scores!$G7 -> 8.84
D18: SPEN | E18: =[44]Scores!$C8 -> 8.13 | F18: =[44]Scores!$E8 -> 5.08 | G18: 6.605 | H18: 6 | I18: =[44]Scores!$D8 -> 0.59 | J18: =[44]Scores!$F8 -> 0 | K18: =[44]Scores!$G8 -> 0.59
D19: SSEN | E19: =[44]Scores!$C9 -> 7.42 | F19: =[44]Scores!$E9 -> 7.59 | G19: 7.505 | H19: 3 | I19: =[44]Scores!$D9 -> -0.1 | J19: =[44]Scores!$F9 -> 2.28 | K19: =[44]Scores!$G9 -> 2.17

Sheet Ch2 outputs - environment
A1: Chapter 2 - Environment
B2: Performance against the outputs that DNOs are incentivised to deliver under RIIO-ED2.
B4: Environment: encouraging DNOs to play their role in achieving broader environmental objectives, namely the reduction in carbon emissions, as well as minimising the narrow environmental impact of the company's activities by managing their own carbon footprint, visual amenity and pollution.
B5: Incentive measure | F5: Incentive type
B6: Business Carbon Footprint (BCF) | F6: Reputational: publish annual progress.
B7: Limiting emissions of Sulphur Hexafluoride (SF6) | F7: Reputational: publish annual progress.
B8: Fluid filled cable leakage | F8: Reputational: publish annual progress.
B9: Noise pollution | F9: Reputational: publish annual progress.
B10: Electric Vehicles | F10: Reputational: publish annual progress.
B11: Visual impact allowance for undergrounding overhead lines in Areas of Outstanding Natural Beauty (AONB) and National Parks | F11: Reputational incentive in the context of its performance in the utilisation of a funding pot of £68.3m (split between DNOs).
B14: Distribution losses | D14: Distribution losses (as % of units distributed)
E15: 2023/24 | F15: 2024/25 | G15: 2025/26 | H15: 2026/27 | I15: 2027/28
D16: ENWL | E16: =('[79]E3 - BCF'!$BQ$49/1000000)/'Guide & drivers'!P82 -> 0.07534004695
D17: NPGN | E17: =('[80]E3 - BCF '!$BQ$49/1000000)/'Guide & drivers'!P83 -> 0.06022850223
D18: NPGY | E18: =('[81]E3 - BCF'!$BQ$49/1000000)/'Guide & drivers'!P84 -> 0.08569379583
D19: WMID | E19: =('[82]E3 - BCF'!$BQ$49)/'Guide & drivers'!P85 -> 0.06756956797
D20: EMID | E20: =('[83]E3 - BCF'!$BQ$49)/'Guide & drivers'!P86 -> 0.05908102581
D21: SWALES | E21: =('[84]E3 - BCF'!$BQ$49)/'Guide & drivers'!P87 -> 0.04862712611
D22: SWEST | E22: =('[85]E3 - BCF'!$BQ$49)/'Guide & drivers'!P88 -> 0.04634327335
D23: LPN | E23: =('[86]E3 - BCF'!$BQ$49/1000000)/'Guide & drivers'!P89 -> 0.06603666422
D24: SPN | E24: =('[87]E3 - BCF'!$BQ$49/1000000)/'Guide & drivers'!P90 -> 0.0713884922
D25: EPN | E25: =('[88]E3 - BCF'!$BQ$49/1000000)/'Guide & drivers'!P91 -> 0.07687653428
D26: SPD | E26: =('[89]E3 - BCF'!$BQ$49/1000000)/'Guide & drivers'!P92 -> 0.08321883934
D27: SPMW | E27: =('[90]E3 - BCF'!$BQ$49/1000000)/'Guide & drivers'!P93 -> 0.07388223883
D28: SSEH | E28: =('[91]E3 - BCF'!$BQ$49/1000000)/'Guide & drivers'!P94 -> 0.07306660634
D29: SSES | E29: =('[92]E3 - BCF'!$BQ$49/1000000)/'Guide & drivers'!P95 -> 0.0507295316
D30: Total | E30: =SUM( '[79]E3 - BCF'!$BQ$49/1000000, '[80]E3 - BCF '!$BQ$49/1000000, '[81]E3 - BCF'!$BQ$49/1000000, '[82]E3 - BCF'!$BQ$49, '[83]E3 - BCF'!$BQ$49, '[84]E3 - BCF'!$BQ$49, '[85]E3 - BCF'!$BQ$49, '[86]E3 - BCF'!$BQ$49/1000000, '[87]E3 - BCF'!$BQ$49/1000000, '[88]E3 - BCF'!$BQ$49/1000000, '[89]E3 - BCF'!$BQ$49/1000000, '[90]E3 - BCF'!$BQ$49/1000000, '[91]E3 - BCF'!$BQ$49/1000000, '[92]E3 - BCF'!$BQ$49/1000000 )/'Guide & drivers'!P96 -> 0.0672881506
B34: Business Carbon Footprint (BCF) | D34: Business Carbon Footprint (excluding losses and contractors) (tCO2e)
E35: RIIO-ED1 | F35: RIIO-ED2
E36: 2022/23 | F36: 2023/24 | G36: 2024/25 | H36: 2025/26 | I36: 2026/27 | J36: 2027/28
D37: ENWL | E37: =SUM('[79]E3 - BCF'!AK$22,'[79]E3 - BCF'!AK$32,'[79]E3 - BCF'!AK$39,'[79]E3 - BCF'!AK$46) -> 13990.24 | F37: =SUM('[79]E3 - BCF'!AL$22,'[79]E3 - BCF'!AL$32,'[79]E3 - BCF'!AL$39,'[79]E3 - BCF'!AL$46) -> 8900.444962
D38: NPgN | E38: =SUM('[80]E3 - BCF '!AK$22,'[80]E3 - BCF '!AK$32,'[80]E3 - BCF '!AK$39,'[80]E3 - BCF '!AK$46) -> 5000.421046 | F38: =SUM('[80]E3 - BCF '!AL$22,'[80]E3 - BCF '!AL$32,'[80]E3 - BCF '!AL$39,'[80]E3 - BCF '!AL$46) -> 4803.213102
D39: NPgY | E39: =SUM('[81]E3 - BCF'!AK$22,'[81]E3 - BCF'!AK$32,'[81]E3 - BCF'!AK$39,'[81]E3 - BCF'!AK$46) -> 8588.25155 | F39: =SUM('[81]E3 - BCF'!AL$22,'[81]E3 - BCF'!AL$32,'[81]E3 - BCF'!AL$39,'[81]E3 - BCF'!AL$46) -> 7503.62098
D40: WMID | E40: =SUM('[82]E3 - BCF'!AK$22,'[82]E3 - BCF'!AK$32,'[82]E3 - BCF'!AK$39,'[82]E3 - BCF'!AK$46) -> 12584.65999 | F40: =SUM('[82]E3 - BCF'!AL$22,'[82]E3 - BCF'!AL$32,'[82]E3 - BCF'!AL$39,'[82]E3 - BCF'!AL$46) -> 12521.40942
D41: EMID | E41: =SUM('[83]E3 - BCF'!AK$22,'[83]E3 - BCF'!AK$32,'[83]E3 - BCF'!AK$39,'[83]E3 - BCF'!AK$46) -> 12124.98344 | F41: =SUM('[83]E3 - BCF'!AL$22,'[83]E3 - BCF'!AL$32,'[83]E3 - BCF'!AL$39,'[83]E3 - BCF'!AL$46) -> 12139.41686
D42: SWALES | E42: =SUM('[84]E3 - BCF'!AK$22,'[84]E3 - BCF'!AK$32,'[84]E3 - BCF'!AK$39,'[84]E3 - BCF'!AK$46) -> 9095.783291 | F42: =SUM('[84]E3 - BCF'!AL$22,'[84]E3 - BCF'!AL$32,'[84]E3 - BCF'!AL$39,'[84]E3 - BCF'!AL$46) -> 9299.17208
D43: SWEST | E43: =SUM('[85]E3 - BCF'!AK$22,'[85]E3 - BCF'!AK$32,'[85]E3 - BCF'!AK$39,'[85]E3 - BCF'!AK$46) -> 10918.2508 | F43: =SUM('[85]E3 - BCF'!AL$22,'[85]E3 - BCF'!AL$32,'[85]E3 - BCF'!AL$39,'[85]E3 - BCF'!AL$46) -> 10729.50884
D44: LPN | E44: =SUM('[86]E3 - BCF'!AK$22,'[86]E3 - BCF'!AK$32,'[86]E3 - BCF'!AK$39,'[86]E3 - BCF'!AK$46) -> 8488.632263 | F44: =SUM('[86]E3 - BCF'!AL$22,'[86]E3 - BCF'!AL$32,'[86]E3 - BCF'!AL$39,'[86]E3 - BCF'!AL$46) -> 9065.590067
D45: SPN | E45: =SUM('[87]E3 - BCF'!AK$22,'[87]E3 - BCF'!AK$32,'[87]E3 - BCF'!AK$39,'[87]E3 - BCF'!AK$46) -> 13157.79977 | F45: =SUM('[87]E3 - BCF'!AL$22,'[87]E3 - BCF'!AL$32,'[87]E3 - BCF'!AL$39,'[87]E3 - BCF'!AL$46) -> 10698.87029
D46: EPN | E46: =SUM('[88]E3 - BCF'!AK$22,'[88]E3 - BCF'!AK$32,'[88]E3 - BCF'!AK$39,'[88]E3 - BCF'!AK$46) -> 18444.92554 | F46: =SUM('[88]E3 - BCF'!AL$22,'[88]E3 - BCF'!AL$32,'[88]E3 - BCF'!AL$39,'[88]E3 - BCF'!AL$46) -> 19154.61337
D47: SPD | E47: =SUM('[89]E3 - BCF'!AK$22,'[89]E3 - BCF'!AK$32,'[89]E3 - BCF'!AK$39,'[89]E3 - BCF'!AK$46) -> 12019.83292 | F47: =SUM('[89]E3 - BCF'!AL$22,'[89]E3 - BCF'!AL$32,'[89]E3 - BCF'!AL$39,'[89]E3 - BCF'!AL$46) -> 7271.00667
D48: SPMW | E48: =SUM('[90]E3 - BCF'!AK$22,'[90]E3 - BCF'!AK$32,'[90]E3 - BCF'!AK$39,'[90]E3 - BCF'!AK$46) -> 10740.10259 | F48: =SUM('[90]E3 - BCF'!AL$22,'[90]E3 - BCF'!AL$32,'[90]E3 - BCF'!AL$39,'[90]E3 - BCF'!AL$46) -> 6665.589078
D49: SSEH | E49: =SUM('[91]E3 - BCF'!AK$22,'[91]E3 - BCF'!AK$32,'[91]E3 - BCF'!AK$39,'[91]E3 - BCF'!AK$46) -> 12744.88545 | F49: =SUM('[91]E3 - BCF'!AL$22,'[91]E3 - BCF'!AL$32,'[91]E3 - BCF'!AL$39,'[91]E3 - BCF'!AL$46) -> 16261.74584
D50: SSES | E50: =SUM('[92]E3 - BCF'!AK$22,'[92]E3 - BCF'!AK$32,'[92]E3 - BCF'!AK$39,'[92]E3 - BCF'!AK$46) -> 31170.40016 | F50: =SUM('[92]E3 - BCF'!AL$22,'[92]E3 - BCF'!AL$32,'[92]E3 - BCF'!AL$39,'[92]E3 - BCF'!AL$46) -> 22236.28841
D51: Total | E51: =SUM(E37:E50) -> 179069.1688 | F51: =SUM(F37:F50) -> 157250.49
D53: Business Carbon Footprint (excluding losses and contractors) as % network length and customer numbers
E54: RIIO-ED1 | F54: RIIO-ED2 | M54: RIIO-ED1 | N54: RIIO-ED2
E55: 2022/23 | F55: 2023/24 | G55: 2024/25 | H55: 2025/26 | I55: 2026/27 | J55: 2027/28 | L55: Ranking | M55: 2022/23 | N55: 2023/24 | O55: 2024/25 | P55: 2025/26 | Q55: 2026/27 | R55: 2027/28
D56: ENWL | E56: =((E37/'Guide & drivers'!O44)*50%)+(E37/'Guide & drivers'!O63)*50% -> 0.119426535 | F56: =((F37/'Guide & drivers'!P44)*50%)+(F37/'Guide & drivers'!P63)*50% -> 0.07496723728 | L56: ENWL | M56: =RANK(E56,$E$56:$E$69,1) -> 10 | N56: =RANK(F56,$F$56:$F$69,1) -> 5
D57: NPgN | E57: =((E38/'Guide & drivers'!O45)*50%)+(E38/'Guide & drivers'!O64)*50% -> 0.06046373258 | F57: =((F38/'Guide & drivers'!P45)*50%)+(F38/'Guide & drivers'!P64)*50% -> 0.05745641914 | L57: NPgN | M57: 1 | N57: 1
D58: NPgY | E58: =((E39/'Guide & drivers'!O46)*50%)+(E39/'Guide & drivers'!O65)*50% -> 0.07954978224 | F58: =((F39/'Guide & drivers'!P46)*50%)+(F39/'Guide & drivers'!P65)*50% -> 0.06899664202 | L58: NPgY | M58: 2 | N58: 3
D59: WMID | E59: =((E40/'Guide & drivers'!O47)*50%)+(E40/'Guide & drivers'!O66)*50% -> 0.09774776907 | F59: =((F40/'Guide & drivers'!P47)*50%)+(F40/'Guide & drivers'!P66)*50% -> 0.09697545716 | L59: WMID | M59: 5 | N59: 7
D60: EMID | E60: =((E41/'Guide & drivers'!O48)*50%)+(E41/'Guide & drivers'!O67)*50% -> 0.08259424776 | F60: =((F41/'Guide & drivers'!P48)*50%)+(F41/'Guide & drivers'!P67)*50% -> 0.08237394058 | L60: EMID | M60: 3 | N60: 6
D61: SWALES | E61: =((E42/'Guide & drivers'!O49)*50%)+(E42/'Guide & drivers'!O68)*50% -> 0.12959254 | F61: =((F42/'Guide & drivers'!P49)*50%)+(F42/'Guide & drivers'!P68)*50% -> 0.1321024387 | L61: SWALES | M61: 12 | N61: 12
D62: SWEST | E62: =((E43/'Guide & drivers'!O50)*50%)+(E43/'Guide & drivers'!O69)*50% -> 0.1094197033 | F62: =((F43/'Guide & drivers'!P50)*50%)+(F43/'Guide & drivers'!P69)*50% -> 0.107267495 | L62: SWEST | M62: 7 | N62: 10
D63: LPN | E63: =((E44/'Guide & drivers'!O51)*50%)+(E44/'Guide & drivers'!O70)*50% -> 0.1143870224 | F63: =((F44/'Guide & drivers'!P51)*50%)+(F44/'Guide & drivers'!P70)*50% -> 0.1226782876 | L63: LPN | M63: 8 | N63: 11
D64: SPN | E64: =((E45/'Guide & drivers'!O52)*50%)+(E45/'Guide & drivers'!O71)*50% -> 0.1256092663 | F64: =((F45/'Guide & drivers'!P52)*50%)+(F45/'Guide & drivers'!P71)*50% -> 0.1018070717 | L64: SPN | M64: 11 | N64: 9
D65: EPN | E65: =((E46/'Guide & drivers'!O53)*50%)+(E46/'Guide & drivers'!O72)*50% -> 0.09557470257 | F65: =((F46/'Guide & drivers'!P53)*50%)+(F46/'Guide & drivers'!P72)*50% -> 0.09811266964 | L65: EPN | M65: 4 | N65: 8
D66: SPD* | E66: =((E47/'Guide & drivers'!O54)*50%)+(E47/'Guide & drivers'!O73)*50% -> 0.104428442 | F66: =((F47/'Guide & drivers'!P54)*50%)+(F47/'Guide & drivers'!P73)*50% -> 0.06286325836 | L66: SPD | M66: 6 | N66: 2
D67: SPMW* | E67: =((E48/'Guide & drivers'!O55)*50%)+(E48/'Guide & drivers'!O74)*50% -> 0.1161171224 | F67: =((F48/'Guide & drivers'!P55)*50%)+(F48/'Guide & drivers'!P74)*50% -> 0.07177479583 | L67: SPMW | M67: 9 | N67: 4
D68: SSEH | E68: =((E49/'Guide & drivers'!O56)*50%)+(E49/'Guide & drivers'!O75)*50% -> 0.1360975193 | F68: =((F49/'Guide & drivers'!P56)*50%)+(F49/'Guide & drivers'!P75)*50% -> 0.1737321017 | L68: SSEH | M68: 13 | N68: 14
D69: SSES | E69: =((E50/'Guide & drivers'!O57)*50%)+(E50/'Guide & drivers'!O76)*50% -> 0.2020884743 | F69: =((F50/'Guide & drivers'!P57)*50%)+(F50/'Guide & drivers'!P76)*50% -> 0.1440343237 | L69: SSES | M69: 14 | N69: 13
D70: Total | E70: =((E51/'Guide & drivers'!O58)*50%)+(E51/'Guide & drivers'!O77)*50% -> 0.1130858825 | F70: =((F51/'Guide & drivers'!P58)*50%)+(F51/'Guide & drivers'!P77)*50% -> 0.0988112344
B73: Sulphur hexafluoride emissions (SF6) | D73: SF6 emissions (kg)
E74: RIIO-ED1 | F74: RIIO-ED2 | L74: SF6 bank (kg) | M74: RIIO-ED1 | N74: RIIO-ED2
E75: 2022/23 | F75: 2023/24 | G75: 2024/25 | H75: 2025/26 | I75: 2026/27 | J75: 2027/28 | M75: 2022/23 | N75: 2023/24 | O75: 2024/25 | P75: 2025/26 | Q75: 2026/27 | R75: 2027/28
D76: ENWL | E76: ='[3]CV22 - Environmental Reporting'!AB$182 -> 38.24 | F76: ='[3]CV22 - Environmental Reporting'!AC$182 -> 28.233 | L76: ENWL | M76: ='[3]CV22 - Environmental Reporting'!AB$181 -> 16105.22 | N76: ='[3]CV22 - Environmental Reporting'!AC$181 -> 16264.14
D77: NPgN | E77: ='[5]CV22 - Environmental Reporting'!AB$182 -> 21.88 | F77: ='[5]CV22 - Environmental Reporting'!AC$182 -> 8.7 | L77: NPgN | M77: ='[5]CV22 - Environmental Reporting'!AB$181 -> 17257.73 | N77: ='[5]CV22 - Environmental Reporting'!AC$181 -> 17239.54
D78: NPgY | E78: ='[7]CV22 - Environmental Reporting'!AB$182 -> 107.2 | F78: ='[7]CV22 - Environmental Reporting'!AC$182 -> 95 | L78: NPgY | M78: ='[7]CV22 - Environmental Reporting'!AB$181 -> 20526.39 | N78: ='[7]CV22 - Environmental Reporting'!AC$181 -> 20306.12
D79: WMID | E79: ='[9]CV22 - Environmental Reporting'!AB$182 -> 116.158 | F79: ='[9]CV22 - Environmental Reporting'!AC$182 -> 93.199 | L79: WMID | M79: ='[9]CV22 - Environmental Reporting'!AB$181 -> 29161.345 | N79: ='[9]CV22 - Environmental Reporting'!AC$181 -> 31374.355
D80: EMID | E80: ='[11]CV22 - Environmental Reporting'!AB$182 -> 78.693 | F80: ='[11]CV22 - Environmental Reporting'!AC$182 -> 58.284 | L80: EMID | M80: ='[11]CV22 - Environmental Reporting'!AB$181 -> 31212.16 | N80: ='[11]CV22 - Environmental Reporting'!AC$181 -> 33435.99
D81: SWALES | E81: ='[13]CV22 - Environmental Reporting'!AB$182 -> 116.587 | F81: ='[13]CV22 - Environmental Reporting'!AC$182 -> 118.192 | L81: SWALES | M81: ='[13]CV22 - Environmental Reporting'!AB$181 -> 21540.15 | N81: ='[13]CV22 - Environmental Reporting'!AC$181 -> 22008.18
D82: SWEST | E82: ='[15]CV22 - Environmental Reporting'!AB$182 -> 86.116 | F82: ='[15]CV22 - Environmental Reporting'!AC$182 -> 75.758 | L82: SWEST | M82: ='[15]CV22 - Environmental Reporting'!AB$181 -> 18898.09 | N82: ='[15]CV22 - Environmental Reporting'!AC$181 -> 20296.56
D83: LPN | E83: ='[17]CV22 - Environmental Reporting'!AB$182 -> 11.175 | F83: ='[17]CV22 - Environmental Reporting'!AC$182 -> 16.141 | L83: LPN | M83: ='[17]CV22 - Environmental Reporting'!AB$181 -> 49183 | N83: ='[17]CV22 - Environmental Reporting'!AC$181 -> 49667.25
D84: SPN | E84: ='[19]CV22 - Environmental Reporting'!AB$182 -> 6.201 | F84: ='[19]CV22 - Environmental Reporting'!AC$182 -> 11.169 | L84: SPN | M84: ='[19]CV22 - Environmental Reporting'!AB$181 -> 26016 | N84: ='[19]CV22 - Environmental Reporting'!AC$181 -> 26270.36
D85: EPN | E85: ='[21]CV22 - Environmental Reporting'!AB$182 -> 48.113 | F85: ='[21]CV22 - Environmental Reporting'!AC$182 -> 52.774 | L85: EPN | M85: ='[21]CV22 - Environmental Reporting'!AB$181 -> 51756 | N85: ='[21]CV22 - Environmental Reporting'!AC$181 -> 53502.26
D86: SPD | E86: ='[23]CV22 - Environmental Reporting'!AB$182 -> 150.645 | F86: ='[23]CV22 - Environmental Reporting'!AC$182 -> 137.06 | L86: SPD | M86: ='[23]CV22 - Environmental Reporting'!AB$181 -> 23097.615 | N86: ='[23]CV22 - Environmental Reporting'!AC$181 -> 23490.42
D87: SPMW | E87: ='[25]CV22 - Environmental Reporting'!AB$182 -> 137.375 | F87: ='[25]CV22 - Environmental Reporting'!AC$182 -> 112.28 | L87: SPMW | M87: ='[25]CV22 - Environmental Reporting'!AB$181 -> 22787.207 | N87: ='[25]CV22 - Environmental Reporting'!AC$181 -> 27116.5
D88: SSEH | E88: ='[27]CV22 - Environmental Reporting'!AB$182 -> 3.85 | F88: ='[27]CV22 - Environmental Reporting'!AC$182 -> 2.36 | L88: SSEH | M88: ='[27]CV22 - Environmental Reporting'!AB$181 -> 5069.988 | N88: 6046
D89: SSES | E89: ='[29]CV22 - Environmental Reporting'!AB$182 -> 202.705 | F89: ='[29]CV22 - Environmental Reporting'!AC$182 -> 150.665 | L89: SSES | M89: ='[29]CV22 - Environmental Reporting'!AB$181 -> 22297.16 | N89: 24011
D90: Total | E90: =SUM(E76:E89) -> 1124.938 | F90: 959.815 | L90: Total | M90: =SUM(M76:M89) -> 354908.055 | N90: =SUM(N76:N89) -> 371028.675
D93: SF6 emissions as a percentage of the SF6 bank | L93: SF6 emitted as % of bank - SNAPSHOT
E94: RIIO-ED1 | F94: RIIO-ED2 | M94: RIIO-ED1 | N94: RIIO-ED2
E95: 2022/23 | F95: 2023/24 | G95: 2024/25 | H95: 2025/26 | I95: 2026/27 | J95: 2027/28 | L95: Ranking | M95: 2022/23 | N95: 2023/24 | O95: 2024/25 | P95: 2025/26 | Q95: 2026/27 | R95: 2027/28
D96: ENWL | E96: =E76/M76 -> 0.002374385448 | F96: =F76/N76 -> 0.00173590488 | L96: ENWL | M96: =RANK(E96,$E$96:$E$109,1) -> 6 | N96: =RANK(F96,$F$96:$F$109,1) -> 6
D97: NPgN | E97: 0.001267837659 | F97: 0.0005046538365 | L97: NPgN | M97: =RANK(E97,$E$96:$E$109,1) -> 5 | N97: 4
D98: NPgY | E98: 0.005222545221 | F98: 0.004678392524 | L98: NPgY | M98: 10 | N98: 11
D99: WMID | E99: 0.003983286779 | F99: 0.002970547124 | L99: WMID | M99: 8 | N99: 8
D100: EMID | E100: 0.002521228906 | F100: 0.001743151616 | L100: EMID | M100: 7 | N100: 7
D101: SWALES | E101: 0.005412543552 | F101: 0.005370366836 | L101: SWALES | M101: 11 | N101: 12
D102: SWEST | E102: 0.004556862625 | F102: 0.003732553694 | L102: SWEST | M102: 9 | N102: 9
D103: LPN | E103: 0.0002272126548 | F103: 0.0003249827603 | L103: LPN | M103: 1 | N103: 1
D104: SPN | E104: 0.000238353321 | F104: 0.0004251559552 | L104: SPN | M104: 2 | N104: 3
D105: EPN | E105: 0.0009296120257 | F105: 0.0009863882386 | L105: EPN | M105: 4 | N105: 5
D106: SPD | E106: 0.006522101957 | F106: 0.005834719005 | L106: SPD | M106: 13 | N106: 13
D107: SPMW | E107: 0.006028601926 | F107: 0.00414065237 | L107: SPMW | M107: 12 | N107: 10
D108: SSEH | E108: 0.0007593706336 | F108: 0.0003903407211 | L108: SSEH | M108: 3 | N108: 2
D109: SSES | E109: 0.0090910681 | F109: 0.006274832368 | L109: SSES | M109: 14 | N109: 14
D110: Total | E110: 0.003169660379 | F110: 0.002586902481
B113: Leakages from fluid filled cables | D113: Top up of fluid filled cables (litres) | L113: Oil in Service in Cables (litres)
E114: RIIO-ED1 | F114: RIIO-ED2 | M114: RIIO-ED1 | N114: RIIO-ED2
E115: 2022/23 | F115: 2023/24 | G115: 2024/25 | H115: 2025/26 | I115: 2026/27 | J115: 2027/28 | M115: 2022/23 | N115: 2023/24 | O115: 2024/25 | P115: 2025/26 | Q115: 2026/27 | R115: 2027/28
D116: ENWL | E116: ='[3]CV22 - Environmental Reporting'!AB$176 -> 13217 | F116: ='[3]CV22 - Environmental Reporting'!AC$176 -> 17545 | L116: ENWL | M116: ='[3]CV22 - Environmental Reporting'!AB$175 -> 1002587 | N116: ='[3]CV22 - Environmental Reporting'!AC$175 -> 972894.6821
D117: NPgN | E117: ='[5]CV22 - Environmental Reporting'!AB$176 -> 9864 | F117: ='[5]CV22 - Environmental Reporting'!AC$176 -> 9183 | L117: NPgN | M117: ='[5]CV22 - Environmental Reporting'!AB$175 -> 1177056.608 | N117: ='[5]CV22 - Environmental Reporting'!AC$175 -> 1170566.314
D118: NPgY | E118: ='[7]CV22 - Environmental Reporting'!AB$176 -> 10754 | F118: ='[7]CV22 - Environmental Reporting'!AC$176 -> 18375 | L118: NPgY | M118: ='[7]CV22 - Environmental Reporting'!AB$175 -> 803691.4906 | N118: ='[7]CV22 - Environmental Reporting'!AC$175 -> 790536.5497
D119: WMID | E119: ='[9]CV22 - Environmental Reporting'!AB$176 -> 13032 | F119: ='[9]CV22 - Environmental Reporting'!AC$176 -> 4888 | L119: WMID | M119: ='[9]CV22 - Environmental Reporting'!AB$175 -> 670785 | N119: ='[9]CV22 - Environmental Reporting'!AC$175 -> 670785
D120: EMID | E120: ='[11]CV22 - Environmental Reporting'!AB$176 -> 5806 | F120: ='[11]CV22 - Environmental Reporting'!AC$176 -> 4076 | L120: EMID | M120: ='[11]CV22 - Environmental Reporting'!AB$175 -> 520698 | N120: ='[11]CV22 - Environmental Reporting'!AC$175 -> 521667
D121: SWALES | E121: ='[13]CV22 - Environmental Reporting'!AB$176 -> 5460 | F121: ='[13]CV22 - Environmental Reporting'!AC$176 -> 100 | L121: SWALES | M121: ='[13]CV22 - Environmental Reporting'!AB$175 -> 197103 | N121: ='[13]CV22 - Environmental Reporting'!AC$175 -> 197103
D122: SWEST | E122: ='[15]CV22 - Environmental Reporting'!AB$176 -> 35 | F122: ='[15]CV22 - Environmental Reporting'!AC$176 -> 237 | L122: SWEST | M122: ='[15]CV22 - Environmental Reporting'!AB$175 -> 273595 | N122: ='[15]CV22 - Environmental Reporting'!AC$175 -> 273595
D123: LPN | E123: ='[17]CV22 - Environmental Reporting'!AB$176 -> 118162 | F123: ='[17]CV22 - Environmental Reporting'!AC$176 -> 85461 | L123: LPN | M123: ='[17]CV22 - Environmental Reporting'!AB$175 -> 2957970.364 | N123: ='[17]CV22 - Environmental Reporting'!AC$175 -> 2929766.916
D124: SPN | E124: ='[19]CV22 - Environmental Reporting'!AB$176 -> 50947 | F124: ='[19]CV22 - Environmental Reporting'!AC$176 -> 47871 | L124: SPN | M124: ='[19]CV22 - Environmental Reporting'!AB$175 -> 2037178.44 | N124: ='[19]CV22 - Environmental Reporting'!AC$175 -> 2037178.44
D125: EPN | E125: ='[21]CV22 - Environmental Reporting'!AB$176 -> 59479 | F125: ='[21]CV22 - Environmental Reporting'!AC$176 -> 64974 | L125: EPN | M125: ='[21]CV22 - Environmental Reporting'!AB$175 -> 2127925.746 | N125: ='[21]CV22 - Environmental Reporting'!AC$175 -> 2129519.308
D126: SPD | E126: ='[23]CV22 - Environmental Reporting'!AB$176 -> 25 | F126: ='[23]CV22 - Environmental Reporting'!AC$176 -> 70 | L126: SPD | M126: ='[23]CV22 - Environmental Reporting'!AB$175 -> 93300 | N126: ='[23]CV22 - Environmental Reporting'!AC$175 -> 93300
D127: SPMW | E127: ='[25]CV22 - Environmental Reporting'!AB$176 -> 13421 | F127: ='[25]CV22 - Environmental Reporting'!AC$176 -> 17523 | L127: SPMW | M127: ='[25]CV22 - Environmental Reporting'!AB$175 -> 668360 | N127: ='[25]CV22 - Environmental Reporting'!AC$175 -> 662200
D128: SSEH | E128: ='[27]CV22 - Environmental Reporting'!AB$176 -> 84 | F128: ='[27]CV22 - Environmental Reporting'!AC$176 -> 0 | L128: SSEH | M128: ='[27]CV22 - Environmental Reporting'!AB$175 -> 28466.542 | N128: ='[27]CV22 - Environmental Reporting'!AC$175 -> 28466.542
D129: SSES | E129: ='[29]CV22 - Environmental Reporting'!AB$176 -> 12369 | F129: ='[29]CV22 - Environmental Reporting'!AC$176 -> 10758 | L129: SSES | M129: ='[29]CV22 - Environmental Reporting'!AB$175 -> 620033.7488 | N129: ='[29]CV22 - Environmental Reporting'!AC$175 -> 654349.7578
D130: Total | E130: =SUM(E116:E129) -> 312655 | F130: 281061 | L130: Total | M130: =SUM(M116:M129) -> 13178750.94 | N130: 13131928.51
D132: Top up as a % of oil in service | L132: Top up as a % of oil in service - SNAPSHOT
E133: RIIO-ED1 | F133: RIIO-ED2 | M133: RIIO-ED1 | N133: RIIO-ED2
E134: 2022/23 | F134: 2023/24 | G134: 2024/25 | H134: 2025/26 | I134: 2026/27 | J134: 2027/28 | L134: Ranking | M134: 2022/23 | N134: 2023/24 | O134: 2024/25 | P134: 2025/26 | Q134: 2026/27 | R134: 2027/28
D135: ENWL | E135: =IFERROR(E116/M116,"") -> 0.01318289585 | F135: =IFERROR(F116/N116,"") -> 0.01803381221 | L135: ENWL | M135: =RANK(E135,$E$135:$E$148,1) -> 6 | N135: =RANK(F135,$F$135:$F$148,1) -> 9
D136: NPgN | E136: 0.008380225672 | F136: 0.007844920781 | L136: NPgN | M136: =RANK(E136,$E$135:$E$148,1) -> 4 | N136: 7
D137: NPgY | E137: 0.01338075633 | F137: 0.02324370708 | L137: NPgY | M137: 7 | N137: 10
D138: WMID | E138: 0.01942798363 | F138: 0.007286984652 | L138: WMID | M138: 8 | N138: 5
D139: EMID | E139: 0.01115041732 | F139: 0.007813413538 | L139: EMID | M139: 5 | N139: 6
D140: SWALES | E140: 0.02770125264 | F140: 0.0005073489495 | L140: SWALES | M140: 12 | N140: 2
D141: SWEST | E141: 0.0001279263144 | F141: 0.0008662439007 | L141: SWEST | M141: 1 | N141: 4
D142: LPN | E142: 0.03994698575 | F142: 0.02916989729 | L142: LPN | M142: 14 | N142: 13
D143: SPN | E143: 0.02500860946 | F143: 0.02349867791 | L143: SPN | M143: 11 | N143: 11
D144: EPN | E144: 0.02795163323 | F144: 0.030511111 | L144: EPN | M144: 13 | N144: 14
D145: SPD | E145: 0.0002679528403 | F145: 0.0007502679528 | L145: SPD | M145: 2 | N145: 3
D146: SPMW | E146: 0.02008049554 | F146: 0.02646179402 | L146: SPMW | M146: 10 | N146: 12
D147: SSEH | E147: 0.002950832595 | F147: 0 | L147: SSEH | M147: 3 | N147: 1
D148: SSES | E148: 0.01994891411 | F148: 0.01644074881 | L148: SSES | M148: 9 | N148: 8
D149: Total | E149: 0.02372417549 | F149: 0.02140287314
B153: Undergrounding
D154: Detailed Undergrounding Activity Under ED2 Visual Amenity Allowance
D156: DNO | E156: AONB / national park | F156: 2023/24 | I156: 2024/25 | L156: 2025/26 | O156: 2026/27 | R156: 2027/28
F157: Length of overhead lines (km) removed | G157: Length of underground cables installed in Designated Areas (km) | H157: Expenditure (£m) | I157: Length of overhead lines (km) removed | J157: Length of underground cables installed in Designated Areas (km) | K157: Expenditure (£m) | L157: Length of overhead lines (km) removed | M157: Length of underground cables installed in Designated Areas (km) | N157: Expenditure (£m) | O157: Length of overhead lines (km) removed | P157: Length of underground cables installed in Designated Areas (km) | Q157: Expenditure (£m) | R157: Length of overhead lines (km) removed | S157: Length of underground cables installed in Designated Areas (km) | T157: Expenditure (£m)
D158: ENWL | E158: Arnside & Silverdale | F158: ='[79]E1 - Visual Amenity'!$M7 -> 0.855 | G158: ='[79]E1 - Visual Amenity'!$R7 -> 1.025 | H158: ='[79]E1 - Visual Amenity'!$W7 -> 0.227593945
E159: Forest of Bowland | F159: ='[79]E1 - Visual Amenity'!$M8 -> 0 | G159: ='[79]E1 - Visual Amenity'!$R8 -> 0 | H159: ='[79]E1 - Visual Amenity'!$W8 -> 0
E160: North Pennines | F160: ='[79]E1 - Visual Amenity'!$M9 -> 0 | G160: ='[79]E1 - Visual Amenity'!$R9 -> 0 | H160: ='[79]E1 - Visual Amenity'!$W9 -> -0.07269852924
E161: Solway Coast | F161: ='[79]E1 - Visual Amenity'!$M10 -> 1.022 | G161: ='[79]E1 - Visual Amenity'!$R10 -> 1.381 | H161: ='[79]E1 - Visual Amenity'!$W10 -> 0.243189756
E162: The Lake District | F162: ='[79]E1 - Visual Amenity'!$M11 -> 1.459 | G162: ='[79]E1 - Visual Amenity'!$R11 -> 2.086 | H162: ='[79]E1 - Visual Amenity'!$W11 -> 0.565451082
E163: The Peak District | F163: ='[79]E1 - Visual Amenity'!$M12 -> 0 | G163: ='[79]E1 - Visual Amenity'!$R12 -> 0 | H163: ='[79]E1 - Visual Amenity'!$W12 -> 0
E164: The Yorkshire Dales | F164: ='[79]E1 - Visual Amenity'!$M13 -> 0 | G164: ='[79]E1 - Visual Amenity'!$R13 -> 0 | H164: ='[79]E1 - Visual Amenity'!$W13 -> 0
D165: NPGN | E165: Howardian Hills | F165: ='[80]E1 - Visual Amenity '!$M7 -> 0 | G165: ='[80]E1 - Visual Amenity '!$R7 -> 0 | H165: ='[80]E1 - Visual Amenity '!$W7 -> 0.001825590736
E166: Nidderdale | F166: ='[80]E1 - Visual Amenity '!$M8 -> 0 | G166: ='[80]E1 - Visual Amenity '!$R8 -> 0 | H166: ='[80]E1 - Visual Amenity '!$W8 -> 0
E167: North Pennines | F167: ='[80]E1 - Visual Amenity '!$M9 -> 0 | G167: ='[80]E1 - Visual Amenity '!$R9 -> 0 | H167: ='[80]E1 - Visual Amenity '!$W9 -> 0
E168: Northumberland Coast | F168: ='[80]E1 - Visual Amenity '!$M10 -> 0 | G168: ='[80]E1 - Visual Amenity '!$R10 -> 0 | H168: ='[80]E1 - Visual Amenity '!$W10 -> 0
E169: Northumberland | F169: ='[80]E1 - Visual Amenity '!$M11 -> 0 | G169: ='[80]E1 - Visual Amenity '!$R11 -> 0 | H169: ='[80]E1 - Visual Amenity '!$W11 -> 0.004396739545
E170: North York Moors | F170: ='[80]E1 - Visual Amenity '!$M12 -> 0.51 | G170: ='[80]E1 - Visual Amenity '!$R12 -> 0.69 | H170: ='[80]E1 - Visual Amenity '!$W12 -> 0.1481674659
E171: Yorkshire Dales | F171: ='[80]E1 - Visual Amenity '!$M13 -> 0 | G171: ='[80]E1 - Visual Amenity '!$R13 -> 0 | H171: ='[80]E1 - Visual Amenity '!$W13 -> 0.002832414856
D172: NPGY | E172: Peak District | F172: ='[81]E1 - Visual Amenity '!$M7 -> 0 | G172: ='[81]E1 - Visual Amenity '!$R7 -> 0 | H172: ='[81]E1 - Visual Amenity '!$W7 -> 0.007281088556
E173: Yorkshire Dales | F173: ='[81]E1 - Visual Amenity '!$M8 -> 2.596 | G173: ='[81]E1 - Visual Amenity '!$R8 -> 4.5 | H173: ='[81]E1 - Visual Amenity '!$W8 -> 1.018940556
E174: Nidderdale | F174: ='[81]E1 - Visual Amenity '!$M9 -> 0 | G174: ='[81]E1 - Visual Amenity '!$R9 -> 0 | H174: ='[81]E1 - Visual Amenity '!$W9 -> 0.05829177155
E175: Lincolnshire Wolds | F175: ='[81]E1 - Visual Amenity '!$M10 -> 2.585 | G175: ='[81]E1 - Visual Amenity '!$R10 -> 5.56 | H175: ='[81]E1 - Visual Amenity '!$W10 -> 0.6331155993
D176: WMID | E176: Cannock Chase | F176: ='[82]E1 - Visual Amenity'!$M7 -> 0 | G176: ='[82]E1 - Visual Amenity'!$R7 -> 0 | H176: ='[82]E1 - Visual Amenity'!$W7 -> 0
E177: Cotswolds (WMID) | F177: ='[82]E1 - Visual Amenity'!$M8 -> 1.07748 | G177: ='[82]E1 - Visual Amenity'!$R8 -> 1.56665 | H177: ='[82]E1 - Visual Amenity'!$W8 -> 0.2592643535
E178: Malvern Hills | F178: ='[82]E1 - Visual Amenity'!$M9 -> 0 | G178: ='[82]E1 - Visual Amenity'!$R9 -> 0 | H178: ='[82]E1 - Visual Amenity'!$W9 -> 0
E179: Peak District NP (WMID) | F179: ='[82]E1 - Visual Amenity'!$M10 -> 0 | G179: ='[82]E1 - Visual Amenity'!$R10 -> 0 | H179: ='[82]E1 - Visual Amenity'!$W10 -> 0
E180: Wye Valley (WMID) | F180: ='[82]E1 - Visual Amenity'!$M11 -> 0.40574 | G180: ='[82]E1 - Visual Amenity'!$R11 -> 0.41022 | H180: ='[82]E1 - Visual Amenity'!$W11 -> 0.03673242273
E181: Shropshire Hills | F181: ='[82]E1 - Visual Amenity'!$M12 -> 0 | G181: ='[82]E1 - Visual Amenity'!$R12 -> 0 | H181: ='[82]E1 - Visual Amenity'!$W12 -> 0
D182: EMID | E182: Lincolnshire Wolds | F182: ='[83]E1 - Visual Amenity'!$M7 -> 0.81643 | G182: ='[83]E1 - Visual Amenity'!$R7 -> 0.77745 | H182: ='[83]E1 - Visual Amenity'!$W7 -> 0.04335851578
E183: Peak District NP (EMID) | F183: ='[83]E1 - Visual Amenity'!$M8 -> 0 | G183: ='[83]E1 - Visual Amenity'!$R8 -> 0 | H183: ='[83]E1 - Visual Amenity'!$W8 -> 0.002403126735
D184: SWales | E184: Brecon Beacons NP | F184: ='[84]E1 - Visual Amenity'!$M7 -> 0 | G184: ='[84]E1 - Visual Amenity'!$R7 -> 0 | H184: ='[84]E1 - Visual Amenity'!$W7 -> 0
E185: Gower | F185: ='[84]E1 - Visual Amenity'!$M8 -> 0 | G185: ='[84]E1 - Visual Amenity'!$R8 -> 0 | H185: ='[84]E1 - Visual Amenity'!$W8 -> 0.3455803395
E186: Pembrokeshire Coast NP | F186: ='[84]E1 - Visual Amenity'!$M9 -> 0 | G186: ='[84]E1 - Visual Amenity'!$R9 -> 0 | H186: ='[84]E1 - Visual Amenity'!$W9 -> 0.0272016445
E187: Wye Valley (SWALES) | F187: ='[84]E1 - Visual Amenity'!$M10 -> 0 | G187: ='[84]E1 - Visual Amenity'!$R10 -> 0 | H187: ='[84]E1 - Visual Amenity'!$W10 -> 0.1917455617
D188: SWest | E188: Blackdown | F188: ='[85]E1 - Visual Amenity'!$M7 -> 0 | G188: ='[85]E1 - Visual Amenity'!$R7 -> 0 | H188: ='[85]E1 - Visual Amenity'!$W7 -> 0
E189: Cornwall | F189: ='[85]E1 - Visual Amenity'!$M8 -> 0 | G189: ='[85]E1 - Visual Amenity'!$R8 -> 0 | H189: ='[85]E1 - Visual Amenity'!$W8 -> 0.02998815786
E190: Dartmoor NP | F190: ='[85]E1 - Visual Amenity'!$M9 -> 0 | G190: ='[85]E1 - Visual Amenity'!$R9 -> 0 | H190: ='[85]E1 - Visual Amenity'!$W9 -> 0
E191: Dorset | F191: ='[85]E1 - Visual Amenity'!$M10 -> 0 | G191: ='[85]E1 - Visual Amenity'!$R10 -> 0 | H191: ='[85]E1 - Visual Amenity'!$W10 -> 0
E192: East Devon | F192: ='[85]E1 - Visual Amenity'!$M11 -> 0 | G192: ='[85]E1 - Visual Amenity'!$R11 -> 0 | H192: ='[85]E1 - Visual Amenity'!$W11 -> 0
E193: Exmoor NP | F193: ='[85]E1 - Visual Amenity'!$M12 -> 0 | G193: ='[85]E1 - Visual Amenity'!$R12 -> 0.21314 | H193: ='[85]E1 - Visual Amenity'!$W12 -> 0.0009163549278
E194: Mendip Hills | F194: ='[85]E1 - Visual Amenity'!$M13 -> 0 | G194: ='[85]E1 - Visual Amenity'!$R13 -> 0 | H194: ='[85]E1 - Visual Amenity'!$W13 -> 0
E195: North Devon | F195: ='[85]E1 - Visual Amenity'!$M14 -> 2.04811 | G195: ='[85]E1 - Visual Amenity'!$R14 -> 3.14303 | H195: ='[85]E1 - Visual Amenity'!$W14 -> 0.4519936879
E196: Quantock Hills | F196: ='[85]E1 - Visual Amenity'!$M15 -> 0 | G196: ='[85]E1 - Visual Amenity'!$R15 -> 0 | H196: ='[85]E1 - Visual Amenity'!$W15 -> 0
E197: Scilly Isles | F197: ='[85]E1 - Visual Amenity'!$M16 -> 0 | G197: ='[85]E1 - Visual Amenity'!$R16 -> 0 | H197: ='[85]E1 - Visual Amenity'!$W16 -> 0
E198: South Devon | F198: ='[85]E1 - Visual Amenity'!$M17 -> 0 | G198: ='[85]E1 - Visual Amenity'!$R17 -> 0 | H198: ='[85]E1 - Visual Amenity'!$W17 -> -0.00559638975
E199: Tamar Valley | F199: ='[85]E1 - Visual Amenity'!$M18 -> 0 | G199: ='[85]E1 - Visual Amenity'!$R18 -> 0 | H199: ='[85]E1 - Visual Amenity'!$W18 -> 0
E200: Cotswolds (SWEST) | F200: ='[85]E1 - Visual Amenity'!$M19 -> 0 | G200: ='[85]E1 - Visual Amenity'!$R19 -> 0 | H200: ='[85]E1 - Visual Amenity'!$W19 -> 0
D201: LPN | E201: n/a | F201: - | G201: - | H201: -
D202: SPN | E202: South Downs National Park | F202: ='[87]E1 - Visual Amenity'!$M7 -> 0.601794 | G202: ='[87]E1 - Visual Amenity'!$R7 -> 0.589654 | H202: ='[87]E1 - Visual Amenity'!$W7 -> 0.2951514458
E203: High Weald National Landscape | F203: ='[87]E1 - Visual Amenity'!$M8 -> 0 | G203: ='[87]E1 - Visual Amenity'!$R8 -> 0 | H203: ='[87]E1 - Visual Amenity'!$W8 -> 0.1003492431
E204: Surrey Hills National Landscape | F204: ='[87]E1 - Visual Amenity'!$M9 -> 0 | G204: ='[87]E1 - Visual Amenity'!$R9 -> 0 | H204: ='[87]E1 - Visual Amenity'!$W9 -> 0.125272593
E205: Kent Downs National Landscape | F205: ='[87]E1 - Visual Amenity'!$M10 -> 0 | G205: ='[87]E1 - Visual Amenity'!$R10 -> 0 | H205: ='[87]E1 - Visual Amenity'!$W10 -> 0.002088968141
D206: EPN | E206: The Broads National Park | F206: ='[88]E1 - Visual Amenity'!$M7 -> 0 | G206: ='[88]E1 - Visual Amenity'!$R7 -> 1.57848 | H206: ='[88]E1 - Visual Amenity'!$W7 -> 0.2639738355
E207: Suffolk Coast and Heaths National Landscape | F207: ='[88]E1 - Visual Amenity'!$M8 -> 0 | G207: ='[88]E1 - Visual Amenity'!$R8 -> 0 | H207: ='[88]E1 - Visual Amenity'!$W8 -> 0.05661186089
E208: Norfolk Coast National Landscape | F208: ='[88]E1 - Visual Amenity'!$M9 -> 0 | G208: ='[88]E1 - Visual Amenity'!$R9 -> 0 | H208: ='[88]E1 - Visual Amenity'!$W9 -> 0
E209: Dedham Vale National Landscape | F209: ='[88]E1 - Visual Amenity'!$M10 -> 0 | G209: ='[88]E1 - Visual Amenity'!$R10 -> 0 | H209: ='[88]E1 - Visual Amenity'!$W10 -> 0.06032899262
E210: The Chilterns National Landscape | F210: ='[88]E1 - Visual Amenity'!$M11 -> 8.76447 | G210: ='[88]E1 - Visual Amenity'!$R11 -> 14.65212 | H210: ='[88]E1 - Visual Amenity'!$W11 -> 1.070549221
D211: SPD | E211: Loch Lomond & Trossachs | F211: ='[89]E1 - Visual Amenity'!$M7 -> 0 | G211: ='[89]E1 - Visual Amenity'!$R7 -> 0 | H211: ='[89]E1 - Visual Amenity'!$W7 -> 0
E212: Nith Estuary | F212: ='[89]E1 - Visual Amenity'!$M8 -> 0 | G212: ='[89]E1 - Visual Amenity'!$R8 -> 0 | H212: ='[89]E1 - Visual Amenity'!$W8 -> 0
E213: Eildon & Leaderfoot | F213: ='[89]E1 - Visual Amenity'!$M9 -> 0 | G213: ='[89]E1 - Visual Amenity'!$R9 -> 0 | H213: ='[89]E1 - Visual Amenity'!$W9 -> 0
E214: Upper Tweedale | F214: ='[89]E1 - Visual Amenity'!$M10 -> 0 | G214: ='[89]E1 - Visual Amenity'!$R10 -> 0 | H214: ='[89]E1 - Visual Amenity'!$W10 -> 0
E215: Fleet Valley | F215: ='[89]E1 - Visual Amenity'!$M11 -> 2.069151026 | G215: ='[89]E1 - Visual Amenity'!$R11 -> 0.1260101886 | H215: ='[89]E1 - Visual Amenity'!$W11 -> 0.3052993289
E216: East Stewartry Coast | F216: ='[89]E1 - Visual Amenity'!$M12 -> 0 | G216: ='[89]E1 - Visual Amenity'!$R12 -> 0 | H216: ='[89]E1 - Visual Amenity'!$W12 -> 0
E217: Northumberland Coast | F217: ='[89]E1 - Visual Amenity'!$M13 -> 0 | G217: ='[89]E1 - Visual Amenity'!$R13 -> 0 | H217: ='[89]E1 - Visual Amenity'!$W13 -> 0.00344363
D218: SPMW | E218: Snowdonia National Park | F218: ='[90]E1 - Visual Amenity'!$M7 -> 0 | G218: ='[90]E1 - Visual Amenity'!$R7 -> 0 | H218: ='[90]E1 - Visual Amenity'!$W7 -> 0.088564891
... 73 more rows

Sheet Ch3 - innovation
A1: Chapter 3 - Innovation
B2: Overview of the DNOs’ expenditure in relation to the various innovation schemes in RIIO-ED2.
B4: Network Innovation Allowance (NIA) | D4: Network Innovation Allowance projects and expenditure
E5: 2023/24 | J5: 2024/25 | N5: 2025/26 | R5: 2026/27 | V5: 2027/28
E6: Number of projects | F6: Total ED2 NIA allowance (£m) | G6: NIA expenditure (£m) | H6: % of allowance spent in 23/24 | I6: CNIA expenditure (£m)* | J6: Number of projects | K6: NIA allowance (£m) | L6: NIA expenditure (£m) | M6: % of allowance | N6: Number of projects | O6: NIA allowance (£m) | P6: NIA expenditure (£m) | Q6: % of allowance | R6: Number of projects | S6: NIA allowance (£m) | T6: NIA expenditure (£m) | U6: % of allowance | V6: Number of projects | W6: NIA allowance (£m) | X6: NIA expenditure (£m) | Y6: % of allowance
D7: ENWL | E7: 0 | F7: =SUM([93]NIA!C$3) -> 8.4 | G7: =SUM([93]NIA!D$3) -> 0.591963998 | H7: =IFERROR(G7/F7,"N/A") -> 0.07047190453 | I7: =SUM([93]NIA!$E$3) -> 0.5327675982
D8: NPg | E8: 3 | F8: =SUM([93]NIA!$C$4:$C$5) -> 7.5 | G8: =SUM([93]NIA!$D$4:$D$5) -> 2.745353882 | H8: =IFERROR(G8/F8,"N/A") -> 0.3660471843 | I8: =SUM([93]NIA!$E$4:$E$5) -> 0.9434704955
D9: NGED | E9: 2 | F9: =SUM([93]NIA!$C$6:$C$9) -> 18 | G9: =SUM([93]NIA!$D$6:$D$9) -> 0.2095855447 | H9: 0.01164364137 | I9: =SUM([93]NIA!$E$6:$E$9) -> 1.747751349
D10: UKPN | E10: 4 | F10: =SUM([93]NIA!$C$10:$C$12) -> 15 | G10: =SUM([93]NIA!$D$10:$D$12) -> 3.397169018 | H10: 0.2264779345 | I10: =SUM([93]NIA!$E$10:$E$12) -> 0.8741368708
D11: SPEN | E11: 4 | F11: =SUM([93]NIA!$C$13:$C$14) -> 11.1 | G11: =SUM([93]NIA!$D$13:$D$14) -> 1.951942667 | H11: 0.1758506907 | I11: =SUM([93]NIA!$E$13:$E$14) -> 0.9337671676
D12: SSEN | E12: 2 | F12: =SUM([93]NIA!$C$15:$C$16) -> 8.4 | G12: =SUM([93]NIA!$D$15:$D$16) -> 2.280467804 | H12: 0.2714842624 | I12: =SUM([93]NIA!$E$15:$E$16) -> 0.5281123378
D13: Total | E13: =SUM(E7:E12) -> 15 | F13: =SUM(F7:F12) -> 68.4 | G13: =SUM(G7:G12) -> 11.17648291 | H13: =IFERROR(G13/F13,"N/A") -> 0.163398873 | I13: =SUM(I7:I12) -> 5.560005819
D14: * CNIA Expenditure is carry-over NIA expenditure from the final year of ED1 and will only be used in 2023/24 by the DNOs.
B16: Strategic Innovation Funding (SIF) | D16: Strategic Innovation Funding - Beta Projects
D17: 2023/24
D18: Project Title | E18: Lead company | F18: Description | G18: SIF funding awarded (£m) | H18: Total project costs (£m) | I18: Project end date
D19: N/A | E19: N/A | F19: N/A | G19: N/A | H19: N/A | I19: N/A
D20: N/A | E20: N/A | F20: N/A | G20: N/A | H20: N/A | I20: N/A
D21: There are no Beta projects in 23/24, there may be some from 24/25 onwards
D23: 2024/25
D24: Project Title | E24: Lead company | F24: Description | G24: SIF funding awarded (£m) | H24: Total project costs (£m) | I24: Project end date
D29: 2025/26
D30: Project Title | E30: Lead company | F30: Description | G30: SIF funding awarded (£m) | H30: Total project costs (£m) | I30: Project end date
D35: 2026/27
D36: Project Title | E36: Lead company | F36: Description | G36: SIF funding awarded (£m) | H36: Total project costs (£m) | I36: Project end date
D41: 2027/28
D42: Project Title | E42: Lead company | F42: Description | G42: SIF funding awarded (£m) | H42: Total project costs (£m) | I42: Project end date

Sheet Ch4 expenditure drivers
A1: Chapter 4 - Expenditure Drivers
B3: Distribution of allowances and expenditure per cost category | D3: 2023-24 | E3: Allowances | F3: % of total allowance | G3: Actuals | H3: % of total actual
D4: Total Load Related Capex | E4: =K148 -> 701.1815376 | F4: =E4/$E$12 -> 0.1591080043 | G4: =N148 -> 380.3116239 | H4: =G4/$G$12 -> 0.1003800483
D5: Total Non-Load Related Capex | E5: =K167 -> 1298.941556 | F5: =E5/$E$12 -> 0.2947482037 | G5: =N167 -> 1009.261329 | H5: =G5/$G$12 -> 0.266386023
D6: Total Non-Op Capex | E6: =K186 -> 290.5125883 | F6: 0.06592141361 | G6: =N186 -> 179.3935971 | H6: 0.04734942826
D7: Total HVPs | E7: =K205 -> 9.898787792 | F7: 0.002246174901 | G7: =N205 -> 2.716247004 | H7: 0.0007169305076
D8: Total Network Operating Costs | E8: =K224 -> 793.1114608 | F8: 0.1799682036 | G8: =N224 -> 902.9399326 | H8: 0.2383233864
D9: Total Closely Associated Costs | E9: =K243 -> 854.2596978 | F9: 0.1938436031 | G9: =N243 -> 829.9265027 | H9: 0.2190521068
D10: Total Business Support Costs | E10: =K262 -> 456.4143073 | F10: 0.1035668592 | G10: =N262 -> 454.9036103 | H10: 0.1200679746
D11: Total Other Costs | E11: =K281 -> 2.633320069 | F11: 0.000597537554 | G11: =N281 -> 29.26443904 | H11: 0.007724102082
D12: Total | E12: =SUM(E4:E11) -> 4406.953256 | G12: =SUM(G4:G11) -> 3788.717282
D15: Cumulative to date | E15: Allowances | F15: % of total allowance | G15: Actuals | H15: % of total actual
D16: Total Load Related Capex | E16: =SUM(K148) -> 701.1815376 | F16: =E16/$E$24 -> 0.1591080043 | G16: =SUM(N148) -> 380.3116239 | H16: =G16/$G$24 -> 0.1003800483
D17: Total Non-Load Related Capex | E17: =SUM(K167) -> 1298.941556 | F17: =E17/$E$24 -> 0.2947482037 | G17: =SUM(N167) -> 1009.261329 | H17: =G17/$G$24 -> 0.266386023
D18: Total Non-Op Capex | E18: =SUM(K186) -> 290.5125883 | F18: 0.06592141361 | G18: =SUM(N186) -> 179.3935971 | H18: 0.04734942826
D19: Total HVPs | E19: =SUM(K205) -> 9.898787792 | F19: 0.002246174901 | G19: =SUM(N205) -> 2.716247004 | H19: 0.0007169305076
D20: Total Network Operating Costs | E20: =SUM(K224) -> 793.1114608 | F20: 0.1799682036 | G20: =SUM(N224) -> 902.9399326 | H20: 0.2383233864
D21: Total Closely Associated Costs | E21: =SUM(K243) -> 854.2596978 | F21: 0.1938436031 | G21: =SUM(N243) -> 829.9265027 | H21: 0.2190521068
D22: Total Business Support Costs | E22: =SUM(K262) -> 456.4143073 | F22: 0.1035668592 | G22: =SUM(N262) -> 454.9036103 | H22: 0.1200679746
D23: Total Other Costs | E23: =SUM(K281) -> 2.633320069 | F23: 0.000597537554 | G23: =SUM(N281) -> 29.26443904 | H23: 0.007724102082
D24: Total | E24: =SUM(E16:E23) -> 4406.953256 | G24: =SUM(G16:G23) -> 3788.717282
D27: RIIO-ED2 | E27: Allowances | F27: % of total allowance | G27: Forecast | H27: % of total forecast
D28: Total Load Related Capex | E28: =L148 -> 3278.866248 | F28: =E28/$E$36 -> 0.1482830715 | G28: =O148 -> 3460.022651 | H28: =G28/$G$36 -> 0.1538055011
D29: Total Non-Load Related Capex | E29: =L167 -> 6971.788162 | F29: =E29/$E$36 -> 0.315291349 | G29: =O167 -> 7135.767578 | H29: =G29/$G$36 -> 0.3172003246
D30: Total Non-Op Capex | E30: =L186 -> 1252.721245 | F30: 0.05665292207 | G30: =O186 -> 1145.064964 | H30: 0.0509006178
D31: Total HVPs | E31: =L205 -> 79.34427983 | F31: 0.00358825662 | G31: =O205 -> 16.1972718 | H31: 0.000720003814
D32: Total Network Operating Costs | E32: =L224 -> 3893.85201 | F32: 0.1760951171 | G32: =O224 -> 4083.743422 | H32: 0.1815312403
D33: Total Closely Associated Costs | E33: =L243 -> 4270.573104 | F33: 0.1931319087 | G33: =O243 -> 4149.763952 | H33: 0.1844659958
D34: Total Business Support Costs | E34: =L262 -> 2277.054189 | F34: 0.1029772378 | G34: =O262 -> 2447.292156 | H34: 0.108787437
D35: Total Other Costs | E35: =L281 -> 88.00962494 | F35: 0.003980137194 | G35: =O281 -> 58.2396712 | H35: 0.002588879529
D36: Total | E36: =SUM(E28:E35) -> 22112.20886 | G36: =SUM(G28:G35) -> 22496.09167
D39: Expenditure on each category of cost by DNO during 23/24
E40: =D131 -> Total Load Related Capex | H40: =D150 -> Total Non-Load Related Capex | K40: =D169 -> Total Non Op Capex | N40: =D188 -> Total High Value Projects | Q40: =D207 -> Total Network Operating Costs | T40: =D226 -> Total Closely Associated Indirects | W40: =D245 -> Total Business Support Costs | Z40: =D264 -> All Other Costs
E41: Allowance | F41: Actual | G41: % difference | H41: Allowance | I41: Actual | J41: % difference | K41: Allowance | L41: Actual | M41: % difference | N41: Allowance | O41: Actual | P41: % difference | Q41: Allowance | R41: Actual | S41: % difference | T41: Allowance | U41: Actual | V41: % difference | W41: Allowance | X41: Actual | Y41: % difference | Z41: Allowance | AA41: Actual | AB41: % difference
D42: ENWL | E42: =K134 -> 45.25088368 | F42: =N134 -> 25.36568601 | G42: =T134 -> -0.4394433003 | H42: =K153 -> 114.4417352 | I42: =N153 -> 81.14858848 | J42: =T153 -> -0.2909178778 | K42: =K172 -> 22.61233386 | L42: =N172 -> 14.1276793 | M42: =T172 -> -0.3752224171 | N42: =K191 -> 0.03272349342 | O42: =N191 -> 0.6308716243 | P42: =T191 -> 18.27885927 | Q42: =K210 -> 56.91980582 | R42: =N210 -> 58.47841108 | S42: =T210 -> 0.02738247678 | T42: =K229 -> 68.59606934 | U42: =N229 -> 53.35828297 | V42: =T229 -> -0.2221378937 | W42: =K248 -> 50.23798891 | X42: =N248 -> 47.12565991 | Y42: =T248 -> -0.06195170361 | Z42: =K267 -> 0 | AA42: =N267 -> 0.3577602291 | AB42: =T267 -> 
D43: NPgN | E43: =K135 -> 27.17253585 | F43: =N135 -> 14.19885409 | G43: =T135 -> -0.4774556864 | H43: =K154 -> 68.38192616 | I43: =N154 -> 36.7211197 | J43: =T154 -> -0.4629996292 | K43: =K173 -> 12.51801888 | L43: =N173 -> 6.451299491 | M43: =T173 -> -0.4846389391 | N43: =K192 -> 0 | O43: =N192 -> 0 | P43: =T192 ->  | Q43: =K211 -> 37.6074871 | R43: =N211 -> 51.85925836 | S43: =T211 -> 0.3789610093 | T43: =K230 -> 44.92196478 | U43: =N230 -> 36.51057161 | V43: =T230 -> -0.1872445519 | W43: =K249 -> 24.32703301 | X43: =N249 -> 22.71848914 | Y43: =T249 -> -0.06612166291 | Z43: =K268 -> 4.672067314 | AA43: =N268 -> 0.8034414106 | AB43: =T268 -> -0.8280329977
D44: NPgY | E44: 46.77496826 | F44: 23.64002471 | G44: -0.4946009461 | H44: 85.39185097 | I44: 69.0016556 | J44: -0.1919409777 | K44: 13.52200629 | L44: 7.49620084 | M44: -0.4456295407 | N44: 0 | O44: 0 | Q44: 62.17832937 | R44: 82.41402144 | S44: 0.325446056 | T44: 56.31141745 | U44: 39.61564202 | V44: -0.296490058 | W44: 29.58220587 | X44: 27.73499415 | Y44: -0.06244333929 | Z44: 4.679586107 | AA44: 0.8034414106 | AB44: -0.8283093008
D45: WMID | E45: 55.63449011 | F45: 18.73760363 | G45: -0.6632016651 | H45: 92.70425248 | I45: 83.65172855 | J45: -0.09764950027 | K45: 24.76218236 | L45: 14.46078751 | M45: -0.416013205 | N45: 0 | O45: 0 | Q45: 59.38326995 | R45: 61.63784224 | S45: 0.03796645588 | T45: 63.39358122 | U45: 65.51656623 | V45: 0.03348895854 | W45: 38.19387844 | X45: 33.3458098 | Y45: -0.1269331326 | Z45: -5.683605615 | AA45: 1.111820961 | AB45: -1.19561895
D46: EMID | E46: 69.02073283 | F46: 38.21031841 | G46: -0.4463936147 | H46: 101.8411507 | I46: 82.06297017 | J46: -0.1942061771 | K46: 26.40407386 | L46: 15.98526423 | M46: -0.3945909896 | N46: 0 | O46: 0 | Q46: 63.75764772 | R46: 64.46865579 | S46: 0.01115173 | T46: 66.60766994 | U46: 64.72031295 | V46: -0.02833543033 | W46: 40.00103772 | X46: 33.32761553 | Y46: -0.1668312266 | Z46: -7.537768002 | AA46: 0.4959701735 | AB46: -1.065798015
D47: SWALES | E47: 28.46738739 | F47: 11.63051408 | G47: -0.5914442754 | H47: 67.39530154 | I47: 52.56075935 | J47: -0.2201124091 | K47: 20.00150427 | L47: 5.929844821 | M47: -0.7035300575 | N47: 0 | O47: 0 | Q47: 33.31458867 | R47: 32.1630515 | S47: -0.03456555269 | T47: 36.93856834 | U47: 36.49841681 | V47: -0.01191577115 | W47: 18.1773501 | X47: 18.29445983 | Y47: 0.006442618072 | Z47: -4.359612369 | AA47: 0.8553864681 | AB47: -1.196207001
D48: SWEST | E48: 34.25715652 | F48: 20.94590438 | G48: -0.3885685063 | H48: 99.63323916 | I48: 82.14566432 | J48: -0.1755194852 | K48: 22.81054417 | L48: 11.79354456 | M48: -0.4829783773 | N48: 0 | O48: 0 | Q48: 51.93680527 | R48: 56.04817891 | S48: 0.07916108068 | T48: 48.82534003 | U48: 54.90641516 | V48: 0.1245475224 | W48: 29.15189618 | X48: 31.22894895 | Y48: 0.07124931957 | Z48: -6.597621496 | AA48: -1.662096579
D49: LPN | E49: 57.44536228 | F49: 26.29129489 | G49: -0.5423251966 | H49: 55.67638951 | I49: 45.14904082 | J49: -0.1890810232 | K49: 19.44338932 | L49: 17.79310182 | M49: -0.084876534 | N49: 0 | O49: 0.2330963289 | Q49: 53.1853601 | R49: 53.64496672 | S49: 0.008641600359 | T49: 57.95773568 | U49: 54.82382242 | V49: -0.05407238955 | W49: 25.83416112 | X49: 25.82739246 | Y49: -0.0002620044577 | Z49: -1.175645446 | AA49: -0.5552294958
D50: SPN | E50: 26.03595965 | F50: 24.61578553 | G50: -0.05454664021 | H50: 84.98224108 | I50: 55.92274079 | J50: -0.3419479167 | K50: 21.60190302 | L50: 15.84181365 | M50: -0.2666473118 | N50: 0 | O50: 0 | Q50: 57.63986322 | R50: 70.10360577 | S50: 0.2162347697 | T50: 61.71938619 | U50: 57.52660558 | V50: -0.06793296026 | W50: 27.56804537 | X50: 26.45071468 | Y50: -0.04052992071 | Z50: -1.046863346 | AA50: -0.9744107027
D51: EPN | E51: 84.60021275 | F51: 48.71828643 | G51: -0.4241351783 | H51: 126.8503458 | I51: 83.21940999 | J51: -0.3439559863 | K51: 33.37540591 | L51: 26.61575988 | M51: -0.2025337474 | N51: 0 | O51: 1.852279051 | Q51: 95.34168451 | R51: 110.6463825 | S51: 0.1605247283 | T51: 93.64090725 | U51: 89.28470651 | V51: -0.04652027481 | W51: 41.10927369 | X51: 38.43938626 | Y51: -0.06494611045 | Z51: -1.896318792 | AA51: -1.992753324
D52: SPD | E52: 46.39587781 | F52: 35.56922895 | G52: -0.2333536808 | H52: 102.7416993 | I52: 88.35298927 | J52: -0.140047421 | K52: 20.57361882 | L52: 9.221625042 | M52: -0.5517742832 | N52: 0 | O52: 0 | Q52: 48.08458121 | R52: 47.2984957 | S52: -0.01634797466 | T52: 61.49326707 | U52: 49.53777123 | V52: -0.1944195912 | W52: 30.77386739 | X52: 35.74090633 | Y52: 0.1614044435 | Z52: -3.583726288 | AA52: -1.115717231
D53: SPMW | E53: 38.73127681 | F53: 28.72307954 | G53: -0.2584009125 | H53: 122.4167728 | I53: 96.22584125 | J53: -0.2139488808 | K53: 18.90763509 | L53: 9.806765303 | M53: -0.4813330563 | N53: 0 | O53: 0 | Q53: 50.20866458 | R53: 51.28637797 | S53: 0.02146468931 | T53: 53.05438755 | U53: 55.64000475 | V53: 0.04873521909 | W53: 26.32912537 | X53: 33.20053792 | Y53: 0.260981421 | Z53: -3.049257338 | AA53: -0.9596958406
D54: SSEH | E54: 38.92138381 | F54: 22.94841109 | G54: -0.4103906685 | H54: 66.51961221 | I54: 53.27693014 | J54: -0.1990793637 | K54: 12.02727171 | L54: 9.970572583 | M54: -0.1710029653 | N54: 9.866064298 | O54: 0 | Q54: 38.68518312 | R54: 74.62509635 | S54: 0.9290356237 | T54: 50.4961772 | U54: 60.50733802 | V54: 0.1982558161 | W54: 26.91037285 | X54: 34.25828957 | Y54: 0.273051465 | Z54: 25.93188269 | AA54: 28.69401167 | AB54: 0.1065147877
D55: SSES | E55: 102.4733099 | F55: 40.71663212 | G55: -0.602661101 | H55: 109.9650389 | I55: 99.8218907 | J55: -0.09223975486 | K55: 21.95270077 | L55: 13.89933811 | M55: -0.3668506555 | N55: 0 | O55: 0 | Q55: 84.86819013 | R55: 88.2655883 | S55: 0.04003146713 | T55: 90.3032258 | U55: 111.4800464 | V55: 0.2345079086 | W55: 48.21807126 | X55: 47.21040572 | Y55: -0.02089808884 | Z55: 2.28020265 | AA55: 3.402509896 | AB55: 0.492196273
D56: Total | E56: 701.1815376 | F56: 380.3116239 | G56: =T148 -> -0.4576131808 | H56: 1298.941556 | I56: 1009.261329 | J56: -0.2230125177 | K56: 290.5125883 | L56: 179.3935971 | M56: =T186 -> -0.3824928615 | N56: 9.898787792 | O56: 2.716247004 | P56: -0.7255980165 | Q56: 793.1114608 | R56: 902.9399326 | S56: 0.1384779786 | T56: 854.2596978 | U56: 829.9265027 | V56: -0.02848454072 | W56: 456.4143073 | X56: 454.9036103 | Y56: -0.003309924785 | Z56: 2.633320069 | AA56: 29.26443904 | AB56: 10.1131341
B59: Distribution of overall allowances and expenditure RIGs Annex B Business Plan Data Templates Scores & allowances 2014-20141120-1_7 Post CMA Combining results for Reg Finance-20141120-1 RJ Post CMA DPCR5 Close out report DPCR4 Allowances | D59: Allowances
E60: DR4 | J60: DR5 | O60: ED1 | W60: ED2
E61: 2005/06 | F61: 2006/07 | G61: 2007/08 | H61: 2008/09 | I61: 2009/10 | J61: 2010/11 | K61: 2011/12 | L61: 2012/13 | M61: 2013/14 | N61: 2014/15 | O61: 2015/16 | P61: 2016/17 | Q61: 2017/18 | R61: 2018/19 | S61: 2019/20 | T61: 2020/21 | U61: 2021/22 | V61: 2022/23 | W61: 2023/24 | X61: All RIIO-ED2
D62: ENWL | E62: 282.6720882 | F62: 278.032143 | G62: 274.7178965 | H62: 271.5693623 | I62: 268.4208281 | J62: 317.9848465 | K62: 337.4430394 | L62: 333.8568622 | M62: 290.5211715 | N62: 297.5411147 | O62: 285.4 | P62: 272.8 | Q62: 275.2 | R62: 278 | S62: 278.3 | T62: 284.4 | U62: 297.9 | V62: 280.4 | W62: ='[94]Tables for Annual Report'!$H6 -> 358.0915403 | X62: ='[94]Tables for Annual Report'!$I6 -> 1926.677636
D63: NPgN | E63: 179.9967301 | F63: 181.985278 | G63: 180.9910041 | H63: 179.9967301 | I63: 179.1681685 | J63: 206.7922318 | K63: 205.8142275 | L63: 215.8167807 | M63: 222.9765234 | N63: 218.412638 | O63: 220.3 | P63: 216.4 | Q63: 202 | R63: 199 | S63: 198 | T63: 183.6 | U63: 173.6 | V63: 171 | W63: ='[94]Tables for Annual Report'!$H7 -> 219.6010331 | X63: ='[94]Tables for Annual Report'!$I7 -> 1207.152064
D64: NPgY | E64: 240.5480146 | F64: 237.730905 | G64: 234.7480831 | H64: 233.4223845 | I64: 232.2623982 | J64: 277.2335343 | K64: 279.8856667 | L64: 275.624825 | M64: 280.6217533 | N64: 290.7740722 | O64: 290.6 | P64: 274 | Q64: 269.4 | R64: 271.9 | S64: 258.4 | T64: 245.9 | U64: 235.6 | V64: 241.6 | W64: ='[94]Tables for Annual Report'!$H8 -> 298.4403643 | X64: ='[94]Tables for Annual Report'!$I8 -> 1574.579374
D65: WMID | E65: 304.9769675 | F65: 300.0055977 | G65: 296.0285018 | H65: 293.0456799 | I65: 291.7199813 | J65: 304.5030371 | K65: 313.8536492 | L65: 331.0854941 | M65: 336.1297188 | N65: 340.0980018 | O65: 313.1 | P65: 314.2 | Q65: 304.2 | R65: 309.7 | S65: 318.4 | T65: 316.4 | U65: 317.1 | V65: 322.2 | W65: ='[94]Tables for Annual Report'!$H9 -> 328.3880489 | X65: ='[94]Tables for Annual Report'!$I9 -> 1612.614252
D66: EMID | E66: 307.3963675 | F66: 310.8763264 | G66: 310.8763264 | H66: 308.0592168 | I66: 306.5678058 | J66: 303.6142583 | K66: 316.9987247 | L66: 347.2239849 | M66: 341.1778355 | N66: 339.0963391 | O66: 342.8 | P66: 335.7 | Q66: 298.8 | R66: 304.7 | S66: 300.4 | T66: 308.8 | U66: 327.5 | V66: 330.9 | W66: ='[94]Tables for Annual Report'!$H10 -> 360.0945448 | X66: ='[94]Tables for Annual Report'!$I10 -> 1745.864039
D67: SWALES | E67: 144.2691523 | F67: 146.5891249 | G67: 147.4176865 | H67: 146.5891249 | I67: 145.7605633 | J67: 149.580372 | K67: 154.8737262 | L67: 160.1217663 | M67: 159.1307574 | N67: 162.1664804 | O67: 176.6 | P67: 178.2 | Q67: 168.7 | R67: 179.6 | S67: 164 | T67: 149.1 | U67: 146.3 | V67: 149.1 | W67: ='[94]Tables for Annual Report'!$H11 -> 199.9350879 | X67: ='[94]Tables for Annual Report'!$I11 -> 1014.122909
D68: SWEST | E68: 193.9497081 | F68: 197.0982423 | G68: 198.0925163 | H68: 197.0982423 | I68: 196.1039683 | J68: 205.4862233 | K68: 223.4674796 | L68: 229.0115073 | M68: 232.7042616 | N68: 234.8995667 | O68: 258.1 | P68: 258.9 | Q68: 254.1 | R68: 257.7 | S68: 252.6 | T68: 252.1 | U68: 255 | V68: 266.9 | W68: ='[94]Tables for Annual Report'!$H12 -> 280.0173598 | X68: ='[94]Tables for Annual Report'!$I12 -> 1440.837913
D69: LPN | E69: 263.9134527 | F69: 267.7248363 | G69: 270.0448089 | H69: 268.7191102 | I69: 267.3934116 | J69: 291.9770109 | K69: 293.7184637 | L69: 286.5197111 | M69: 263.9987731 | N69: 263.5294163 | O69: 297.2 | P69: 291.6 | Q69: 276.3 | R69: 265.2 | S69: 269.7 | T69: 256.3 | U69: 244.5 | V69: 232.5 | W69: ='[94]Tables for Annual Report'!$H13 -> 268.3667526 | X69: ='[94]Tables for Annual Report'!$I13 -> 1264.249433
D70: SPN | E70: 274.5190417 | F70: 267.2276993 | G70: 260.2677815 | H70: 255.959261 | I70: 248.336494 | J70: 289.4364322 | K70: 295.2493284 | L70: 283.6808337 | M70: 281.2497877 | N70: 295.4099797 | O70: 268 | P70: 293.6 | Q70: 275.9 | R70: 261.5 | S70: 250.2 | T70: 242.1 | U70: 246.5 | V70: 240.3 | W70: ='[94]Tables for Annual Report'!$H14 -> 278.5005352 | X70: ='[94]Tables for Annual Report'!$I14 -> 1444.011741
D71: EPN | E71: 404.6695037 | F71: 405.1666407 | G71: 403.3438051 | H71: 401.5209695 | I71: 399.8638462 | J71: 429.997994 | K71: 412.005856 | L71: 402.493379 | M71: 401.7219533 | N71: 417.4136982 | O71: 401.5 | P71: 414.7 | Q71: 394.3 | R71: 392.6 | S71: 387.6 | T71: 369.1 | U71: 375.6 | V71: 358.4 | W71: ='[94]Tables for Annual Report'!$H15 -> 473.0215111 | X71: ='[94]Tables for Annual Report'!$I15 -> 2191.911959
D72: SPD | E72: 258.6852288 | F72: 265.636861 | G72: 264.4768747 | H72: 263.151176 | I72: 261.9911897 | J72: 218.8143813 | K72: 232.081583 | L72: 250.218951 | M72: 263.1861764 | N72: 257.3447913 | O72: 246.6 | P72: 245.1 | Q72: 250.8 | R72: 238.3 | S72: 230 | T72: 218.8 | U72: 224.5 | V72: 227.2 | W72: ='[94]Tables for Annual Report'!$H16 -> 306.4791853 | X72: ='[94]Tables for Annual Report'!$I16 -> 1570.263272
D73: SPMW | E73: 232.8755338 | F73: 230.7005595 | G73: 228.4189079 | H73: 225.5013352 | I73: 224.5070613 | J73: 288.2730607 | K73: 281.5749457 | L73: 307.740027 | M73: 297.7406677 | N73: 301.3769292 | O73: 284.1 | P73: 295.3 | Q73: 270.7 | R73: 249.3 | S73: 248.2 | T73: 252.2 | U73: 247.4 | V73: 233.5 | W73: ='[94]Tables for Annual Report'!$H17 -> 306.5986048 | X73: ='[94]Tables for Annual Report'!$I17 -> 1582.297227
D74: SSEH | E74: 156.6395776 | F74: 157.662644 | G74: 160.0053037 | H74: 161.7153461 | I74: 160.8867845 | J74: 162.7255354 | K74: 158.0964015 | L74: 153.4980961 | M74: 152.3277125 | N74: 158.7935547 | O74: 193.9 | P74: 201.4 | Q74: 199.6 | R74: 204 | S74: 209.9 | T74: 194.8 | U74: 203.9 | V74: 198.8 | W74: ='[94]Tables for Annual Report'!$H18 -> 269.3579479 | X74: ='[94]Tables for Annual Report'!$I18 -> 1194.494227
D75: SSES | E75: 349.0233041 | F75: 356.1489342 | G75: 358.8003315 | H75: 357.3089205 | I75: 355.8175096 | J75: 383.0401235 | K75: 387.027962 | L75: 391.6684164 | M75: 386.2104132 | N75: 374.3125436 | O75: 369.7 | P75: 377.9 | Q75: 365.6 | R75: 369.1 | S75: 330.1 | T75: 338.2 | U75: 341.2 | V75: 332.6 | W75: ='[94]Tables for Annual Report'!$H19 -> 460.0607394 | X75: ='[94]Tables for Annual Report'!$I19 -> 2343.13282
D76: Total | E76: ='[95]TOTEX over time'!D60 -> 3594.134671 | F76: ='[95]TOTEX over time'!E60 -> 3602.585792 | G76: ='[95]TOTEX over time'!F60 -> 3588.229828 | H76: ='[95]TOTEX over time'!G60 -> 3563.656859 | I76: ='[95]TOTEX over time'!H60 -> 3538.80001 | J76: ='[95]TOTEX over time'!I60 -> 3829.459041 | K76: ='[95]TOTEX over time'!J60 -> 3892.091054 | L76: ='[95]TOTEX over time'!K60 -> 3968.560635 | M76: ='[95]TOTEX over time'!L60 -> 3909.697505 | N76: ='[95]TOTEX over time'!M60 -> 3951.169126 | O76: =SUM(O62:O75) -> 3947.9 | P76: =SUM(P62:P75) -> 3969.8 | Q76: 3805.6 | R76: 3780.6 | S76: 3695.8 | T76: 3611.8 | U76: 3636.6 | V76: 3585.4 | W76: =SUM(W62:W75) -> 4406.953256 | X76: =SUM(X62:X75) -> 22112.20886
D78: Actuals/Forecasts
E79: DR4 | J79: DR5 | O79: ED1 | W79: ED2
E80: 2005/06 | F80: 2006/07 | G80: 2007/08 | H80: 2008/09 | I80: 2009/10 | J80: 2013/11 | K80: 2011/12 | L80: 2012/13 | M80: 2013/14 | N80: 2014/15 | O80: 2015/16 | P80: 2016/17 | Q80: 2017/18 | R80: 2018/19 | S80: 2019/20 | T80: 2020/21 | U80: 2021/22 | V80: 2022/23 | W80: 2023/24 | X80: All RIIO-ED2
D81: ENWL | E81: 251.081477 | F81: 237.9480115 | G81: 260.1002246 | H81: 271.6397254 | I81: 256.3109424 | J81: 260.7739531 | K81: 286.2215652 | L81: 284.5336146 | M81: 293.9341402 | N81: 310.5591858 | O81: 277.1436774 | P81: 234.9060188 | Q81: 272.457096 | R81: 279.7434673 | S81: 255.7025415 | T81: 242.5479044 | U81: 249.7880253 | V81: 261.222006 | W81: ='[94]Tables for Annual Report'!$K6 -> 280.5929396 | X81: ='[94]Tables for Annual Report'!$L6 -> 1908.094072
D82: NPgN | E82: 159.213635 | F82: 164.3238547 | G82: 177.7698183 | H82: 175.0948634 | I82: 167.5254111 | J82: 148.4202638 | K82: 149.997301 | L82: 209.0215559 | M82: 239.0994101 | N82: 250.3680783 | O82: 213.8031801 | P82: 209.379865 | Q82: 189.1138656 | R82: 194.1683214 | S82: 218.0072781 | T82: 213.3955134 | U82: 194.1217537 | V82: 152.5840032 | W82: ='[94]Tables for Annual Report'!$K7 -> 169.2630338 | X82: ='[94]Tables for Annual Report'!$L7 -> 1194.824205
D83: NPgY | E83: 220.1965614 | F83: 194.8729292 | G83: 211.1537095 | H83: 224.5915502 | I83: 240.8569018 | J83: 205.953535 | K83: 216.9386039 | L83: 275.1989585 | M83: 281.1199477 | N83: 325.6130846 | O83: 282.9417905 | P83: 244.0123862 | Q83: 236.5085913 | R83: 248.808951 | S83: 272.6065384 | T83: 265.7226769 | U83: 265.0741306 | V83: 254.2352604 | W83: ='[94]Tables for Annual Report'!$K8 -> 250.7059802 | X83: ='[94]Tables for Annual Report'!$L8 -> 1585.133676
D84: WMID | E84: 227.5006118 | F84: 290.6767693 | G84: 306.5726704 | H84: 343.9798955 | I84: 318.145139 | J84: 280.2796436 | K84: 341.4182974 | L84: 322.0864057 | M84: 384.0363252 | N84: 381.4419487 | O84: 353.5896797 | P84: 356.099265 | Q84: 300.9996172 | R84: 272.0928177 | S84: 272.1634501 | T84: 316.3160101 | U84: 330.3915576 | V84: 303.326833 | W84: ='[94]Tables for Annual Report'!$K9 -> 278.4621589 | X84: ='[94]Tables for Annual Report'!$L9 -> 1612.389171
D85: EMID | E85: 216.1277426 | F85: 265.3070472 | G85: 293.6419636 | H85: 328.1501341 | I85: 291.5119076 | J85: 262.1185627 | K85: 314.1803969 | L85: 360.7326118 | M85: 389.4877879 | N85: 423.8822152 | O85: 349.1236497 | P85: 352.319243 | Q85: 306.2201671 | R85: 276.3666291 | S85: 295.7088107 | T85: 305.7077496 | U85: 300.4495233 | V85: 317.6937424 | W85: ='[94]Tables for Annual Report'!$K10 -> 299.2711072 | X85: ='[94]Tables for Annual Report'!$L10 -> 1665.972092
D86: SWALES | E86: 118.8411001 | F86: 123.7166063 | G86: 129.4409243 | H86: 123.5244186 | I86: 127.8386838 | J86: 140.1222638 | K86: 138.4661508 | L86: 159.5906159 | M86: 155.7264589 | N86: 161.3346119 | O86: 161.0108872 | P86: 167.3737296 | Q86: 147.1572573 | R86: 153.5778374 | S86: 145.1869417 | T86: 167.7695721 | U86: 157.6866563 | V86: 159.5755067 | W86: ='[94]Tables for Annual Report'!$K11 -> 157.9324329 | X86: ='[94]Tables for Annual Report'!$L11 -> 924.4858626
D87: SWEST | E87: 173.1019523 | F87: 181.0632926 | G87: 180.5622017 | H87: 183.718885 | I87: 197.3556632 | J87: 197.6641454 | K87: 199.4580446 | L87: 210.2837857 | M87: 230.702624 | N87: 216.2338963 | O87: 253.0147111 | P87: 289.7987159 | Q87: 249.9648223 | R87: 230.5848132 | S87: 245.6040918 | T87: 236.1841369 | U87: 225.3603616 | V87: 246.7612269 | W87: ='[94]Tables for Annual Report'!$K12 -> 255.4065597 | X87: ='[94]Tables for Annual Report'!$L12 -> 1471.615619
D88: LPN | E88: 204.204618 | F88: 228.4609676 | G88: 242.7045218 | H88: 258.3941945 | I88: 252.7836259 | J88: 244.1506712 | K88: 216.8713483 | L88: 244.3121228 | M88: 261.1394585 | N88: 250.9630161 | O88: 214.3409526 | P88: 230.9058222 | Q88: 251.5865252 | R88: 237.3427451 | S88: 237.5502206 | T88: 234.062425 | U88: 238.8282866 | V88: 201.4796948 | W88: ='[94]Tables for Annual Report'!$K13 -> 223.207486 | X88: ='[94]Tables for Annual Report'!$L13 -> 1158.885869
D89: SPN | E89: 227.8968664 | F89: 184.3200523 | G89: 226.204563 | H89: 285.784235 | I89: 330.9588141 | J89: 293.3383589 | K89: 262.7958054 | L89: 254.8028936 | M89: 270.3019159 | N89: 222.1327642 | O89: 196.1220858 | P89: 228.7976135 | Q89: 229.1987465 | R89: 236.3337788 | S89: 229.7373501 | T89: 220.9252278 | U89: 225.5639978 | V89: 260.6854035 | W89: ='[94]Tables for Annual Report'!$K14 -> 249.4868553 | X89: ='[94]Tables for Annual Report'!$L14 -> 1349.612167
D90: EPN | E90: 297.4223337 | F90: 326.7555938 | G90: 404.8836037 | H90: 461.8509648 | I90: 508.2391853 | J90: 436.1130273 | K90: 380.9981111 | L90: 371.4150302 | M90: 426.921028 | N90: 415.7888121 | O90: 318.4915896 | P90: 345.3929772 | Q90: 369.7757732 | R90: 354.0311673 | S90: 367.7892823 | T90: 361.252158 | U90: 362.8168636 | V90: 341.7760278 | W90: ='[94]Tables for Annual Report'!$K15 -> 396.7834573 | X90: ='[94]Tables for Annual Report'!$L15 -> 2051.507713
D91: SPD | E91: 198.335147 | F91: 223.8196498 | G91: 225.0190661 | H91: 222.2226371 | I91: 196.7747331 | J91: 204.7551572 | K91: 229.182868 | L91: 215.2982925 | M91: 245.8505432 | N91: 251.8616687 | O91: 218.8064692 | P91: 235.9333951 | Q91: 240.2132181 | R91: 264.9253618 | S91: 254.7772778 | T91: 249.6444784 | U91: 229.6417321 | V91: 215.5599916 | W91: ='[94]Tables for Annual Report'!$K16 -> 264.6052993 | X91: ='[94]Tables for Annual Report'!$L16 -> 1594.923688
D92: SPMW | E92: 222.4454072 | F92: 211.711176 | G92: 232.2797791 | H92: 245.5223017 | I92: 212.9443009 | J92: 224.7729684 | K92: 255.7471676 | L92: 271.4963358 | M92: 301.5840636 | N92: 335.6015996 | O92: 272.2701871 | P92: 284.8664626 | Q92: 289.3889498 | R92: 302.0383428 | S92: 275.5925667 | T92: 249.7091392 | U92: 251.4991761 | V92: 247.7048605 | W92: ='[94]Tables for Annual Report'!$K17 -> 273.9229109 | X92: ='[94]Tables for Annual Report'!$L17 -> 1667.544382
D93: SSEH | E93: 109.9998174 | F93: 115.9038023 | G93: 124.9934757 | H93: 143.9605199 | I93: 153.0872699 | J93: 118.6188892 | K93: 148.0764853 | L93: 145.0882019 | M93: 138.3559042 | N93: 148.2744553 | O93: 171.5844329 | P93: 193.0909171 | Q93: 182.9123604 | R93: 197.3885566 | S93: 204.4590617 | T93: 226.6451239 | U93: 259.8885761 | V93: 251.9164949 | W93: ='[94]Tables for Annual Report'!$K18 -> 284.2806494 | X93: ='[94]Tables for Annual Report'!$L18 -> 1675.998438
D94: SSES | E94: 239.8158463 | F94: 269.4684836 | G94: 311.2586025 | H94: 342.8862682 | I94: 349.2266278 | J94: 270.2711187 | K94: 302.1195587 | L94: 333.9875996 | M94: 370.3318509 | N94: 348.3601287 | O94: 318.4058285 | P94: 342.109287 | Q94: 384.8573428 | R94: 360.0825717 | S94: 392.340648 | T94: 380.7455631 | U94: 345.3173375 | V94: 339.2636796 | W94: ='[94]Tables for Annual Report'!$K19 -> 404.7964113 | X94: ='[94]Tables for Annual Report'!$L19 -> 2635.104711
D95: Total | E95: ='[95]TOTEX over time'!D79 -> 2866.183116 | F95: ='[95]TOTEX over time'!E79 -> 3018.348236 | G95: ='[95]TOTEX over time'!F79 -> 3326.585124 | H95: ='[95]TOTEX over time'!G79 -> 3611.320593 | I95: ='[95]TOTEX over time'!H79 -> 3603.559206 | J95: ='[95]TOTEX over time'!I79 -> 3287.352558 | K95: ='[95]TOTEX over time'!J79 -> 3442.471704 | L95: ='[95]TOTEX over time'!K79 -> 3657.848024 | M95: ='[95]TOTEX over time'!L79 -> 3988.591458 | N95: ='[95]TOTEX over time'!M79 -> 4042.415465 | O95: ='[95]TOTEX over time'!N79 -> 3600.649121 | P95: ='[95]TOTEX over time'!O79 -> 3714.985698 | Q95: ='[95]TOTEX over time'!P79 -> 3650.354333 | R95: ='[95]TOTEX over time'!Q79 -> 3607.485361 | S95: ='[95]TOTEX over time'!R79 -> 3667.22606 | T95: ='[95]TOTEX over time'!S79 -> 3670.627679 | U95: ='[95]TOTEX over time'!T79 -> 3636.427978 | V95: ='[95]TOTEX over time'!U79 -> 3553.784731 | W95: =SUM(W81:W94) -> 3788.717282 | X95: =SUM(X81:X94) -> 22496.09167
D98: Allowances vs Expenditure
E99: Cumulative to date | I99: Overall ED2 Forecast
E100: Allowance | F100: Actual | G100: Difference | I100: Allowance | J100: Actual (and forecast) | K100: Difference
G101: No | H101: % | K101: No | L101: %
D102: ENWL | E102: =SUM(W62) -> 358.0915403 | F102: =SUM(W81) -> 280.5929396 | G102: =F102-E102 -> -77.49860072 | H102: =G102/E102 -> -0.2164211996 | I102: =SUM(X62) -> 1926.677636 | J102: =SUM(X81) -> 1908.094072 | K102: =J102-I102 -> -18.58356419 | L102: =K102/I102 -> -0.009645393625
D103: NPgN | E103: =SUM(W63) -> 219.6010331 | F103: =SUM(W82) -> 169.2630338 | G103: -50.33799929 | H103: =G103/E103 -> -0.2292247836 | I103: =SUM(X63) -> 1207.152064 | J103: =SUM(X82) -> 1194.824205 | K103: -12.32785865 | L103: -0.0102123494
D104: NPgY | E104: 298.4403643 | F104: 250.7059802 | G104: -47.73438415 | H104: -0.1599461395 | I104: 1574.579374 | J104: 1585.133676 | K104: 10.55430221 | L104: 0.006702934374
D105: WMID | E105: 328.3880489 | F105: 278.4621589 | G105: -49.92589 | H105: -0.1520332124 | I105: 1612.614252 | J105: 1612.389171 | K105: -0.2250807284 | L105: -0.0001395750584
D106: EMID | E106: 360.0945448 | F106: 299.2711072 | G106: -60.82343753 | H106: -0.1689096333 | I106: 1745.864039 | J106: 1665.972092 | K106: -79.89194685 | L106: -0.04576069217
D107: SWALES | E107: 199.9350879 | F107: 157.9324329 | G107: -42.00265507 | H107: -0.2100814595 | I107: 1014.122909 | J107: 924.4858626 | K107: -89.63704609 | L107: -0.08838873999
D108: SWEST | E108: 280.0173598 | F108: 255.4065597 | G108: -24.61080014 | H108: -0.08789026566 | I108: 1440.837913 | J108: 1471.615619 | K108: 30.77770661 | L108: 0.02136097776
D109: LPN | E109: 268.3667526 | F109: 223.207486 | G109: -45.15926661 | H109: -0.168274446 | I109: 1264.249433 | J109: 1158.885869 | K109: -105.3635638 | L109: -0.08334080372
D110: SPN | E110: 278.5005352 | F110: 249.4868553 | G110: -29.01367989 | H110: -0.1041781836 | I110: 1444.011741 | J110: 1349.612167 | K110: -94.39957397 | L110: -0.06537313466
D111: EPN | E111: 473.0215111 | F111: 396.7834573 | G111: -76.23805379 | H111: -0.1611724879 | I111: 2191.911959 | J111: 2051.507713 | K111: -140.4042462 | L111: -0.06405560478
D112: SPD | E112: 306.4791853 | F112: 264.6052993 | G112: -41.87388601 | H112: -0.1366288088 | I112: 1570.263272 | J112: 1594.923688 | K112: 24.66041655 | L112: 0.01570463819
D113: SPMW | E113: 306.5986048 | F113: 273.9229109 | G113: -32.67569394 | H113: -0.1065748292 | I113: 1582.297227 | J113: 1667.544382 | K113: 85.24715531 | L113: 0.05387556388
D114: SSEH | E114: 269.3579479 | F114: 284.2806494 | G114: 14.92270154 | H114: 0.05540100693 | I114: 1194.494227 | J114: 1675.998438 | K114: 481.5042108 | L114: 0.4031030036
D115: SSES | E115: 460.0607394 | F115: 404.7964113 | G115: -55.26432816 | H115: -0.1201239824 | I115: 2343.13282 | J115: 2635.104711 | K115: 291.971891 | L115: 0.1246074864
D116: Total | E116: =SUM(E102:E115) -> 4406.953256 | F116: =SUM(F102:F115) -> 3788.717282 | G116: =F116-E116 -> -618.2359738 | H116: =G116/E116 -> -0.1402864832 | I116: =SUM(I102:I115) -> 22112.20886 | J116: =SUM(J102:J115) -> 22496.09167 | K116: 383.882802 | L116: 0.01736067185
E119: Cumulative to date | I119: Overall ED2 Forecast
E120: Allowance | F120: Actual | G120: Difference | I120: Allowance | J120: Actual | K120: Difference
G121: No | H121: % | K121: No | L121: %
D122: ENWL | E122: =E102 -> 358.0915403 | F122: =F102 -> 280.5929396 | G122: =F122-E122 -> -77.49860072 | H122: =G122/E122 -> -0.2164211996 | I122: =I102 -> 1926.677636 | J122: =J102 -> 1908.094072 | K122: =J122-I122 -> -18.58356419 | L122: =K122/I122 -> -0.009645393625
D123: NPg | E123: =SUM(E103:E104) -> 518.0413974 | F123: =SUM(F103:F104) -> 419.969014 | G123: =F123-E123 -> -98.07238344 | H123: =G123/E123 -> -0.189313796 | I123: =SUM(I103:I104) -> 2781.731438 | J123: =SUM(J103:J104) -> 2779.957881 | K123: -1.773556445 | L123: -0.0006375728516
D124: NGED | E124: =SUM(E105:E108) -> 1168.435041 | F124: =SUM(F105:F108) -> 991.0722587 | G124: -177.3627827 | H124: -0.1517951589 | I124: =SUM(I105:I108) -> 5813.439112 | J124: =SUM(J105:J108) -> 5674.462745 | K124: -138.9763671 | L124: -0.02390605017
D125: UKPN | E125: =SUM(E109:E111) -> 1019.888799 | F125: =SUM(F109:F111) -> 869.4777986 | G125: -150.4110003 | H125: -0.1474778431 | I125: =SUM(I109:I111) -> 4900.173133 | J125: =SUM(J109:J111) -> 4560.005749 | K125: -340.167384 | L125: -0.06941946229
D126: SPEN | E126: =SUM(E112:E113) -> 613.0777901 | F126: =SUM(F112:F113) -> 538.5282102 | G126: -74.54957995 | H126: -0.1215988919 | I126: =SUM(I112:I113) -> 3152.560498 | J126: =SUM(J112:J113) -> 3262.46807 | K126: 109.9075719 | L126: 0.03486295407
D127: SSEN | E127: =SUM(E114:E115) -> 729.4186873 | F127: =SUM(F114:F115) -> 689.0770607 | G127: -40.34162663 | H127: -0.05530654387 | I127: =SUM(I114:I115) -> 3537.627047 | J127: =SUM(J114:J115) -> 4311.103149 | K127: 773.4761018 | L127: 0.2186426357
D128: Total | E128: =SUM(E122:E127) -> 4406.953256 | F128: =SUM(F122:F127) -> 3788.717282 | G128: -618.2359738 | H128: -0.1402864832 | I128: =SUM(I122:I127) -> 22112.20886 | J128: =SUM(J122:J127) -> 22496.09167 | K128: 383.882802 | L128: 0.01736067185
B131: Breakdown by category | D131: Total Load Related Capex | Q131: 2023/24 | V131: RIIO-ED2
E132: DNO Forecast (£m) - DNO Business Plan Data Templates | K132: DNO Baseline (£m) | N132: DNO Actual (£m) | Q132: Allowance | R132: Actual | S132: Difference | V132: Allowance | W132: Forecast | X132: Difference
E133: 2023/24 | F133: 2024/25 | G133: 2025/26 | H133: 2026/27 | I133: 2027/28 | K133: 2023/24 | L133: RIIO-ED2 | N133: 2023/24 | O133: RIIO-ED2 | Q133: £ | R133: £ | S133: £ | T133: % | V133: £ | W133: £ | X133: £ | Y133: %
D134: ENWL | E134: ='[96]ENWL DNO'!G$11 -> 19.78752755 | F134: ='[96]ENWL DNO'!H$11 -> 34.85728297 | G134: ='[96]ENWL DNO'!I$11 -> 41.05215903 | H134: ='[96]ENWL DNO'!J$11 -> 31.48930443 | I134: ='[96]ENWL DNO'!K$11 -> 37.1790441 | K134: ='[94]Tables for Annual Report'!H27 -> 45.25088368 | L134: ='[94]Tables for Annual Report'!I27 -> 351.4631687 | N134: ='[94]Tables for Annual Report'!K27 -> 25.36568601 | O134: ='[94]Tables for Annual Report'!L27 -> 355.850055 | Q134: =K134 -> 45.25088368 | R134: =N134 -> 25.36568601 | S134: =R134-Q134 -> -19.88519767 | T134: =S134/Q134 -> -0.4394433003 | V134: =L134 -> 351.4631687 | W134: =O134 -> 355.850055 | X134: =W134-V134 -> 4.386886268 | Y134: =X134/V134 -> 0.0124817809
D135: NPgN | E135: ='[96]NPGN DNO'!G$11 -> 18.94635632 | F135: ='[96]NPGN DNO'!H$11 -> 26.72049402 | G135: ='[96]NPGN DNO'!I$11 -> 32.54106566 | H135: ='[96]NPGN DNO'!J$11 -> 51.98448819 | I135: ='[96]NPGN DNO'!K$11 -> 47.77042558 | K135: ='[94]Tables for Annual Report'!H28 -> 27.17253585 | L135: ='[94]Tables for Annual Report'!I28 -> 144.6005448 | N135: ='[94]Tables for Annual Report'!K28 -> 14.19885409 | O135: ='[94]Tables for Annual Report'!L28 -> 151.234577 | Q135: 27.17253585 | R135: 14.19885409 | S135: =R135-Q135 -> -12.97368176 | T135: =S135/Q135 -> -0.4774556864 | V135: 144.6005448 | W135: 151.234577 | X135: =W135-V135 -> 6.634032143 | Y135: =X135/V135 -> 0.04587833436
D136: NPgY | E136: ='[96]NPGY DNO'!G$11 -> 32.0331918 | F136: ='[96]NPGY DNO'!H$11 -> 43.28355814 | G136: ='[96]NPGY DNO'!I$11 -> 45.82367666 | H136: ='[96]NPGY DNO'!J$11 -> 78.23460857 | I136: ='[96]NPGY DNO'!K$11 -> 71.17532503 | K136: ='[94]Tables for Annual Report'!H29 -> 46.77496826 | L136: ='[94]Tables for Annual Report'!I29 -> 226.040475 | N136: ='[94]Tables for Annual Report'!K29 -> 23.64002471 | O136: ='[94]Tables for Annual Report'!L29 -> 231.8766249 | Q136: 46.77496826 | R136: 23.64002471 | S136: -23.13494356 | T136: -0.4946009461 | V136: 226.040475 | W136: 231.8766249 | X136: 5.836149964 | Y136: 0.0258190484
D137: WMID | E137: ='[96]WMID DNO'!G$11 -> 58.7837 | F137: ='[96]WMID DNO'!H$11 -> 47.098 | G137: ='[96]WMID DNO'!I$11 -> 50.1606 | H137: ='[96]WMID DNO'!J$11 -> 47.8892 | I137: ='[96]WMID DNO'!K$11 -> 49.0846 | K137: ='[94]Tables for Annual Report'!H30 -> 55.63449011 | L137: ='[94]Tables for Annual Report'!I30 -> 214.2785008 | N137: ='[94]Tables for Annual Report'!K30 -> 18.73760363 | O137: ='[94]Tables for Annual Report'!L30 -> 192.9261696 | Q137: 55.63449011 | R137: 18.73760363 | S137: -36.89688648 | T137: -0.6632016651 | V137: 214.2785008 | W137: 192.9261696 | X137: -21.3523312 | Y137: -0.09964756667
D138: EMID | E138: ='[96]EMID DNO'!G$11 -> 67.1816 | F138: ='[96]EMID DNO'!H$11 -> 65.3047 | G138: ='[96]EMID DNO'!I$11 -> 71.5381 | H138: ='[96]EMID DNO'!J$11 -> 70.3335 | I138: ='[96]EMID DNO'!K$11 -> 55.6792 | K138: ='[94]Tables for Annual Report'!H31 -> 69.02073283 | L138: ='[94]Tables for Annual Report'!I31 -> 286.4653772 | N138: ='[94]Tables for Annual Report'!K31 -> 38.21031841 | O138: ='[94]Tables for Annual Report'!L31 -> 255.4494466 | Q138: 69.02073283 | R138: 38.21031841 | S138: -30.81041442 | T138: -0.4463936147 | V138: 286.4653772 | W138: 255.4494466 | X138: -31.01593057 | Y138: -0.1082711317
D139: SWALES | E139: ='[96]SWALES DNO'!G$11 -> 31.3667 | F139: ='[96]SWALES DNO'!H$11 -> 28.8825 | G139: ='[96]SWALES DNO'!I$11 -> 35.7797 | H139: ='[96]SWALES DNO'!J$11 -> 37.2472 | I139: ='[96]SWALES DNO'!K$11 -> 36.5777 | K139: ='[94]Tables for Annual Report'!H32 -> 28.46738739 | L139: ='[94]Tables for Annual Report'!I32 -> 178.9586869 | N139: ='[94]Tables for Annual Report'!K32 -> 11.63051408 | O139: ='[94]Tables for Annual Report'!L32 -> 169.0485252 | Q139: 28.46738739 | R139: 11.63051408 | S139: -16.83687331 | T139: -0.5914442754 | V139: 178.9586869 | W139: 169.0485252 | X139: -9.910161709 | Y139: -0.05537681282
D140: SWEST | E140: ='[96]SWEST DNO'!G$11 -> 40.5192 | F140: ='[96]SWEST DNO'!H$11 -> 35.5648 | G140: ='[96]SWEST DNO'!I$11 -> 54.9545 | H140: ='[96]SWEST DNO'!J$11 -> 47.8027 | I140: ='[96]SWEST DNO'!K$11 -> 45.1238 | K140: ='[94]Tables for Annual Report'!H33 -> 34.25715652 | L140: ='[94]Tables for Annual Report'!I33 -> 188.8417285 | N140: ='[94]Tables for Annual Report'!K33 -> 20.94590438 | O140: ='[94]Tables for Annual Report'!L33 -> 175.9453015 | Q140: 34.25715652 | R140: 20.94590438 | S140: -13.31125214 | T140: -0.3885685063 | V140: 188.8417285 | W140: 175.9453015 | X140: -12.89642699 | Y140: -0.06829225243
D141: LPN | E141: ='[96]LPN DNO'!G$11 -> 54.4458872 | F141: ='[96]LPN DNO'!H$11 -> 59.0107234 | G141: ='[96]LPN DNO'!I$11 -> 48.01209625 | H141: ='[96]LPN DNO'!J$11 -> 40.11590307 | I141: ='[96]LPN DNO'!K$11 -> 44.11120215 | K141: ='[94]Tables for Annual Report'!H34 -> 57.44536228 | L141: ='[94]Tables for Annual Report'!I34 -> 219.5507311 | N141: ='[94]Tables for Annual Report'!K34 -> 26.29129489 | O141: ='[94]Tables for Annual Report'!L34 -> 173.0017809 | Q141: 57.44536228 | R141: 26.29129489 | S141: -31.1540674 | T141: -0.5423251966 | V141: 219.5507311 | W141: 173.0017809 | X141: -46.54895016 | Y141: -0.212019108
D142: SPN | E142: ='[96]SPN DNO'!G$11 -> 22.02399754 | F142: ='[96]SPN DNO'!H$11 -> 38.92503963 | G142: ='[96]SPN DNO'!I$11 -> 31.1821788 | H142: ='[96]SPN DNO'!J$11 -> 27.6367965 | I142: ='[96]SPN DNO'!K$11 -> 30.2050405 | K142: ='[94]Tables for Annual Report'!H35 -> 26.03595965 | L142: ='[94]Tables for Annual Report'!I35 -> 191.2234345 | N142: ='[94]Tables for Annual Report'!K35 -> 24.61578553 | O142: ='[94]Tables for Annual Report'!L35 -> 154.230424 | Q142: 26.03595965 | R142: 24.61578553 | S142: -1.420174124 | T142: -0.05454664021 | V142: 191.2234345 | W142: 154.230424 | X142: -36.99301056 | Y142: -0.1934543779
D143: EPN | E143: ='[96]EPN DNO'!G$11 -> 39.45232592 | F143: ='[96]EPN DNO'!H$11 -> 44.71841935 | G143: ='[96]EPN DNO'!I$11 -> 46.22626654 | H143: ='[96]EPN DNO'!J$11 -> 41.17299214 | I143: ='[96]EPN DNO'!K$11 -> 59.68917863 | K143: ='[94]Tables for Annual Report'!H36 -> 84.60021275 | L143: ='[94]Tables for Annual Report'!I36 -> 344.5004709 | N143: ='[94]Tables for Annual Report'!K36 -> 48.71828643 | O143: ='[94]Tables for Annual Report'!L36 -> 280.7633096 | Q143: 84.60021275 | R143: 48.71828643 | S143: -35.88192632 | T143: -0.4241351783 | V143: 344.5004709 | W143: 280.7633096 | X143: -63.73716138 | Y143: -0.1850132779
D144: SPD | E144: ='[96]SPD DNO'!G$11 -> 37.7498625 | F144: ='[96]SPD DNO'!H$11 -> 48.02358751 | G144: ='[96]SPD DNO'!I$11 -> 54.36367913 | H144: ='[96]SPD DNO'!J$11 -> 57.64542285 | I144: ='[96]SPD DNO'!K$11 -> 63.59903781 | K144: ='[94]Tables for Annual Report'!H37 -> 46.39587781 | L144: ='[94]Tables for Annual Report'!I37 -> 249.2657874 | N144: ='[94]Tables for Annual Report'!K37 -> 35.56922895 | O144: ='[94]Tables for Annual Report'!L37 -> 254.4382545 | Q144: =K144 -> 46.39587781 | R144: 35.56922895 | S144: -10.82664886 | T144: -0.2333536808 | V144: 249.2657874 | W144: 254.4382545 | X144: 5.172467158 | Y144: 0.02075081066
D145: SPMW | E145: ='[96]SPMW DNO'!G$11 -> 29.61995606 | F145: ='[96]SPMW DNO'!H$11 -> 36.38795757 | G145: ='[96]SPMW DNO'!I$11 -> 36.27734499 | H145: ='[96]SPMW DNO'!J$11 -> 38.94462682 | I145: ='[96]SPMW DNO'!K$11 -> 41.87461653 | K145: ='[94]Tables for Annual Report'!H38 -> 38.73127681 | L145: ='[94]Tables for Annual Report'!I38 -> 192.1169457 | N145: ='[94]Tables for Annual Report'!K38 -> 28.72307954 | O145: ='[94]Tables for Annual Report'!L38 -> 192.5048129 | Q145: 38.73127681 | R145: 28.72307954 | S145: -10.00819727 | T145: -0.2584009125 | V145: 192.1169457 | W145: 192.5048129 | X145: 0.3878672361 | Y145: 0.002018912151
D146: SSEH | E146: ='[96]SSEH DNO'!G$11 -> 38.54007684 | F146: ='[96]SSEH DNO'!H$11 -> 18.08019622 | G146: ='[96]SSEH DNO'!I$11 -> 21.26951671 | H146: ='[96]SSEH DNO'!J$11 -> 19.26822257 | I146: ='[96]SSEH DNO'!K$11 -> 16.50297838 | K146: ='[94]Tables for Annual Report'!H39 -> 38.92138381 | L146: ='[94]Tables for Annual Report'!I39 -> 134.0080063 | N146: ='[94]Tables for Annual Report'!K39 -> 22.94841109 | O146: ='[94]Tables for Annual Report'!L39 -> 266.4360333 | Q146: 38.92138381 | R146: 22.94841109 | S146: -15.97297272 | T146: -0.4103906685 | V146: 134.0080063 | W146: 266.4360333 | X146: 132.428027 | Y146: 0.9882098141
D147: SSES | E147: ='[96]SSES DNO'!G$11 -> 103.26609 | F147: ='[96]SSES DNO'!H$11 -> 94.0749492 | G147: ='[96]SSES DNO'!I$11 -> 116.4508704 | H147: ='[96]SSES DNO'!J$11 -> 47.88107953 | I147: ='[96]SSES DNO'!K$11 -> 28.84279818 | K147: ='[94]Tables for Annual Report'!H40 -> 102.4733099 | L147: ='[94]Tables for Annual Report'!I40 -> 357.5523902 | N147: ='[94]Tables for Annual Report'!K40 -> 40.71663212 | O147: ='[94]Tables for Annual Report'!L40 -> 606.3173362 | Q147: 102.4733099 | R147: 40.71663212 | S147: -61.75667775 | T147: -0.602661101 | V147: 357.5523902 | W147: 606.3173362 | X147: 248.764946 | Y147: 0.6957440443
D148: Total | E148: =SUM(E134:E147) -> 593.7164717 | F148: =SUM(F134:F147) -> 620.932208 | G148: 685.6317542 | H148: 637.6460447 | I148: 627.4149469 | K148: =SUM(K134:K147) -> 701.1815376 | L148: 3278.866248 | N148: =SUM(N134:N147) -> 380.3116239 | O148: 3460.022651 | Q148: 701.1815376 | R148: 380.3116239 | S148: -320.8699138 | T148: -0.4576131808 | V148: 3278.866248 | W148: 3460.022651 | X148: 181.1564032 | Y148: 0.05524970813
D150: Total Non-Load Related Capex | Q150: 2023/24 | V150: RIIO-ED2
E151: DNO Forecast (£m) - DNO Business Plan Data Templates | K151: DNO Baseline (£m) | N151: DNO Actual (£m) | Q151: Allowance | R151: Actual | S151: Difference | V151: Allowance | W151: Forecast | X151: Difference
E152: 2023/24 | F152: 2024/25 | G152: 2025/26 | H152: 2026/27 | I152: 2027/28 | K152: 2023/24 | L152: RIIO-ED2 | N152: 2023/24 | O152: RIIO-ED2 | Q152: £ | R152: £ | S152: £ | T152: % | V152: £ | W152: £ | X152: £ | Y152: %
D153: ENWL | E153: ='[96]ENWL DNO'!G$34 -> 110.7569388 | F153: ='[96]ENWL DNO'!H$34 -> 114.0433282 | G153: ='[96]ENWL DNO'!I$34 -> 114.8159607 | H153: ='[96]ENWL DNO'!J$34 -> 110.7780059 | I153: ='[96]ENWL DNO'!K$34 -> 107.7338446 | K153: ='[94]Tables for Annual Report'!H48 -> 114.4417352 | L153: ='[94]Tables for Annual Report'!I48 -> 600.5257059 | N153: ='[94]Tables for Annual Report'!K48 -> 81.14858848 | O153: ='[94]Tables for Annual Report'!L48 -> 591.1099936 | Q153: =K153 -> 114.4417352 | R153: =N153 -> 81.14858848 | S153: =R153-Q153 -> -33.29314674 | T153: =S153/Q153 -> -0.2909178778 | V153: =L153 -> 600.5257059 | W153: =O153 -> 591.1099936 | X153: =W153-V153 -> -9.415712295 | Y153: =X153/V153 -> -0.01567911615
D154: NPgN | E154: ='[96]NPGN DNO'!G$34 -> 83.91473744 | F154: ='[96]NPGN DNO'!H$34 -> 89.51879226 | G154: ='[96]NPGN DNO'!I$34 -> 86.04606273 | H154: ='[96]NPGN DNO'!J$34 -> 83.56146916 | I154: ='[96]NPGN DNO'!K$34 -> 86.8760544 | K154: ='[94]Tables for Annual Report'!H49 -> 68.38192616 | L154: ='[94]Tables for Annual Report'!I49 -> 421.5168763 | N154: ='[94]Tables for Annual Report'!K49 -> 36.7211197 | O154: ='[94]Tables for Annual Report'!L49 -> 392.0602267 | Q154: 68.38192616 | R154: 36.7211197 | S154: =R154-Q154 -> -31.66080646 | T154: =S154/Q154 -> -0.4629996292 | V154: 421.5168763 | W154: 392.0602267 | X154: =W154-V154 -> -29.45664955 | Y154: =X154/V154 -> -0.06988249156
D155: NPgY | E155: ='[96]NPGY DNO'!G$34 -> 120.27604 | F155: ='[96]NPGY DNO'!H$34 -> 118.9193553 | G155: ='[96]NPGY DNO'!I$34 -> 107.1180579 | H155: ='[96]NPGY DNO'!J$34 -> 110.9387764 | I155: ='[96]NPGY DNO'!K$34 -> 105.2955154 | K155: ='[94]Tables for Annual Report'!H50 -> 85.39185097 | L155: ='[94]Tables for Annual Report'!I50 -> 478.5787626 | N155: ='[94]Tables for Annual Report'!K50 -> 69.0016556 | O155: ='[94]Tables for Annual Report'!L50 -> 505.3595366 | Q155: 85.39185097 | R155: 69.0016556 | S155: -16.39019537 | T155: -0.1919409777 | V155: 478.5787626 | W155: 505.3595366 | X155: 26.78077401 | Y155: 0.05595896873
D156: WMID | E156: ='[96]WMID DNO'!G$34 -> 101.531 | F156: ='[96]WMID DNO'!H$34 -> 117.4893 | G156: ='[96]WMID DNO'!I$34 -> 126.8398 | H156: ='[96]WMID DNO'!J$34 -> 103.8157 | I156: ='[96]WMID DNO'!K$34 -> 126.8257 | K156: ='[94]Tables for Annual Report'!H51 -> 92.70425248 | L156: ='[94]Tables for Annual Report'!I51 -> 523.3826163 | N156: ='[94]Tables for Annual Report'!K51 -> 83.65172855 | O156: ='[94]Tables for Annual Report'!L51 -> 533.9182009 | Q156: 92.70425248 | R156: 83.65172855 | S156: -9.052523928 | T156: -0.09764950027 | V156: 523.3826163 | W156: 533.9182009 | X156: 10.5355846 | Y156: 0.02012979468
D157: EMID | E157: ='[96]EMID DNO'!G$34 -> 110.0597 | F157: ='[96]EMID DNO'!H$34 -> 110.1571 | G157: ='[96]EMID DNO'!I$34 -> 120.1193 | H157: ='[96]EMID DNO'!J$34 -> 115.8491 | I157: ='[96]EMID DNO'!K$34 -> 110.6308 | K157: ='[94]Tables for Annual Report'!H52 -> 101.8411507 | L157: ='[94]Tables for Annual Report'!I52 -> 519.7903409 | N157: ='[94]Tables for Annual Report'!K52 -> 82.06297017 | O157: ='[94]Tables for Annual Report'!L52 -> 507.6619985 | Q157: 101.8411507 | R157: 82.06297017 | S157: -19.77818055 | T157: -0.1942061771 | V157: 519.7903409 | W157: 507.6619985 | X157: -12.1283424 | Y157: -0.02333314309
D158: SWALES | E158: ='[96]SWALES DNO'!G$34 -> 66.096 | F158: ='[96]SWALES DNO'!H$34 -> 65.663 | G158: ='[96]SWALES DNO'!I$34 -> 75.7928 | H158: ='[96]SWALES DNO'!J$34 -> 62.4383 | I158: ='[96]SWALES DNO'!K$34 -> 61.747 | K158: ='[94]Tables for Annual Report'!H53 -> 67.39530154 | L158: ='[94]Tables for Annual Report'!I53 -> 326.1459893 | N158: ='[94]Tables for Annual Report'!K53 -> 52.56075935 | O158: ='[94]Tables for Annual Report'!L53 -> 273.5806795 | Q158: 67.39530154 | R158: 52.56075935 | S158: -14.83454218 | T158: -0.2201124091 | V158: 326.1459893 | W158: 273.5806795 | X158: -52.56530976 | Y158: -0.1611711059
D159: SWEST | E159: ='[96]SWEST DNO'!G$34 -> 113.2764 | F159: ='[96]SWEST DNO'!H$34 -> 114.4053 | G159: ='[96]SWEST DNO'!I$34 -> 128.0176 | H159: ='[96]SWEST DNO'!J$34 -> 125.3091 | I159: ='[96]SWEST DNO'!K$34 -> 120.9361 | K159: ='[94]Tables for Annual Report'!H54 -> 99.63323916 | L159: ='[94]Tables for Annual Report'!I54 -> 519.5085145 | N159: ='[94]Tables for Annual Report'!K54 -> 82.14566432 | O159: ='[94]Tables for Annual Report'!L54 -> 508.2723492 | Q159: 99.63323916 | R159: 82.14566432 | S159: -17.48757484 | T159: -0.1755194852 | V159: 519.5085145 | W159: 508.2723492 | X159: -11.23616534 | Y159: -0.02162845272
D160: LPN | E160: ='[96]LPN DNO'!G$34 -> 57.75765355 | F160: ='[96]LPN DNO'!H$34 -> 59.98333344 | G160: ='[96]LPN DNO'!I$34 -> 75.77501637 | H160: ='[96]LPN DNO'!J$34 -> 64.55162168 | I160: ='[96]LPN DNO'!K$34 -> 53.34074287 | K160: ='[94]Tables for Annual Report'!H55 -> 55.67638951 | L160: ='[94]Tables for Annual Report'!I55 -> 304.8872041 | N160: ='[94]Tables for Annual Report'!K55 -> 45.14904082 | O160: ='[94]Tables for Annual Report'!L55 -> 248.3927927 | Q160: 55.67638951 | R160: 45.14904082 | S160: -10.5273487 | T160: -0.1890810232 | V160: 304.8872041 | W160: 248.3927927 | X160: -56.49441147 | Y160: -0.1852961052
D161: SPN | E161: ='[96]SPN DNO'!G$34 -> 88.99512072 | F161: ='[96]SPN DNO'!H$34 -> 92.62277877 | G161: ='[96]SPN DNO'!I$34 -> 91.06549401 | H161: ='[96]SPN DNO'!J$34 -> 84.73191049 | I161: ='[96]SPN DNO'!K$34 -> 85.68999093 | K161: ='[94]Tables for Annual Report'!H56 -> 84.98224108 | L161: ='[94]Tables for Annual Report'!I56 -> 444.0396694 | N161: ='[94]Tables for Annual Report'!K56 -> 55.92274079 | O161: ='[94]Tables for Annual Report'!L56 -> 373.4112256 | Q161: 84.98224108 | R161: 55.92274079 | S161: -29.05950029 | T161: -0.3419479167 | V161: 444.0396694 | W161: 373.4112256 | X161: -70.62844384 | Y161: -0.1590588605
D162: EPN | E162: ='[96]EPN DNO'!G$34 -> 140.4825522 | F162: ='[96]EPN DNO'!H$34 -> 142.4227843 | G162: ='[96]EPN DNO'!I$34 -> 130.8627912 | H162: ='[96]EPN DNO'!J$34 -> 121.6794454 | I162: ='[96]EPN DNO'!K$34 -> 106.0806432 | K162: ='[94]Tables for Annual Report'!H57 -> 126.8503458 | L162: ='[94]Tables for Annual Report'!I57 -> 617.8107601 | N162: ='[94]Tables for Annual Report'!K57 -> 83.21940999 | O162: ='[94]Tables for Annual Report'!L57 -> 503.5153951 | Q162: 126.8503458 | R162: 83.21940999 | S162: -43.63093579 | T162: -0.3439559863 | V162: 617.8107601 | W162: 503.5153951 | X162: -114.295365 | Y162: -0.185000606
D163: SPD | E163: ='[96]SPD DNO'!G$34 -> 109.7960451 | F163: ='[96]SPD DNO'!H$34 -> 117.4564528 | G163: ='[96]SPD DNO'!I$34 -> 104.8766355 | H163: ='[96]SPD DNO'!J$34 -> 102.2888173 | I163: ='[96]SPD DNO'!K$34 -> 99.03736365 | K163: ='[94]Tables for Annual Report'!H58 -> 102.7416993 | L163: ='[94]Tables for Annual Report'!I58 -> 539.5846561 | N163: ='[94]Tables for Annual Report'!K58 -> 88.35298927 | O163: ='[94]Tables for Annual Report'!L58 -> 520.0045405 | Q163: 102.7416993 | R163: 88.35298927 | S163: -14.38871001 | T163: -0.140047421 | V163: 539.5846561 | W163: 520.0045405 | X163: -19.58011558 | Y163: -0.03628738394
D164: SPMW | E164: ='[96]SPMW DNO'!G$34 -> 125.9428276 | F164: ='[96]SPMW DNO'!H$34 -> 146.7965248 | G164: ='[96]SPMW DNO'!I$34 -> 143.8449141 | H164: ='[96]SPMW DNO'!J$34 -> 121.661259 | I164: ='[96]SPMW DNO'!K$34 -> 106.2217671 | K164: ='[94]Tables for Annual Report'!H59 -> 122.4167728 | L164: ='[94]Tables for Annual Report'!I59 -> 657.1676697 | N164: ='[94]Tables for Annual Report'!K59 -> 96.22584125 | O164: ='[94]Tables for Annual Report'!L59 -> 680.8588672 | Q164: 122.4167728 | R164: 96.22584125 | S164: -26.19093152 | T164: -0.2139488808 | V164: 657.1676697 | W164: 680.8588672 | X164: 23.69119753 | Y164: 0.03605046113
D165: SSEH | E165: ='[96]SSEH DNO'!G$34 -> 74.47884984 | F165: ='[96]SSEH DNO'!H$34 -> 77.29497397 | G165: ='[96]SSEH DNO'!I$34 -> 74.0938063 | H165: ='[96]SSEH DNO'!J$34 -> 92.37003175 | I165: ='[96]SSEH DNO'!K$34 -> 68.41016147 | K165: ='[94]Tables for Annual Report'!H60 -> 66.51961221 | L165: ='[94]Tables for Annual Report'!I60 -> 338.6804569 | N165: ='[94]Tables for Annual Report'!K60 -> 53.27693014 | O165: ='[94]Tables for Annual Report'!L60 -> 725.6271448 | Q165: 66.51961221 | R165: 53.27693014 | S165: -13.24268207 | T165: -0.1990793637 | V165: 338.6804569 | W165: 725.6271448 | X165: 386.9466879 | Y165: 1.142512595
D166: SSES | E166: ='[96]SSES DNO'!G$34 -> 140.5222372 | F166: ='[96]SSES DNO'!H$34 -> 170.4610046 | G166: ='[96]SSES DNO'!I$34 -> 172.3176002 | H166: ='[96]SSES DNO'!J$34 -> 181.1751351 | I166: ='[96]SSES DNO'!K$34 -> 167.3439625 | K166: ='[94]Tables for Annual Report'!H61 -> 109.9650389 | L166: ='[94]Tables for Annual Report'!I61 -> 680.1689399 | N166: ='[94]Tables for Annual Report'!K61 -> 99.8218907 | O166: ='[94]Tables for Annual Report'!L61 -> 771.9946276 | Q166: 109.9650389 | R166: 99.8218907 | S166: -10.14314823 | T166: -0.09223975486 | V166: 680.1689399 | W166: 771.9946276 | X166: 91.82568766 | Y166: 0.1350042354
D167: Total | E167: =SUM(E153:E166) -> 1443.886102 | F167: 1537.234028 | G167: 1551.585839 | H167: 1481.148672 | I167: 1406.169646 | K167: =SUM(K153:K166) -> 1298.941556 | L167: 6971.788162 | N167: =SUM(N153:N166) -> 1009.261329 | O167: 7135.767578 | Q167: 1298.941556 | R167: 1009.261329 | S167: -289.6802267 | T167: -0.2230125177 | V167: 6971.788162 | W167: 7135.767578 | X167: 163.9794165 | Y167: 0.02352042441
D169: Total Non Op Capex | Q169: 2023/24 | V169: RIIO-ED2
E170: DNO Forecast (£m) - DNO Business Plan Data Templates | K170: DNO Baseline (£m) | N170: DNO Actual (£m) | Q170: Allowance | R170: Actual | S170: Difference | V170: Allowance | W170: Forecast | X170: Difference
E171: 2023/24 | F171: 2024/25 | G171: 2025/26 | H171: 2026/27 | I171: 2027/28 | K171: 2023/24 | L171: RIIO-ED2 | N171: 2023/24 | O171: RIIO-ED2 | Q171: £ | R171: £ | S171: £ | T171: % | V171: £ | W171: £ | X171: £ | Y171: %
D172: ENWL | E172: ='[96]ENWL DNO'!G$39 -> 28.3720349 | F172: ='[96]ENWL DNO'!H$39 -> 19.70360269 | G172: ='[96]ENWL DNO'!I$39 -> 22.94751267 | H172: ='[96]ENWL DNO'!J$39 -> 12.18039615 | I172: ='[96]ENWL DNO'!K$39 -> 9.33395012 | K172: ='[94]Tables for Annual Report'!H69 -> 22.61233386 | L172: ='[94]Tables for Annual Report'!I69 -> 79.40339849 | N172: ='[94]Tables for Annual Report'!K69 -> 14.1276793 | O172: ='[94]Tables for Annual Report'!L69 -> 81.14113555 | Q172: =K172 -> 22.61233386 | R172: =N172 -> 14.1276793 | S172: =R172-Q172 -> -8.484654568 | T172: =S172/Q172 -> -0.3752224171 | V172: =L172 -> 79.40339849 | W172: =O172 -> 81.14113555 | X172: =W172-V172 -> 1.737737065 | Y172: =X172/V172 -> 0.02188492052
D173: NPgN | E173: ='[96]NPGN DNO'!G$39 -> 14.66490127 | F173: ='[96]NPGN DNO'!H$39 -> 15.11240127 | G173: ='[96]NPGN DNO'!I$39 -> 15.11240127 | H173: ='[96]NPGN DNO'!J$39 -> 15.11240127 | I173: ='[96]NPGN DNO'!K$39 -> 15.11240127 | K173: ='[94]Tables for Annual Report'!H70 -> 12.51801888 | L173: ='[94]Tables for Annual Report'!I70 -> 70.55798187 | N173: ='[94]Tables for Annual Report'!K70 -> 6.451299491 | O173: ='[94]Tables for Annual Report'!L70 -> 58.43159085 | Q173: 12.51801888 | R173: 6.451299491 | S173: =R173-Q173 -> -6.066719389 | T173: =S173/Q173 -> -0.4846389391 | V173: 70.55798187 | W173: 58.43159085 | X173: =W173-V173 -> -12.12639102 | Y173: =X173/V173 -> -0.1718641988
D174: NPgY | E174: ='[96]NPGY DNO'!G$39 -> 14.58341354 | F174: ='[96]NPGY DNO'!H$39 -> 15.03091354 | G174: ='[96]NPGY DNO'!I$39 -> 15.03091354 | H174: ='[96]NPGY DNO'!J$39 -> 15.03091354 | I174: ='[96]NPGY DNO'!K$39 -> 15.03091354 | K174: ='[94]Tables for Annual Report'!H71 -> 13.52200629 | L174: ='[94]Tables for Annual Report'!I71 -> 77.36864936 | N174: ='[94]Tables for Annual Report'!K71 -> 7.49620084 | O174: ='[94]Tables for Annual Report'!L71 -> 66.43500421 | Q174: 13.52200629 | R174: 7.49620084 | S174: -6.025805453 | T174: -0.4456295407 | V174: 77.36864936 | W174: 66.43500421 | X174: -10.93364515 | Y174: -0.141318806
D175: WMID | E175: ='[96]WMID DNO'!G$39 -> 27.8346 | F175: ='[96]WMID DNO'!H$39 -> 27.6544 | G175: ='[96]WMID DNO'!I$39 -> 21.7551 | H175: ='[96]WMID DNO'!J$39 -> 19.4246 | I175: ='[96]WMID DNO'!K$39 -> 18.5687 | K175: ='[94]Tables for Annual Report'!H72 -> 24.76218236 | L175: ='[94]Tables for Annual Report'!I72 -> 106.7161603 | N175: ='[94]Tables for Annual Report'!K72 -> 14.46078751 | O175: ='[94]Tables for Annual Report'!L72 -> 100.160815 | Q175: 24.76218236 | R175: 14.46078751 | S175: -10.30139485 | T175: -0.416013205 | V175: 106.7161603 | W175: 100.160815 | X175: -6.555345268 | Y175: -0.0614278592
D176: EMID | E176: ='[96]EMID DNO'!G$39 -> 28.8075 | F176: ='[96]EMID DNO'!H$39 -> 30.026 | G176: ='[96]EMID DNO'!I$39 -> 25.6108 | H176: ='[96]EMID DNO'!J$39 -> 20.7935 | I176: ='[96]EMID DNO'!K$39 -> 19.3155 | K176: ='[94]Tables for Annual Report'!H73 -> 26.40407386 | L176: ='[94]Tables for Annual Report'!I73 -> 119.6383113 | N176: ='[94]Tables for Annual Report'!K73 -> 15.98526423 | O176: ='[94]Tables for Annual Report'!L73 -> 105.4586452 | Q176: 26.40407386 | R176: 15.98526423 | S176: -10.41880963 | T176: -0.3945909896 | V176: 119.6383113 | W176: 105.4586452 | X176: -14.17966613 | Y176: -0.1185211156
D177: SWALES | E177: ='[96]SWALES DNO'!G$39 -> 23.0771 | F177: ='[96]SWALES DNO'!H$39 -> 22.0808 | G177: ='[96]SWALES DNO'!I$39 -> 18.7384 | H177: ='[96]SWALES DNO'!J$39 -> 12.4785 | I177: ='[96]SWALES DNO'!K$39 -> 11.3953 | K177: ='[94]Tables for Annual Report'!H74 -> 20.00150427 | L177: ='[94]Tables for Annual Report'!I74 -> 76.68642266 | N177: ='[94]Tables for Annual Report'!K74 -> 5.929844821 | O177: ='[94]Tables for Annual Report'!L74 -> 56.0781073 | Q177: 20.00150427 | R177: 5.929844821 | S177: -14.07165945 | T177: -0.7035300575 | V177: 76.68642266 | W177: 56.0781073 | X177: -20.60831536 | Y177: -0.268734864
D178: SWEST | E178: ='[96]SWEST DNO'!G$39 -> 29.0793 | F178: ='[96]SWEST DNO'!H$39 -> 33.57 | G178: ='[96]SWEST DNO'!I$39 -> 31.3278 | H178: ='[96]SWEST DNO'!J$39 -> 19.0583 | I178: ='[96]SWEST DNO'!K$39 -> 15.5094 | K178: ='[94]Tables for Annual Report'!H75 -> 22.81054417 | L178: ='[94]Tables for Annual Report'!I75 -> 108.6476873 | N178: ='[94]Tables for Annual Report'!K75 -> 11.79354456 | O178: ='[94]Tables for Annual Report'!L75 -> 105.2985965 | Q178: 22.81054417 | R178: 11.79354456 | S178: -11.01699961 | T178: -0.4829783773 | V178: 108.6476873 | W178: 105.2985965 | X178: -3.349090896 | Y178: -0.03082523869
D179: LPN | E179: ='[96]LPN DNO'!G$39 -> 20.4537282 | F179: ='[96]LPN DNO'!H$39 -> 23.66846235 | G179: ='[96]LPN DNO'!I$39 -> 12.25551448 | H179: ='[96]LPN DNO'!J$39 -> 10.75172166 | I179: ='[96]LPN DNO'!K$39 -> 8.450974886 | K179: ='[94]Tables for Annual Report'!H76 -> 19.44338932 | L179: ='[94]Tables for Annual Report'!I76 -> 76.02360653 | N179: ='[94]Tables for Annual Report'!K76 -> 17.79310182 | O179: ='[94]Tables for Annual Report'!L76 -> 65.99850849 | Q179: 19.44338932 | R179: 17.79310182 | S179: -1.650287494 | T179: -0.084876534 | V179: 76.02360653 | W179: 65.99850849 | X179: -10.02509804 | Y179: -0.1318682248
D180: SPN | E180: ='[96]SPN DNO'!G$39 -> 22.54136822 | F180: ='[96]SPN DNO'!H$39 -> 23.86953818 | G180: ='[96]SPN DNO'!I$39 -> 14.34273266 | H180: ='[96]SPN DNO'!J$39 -> 12.69221478 | I180: ='[96]SPN DNO'!K$39 -> 10.65646536 | K180: ='[94]Tables for Annual Report'!H77 -> 21.60190302 | L180: ='[94]Tables for Annual Report'!I77 -> 85.11915614 | N180: ='[94]Tables for Annual Report'!K77 -> 15.84181365 | O180: ='[94]Tables for Annual Report'!L77 -> 71.05651967 | Q180: 21.60190302 | R180: 15.84181365 | S180: -5.760089369 | T180: -0.2666473118 | V180: 85.11915614 | W180: 71.05651967 | X180: -14.06263648 | Y180: -0.1652111829
D181: EPN | E181: ='[96]EPN DNO'!G$39 -> 34.38738825 | F181: ='[96]EPN DNO'!H$39 -> 37.55491928 | G181: ='[96]EPN DNO'!I$39 -> 22.61442202 | H181: ='[96]EPN DNO'!J$39 -> 20.41609905 | I181: ='[96]EPN DNO'!K$39 -> 17.72903367 | K181: ='[94]Tables for Annual Report'!H78 -> 33.37540591 | L181: ='[94]Tables for Annual Report'!I78 -> 130.4526948 | N181: ='[94]Tables for Annual Report'!K78 -> 26.61575988 | O181: ='[94]Tables for Annual Report'!L78 -> 112.9357469 | Q181: 33.37540591 | R181: 26.61575988 | S181: -6.759646028 | T181: -0.2025337474 | V181: 130.4526948 | W181: 112.9357469 | X181: -17.51694795 | Y181: -0.1342781609
D182: SPD | E182: ='[96]SPD DNO'!G$39 -> 20.08606964 | F182: ='[96]SPD DNO'!H$39 -> 21.34484995 | G182: ='[96]SPD DNO'!I$39 -> 14.10805636 | H182: ='[96]SPD DNO'!J$39 -> 16.8727997 | I182: ='[96]SPD DNO'!K$39 -> 13.70420048 | K182: ='[94]Tables for Annual Report'!H79 -> 20.57361882 | L182: ='[94]Tables for Annual Report'!I79 -> 74.67805539 | N182: ='[94]Tables for Annual Report'!K79 -> 9.221625042 | O182: ='[94]Tables for Annual Report'!L79 -> 74.4649825 | Q182: 20.57361882 | R182: 9.221625042 | S182: -11.35199378 | T182: -0.5517742832 | V182: 74.67805539 | W182: 74.4649825 | X182: -0.2130728917 | Y182: -0.002853219605
D183: SPMW | E183: ='[96]SPMW DNO'!G$39 -> 20.01808973 | F183: ='[96]SPMW DNO'!H$39 -> 17.43325942 | G183: ='[96]SPMW DNO'!I$39 -> 14.05131636 | H183: ='[96]SPMW DNO'!J$39 -> 12.22296302 | I183: ='[96]SPMW DNO'!K$39 -> 14.46157934 | K183: ='[94]Tables for Annual Report'!H80 -> 18.90763509 | L183: ='[94]Tables for Annual Report'!I80 -> 63.69955368 | N183: ='[94]Tables for Annual Report'!K80 -> 9.806765303 | O183: ='[94]Tables for Annual Report'!L80 -> 63.41835254 | Q183: 18.90763509 | R183: 9.806765303 | S183: -9.100869783 | T183: -0.4813330563 | V183: 63.69955368 | W183: 63.41835254 | X183: -0.281201139 | Y183: -0.004414491511
D184: SSEH | E184: ='[96]SSEH DNO'!G$39 -> 14.10468994 | F184: ='[96]SSEH DNO'!H$39 -> 17.26865107 | G184: ='[96]SSEH DNO'!I$39 -> 17.27292378 | H184: ='[96]SSEH DNO'!J$39 -> 17.36229903 | I184: ='[96]SSEH DNO'!K$39 -> 14.72580069 | K184: ='[94]Tables for Annual Report'!H81 -> 12.02727171 | L184: ='[94]Tables for Annual Report'!I81 -> 63.34422228 | N184: ='[94]Tables for Annual Report'!K81 -> 9.970572583 | O184: ='[94]Tables for Annual Report'!L81 -> 63.82297619 | Q184: 12.02727171 | R184: 9.970572583 | S184: -2.056699127 | T184: -0.1710029653 | V184: 63.34422228 | W184: 63.82297619 | X184: 0.4787539127 | Y184: 0.007557972857
D185: SSES | E185: ='[96]SSES DNO'!G$39 -> 24.48391455 | F185: ='[96]SSES DNO'!H$39 -> 31.25955666 | G185: ='[96]SSES DNO'!I$39 -> 29.55320598 | H185: ='[96]SSES DNO'!J$39 -> 29.24233143 | I185: ='[96]SSES DNO'!K$39 -> 25.50083452 | K185: ='[94]Tables for Annual Report'!H82 -> 21.95270077 | L185: ='[94]Tables for Annual Report'!I82 -> 120.3853452 | N185: ='[94]Tables for Annual Report'!K82 -> 13.89933811 | O185: ='[94]Tables for Annual Report'!L82 -> 120.3639831 | Q185: 21.95270077 | R185: 13.89933811 | S185: -8.053362669 | T185: -0.3668506555 | V185: 120.3853452 | W185: 120.3639831 | X185: -0.02136212604 | Y185: -0.0001774478945
D186: Total | E186: =SUM(E172:E185) -> 322.4940982 | F186: 335.5773544 | G186: 274.7210991 | H186: 233.6390396 | I186: 209.4950539 | K186: =SUM(K172:K185) -> 290.5125883 | L186: 1252.721245 | N186: =SUM(N172:N185) -> 179.3935971 | O186: 1145.064964 | Q186: 290.5125883 | R186: 179.3935971 | S186: =IF(R186>0,R186-Q186,"") -> -111.1189912 | T186: =IF(R186>0,S186/Q186,"") -> -0.3824928615 | V186: 1252.721245 | W186: 1145.064964 | X186: =IF(W186>0,W186-V186,"") -> -107.6562815 | Y186: =IF(W186>0,X186/V186,"") -> -0.0859379386
D188: Total High Value Projects | Q188: 2023/24 | V188: RIIO-ED2
E189: DNO Forecast (£m) - DNO Business Plan Data Templates | K189: DNO Baseline (£m) | N189: DNO Actual (£m) | Q189: Allowance | R189: Actual | S189: Difference | V189: Allowance | W189: Forecast | X189: Difference
E190: 2023/24 | F190: 2024/25 | G190: 2025/26 | H190: 2026/27 | I190: 2027/28 | K190: 2023/24 | L190: RIIO-ED2 | N190: 2023/24 | O190: RIIO-ED2 | Q190: £ | R190: £ | S190: £ | T190: % | V190: £ | W190: £ | X190: £ | Y190: %
D191: ENWL | E191: ='[96]ENWL DNO'!G$42 -> 0 | F191: ='[96]ENWL DNO'!H$42 -> 0 | G191: ='[96]ENWL DNO'!I$42 -> 0 | H191: ='[96]ENWL DNO'!J$42 -> 0 | I191: ='[96]ENWL DNO'!K$42 -> 0 | K191: ='[94]Tables for Annual Report'!H90 -> 0.03272349342 | L191: ='[94]Tables for Annual Report'!I90 -> 13.51300221 | N191: ='[94]Tables for Annual Report'!K90 -> 0.6308716243 | O191: ='[94]Tables for Annual Report'!L90 -> 14.11189642 | Q191: =K191 -> 0.03272349342 | R191: =N191 -> 0.6308716243 | S191: =IF(R191>0,R191-Q191,"") -> 0.5981481309 | T191: =IF(R191>0,S191/Q191,"") -> 18.27885927 | V191: =L191 -> 13.51300221 | W191: =O191 -> 14.11189642 | X191: =IF(W191>0,W191-V191,"") -> 0.5988942113 | Y191: =IF(W191>0,X191/V191,"") -> 0.04431984855
D192: NPgN | E192: ='[96]NPGN DNO'!G$42 -> 0 | F192: ='[96]NPGN DNO'!H$42 -> 0 | G192: ='[96]NPGN DNO'!I$42 -> 0 | H192: ='[96]NPGN DNO'!J$42 -> 0 | I192: ='[96]NPGN DNO'!K$42 -> 0 | K192: ='[94]Tables for Annual Report'!H91 -> 0 | L192: ='[94]Tables for Annual Report'!I91 -> 0 | N192: ='[94]Tables for Annual Report'!K91 -> 0 | O192: ='[94]Tables for Annual Report'!L91 -> 0 | Q192: 0 | R192: 0 | S192: =IF(R192>0,R192-Q192,"") ->  | T192: =IF(R192>0,S192/Q192,"") ->  | V192: 0 | W192: 0 | X192: =IF(W192>0,W192-V192,"") ->  | Y192: =IF(W192>0,X192/V192,"") -> 
D193: NPgY | E193: ='[96]NPGY DNO'!G$42 -> 0 | F193: ='[96]NPGY DNO'!H$42 -> 0 | G193: ='[96]NPGY DNO'!I$42 -> 0 | H193: ='[96]NPGY DNO'!J$42 -> 0 | I193: ='[96]NPGY DNO'!K$42 -> 0 | K193: ='[94]Tables for Annual Report'!H92 -> 0 | L193: ='[94]Tables for Annual Report'!I92 -> 0 | N193: ='[94]Tables for Annual Report'!K92 -> 0 | O193: ='[94]Tables for Annual Report'!L92 -> 0 | Q193: 0 | R193: 0 | V193: 0 | W193: 0
D194: WMID | E194: ='[96]WMID DNO'!G$42 -> 0 | F194: ='[96]WMID DNO'!H$42 -> 0 | G194: ='[96]WMID DNO'!I$42 -> 0 | H194: ='[96]WMID DNO'!J$42 -> 0 | I194: ='[96]WMID DNO'!K$42 -> 0 | K194: ='[94]Tables for Annual Report'!H93 -> 0 | L194: ='[94]Tables for Annual Report'!I93 -> 0 | N194: ='[94]Tables for Annual Report'!K93 -> 0 | O194: ='[94]Tables for Annual Report'!L93 -> 0 | Q194: 0 | R194: 0 | V194: 0 | W194: 0
D195: EMID | E195: ='[96]EMID DNO'!G$42 -> 0 | F195: ='[96]EMID DNO'!H$42 -> 0 | G195: ='[96]EMID DNO'!I$42 -> 0 | H195: ='[96]EMID DNO'!J$42 -> 0 | I195: ='[96]EMID DNO'!K$42 -> 0 | K195: ='[94]Tables for Annual Report'!H94 -> 0 | L195: ='[94]Tables for Annual Report'!I94 -> 0 | N195: ='[94]Tables for Annual Report'!K94 -> 0 | O195: ='[94]Tables for Annual Report'!L94 -> 0 | Q195: 0 | R195: 0 | V195: 0 | W195: 0
D196: SWALES | E196: ='[96]SWALES DNO'!G$42 -> 0 | F196: ='[96]SWALES DNO'!H$42 -> 0 | G196: ='[96]SWALES DNO'!I$42 -> 10.0056 | H196: ='[96]SWALES DNO'!J$42 -> 10.0056 | I196: ='[96]SWALES DNO'!K$42 -> 10.3089 | K196: ='[94]Tables for Annual Report'!H95 -> 0 | L196: ='[94]Tables for Annual Report'!I95 -> 0 | N196: ='[94]Tables for Annual Report'!K95 -> 0 | O196: ='[94]Tables for Annual Report'!L95 -> 0 | Q196: 0 | R196: 0 | V196: 0 | W196: 0
D197: SWEST | E197: ='[96]SWEST DNO'!G$42 -> 0 | F197: ='[96]SWEST DNO'!H$42 -> 0 | G197: ='[96]SWEST DNO'!I$42 -> 0 | H197: ='[96]SWEST DNO'!J$42 -> 0 | I197: ='[96]SWEST DNO'!K$42 -> 0 | K197: ='[94]Tables for Annual Report'!H96 -> 0 | L197: ='[94]Tables for Annual Report'!I96 -> 0 | N197: ='[94]Tables for Annual Report'!K96 -> 0 | O197: ='[94]Tables for Annual Report'!L96 -> 0 | Q197: 0 | R197: 0 | V197: 0 | W197: 0
D198: LPN | E198: ='[96]LPN DNO'!G$42 -> 0 | F198: ='[96]LPN DNO'!H$42 -> 0 | G198: ='[96]LPN DNO'!I$42 -> 0 | H198: ='[96]LPN DNO'!J$42 -> 0 | I198: ='[96]LPN DNO'!K$42 -> 0 | K198: ='[94]Tables for Annual Report'!H97 -> 0 | L198: ='[94]Tables for Annual Report'!I97 -> 0 | N198: ='[94]Tables for Annual Report'!K97 -> 0.2330963289 | O198: ='[94]Tables for Annual Report'!L97 -> 0.2330963289 | Q198: 0 | R198: 0.2330963289 | S198: 0.2330963289 | V198: 0 | W198: 0.2330963289 | X198: 0.2330963289
D199: SPN | E199: ='[96]SPN DNO'!G$42 -> 0 | F199: ='[96]SPN DNO'!H$42 -> 0 | G199: ='[96]SPN DNO'!I$42 -> 0 | H199: ='[96]SPN DNO'!J$42 -> 0 | I199: ='[96]SPN DNO'!K$42 -> 0 | K199: ='[94]Tables for Annual Report'!H98 -> 0 | L199: ='[94]Tables for Annual Report'!I98 -> 0 | N199: ='[94]Tables for Annual Report'!K98 -> 0 | O199: ='[94]Tables for Annual Report'!L98 -> 0 | Q199: 0 | R199: 0 | V199: 0 | W199: 0
D200: EPN | E200: ='[96]EPN DNO'!G$42 -> 0 | F200: ='[96]EPN DNO'!H$42 -> 0 | G200: ='[96]EPN DNO'!I$42 -> 0 | H200: ='[96]EPN DNO'!J$42 -> 0 | I200: ='[96]EPN DNO'!K$42 -> 0 | K200: ='[94]Tables for Annual Report'!H99 -> 0 | L200: ='[94]Tables for Annual Report'!I99 -> 0 | N200: ='[94]Tables for Annual Report'!K99 -> 1.852279051 | O200: ='[94]Tables for Annual Report'!L99 -> 1.852279051 | Q200: 0 | R200: 1.852279051 | S200: 1.852279051 | V200: 0 | W200: 1.852279051 | X200: 1.852279051
D201: SPD | E201: ='[96]SPD DNO'!G$42 -> 0 | F201: ='[96]SPD DNO'!H$42 -> 0 | G201: ='[96]SPD DNO'!I$42 -> 0 | H201: ='[96]SPD DNO'!J$42 -> 0 | I201: ='[96]SPD DNO'!K$42 -> 0 | K201: ='[94]Tables for Annual Report'!H100 -> 0 | L201: ='[94]Tables for Annual Report'!I100 -> 0 | N201: ='[94]Tables for Annual Report'!K100 -> 0 | O201: ='[94]Tables for Annual Report'!L100 -> 0 | Q201: 0 | R201: 0 | V201: 0 | W201: 0
D202: SPMW | E202: ='[96]SPMW DNO'!G$42 -> 0 | F202: ='[96]SPMW DNO'!H$42 -> 0 | G202: ='[96]SPMW DNO'!I$42 -> 0 | H202: ='[96]SPMW DNO'!J$42 -> 0 | I202: ='[96]SPMW DNO'!K$42 -> 0 | K202: ='[94]Tables for Annual Report'!H101 -> 0 | L202: ='[94]Tables for Annual Report'!I101 -> 0 | N202: ='[94]Tables for Annual Report'!K101 -> 0 | O202: ='[94]Tables for Annual Report'!L101 -> 0 | Q202: 0 | R202: 0 | V202: 0 | W202: 0
D203: SSEH | E203: ='[96]SSEH DNO'!G$42 -> 0 | F203: ='[96]SSEH DNO'!H$42 -> 7.96825 | G203: ='[96]SSEH DNO'!I$42 -> 23.90475 | H203: ='[96]SSEH DNO'!J$42 -> 0 | I203: ='[96]SSEH DNO'!K$42 -> 0 | K203: ='[94]Tables for Annual Report'!H102 -> 9.866064298 | L203: ='[94]Tables for Annual Report'!I102 -> 19.60311154 | N203: ='[94]Tables for Annual Report'!K102 -> 0 | O203: ='[94]Tables for Annual Report'!L102 -> 0 | Q203: 9.866064298 | R203: 0 | V203: 19.60311154 | W203: 0
D204: SSES | E204: ='[96]SSES DNO'!G$42 -> 0 | F204: ='[96]SSES DNO'!H$42 -> 0 | G204: ='[96]SSES DNO'!I$42 -> 7.429736882 | H204: ='[96]SSES DNO'!J$42 -> 28.63139472 | I204: ='[96]SSES DNO'!K$42 -> 18.1771434 | K204: ='[94]Tables for Annual Report'!H103 -> 0 | L204: ='[94]Tables for Annual Report'!I103 -> 46.22816608 | N204: ='[94]Tables for Annual Report'!K103 -> 0 | O204: ='[94]Tables for Annual Report'!L103 -> 0 | Q204: 0 | R204: 0 | V204: 46.22816608 | W204: 0
D205: Total | E205: =SUM(E191:E204) -> 0 | F205: 7.96825 | G205: 41.34008688 | H205: 38.63699472 | I205: 28.4860434 | K205: =SUM(K191:K204) -> 9.898787792 | L205: 79.34427983 | N205: =SUM(N191:N204) -> 2.716247004 | O205: 16.1972718 | Q205: 9.898787792 | R205: 2.716247004 | S205: -7.182540788 | T205: -0.7255980165 | V205: 79.34427983 | W205: 16.1972718 | X205: -63.14700803 | Y205: -0.7958608757
D207: Total Network Operating Costs | Q207: 2023/24 | V207: RIIO-ED2
E208: DNO Forecast (£m) - DNO Business Plan Data Templates | K208: DNO Baseline (£m) | N208: DNO Actual (£m) | Q208: Allowance | R208: Actual | S208: Difference | V208: Allowance | W208: Forecast | X208: Difference
E209: 2023/24 | F209: 2024/25 | G209: 2025/26 | H209: 2026/27 | I209: 2027/28 | K209: 2023/24 | L209: RIIO-ED2 | N209: 2023/24 | O209: RIIO-ED2 | Q209: £ | R209: £ | S209: £ | T209: % | V209: £ | W209: £ | X209: £ | Y209: %
D210: ENWL | E210: ='[96]ENWL DNO'!G$59 -> 63.47627178 | F210: ='[96]ENWL DNO'!H$59 -> 63.60156427 | G210: ='[96]ENWL DNO'!I$59 -> 59.03447437 | H210: ='[96]ENWL DNO'!J$59 -> 59.08666776 | I210: ='[96]ENWL DNO'!K$59 -> 59.1840844 | K210: ='[94]Tables for Annual Report'!H111 -> 56.91980582 | L210: ='[94]Tables for Annual Report'!I111 -> 277.9940124 | N210: ='[94]Tables for Annual Report'!K111 -> 58.47841108 | O210: ='[94]Tables for Annual Report'!L111 -> 283.9741017 | Q210: =K210 -> 56.91980582 | R210: =N210 -> 58.47841108 | S210: =R210-Q210 -> 1.558605261 | T210: =S210/Q210 -> 0.02738247678 | V210: =L210 -> 277.9940124 | W210: =O210 -> 283.9741017 | X210: =W210-V210 -> 5.980089392 | Y210: =X210/V210 -> 0.02151157624
D211: NPgN | E211: ='[96]NPGN DNO'!G$59 -> 49.471641 | F211: ='[96]NPGN DNO'!H$59 -> 48.38317709 | G211: ='[96]NPGN DNO'!I$59 -> 48.58194823 | H211: ='[96]NPGN DNO'!J$59 -> 48.90296558 | I211: ='[96]NPGN DNO'!K$59 -> 47.8402949 | K211: ='[94]Tables for Annual Report'!H112 -> 37.6074871 | L211: ='[94]Tables for Annual Report'!I112 -> 191.709327 | N211: ='[94]Tables for Annual Report'!K112 -> 51.85925836 | O211: ='[94]Tables for Annual Report'!L112 -> 241.3906314 | Q211: 37.6074871 | R211: 51.85925836 | S211: =R211-Q211 -> 14.25177127 | T211: =S211/Q211 -> 0.3789610093 | V211: 191.709327 | W211: 241.3906314 | X211: =W211-V211 -> 49.68130431 | Y211: =X211/V211 -> 0.2591491248
D212: NPgY | E212: ='[96]NPGY DNO'!G$59 -> 74.2943543 | F212: ='[96]NPGY DNO'!H$59 -> 73.28097872 | G212: ='[96]NPGY DNO'!I$59 -> 73.59715405 | H212: ='[96]NPGY DNO'!J$59 -> 72.73348107 | I212: ='[96]NPGY DNO'!K$59 -> 72.49233163 | K212: ='[94]Tables for Annual Report'!H113 -> 62.17832937 | L212: ='[94]Tables for Annual Report'!I113 -> 323.0786054 | N212: ='[94]Tables for Annual Report'!K113 -> 82.41402144 | O212: ='[94]Tables for Annual Report'!L113 -> 363.8777823 | Q212: 62.17832937 | R212: 82.41402144 | S212: 20.23569207 | T212: 0.325446056 | V212: 323.0786054 | W212: 363.8777823 | X212: 40.79917683 | Y212: 0.1262825088
D213: WMID | E213: ='[96]WMID DNO'!G$59 -> 66.9977 | F213: ='[96]WMID DNO'!H$59 -> 66.7847 | G213: ='[96]WMID DNO'!I$59 -> 64.0153 | H213: ='[96]WMID DNO'!J$59 -> 63.3936 | I213: ='[96]WMID DNO'!K$59 -> 62.9609 | K213: ='[94]Tables for Annual Report'!H114 -> 59.38326995 | L213: ='[94]Tables for Annual Report'!I114 -> 282.7182444 | N213: ='[94]Tables for Annual Report'!K114 -> 61.63784224 | O213: ='[94]Tables for Annual Report'!L114 -> 291.2683901 | Q213: 59.38326995 | R213: 61.63784224 | S213: 2.254572298 | T213: 0.03796645588 | V213: 282.7182444 | W213: 291.2683901 | X213: 8.550145708 | Y213: 0.03024263866
D214: EMID | E214: ='[96]EMID DNO'!G$59 -> 71.1747 | F214: ='[96]EMID DNO'!H$59 -> 70.6102 | G214: ='[96]EMID DNO'!I$59 -> 66.6804 | H214: ='[96]EMID DNO'!J$59 -> 66.8437 | I214: ='[96]EMID DNO'!K$59 -> 66.5648 | K214: ='[94]Tables for Annual Report'!H115 -> 63.75764772 | L214: ='[94]Tables for Annual Report'!I115 -> 302.9352623 | N214: ='[94]Tables for Annual Report'!K115 -> 64.46865579 | O214: ='[94]Tables for Annual Report'!L115 -> 294.033449 | Q214: 63.75764772 | R214: 64.46865579 | S214: 0.7110080728 | T214: 0.01115173 | V214: 302.9352623 | W214: 294.033449 | X214: -8.901813357 | Y214: -0.02938520029
D215: SWALES | E215: ='[96]SWALES DNO'!G$59 -> 36.9737 | F215: ='[96]SWALES DNO'!H$59 -> 36.7778 | G215: ='[96]SWALES DNO'!I$59 -> 35.9632 | H215: ='[96]SWALES DNO'!J$59 -> 34.6291 | I215: ='[96]SWALES DNO'!K$59 -> 34.5544 | K215: ='[94]Tables for Annual Report'!H116 -> 33.31458867 | L215: ='[94]Tables for Annual Report'!I116 -> 159.859809 | N215: ='[94]Tables for Annual Report'!K116 -> 32.1630515 | O215: ='[94]Tables for Annual Report'!L116 -> 154.4581986 | Q215: 33.31458867 | R215: 32.1630515 | S215: -1.15153717 | T215: -0.03456555269 | V215: 159.859809 | W215: 154.4581986 | X215: -5.401610356 | Y215: -0.03378967102
D216: SWEST | E216: ='[96]SWEST DNO'!G$59 -> 60.1316 | F216: ='[96]SWEST DNO'!H$59 -> 59.1821 | G216: ='[96]SWEST DNO'!I$59 -> 57.3218 | H216: ='[96]SWEST DNO'!J$59 -> 56.9119 | I216: ='[96]SWEST DNO'!K$59 -> 55.7578 | K216: ='[94]Tables for Annual Report'!H117 -> 51.93680527 | L216: ='[94]Tables for Annual Report'!I117 -> 248.6018061 | N216: ='[94]Tables for Annual Report'!K117 -> 56.04817891 | O216: ='[94]Tables for Annual Report'!L117 -> 257.0811452 | Q216: 51.93680527 | R216: 56.04817891 | S216: 4.111373632 | T216: 0.07916108068 | V216: 248.6018061 | W216: 257.0811452 | X216: 8.479339076 | Y216: 0.03410811534
D217: LPN | E217: ='[96]LPN DNO'!G$59 -> 51.3016529 | F217: ='[96]LPN DNO'!H$59 -> 51.36193665 | G217: ='[96]LPN DNO'!I$59 -> 51.18923922 | H217: ='[96]LPN DNO'!J$59 -> 50.65053747 | I217: ='[96]LPN DNO'!K$59 -> 50.63393963 | K217: ='[94]Tables for Annual Report'!H118 -> 53.1853601 | L217: ='[94]Tables for Annual Report'!I118 -> 263.2658415 | N217: ='[94]Tables for Annual Report'!K118 -> 53.64496672 | O217: ='[94]Tables for Annual Report'!L118 -> 251.0129213 | Q217: 53.1853601 | R217: 53.64496672 | S217: 0.4596066269 | T217: 0.008641600359 | V217: 263.2658415 | W217: 251.0129213 | X217: -12.25292024 | Y217: -0.0465420055
D218: SPN | E218: ='[96]SPN DNO'!G$59 -> 58.74233884 | F218: ='[96]SPN DNO'!H$59 -> 58.78204884 | G218: ='[96]SPN DNO'!I$59 -> 58.13958488 | H218: ='[96]SPN DNO'!J$59 -> 57.62311092 | I218: ='[96]SPN DNO'!K$59 -> 57.70815092 | K218: ='[94]Tables for Annual Report'!H119 -> 57.63986322 | L218: ='[94]Tables for Annual Report'!I119 -> 283.1009942 | N218: ='[94]Tables for Annual Report'!K119 -> 70.10360577 | O218: ='[94]Tables for Annual Report'!L119 -> 310.6725701 | Q218: 57.63986322 | R218: 70.10360577 | S218: 12.46374255 | T218: 0.2162347697 | V218: 283.1009942 | W218: 310.6725701 | X218: 27.57157582 | Y218: 0.09739130693
D219: EPN | E219: ='[96]EPN DNO'!G$59 -> 92.50323874 | F219: ='[96]EPN DNO'!H$59 -> 92.57935874 | G219: ='[96]EPN DNO'!I$59 -> 91.96478679 | H219: ='[96]EPN DNO'!J$59 -> 91.59695414 | I219: ='[96]EPN DNO'!K$59 -> 91.35184414 | K219: ='[94]Tables for Annual Report'!H120 -> 95.34168451 | L219: ='[94]Tables for Annual Report'!I120 -> 465.8594984 | N219: ='[94]Tables for Annual Report'!K120 -> 110.6463825 | O219: ='[94]Tables for Annual Report'!L120 -> 490.5279917 | Q219: 95.34168451 | R219: 110.6463825 | S219: 15.304698 | T219: 0.1605247283 | V219: 465.8594984 | W219: 490.5279917 | X219: 24.66849326 | Y219: 0.05295264634
D220: SPD | E220: ='[96]SPD DNO'!G$59 -> 50.79045557 | F220: ='[96]SPD DNO'!H$59 -> 50.70874374 | G220: ='[96]SPD DNO'!I$59 -> 50.63728257 | H220: ='[96]SPD DNO'!J$59 -> 46.41957483 | I220: ='[96]SPD DNO'!K$59 -> 51.79697465 | K220: ='[94]Tables for Annual Report'!H121 -> 48.08458121 | L220: ='[94]Tables for Annual Report'!I121 -> 231.4876064 | N220: ='[94]Tables for Annual Report'!K121 -> 47.2984957 | O220: ='[94]Tables for Annual Report'!L121 -> 244.4166033 | Q220: 48.08458121 | R220: 47.2984957 | S220: -0.7860855153 | T220: -0.01634797466 | V220: 231.4876064 | W220: 244.4166033 | X220: 12.92899692 | Y220: 0.05585178886
... 58 more rows

Sheet Ch4 expenditure drivers 2
A1: Chapter 4 - Expenditure Drivers 2 | G1: Difference | J1: Areas of underspend | P1: Areas of overspend
A2: Cumulative to date | B2: Allowance | C2: % of total allowance | D2: Actual | E2: % of total actual | G2: £ | H2: % | K2: £ | L2: % | Q2: £ | R2: %
A3: Total Load Related Capex | B3: ='Ch4 expenditure drivers'!E16 -> 701.1815376 | C3: ='Ch4 expenditure drivers'!F16 -> 0.1591080043 | D3: ='Ch4 expenditure drivers'!G16 -> 380.3116239 | E3: =D3/$D$11 -> 0.1003800483 | G3: =D3-B3 -> -320.8699138 | H3: =IFERROR(G3/B3,"N/A") -> -0.4576131808 | J3: =A3 -> Total Load Related Capex | K3: =G3 -> -320.8699138 | L3: -0.4576131808 | P3: =A7 -> Total Network Operating Costs | Q3: =G7 -> 109.8284719 | R3: =H7 -> 0.1384779786
A4: Total Non-Load Related Capex | B4: ='Ch4 expenditure drivers'!E17 -> 1298.941556 | C4: ='Ch4 expenditure drivers'!F17 -> 0.2947482037 | D4: ='Ch4 expenditure drivers'!G17 -> 1009.261329 | E4: 0.266386023 | G4: =D4-B4 -> -289.6802267 | H4: =IFERROR(G4/B4,"N/A") -> -0.2230125177 | J4: =A4 -> Total Non-Load Related Capex | K4: -289.6802267 | L4: -0.2230125177 | P4: Total | Q4: =SUM(Q3) -> 109.8284719 | R4: =Q4/SUM(B7) -> 0.1384779786
A5: Total Non-Op Capex | B5: ='Ch4 expenditure drivers'!E18 -> 290.5125883 | C5: ='Ch4 expenditure drivers'!F18 -> 0.06592141361 | D5: ='Ch4 expenditure drivers'!G18 -> 179.3935971 | E5: 0.04734942826 | G5: -111.1189912 | H5: -0.3824928615 | J5: =A5 -> Total Non-Op Capex | K5: -111.1189912 | L5: -0.3824928615
A6: Total HVPs | B6: ='Ch4 expenditure drivers'!E19 -> 9.898787792 | C6: ='Ch4 expenditure drivers'!F19 -> 0.002246174901 | D6: ='Ch4 expenditure drivers'!G19 -> 2.716247004 | E6: 0.0007169305076 | G6: -7.182540788 | H6: -0.7255980165 | J6: =A8 -> Total Closely Associated Costs | K6: =G8 -> -24.33319514 | L6: =H8 -> -0.02848454072
A7: Total Network Operating Costs | B7: ='Ch4 expenditure drivers'!E20 -> 793.1114608 | C7: ='Ch4 expenditure drivers'!F20 -> 0.1799682036 | D7: ='Ch4 expenditure drivers'!G20 -> 902.9399326 | E7: 0.2383233864 | G7: 109.8284719 | H7: 0.1384779786 | J7: =A9 -> Total Business Support Costs | K7: =G9 -> -1.510697028 | L7: =H9 -> -0.003309924785
A8: Total Closely Associated Costs | B8: ='Ch4 expenditure drivers'!E21 -> 854.2596978 | C8: ='Ch4 expenditure drivers'!F21 -> 0.1938436031 | D8: ='Ch4 expenditure drivers'!G21 -> 829.9265027 | E8: 0.2190521068 | G8: -24.33319514 | H8: -0.02848454072 | J8: Total | K8: =SUM(K3:K6) -> -746.0023268 | L8: =K8/SUM(B3,B4,B9,B5,B8) -> -0.2071475079
A9: Total Business Support Costs | B9: ='Ch4 expenditure drivers'!E22 -> 456.4143073 | C9: ='Ch4 expenditure drivers'!F22 -> 0.1035668592 | D9: ='Ch4 expenditure drivers'!G22 -> 454.9036103 | E9: 0.1200679746 | G9: -1.510697028 | H9: -0.003309924785
A10: Total Other Costs | B10: ='Ch4 expenditure drivers'!E23 -> 2.633320069 | C10: ='Ch4 expenditure drivers'!F23 -> 0.000597537554 | D10: ='Ch4 expenditure drivers'!G23 -> 29.26443904 | E10: 0.007724102082 | G10: 26.63111898 | H10: 10.1131341
A11: Total | B11: ='Ch4 expenditure drivers'!E24 -> 4406.953256 | C11: =B11/$B$11 -> 1 | D11: ='Ch4 expenditure drivers'!G24 -> 3788.717282 | E11: 1 | G11: =D11-B11 -> -618.2359738 | H11: =IFERROR(G11/B11,"N/A") -> -0.1402864832
K12: Large cost categories: | R12: Large cost categories:
K13: underspend to date (£746m) | R13: overspend to date (£110m)

Sheet Calculations (hidden)
A1: ='One-pager'!A2 -> ENWL
A5: Cover, guide and Drivers
A6: Column1 | B6: Column2 | C6: 2015 | D6: 2016 | E6: 2017 | F6: 2018 | G6: 2019 | H6: 2020 | I6: 2021 | J6: 2022 | K6: 2023 | L6: 2024
A7: Customer numbers | C7: =INDEX(Dataset!$A:$V,MATCH(Calculations!C$6&Calculations!$P7,Dataset!$V:$V,0),MATCH(Calculations!$A$1,Dataset!$A$1:$V$1,0)) -> 2375305 | D7: =INDEX(Dataset!$A:$V,MATCH(Calculations!D$6&Calculations!$P7,Dataset!$V:$V,0),MATCH(Calculations!$A$1,Dataset!$A$1:$V$1,0)) -> 2381080 | E7: =INDEX(Dataset!$A:$V,MATCH(Calculations!E$6&Calculations!$P7,Dataset!$V:$V,0),MATCH(Calculations!$A$1,Dataset!$A$1:$V$1,0)) -> 2383214 | F7: =INDEX(Dataset!$A:$V,MATCH(Calculations!F$6&Calculations!$P7,Dataset!$V:$V,0),MATCH(Calculations!$A$1,Dataset!$A$1:$V$1,0)) -> 2383887 | G7: =INDEX(Dataset!$A:$V,MATCH(Calculations!G$6&Calculations!$P7,Dataset!$V:$V,0),MATCH(Calculations!$A$1,Dataset!$A$1:$V$1,0)) -> 2393226 | H7: =INDEX(Dataset!$A:$V,MATCH(Calculations!H$6&Calculations!$P7,Dataset!$V:$V,0),MATCH(Calculations!$A$1,Dataset!$A$1:$V$1,0)) -> 2399715 | I7: =INDEX(Dataset!$A:$V,MATCH(Calculations!I$6&Calculations!$P7,Dataset!$V:$V,0),MATCH(Calculations!$A$1,Dataset!$A$1:$V$1,0)) -> 2405770 | J7: =INDEX(Dataset!$A:$V,MATCH(Calculations!J$6&Calculations!$P7,Dataset!$V:$V,0),MATCH(Calculations!$A$1,Dataset!$A$1:$V$1,0)) -> 2412196 | K7: =INDEX(Dataset!$A:$V,MATCH(Calculations!K$6&Calculations!$P7,Dataset!$V:$V,0),MATCH(Calculations!$A$1,Dataset!$A$1:$V$1,0)) -> 2424364 | L7: =INDEX(Dataset!$A:$V,MATCH(Calculations!L$6&Calculations!$P7,Dataset!$V:$V,0),MATCH(Calculations!$A$1,Dataset!$A$1:$V$1,0)) -> 2430849 | P7: Cover guide and driversDriversCustomer numbers
A8: Network length | C8: =INDEX(Dataset!$A:$V,MATCH(Calculations!C$6&Calculations!$P8,Dataset!$V:$V,0),MATCH(Calculations!$A$1,Dataset!$A$1:$V$1,0)) -> 57722.14882 | D8: =INDEX(Dataset!$A:$V,MATCH(Calculations!D$6&Calculations!$P8,Dataset!$V:$V,0),MATCH(Calculations!$A$1,Dataset!$A$1:$V$1,0)) -> 57946.36778 | E8: =INDEX(Dataset!$A:$V,MATCH(Calculations!E$6&Calculations!$P8,Dataset!$V:$V,0),MATCH(Calculations!$A$1,Dataset!$A$1:$V$1,0)) -> 57090.45584 | F8: =INDEX(Dataset!$A:$V,MATCH(Calculations!F$6&Calculations!$P8,Dataset!$V:$V,0),MATCH(Calculations!$A$1,Dataset!$A$1:$V$1,0)) -> 57324.15031 | G8: =INDEX(Dataset!$A:$V,MATCH(Calculations!G$6&Calculations!$P8,Dataset!$V:$V,0),MATCH(Calculations!$A$1,Dataset!$A$1:$V$1,0)) -> 57348.87727 | H8: =INDEX(Dataset!$A:$V,MATCH(Calculations!H$6&Calculations!$P8,Dataset!$V:$V,0),MATCH(Calculations!$A$1,Dataset!$A$1:$V$1,0)) -> 57432.08682 | I8: =INDEX(Dataset!$A:$V,MATCH(Calculations!I$6&Calculations!$P8,Dataset!$V:$V,0),MATCH(Calculations!$A$1,Dataset!$A$1:$V$1,0)) -> 57415.28103 | J8: =INDEX(Dataset!$A:$V,MATCH(Calculations!J$6&Calculations!$P8,Dataset!$V:$V,0),MATCH(Calculations!$A$1,Dataset!$A$1:$V$1,0)) -> 57694.51428 | K8: =INDEX(Dataset!$A:$V,MATCH(Calculations!K$6&Calculations!$P8,Dataset!$V:$V,0),MATCH(Calculations!$A$1,Dataset!$A$1:$V$1,0)) -> 60022.72532 | L8: =INDEX(Dataset!$A:$V,MATCH(Calculations!L$6&Calculations!$P8,Dataset!$V:$V,0),MATCH(Calculations!$A$1,Dataset!$A$1:$V$1,0)) -> 60848.16603 | P8: Cover guide and driversDriversNetwork length
A9: Total units distributed (GWh) | C9: =INDEX(Dataset!$A:$V,MATCH(Calculations!C$6&Calculations!$P9,Dataset!$V:$V,0),MATCH(Calculations!$A$1,Dataset!$A$1:$V$1,0)) -> 22393 | D9: =INDEX(Dataset!$A:$V,MATCH(Calculations!D$6&Calculations!$P9,Dataset!$V:$V,0),MATCH(Calculations!$A$1,Dataset!$A$1:$V$1,0)) -> 22223.98232 | E9: =INDEX(Dataset!$A:$V,MATCH(Calculations!E$6&Calculations!$P9,Dataset!$V:$V,0),MATCH(Calculations!$A$1,Dataset!$A$1:$V$1,0)) -> 22059.6 | F9: =INDEX(Dataset!$A:$V,MATCH(Calculations!F$6&Calculations!$P9,Dataset!$V:$V,0),MATCH(Calculations!$A$1,Dataset!$A$1:$V$1,0)) -> 21855.5 | G9: =INDEX(Dataset!$A:$V,MATCH(Calculations!G$6&Calculations!$P9,Dataset!$V:$V,0),MATCH(Calculations!$A$1,Dataset!$A$1:$V$1,0)) -> 21712.4 | H9: =INDEX(Dataset!$A:$V,MATCH(Calculations!H$6&Calculations!$P9,Dataset!$V:$V,0),MATCH(Calculations!$A$1,Dataset!$A$1:$V$1,0)) -> 21372.05355 | I9: =INDEX(Dataset!$A:$V,MATCH(Calculations!I$6&Calculations!$P9,Dataset!$V:$V,0),MATCH(Calculations!$A$1,Dataset!$A$1:$V$1,0)) -> 20115 | J9: =INDEX(Dataset!$A:$V,MATCH(Calculations!J$6&Calculations!$P9,Dataset!$V:$V,0),MATCH(Calculations!$A$1,Dataset!$A$1:$V$1,0)) -> 20962.45289 | K9: =INDEX(Dataset!$A:$V,MATCH(Calculations!K$6&Calculations!$P9,Dataset!$V:$V,0),MATCH(Calculations!$A$1,Dataset!$A$1:$V$1,0)) -> 19661.1 | L9: =INDEX(Dataset!$A:$V,MATCH(Calculations!L$6&Calculations!$P9,Dataset!$V:$V,0),MATCH(Calculations!$A$1,Dataset!$A$1:$V$1,0)) -> 19532.4 | P9: Cover guide and driversDriversTotal units distributed
A10: Network-wide peak load (MVA) | C10: =INDEX(Dataset!$A:$V,MATCH(Calculations!C$6&Calculations!$P10,Dataset!$V:$V,0),MATCH(Calculations!$A$1,Dataset!$A$1:$V$1,0)) -> 4267 | D10: =INDEX(Dataset!$A:$V,MATCH(Calculations!D$6&Calculations!$P10,Dataset!$V:$V,0),MATCH(Calculations!$A$1,Dataset!$A$1:$V$1,0)) -> 4233 | E10: =INDEX(Dataset!$A:$V,MATCH(Calculations!E$6&Calculations!$P10,Dataset!$V:$V,0),MATCH(Calculations!$A$1,Dataset!$A$1:$V$1,0)) -> 4262 | F10: =INDEX(Dataset!$A:$V,MATCH(Calculations!F$6&Calculations!$P10,Dataset!$V:$V,0),MATCH(Calculations!$A$1,Dataset!$A$1:$V$1,0)) -> 4305 | G10: =INDEX(Dataset!$A:$V,MATCH(Calculations!G$6&Calculations!$P10,Dataset!$V:$V,0),MATCH(Calculations!$A$1,Dataset!$A$1:$V$1,0)) -> 4160 | H10: =INDEX(Dataset!$A:$V,MATCH(Calculations!H$6&Calculations!$P10,Dataset!$V:$V,0),MATCH(Calculations!$A$1,Dataset!$A$1:$V$1,0)) -> 4140 | I10: =INDEX(Dataset!$A:$V,MATCH(Calculations!I$6&Calculations!$P10,Dataset!$V:$V,0),MATCH(Calculations!$A$1,Dataset!$A$1:$V$1,0)) -> 4049 | J10: =INDEX(Dataset!$A:$V,MATCH(Calculations!J$6&Calculations!$P10,Dataset!$V:$V,0),MATCH(Calculations!$A$1,Dataset!$A$1:$V$1,0)) -> 4223 | K10: =INDEX(Dataset!$A:$V,MATCH(Calculations!K$6&Calculations!$P10,Dataset!$V:$V,0),MATCH(Calculations!$A$1,Dataset!$A$1:$V$1,0)) -> 4107 | L10: =INDEX(Dataset!$A:$V,MATCH(Calculations!L$6&Calculations!$P10,Dataset!$V:$V,0),MATCH(Calculations!$A$1,Dataset!$A$1:$V$1,0)) -> 3960 | P10: Cover guide and driversDriversNetwork-wide Peak load
A12: Ch1 Incentive Payments
C13: 2023/24
A14: Total incentive payments | C14: =INDEX(Dataset!$A:$V,MATCH(Calculations!C$13&Calculations!$P14,Dataset!$V:$V,0),MATCH(Calculations!$A$1,Dataset!$A$1:$V$1,0)) -> 3.073448284 | P14: Incentive paymentsIncentive paymentsTotal Incentive payments
A16: Ch1 outputs - reliability
D17: 2023/24 | E17: 2024/25 | F17: 2025/26 | G17: 2026/27 | H17: 2027/28
A18: IIS
A19: CI performance | C19: =IFERROR(INDEX(Dataset!$A:$V,MATCH(Calculations!#REF!&Calculations!$P19,Dataset!$V:$V,0),MATCH(Calculations!$A$1,Dataset!$A$1:$V$1,0)),"") ->  | D19: =IFERROR(INDEX(Dataset!$A:$V,MATCH(Calculations!D$17&Calculations!$P19,Dataset!$V:$V,0),MATCH(Calculations!$A$1,Dataset!$A$1:$V$1,0)),"") -> 26.21178856 | E19: =IFERROR(INDEX(Dataset!$A:$V,MATCH(Calculations!E$17&Calculations!$P19,Dataset!$V:$V,0),MATCH(Calculations!$A$1,Dataset!$A$1:$V$1,0)),"") -> 0 | F19: =IFERROR(INDEX(Dataset!$A:$V,MATCH(Calculations!F$17&Calculations!$P19,Dataset!$V:$V,0),MATCH(Calculations!$A$1,Dataset!$A$1:$V$1,0)),"") -> 0 | G19: =IFERROR(INDEX(Dataset!$A:$V,MATCH(Calculations!G$17&Calculations!$P19,Dataset!$V:$V,0),MATCH(Calculations!$A$1,Dataset!$A$1:$V$1,0)),"") -> 0 | H19: =IFERROR(INDEX(Dataset!$A:$V,MATCH(Calculations!H$17&Calculations!$P19,Dataset!$V:$V,0),MATCH(Calculations!$A$1,Dataset!$A$1:$V$1,0)),"") -> 0 | I19: =IFERROR(INDEX(Dataset!$A:$V,MATCH(Calculations!I$17&Calculations!$P19,Dataset!$V:$V,0),MATCH(Calculations!$A$1,Dataset!$A$1:$V$1,0)),"") ->  | J19: =IFERROR(INDEX(Dataset!$A:$V,MATCH(Calculations!J$17&Calculations!$P19,Dataset!$V:$V,0),MATCH(Calculations!$A$1,Dataset!$A$1:$V$1,0)),"") ->  | K19: =IFERROR(INDEX(Dataset!$A:$V,MATCH(Calculations!K$17&Calculations!$P19,Dataset!$V:$V,0),MATCH(Calculations!$A$1,Dataset!$A$1:$V$1,0)),"") ->  | L19: =IFERROR(INDEX(Dataset!$A:$V,MATCH(Calculations!L$17&Calculations!$P19,Dataset!$V:$V,0),MATCH(Calculations!$A$1,Dataset!$A$1:$V$1,0)),"") ->  | P19: Outputs - reliabilityInterruption Incentive Scheme (IIS)CI performance
A20: CI RAG | C20: =IFERROR(INDEX(Dataset!$A:$V,MATCH(Calculations!#REF!&Calculations!$P20,Dataset!$V:$V,0),MATCH(Calculations!$A$1,Dataset!$A$1:$V$1,0)),"") ->  | D20: =IFERROR(INDEX(Dataset!$A:$V,MATCH(Calculations!D$17&Calculations!$P20,Dataset!$V:$V,0),MATCH(Calculations!$A$1,Dataset!$A$1:$V$1,0)),"") -> Green | E20: =IFERROR(INDEX(Dataset!$A:$V,MATCH(Calculations!E$17&Calculations!$P20,Dataset!$V:$V,0),MATCH(Calculations!$A$1,Dataset!$A$1:$V$1,0)),"") ->  | F20: =IFERROR(INDEX(Dataset!$A:$V,MATCH(Calculations!F$17&Calculations!$P20,Dataset!$V:$V,0),MATCH(Calculations!$A$1,Dataset!$A$1:$V$1,0)),"") ->  | G20: =IFERROR(INDEX(Dataset!$A:$V,MATCH(Calculations!G$17&Calculations!$P20,Dataset!$V:$V,0),MATCH(Calculations!$A$1,Dataset!$A$1:$V$1,0)),"") ->  | H20: =IFERROR(INDEX(Dataset!$A:$V,MATCH(Calculations!H$17&Calculations!$P20,Dataset!$V:$V,0),MATCH(Calculations!$A$1,Dataset!$A$1:$V$1,0)),"") ->  | I20: =IFERROR(INDEX(Dataset!$A:$V,MATCH(Calculations!I$17&Calculations!$P20,Dataset!$V:$V,0),MATCH(Calculations!$A$1,Dataset!$A$1:$V$1,0)),"") ->  | J20: =IFERROR(INDEX(Dataset!$A:$V,MATCH(Calculations!J$17&Calculations!$P20,Dataset!$V:$V,0),MATCH(Calculations!$A$1,Dataset!$A$1:$V$1,0)),"") ->  | K20: =IFERROR(INDEX(Dataset!$A:$V,MATCH(Calculations!K$17&Calculations!$P20,Dataset!$V:$V,0),MATCH(Calculations!$A$1,Dataset!$A$1:$V$1,0)),"") ->  | L20: =IFERROR(INDEX(Dataset!$A:$V,MATCH(Calculations!L$17&Calculations!$P20,Dataset!$V:$V,0),MATCH(Calculations!$A$1,Dataset!$A$1:$V$1,0)),"") ->  | P20: Outputs - reliabilityInterruption Incentive Scheme (IIS)CI RAG rating
A21: CML performance | C21: =IFERROR(INDEX(Dataset!$A:$V,MATCH(Calculations!#REF!&Calculations!$P21,Dataset!$V:$V,0),MATCH(Calculations!$A$1,Dataset!$A$1:$V$1,0)),"") ->  | D21: =IFERROR(INDEX(Dataset!$A:$V,MATCH(Calculations!D$17&Calculations!$P21,Dataset!$V:$V,0),MATCH(Calculations!$A$1,Dataset!$A$1:$V$1,0)),"") -> 26.79553851 | E21: =IFERROR(INDEX(Dataset!$A:$V,MATCH(Calculations!E$17&Calculations!$P21,Dataset!$V:$V,0),MATCH(Calculations!$A$1,Dataset!$A$1:$V$1,0)),"") -> 0 | F21: =IFERROR(INDEX(Dataset!$A:$V,MATCH(Calculations!F$17&Calculations!$P21,Dataset!$V:$V,0),MATCH(Calculations!$A$1,Dataset!$A$1:$V$1,0)),"") -> 0 | G21: =IFERROR(INDEX(Dataset!$A:$V,MATCH(Calculations!G$17&Calculations!$P21,Dataset!$V:$V,0),MATCH(Calculations!$A$1,Dataset!$A$1:$V$1,0)),"") -> 0 | H21: =IFERROR(INDEX(Dataset!$A:$V,MATCH(Calculations!H$17&Calculations!$P21,Dataset!$V:$V,0),MATCH(Calculations!$A$1,Dataset!$A$1:$V$1,0)),"") -> 0 | I21: =IFERROR(INDEX(Dataset!$A:$V,MATCH(Calculations!I$17&Calculations!$P21,Dataset!$V:$V,0),MATCH(Calculations!$A$1,Dataset!$A$1:$V$1,0)),"") ->  | J21: =IFERROR(INDEX(Dataset!$A:$V,MATCH(Calculations!J$17&Calculations!$P21,Dataset!$V:$V,0),MATCH(Calculations!$A$1,Dataset!$A$1:$V$1,0)),"") ->  | K21: =IFERROR(INDEX(Dataset!$A:$V,MATCH(Calculations!K$17&Calculations!$P21,Dataset!$V:$V,0),MATCH(Calculations!$A$1,Dataset!$A$1:$V$1,0)),"") ->  | L21: =IFERROR(INDEX(Dataset!$A:$V,MATCH(Calculations!L$17&Calculations!$P21,Dataset!$V:$V,0),MATCH(Calculations!$A$1,Dataset!$A$1:$V$1,0)),"") ->  | P21: Outputs - reliabilityInterruption Incentive Scheme (IIS)CML performance
A22: CML RAG | C22: =IFERROR(INDEX(Dataset!$A:$V,MATCH(Calculations!#REF!&Calculations!$P22,Dataset!$V:$V,0),MATCH(Calculations!$A$1,Dataset!$A$1:$V$1,0)),"") ->  | D22: =IFERROR(INDEX(Dataset!$A:$V,MATCH(Calculations!D$17&Calculations!$P22,Dataset!$V:$V,0),MATCH(Calculations!$A$1,Dataset!$A$1:$V$1,0)),"") -> Green | E22: =IFERROR(INDEX(Dataset!$A:$V,MATCH(Calculations!E$17&Calculations!$P22,Dataset!$V:$V,0),MATCH(Calculations!$A$1,Dataset!$A$1:$V$1,0)),"") ->  | F22: =IFERROR(INDEX(Dataset!$A:$V,MATCH(Calculations!F$17&Calculations!$P22,Dataset!$V:$V,0),MATCH(Calculations!$A$1,Dataset!$A$1:$V$1,0)),"") ->  | G22: =IFERROR(INDEX(Dataset!$A:$V,MATCH(Calculations!G$17&Calculations!$P22,Dataset!$V:$V,0),MATCH(Calculations!$A$1,Dataset!$A$1:$V$1,0)),"") ->  | H22: =IFERROR(INDEX(Dataset!$A:$V,MATCH(Calculations!H$17&Calculations!$P22,Dataset!$V:$V,0),MATCH(Calculations!$A$1,Dataset!$A$1:$V$1,0)),"") ->  | I22: =IFERROR(INDEX(Dataset!$A:$V,MATCH(Calculations!I$17&Calculations!$P22,Dataset!$V:$V,0),MATCH(Calculations!$A$1,Dataset!$A$1:$V$1,0)),"") ->  | J22: =IFERROR(INDEX(Dataset!$A:$V,MATCH(Calculations!J$17&Calculations!$P22,Dataset!$V:$V,0),MATCH(Calculations!$A$1,Dataset!$A$1:$V$1,0)),"") ->  | K22: =IFERROR(INDEX(Dataset!$A:$V,MATCH(Calculations!K$17&Calculations!$P22,Dataset!$V:$V,0),MATCH(Calculations!$A$1,Dataset!$A$1:$V$1,0)),"") ->  | L22: =IFERROR(INDEX(Dataset!$A:$V,MATCH(Calculations!L$17&Calculations!$P22,Dataset!$V:$V,0),MATCH(Calculations!$A$1,Dataset!$A$1:$V$1,0)),"") ->  | P22: Outputs - reliabilityInterruption Incentive Scheme (IIS)CMLRAG rating
A23: IIS total reward | C23: =IFERROR(INDEX(Dataset!$A:$V,MATCH(Calculations!#REF!&Calculations!$P23,Dataset!$V:$V,0),MATCH(Calculations!$A$1,Dataset!$A$1:$V$1,0)),"") ->  | D23: =IFERROR(INDEX(Dataset!$A:$V,MATCH(Calculations!D$17&Calculations!$P23,Dataset!$V:$V,0),MATCH(Calculations!$A$1,Dataset!$A$1:$V$1,0)),"") -> 0.8665659245 | E23: =IFERROR(INDEX(Dataset!$A:$V,MATCH(Calculations!E$17&Calculations!$P23,Dataset!$V:$V,0),MATCH(Calculations!$A$1,Dataset!$A$1:$V$1,0)),"") ->  | F23: =IFERROR(INDEX(Dataset!$A:$V,MATCH(Calculations!F$17&Calculations!$P23,Dataset!$V:$V,0),MATCH(Calculations!$A$1,Dataset!$A$1:$V$1,0)),"") ->  | G23: =IFERROR(INDEX(Dataset!$A:$V,MATCH(Calculations!G$17&Calculations!$P23,Dataset!$V:$V,0),MATCH(Calculations!$A$1,Dataset!$A$1:$V$1,0)),"") ->  | H23: =IFERROR(INDEX(Dataset!$A:$V,MATCH(Calculations!H$17&Calculations!$P23,Dataset!$V:$V,0),MATCH(Calculations!$A$1,Dataset!$A$1:$V$1,0)),"") ->  | I23: =IFERROR(INDEX(Dataset!$A:$V,MATCH(Calculations!I$17&Calculations!$P23,Dataset!$V:$V,0),MATCH(Calculations!$A$1,Dataset!$A$1:$V$1,0)),"") ->  | J23: =IFERROR(INDEX(Dataset!$A:$V,MATCH(Calculations!J$17&Calculations!$P23,Dataset!$V:$V,0),MATCH(Calculations!$A$1,Dataset!$A$1:$V$1,0)),"") ->  | K23: =IFERROR(INDEX(Dataset!$A:$V,MATCH(Calculations!K$17&Calculations!$P23,Dataset!$V:$V,0),MATCH(Calculations!$A$1,Dataset!$A$1:$V$1,0)),"") ->  | L23: =IFERROR(INDEX(Dataset!$A:$V,MATCH(Calculations!L$17&Calculations!$P23,Dataset!$V:$V,0),MATCH(Calculations!$A$1,Dataset!$A$1:$V$1,0)),"") ->  | P23: Outputs - reliabilityInterruption Incentive Scheme (IIS)IIS total reward
A24: Regulation 7 Severe Weather Conditions Adjustment | C24: =IFERROR(INDEX(Dataset!$A:$V,MATCH(Calculations!#REF!&Calculations!$P24,Dataset!$V:$V,0),MATCH(Calculations!$A$1,Dataset!$A$1:$V$1,0)),"") ->  | D24: =IFERROR(INDEX(Dataset!$A:$V,MATCH(Calculations!D$17&Calculations!$P24,Dataset!$V:$V,0),MATCH(Calculations!$A$1,Dataset!$A$1:$V$1,0)),"") -> 0 | E24: =IFERROR(INDEX(Dataset!$A:$V,MATCH(Calculations!E$17&Calculations!$P24,Dataset!$V:$V,0),MATCH(Calculations!$A$1,Dataset!$A$1:$V$1,0)),"") ->  | F24: =IFERROR(INDEX(Dataset!$A:$V,MATCH(Calculations!F$17&Calculations!$P24,Dataset!$V:$V,0),MATCH(Calculations!$A$1,Dataset!$A$1:$V$1,0)),"") ->  | G24: =IFERROR(INDEX(Dataset!$A:$V,MATCH(Calculations!G$17&Calculations!$P24,Dataset!$V:$V,0),MATCH(Calculations!$A$1,Dataset!$A$1:$V$1,0)),"") ->  | H24: =IFERROR(INDEX(Dataset!$A:$V,MATCH(Calculations!H$17&Calculations!$P24,Dataset!$V:$V,0),MATCH(Calculations!$A$1,Dataset!$A$1:$V$1,0)),"") ->  | I24: =IFERROR(INDEX(Dataset!$A:$V,MATCH(Calculations!I$17&Calculations!$P24,Dataset!$V:$V,0),MATCH(Calculations!$A$1,Dataset!$A$1:$V$1,0)),"") ->  | J24: =IFERROR(INDEX(Dataset!$A:$V,MATCH(Calculations!J$17&Calculations!$P24,Dataset!$V:$V,0),MATCH(Calculations!$A$1,Dataset!$A$1:$V$1,0)),"") ->  | K24: =IFERROR(INDEX(Dataset!$A:$V,MATCH(Calculations!K$17&Calculations!$P24,Dataset!$V:$V,0),MATCH(Calculations!$A$1,Dataset!$A$1:$V$1,0)),"") ->  | L24: =IFERROR(INDEX(Dataset!$A:$V,MATCH(Calculations!L$17&Calculations!$P24,Dataset!$V:$V,0),MATCH(Calculations!$A$1,Dataset!$A$1:$V$1,0)),"") ->  | P24: Outputs - reliabilityInterruption Incentive Scheme (IIS)Regulation 7 Severe Weather Conditions Adjustment
A25: Normal weather conditions adjustment | C25: =IFERROR(INDEX(Dataset!$A:$V,MATCH(Calculations!#REF!&Calculations!$P25,Dataset!$V:$V,0),MATCH(Calculations!$A$1,Dataset!$A$1:$V$1,0)),"") ->  | D25: =IFERROR(INDEX(Dataset!$A:$V,MATCH(Calculations!D$17&Calculations!$P25,Dataset!$V:$V,0),MATCH(Calculations!$A$1,Dataset!$A$1:$V$1,0)),"") -> 0 | E25: =IFERROR(INDEX(Dataset!$A:$V,MATCH(Calculations!E$17&Calculations!$P25,Dataset!$V:$V,0),MATCH(Calculations!$A$1,Dataset!$A$1:$V$1,0)),"") ->  | F25: =IFERROR(INDEX(Dataset!$A:$V,MATCH(Calculations!F$17&Calculations!$P25,Dataset!$V:$V,0),MATCH(Calculations!$A$1,Dataset!$A$1:$V$1,0)),"") ->  | G25: =IFERROR(INDEX(Dataset!$A:$V,MATCH(Calculations!G$17&Calculations!$P25,Dataset!$V:$V,0),MATCH(Calculations!$A$1,Dataset!$A$1:$V$1,0)),"") ->  | H25: =IFERROR(INDEX(Dataset!$A:$V,MATCH(Calculations!H$17&Calculations!$P25,Dataset!$V:$V,0),MATCH(Calculations!$A$1,Dataset!$A$1:$V$1,0)),"") ->  | I25: =IFERROR(INDEX(Dataset!$A:$V,MATCH(Calculations!I$17&Calculations!$P25,Dataset!$V:$V,0),MATCH(Calculations!$A$1,Dataset!$A$1:$V$1,0)),"") ->  | J25: =IFERROR(INDEX(Dataset!$A:$V,MATCH(Calculations!J$17&Calculations!$P25,Dataset!$V:$V,0),MATCH(Calculations!$A$1,Dataset!$A$1:$V$1,0)),"") ->  | K25: =IFERROR(INDEX(Dataset!$A:$V,MATCH(Calculations!K$17&Calculations!$P25,Dataset!$V:$V,0),MATCH(Calculations!$A$1,Dataset!$A$1:$V$1,0)),"") ->  | L25: =IFERROR(INDEX(Dataset!$A:$V,MATCH(Calculations!L$17&Calculations!$P25,Dataset!$V:$V,0),MATCH(Calculations!$A$1,Dataset!$A$1:$V$1,0)),"") ->  | P25: Outputs - reliabilityInterruption Incentive Scheme (IIS)Normal weather conditions adjustment
A27: GSoP
B28: Total Payments Owed | C28: =IFERROR(INDEX(Dataset!$A:$V,MATCH(Calculations!#REF!&Calculations!$P28,Dataset!$V:$V,0),MATCH(Calculations!$A$1,Dataset!$A$1:$V$1,0)),"") ->  | D28: =IFERROR(INDEX(Dataset!$A:$V,MATCH(Calculations!D$17&Calculations!$P28,Dataset!$V:$V,0),MATCH(Calculations!$A$1,Dataset!$A$1:$V$1,0)),"") -> 9061 | E28: =IFERROR(INDEX(Dataset!$A:$V,MATCH(Calculations!E$17&Calculations!$P28,Dataset!$V:$V,0),MATCH(Calculations!$A$1,Dataset!$A$1:$V$1,0)),"") ->  | F28: =IFERROR(INDEX(Dataset!$A:$V,MATCH(Calculations!F$17&Calculations!$P28,Dataset!$V:$V,0),MATCH(Calculations!$A$1,Dataset!$A$1:$V$1,0)),"") ->  | G28: =IFERROR(INDEX(Dataset!$A:$V,MATCH(Calculations!G$17&Calculations!$P28,Dataset!$V:$V,0),MATCH(Calculations!$A$1,Dataset!$A$1:$V$1,0)),"") ->  | H28: =IFERROR(INDEX(Dataset!$A:$V,MATCH(Calculations!H$17&Calculations!$P28,Dataset!$V:$V,0),MATCH(Calculations!$A$1,Dataset!$A$1:$V$1,0)),"") ->  | I28: =IFERROR(INDEX(Dataset!$A:$V,MATCH(Calculations!I$17&Calculations!$P28,Dataset!$V:$V,0),MATCH(Calculations!$A$1,Dataset!$A$1:$V$1,0)),"") ->  | J28: =IFERROR(INDEX(Dataset!$A:$V,MATCH(Calculations!J$17&Calculations!$P28,Dataset!$V:$V,0),MATCH(Calculations!$A$1,Dataset!$A$1:$V$1,0)),"") ->  | K28: =IFERROR(INDEX(Dataset!$A:$V,MATCH(Calculations!K$17&Calculations!$P28,Dataset!$V:$V,0),MATCH(Calculations!$A$1,Dataset!$A$1:$V$1,0)),"") ->  | L28: =IFERROR(INDEX(Dataset!$A:$V,MATCH(Calculations!L$17&Calculations!$P28,Dataset!$V:$V,0),MATCH(Calculations!$A$1,Dataset!$A$1:$V$1,0)),"") ->  | P28: Outputs - reliabilityGuaranteed Standards of Performance (GSoP)Total Payments owed
B29: Total Paymets Made + Exemptions | C29: =IFERROR(INDEX(Dataset!$A:$V,MATCH(Calculations!#REF!&Calculations!$P29,Dataset!$V:$V,0),MATCH(Calculations!$A$1,Dataset!$A$1:$V$1,0)),"") ->  | D29: =IFERROR(INDEX(Dataset!$A:$V,MATCH(Calculations!D$17&Calculations!$P29,Dataset!$V:$V,0),MATCH(Calculations!$A$1,Dataset!$A$1:$V$1,0)),"") -> 7792 | E29: =IFERROR(INDEX(Dataset!$A:$V,MATCH(Calculations!E$17&Calculations!$P29,Dataset!$V:$V,0),MATCH(Calculations!$A$1,Dataset!$A$1:$V$1,0)),"") ->  | F29: =IFERROR(INDEX(Dataset!$A:$V,MATCH(Calculations!F$17&Calculations!$P29,Dataset!$V:$V,0),MATCH(Calculations!$A$1,Dataset!$A$1:$V$1,0)),"") ->  | G29: =IFERROR(INDEX(Dataset!$A:$V,MATCH(Calculations!G$17&Calculations!$P29,Dataset!$V:$V,0),MATCH(Calculations!$A$1,Dataset!$A$1:$V$1,0)),"") ->  | H29: =IFERROR(INDEX(Dataset!$A:$V,MATCH(Calculations!H$17&Calculations!$P29,Dataset!$V:$V,0),MATCH(Calculations!$A$1,Dataset!$A$1:$V$1,0)),"") ->  | I29: =IFERROR(INDEX(Dataset!$A:$V,MATCH(Calculations!I$17&Calculations!$P29,Dataset!$V:$V,0),MATCH(Calculations!$A$1,Dataset!$A$1:$V$1,0)),"") ->  | J29: =IFERROR(INDEX(Dataset!$A:$V,MATCH(Calculations!J$17&Calculations!$P29,Dataset!$V:$V,0),MATCH(Calculations!$A$1,Dataset!$A$1:$V$1,0)),"") ->  | K29: =IFERROR(INDEX(Dataset!$A:$V,MATCH(Calculations!K$17&Calculations!$P29,Dataset!$V:$V,0),MATCH(Calculations!$A$1,Dataset!$A$1:$V$1,0)),"") ->  | L29: =IFERROR(INDEX(Dataset!$A:$V,MATCH(Calculations!L$17&Calculations!$P29,Dataset!$V:$V,0),MATCH(Calculations!$A$1,Dataset!$A$1:$V$1,0)),"") ->  | P29: Outputs - reliabilityGuaranteed Standards of Performance (GSoP)Total Payments made
B30: Percentage of payments made | C30: =IFERROR(INDEX(Dataset!$A:$V,MATCH(Calculations!#REF!&Calculations!$P30,Dataset!$V:$V,0),MATCH(Calculations!$A$1,Dataset!$A$1:$V$1,0)),"") ->  | D30: =IFERROR(INDEX(Dataset!$A:$V,MATCH(Calculations!D$17&Calculations!$P30,Dataset!$V:$V,0),MATCH(Calculations!$A$1,Dataset!$A$1:$V$1,0)),"") -> 0.859949233 | E30: =IFERROR(INDEX(Dataset!$A:$V,MATCH(Calculations!E$17&Calculations!$P30,Dataset!$V:$V,0),MATCH(Calculations!$A$1,Dataset!$A$1:$V$1,0)),"") ->  | F30: =IFERROR(INDEX(Dataset!$A:$V,MATCH(Calculations!F$17&Calculations!$P30,Dataset!$V:$V,0),MATCH(Calculations!$A$1,Dataset!$A$1:$V$1,0)),"") ->  | G30: =IFERROR(INDEX(Dataset!$A:$V,MATCH(Calculations!G$17&Calculations!$P30,Dataset!$V:$V,0),MATCH(Calculations!$A$1,Dataset!$A$1:$V$1,0)),"") ->  | H30: =IFERROR(INDEX(Dataset!$A:$V,MATCH(Calculations!H$17&Calculations!$P30,Dataset!$V:$V,0),MATCH(Calculations!$A$1,Dataset!$A$1:$V$1,0)),"") ->  | I30: =IFERROR(INDEX(Dataset!$A:$V,MATCH(Calculations!I$17&Calculations!$P30,Dataset!$V:$V,0),MATCH(Calculations!$A$1,Dataset!$A$1:$V$1,0)),"") ->  | J30: =IFERROR(INDEX(Dataset!$A:$V,MATCH(Calculations!J$17&Calculations!$P30,Dataset!$V:$V,0),MATCH(Calculations!$A$1,Dataset!$A$1:$V$1,0)),"") ->  | K30: =IFERROR(INDEX(Dataset!$A:$V,MATCH(Calculations!K$17&Calculations!$P30,Dataset!$V:$V,0),MATCH(Calculations!$A$1,Dataset!$A$1:$V$1,0)),"") ->  | L30: =IFERROR(INDEX(Dataset!$A:$V,MATCH(Calculations!L$17&Calculations!$P30,Dataset!$V:$V,0),MATCH(Calculations!$A$1,Dataset!$A$1:$V$1,0)),"") ->  | P30: Outputs - reliabilityGuaranteed Standards of Performance (GSoP)% of Payments made vs Payments owed
A31: WSC
